Workbook

Sheet Introducción

Sheet Predicciones de la liguilla
C2: Predicciones de la liguilla
X3: 3rd Teams
C4: Grupo | D4: Equipos | E4: Ajuste del rendimiento general | F4: Partidos jugados | G4: Ganados | H4: Empates | I4: Perdidos | J4: Goles a favor | K4: Goles en contra | L4: +/- | M4: Puntos | N4: Margen dif. | O4: Puesto en grupo (clasificados: 1 y 2) | P4: Posición de terceros | Q4: Points (if ranked third) | X4: 3rd Teams | Y4: Round of 16
C5: A | D5: Francia | E5: 0% | F5: =COUNTIF('Partidos de este año'!$E$5:$G$41, D5) -> 3 | G5: =COUNTIF('Partidos de este año'!I:I, D5) -> 2 | H5: =COUNTIFS('Partidos de este año'!E:E, D5, 'Partidos de este año'!I:I, "Dibujar")+COUNTIFS('Partidos de este año'!G:G, D5, 'Partidos de este año'!I:I, "Dibujar") -> 0 | I5: =F5-SUM(G5:H5) -> 1 | J5: =SUM(SUMIF('Partidos de este año'!E:E, D5,'Partidos de este año'!L:L), SUMIF('Partidos de este año'!G:G,D5,'Partidos de este año'!M:M)) -> 5.96 | K5: =SUM(SUMIFS('Partidos de este año'!M:M,'Partidos de este año'!E:E,'Predicciones de la liguilla'!D5), SUMIFS('Partidos de este año'!F:F, 'Partidos de este año'!L:L, 'Predicciones de la liguilla'!D5)) -> 3.18 | L5: =J5-K5 -> 2.78 | M5: =(G5*3)+(H5*1) -> 6 | N5: =M5+(L5*0.001)+(J5*0.0001) -> 6.00 | O5: =RANK(N5,N$5:N$8) -> 1 | P5: =IF(Q5:Q28=0,"",RANK(Q5:Q28,Q5:Q28)) ->  | Q5: =IF('Predicciones de la liguilla'!$O$5:$O$28=3,'Predicciones de la liguilla'!$N$5:$N$28,0) -> 0.00 | X5: A | Y5: =SUM(Rank3A)<=4 -> TRUE
C6: A | D6: República de Corea | E6: 0% | F6: =COUNTIF('Partidos de este año'!$E$5:$G$41, D6) -> 3 | G6: =COUNTIF('Partidos de este año'!I:I, D6) -> 1 | H6: =COUNTIFS('Partidos de este año'!E:E, D6, 'Partidos de este año'!I:I, "Dibujar")+COUNTIFS('Partidos de este año'!G:G, D6, 'Partidos de este año'!I:I, "Dibujar") -> 1 | I6: 1 | J6: =SUM(SUMIF('Partidos de este año'!E:E, D6,'Partidos de este año'!L:L), SUMIF('Partidos de este año'!G:G,D6,'Partidos de este año'!M:M)) -> 4.40 | K6: =SUM(SUMIFS('Partidos de este año'!M:M,'Partidos de este año'!E:E,'Predicciones de la liguilla'!D6), SUMIFS('Partidos de este año'!F:F, 'Partidos de este año'!L:L, 'Predicciones de la liguilla'!D6)) -> 1.38 | L6: =J6-K6 -> 3.02 | M6: 4 | N6: =M6+(L6*0.001)+(J6*0.0001) -> 4.00 | O6: =RANK(N6,N$5:N$8) -> 2 | Q6: 0.00 | X6: B | Y6: =SUM(Rank3B)<=4 -> FALSE
C7: A | D7: Nigeria | E7: 0% | F7: =COUNTIF('Partidos de este año'!$E$5:$G$41, D7) -> 3 | G7: =COUNTIF('Partidos de este año'!I:I, D7) -> 1 | H7: =COUNTIFS('Partidos de este año'!E:E, D7, 'Partidos de este año'!I:I, "Dibujar")+COUNTIFS('Partidos de este año'!G:G, D7, 'Partidos de este año'!I:I, "Dibujar") -> 0 | I7: 2 | J7: =SUM(SUMIF('Partidos de este año'!E:E, D7,'Partidos de este año'!L:L), SUMIF('Partidos de este año'!G:G,D7,'Partidos de este año'!M:M)) -> 3.36 | K7: =SUM(SUMIFS('Partidos de este año'!M:M,'Partidos de este año'!E:E,'Predicciones de la liguilla'!D7), SUMIFS('Partidos de este año'!F:F, 'Partidos de este año'!L:L, 'Predicciones de la liguilla'!D7)) -> 4.28 | L7: -0.92 | M7: 3 | N7: 3.00 | O7: =RANK(N7,N$5:N$8) -> 4 | Q7: 0.00 | X7: C | Y7: =SUM(Rank3C)<=4 -> TRUE
C8: A | D8: Noruega | E8: 0% | F8: =COUNTIF('Partidos de este año'!$E$5:$G$41, D8) -> 3 | G8: =COUNTIF('Partidos de este año'!I:I, D8) -> 1 | H8: =COUNTIFS('Partidos de este año'!E:E, D8, 'Partidos de este año'!I:I, "Dibujar")+COUNTIFS('Partidos de este año'!G:G, D8, 'Partidos de este año'!I:I, "Dibujar") -> 1 | I8: 1 | J8: =SUM(SUMIF('Partidos de este año'!E:E, D8,'Partidos de este año'!L:L), SUMIF('Partidos de este año'!G:G,D8,'Partidos de este año'!M:M)) -> 4.60 | K8: =SUM(SUMIFS('Partidos de este año'!M:M,'Partidos de este año'!E:E,'Predicciones de la liguilla'!D8), SUMIFS('Partidos de este año'!F:F, 'Partidos de este año'!L:L, 'Predicciones de la liguilla'!D8)) -> 1.66 | L8: 2.94 | M8: 4 | N8: 4.00 | O8: =RANK(N8,N$5:N$8) -> 3 | P8: 2 | Q8: 4.00 | X8: D | Y8: =SUM(Rank3D)<=4 -> TRUE
C9: B | D9: China PR | E9: 0% | F9: =COUNTIF('Partidos de este año'!$E$5:$G$41, D9) -> 3 | G9: =COUNTIF('Partidos de este año'!I:I, D9) -> 2 | H9: =COUNTIFS('Partidos de este año'!E:E, D9, 'Partidos de este año'!I:I, "Dibujar")+COUNTIFS('Partidos de este año'!G:G, D9, 'Partidos de este año'!I:I, "Dibujar") -> 0 | I9: 1 | J9: =SUM(SUMIF('Partidos de este año'!E:E, D9,'Partidos de este año'!L:L), SUMIF('Partidos de este año'!G:G,D9,'Partidos de este año'!M:M)) -> 4.84 | K9: =SUM(SUMIFS('Partidos de este año'!M:M,'Partidos de este año'!E:E,'Predicciones de la liguilla'!D9), SUMIFS('Partidos de este año'!F:F, 'Partidos de este año'!L:L, 'Predicciones de la liguilla'!D9)) -> 1.54 | L9: 3.30 | M9: 6 | N9: 6.00 | O9: =RANK(N9,$N$9:$N$12) -> 2 | Q9: 0.00 | X9: E | Y9: =SUM(Rank3E)<=4 -> TRUE
C10: B | D10: Alemania | E10: 0% | F10: =COUNTIF('Partidos de este año'!$E$5:$G$41, D10) -> 3 | G10: =COUNTIF('Partidos de este año'!I:I, D10) -> 0 | H10: =COUNTIFS('Partidos de este año'!E:E, D10, 'Partidos de este año'!I:I, "Dibujar")+COUNTIFS('Partidos de este año'!G:G, D10, 'Partidos de este año'!I:I, "Dibujar") -> 0 | I10: 3 | J10: =SUM(SUMIF('Partidos de este año'!E:E, D10,'Partidos de este año'!L:L), SUMIF('Partidos de este año'!G:G,D10,'Partidos de este año'!M:M)) -> 4.02 | K10: =SUM(SUMIFS('Partidos de este año'!M:M,'Partidos de este año'!E:E,'Predicciones de la liguilla'!D10), SUMIFS('Partidos de este año'!F:F, 'Partidos de este año'!L:L, 'Predicciones de la liguilla'!D10)) -> 3.20 | L10: =J10-K10 -> 0.82 | M10: 0 | N10: 0.00 | O10: =RANK(N10,$N$9:$N$12) -> 4 | Q10: 0.00 | X10: F | Y10: =SUM(Rank3F)<=4 -> FALSE
C11: B | D11: Sudáfrica | E11: 0% | F11: =COUNTIF('Partidos de este año'!$E$5:$G$41, D11) -> 3 | G11: =COUNTIF('Partidos de este año'!I:I, D11) -> 1 | H11: =COUNTIFS('Partidos de este año'!E:E, D11, 'Partidos de este año'!I:I, "Dibujar")+COUNTIFS('Partidos de este año'!G:G, D11, 'Partidos de este año'!I:I, "Dibujar") -> 0 | I11: 2 | J11: =SUM(SUMIF('Partidos de este año'!E:E, D11,'Partidos de este año'!L:L), SUMIF('Partidos de este año'!G:G,D11,'Partidos de este año'!M:M)) -> 4.72 | K11: =SUM(SUMIFS('Partidos de este año'!M:M,'Partidos de este año'!E:E,'Predicciones de la liguilla'!D11), SUMIFS('Partidos de este año'!F:F, 'Partidos de este año'!L:L, 'Predicciones de la liguilla'!D11)) -> 2.80 | L11: =J11-K11 -> 1.92 | M11: 3 | N11: 3.00 | O11: =RANK(N11,$N$9:$N$12) -> 3 | P11: 5 | Q11: 3.00
C12: B | D12: España | E12: 0% | F12: =COUNTIF('Partidos de este año'!$E$5:$G$41, D12) -> 3 | G12: =COUNTIF('Partidos de este año'!I:I, D12) -> 3 | H12: =COUNTIFS('Partidos de este año'!E:E, D12, 'Partidos de este año'!I:I, "Dibujar")+COUNTIFS('Partidos de este año'!G:G, D12, 'Partidos de este año'!I:I, "Dibujar") -> 0 | I12: 0 | J12: =SUM(SUMIF('Partidos de este año'!E:E, D12,'Partidos de este año'!L:L), SUMIF('Partidos de este año'!G:G,D12,'Partidos de este año'!M:M)) -> 4.68 | K12: =SUM(SUMIFS('Partidos de este año'!M:M,'Partidos de este año'!E:E,'Predicciones de la liguilla'!D12), SUMIFS('Partidos de este año'!F:F, 'Partidos de este año'!L:L, 'Predicciones de la liguilla'!D12)) -> 1.52 | L12: =J12-K12 -> 3.16 | M12: 9 | N12: 9.00 | O12: =RANK(N12,$N$9:$N$12) -> 1 | Q12: 0.00 | X12: Case | Y12: =Y10*1+Y9*10+Y8*100+Y7*1000+Y6*10000+Y5*100000 -> 101110
C13: C | D13: Australia | E13: 0% | F13: =COUNTIF('Partidos de este año'!$E$5:$G$41, D13) -> 3 | G13: =COUNTIF('Partidos de este año'!I:I, D13) -> 0 | H13: =COUNTIFS('Partidos de este año'!E:E, D13, 'Partidos de este año'!I:I, "Dibujar")+COUNTIFS('Partidos de este año'!G:G, D13, 'Partidos de este año'!I:I, "Dibujar") -> 1 | I13: 2 | J13: =SUM(SUMIF('Partidos de este año'!E:E, D13,'Partidos de este año'!L:L), SUMIF('Partidos de este año'!G:G,D13,'Partidos de este año'!M:M)) -> 4.14 | K13: =SUM(SUMIFS('Partidos de este año'!M:M,'Partidos de este año'!E:E,'Predicciones de la liguilla'!D13), SUMIFS('Partidos de este año'!F:F, 'Partidos de este año'!L:L, 'Predicciones de la liguilla'!D13)) -> 3.12 | L13: 1.02 | M13: =(G13*3)+(H13*1) -> 1 | N13: 1.00 | O13: =RANK(N13, N$13:N$16) -> 4 | Q13: 0.00
C14: C | D14: Brasil | E14: 0% | F14: =COUNTIF('Partidos de este año'!$E$5:$G$41, D14) -> 3 | G14: =COUNTIF('Partidos de este año'!I:I, D14) -> 1 | H14: =COUNTIFS('Partidos de este año'!E:E, D14, 'Partidos de este año'!I:I, "Dibujar")+COUNTIFS('Partidos de este año'!G:G, D14, 'Partidos de este año'!I:I, "Dibujar") -> 1 | I14: 1 | J14: =SUM(SUMIF('Partidos de este año'!E:E, D14,'Partidos de este año'!L:L), SUMIF('Partidos de este año'!G:G,D14,'Partidos de este año'!M:M)) -> 4.16 | K14: =SUM(SUMIFS('Partidos de este año'!M:M,'Partidos de este año'!E:E,'Predicciones de la liguilla'!D14), SUMIFS('Partidos de este año'!F:F, 'Partidos de este año'!L:L, 'Predicciones de la liguilla'!D14)) -> 1.42 | L14: 2.74 | M14: 4 | N14: 4.00 | O14: =RANK(N14, N$13:N$16) -> 3 | P14: 3 | Q14: 4.00
C15: C | D15: Italia | E15: 0% | F15: =COUNTIF('Partidos de este año'!$E$5:$G$41, D15) -> 3 | G15: =COUNTIF('Partidos de este año'!I:I, D15) -> 2 | H15: =COUNTIFS('Partidos de este año'!E:E, D15, 'Partidos de este año'!I:I, "Dibujar")+COUNTIFS('Partidos de este año'!G:G, D15, 'Partidos de este año'!I:I, "Dibujar") -> 0 | I15: 1 | J15: =SUM(SUMIF('Partidos de este año'!E:E, D15,'Partidos de este año'!L:L), SUMIF('Partidos de este año'!G:G,D15,'Partidos de este año'!M:M)) -> 4.66 | K15: =SUM(SUMIFS('Partidos de este año'!M:M,'Partidos de este año'!E:E,'Predicciones de la liguilla'!D15), SUMIFS('Partidos de este año'!F:F, 'Partidos de este año'!L:L, 'Predicciones de la liguilla'!D15)) -> 1.44 | L15: 3.22 | M15: 6 | N15: 6.00 | O15: =RANK(N15, N$13:N$16) -> 1 | Q15: 0.00
C16: C | D16: Jamaica | E16: 0% | F16: =COUNTIF('Partidos de este año'!$E$5:$G$41, D16) -> 3 | G16: =COUNTIF('Partidos de este año'!I:I, D16) -> 2 | H16: =COUNTIFS('Partidos de este año'!E:E, D16, 'Partidos de este año'!I:I, "Dibujar")+COUNTIFS('Partidos de este año'!G:G, D16, 'Partidos de este año'!I:I, "Dibujar") -> 0 | I16: 1 | J16: =SUM(SUMIF('Partidos de este año'!E:E, D16,'Partidos de este año'!L:L), SUMIF('Partidos de este año'!G:G,D16,'Partidos de este año'!M:M)) -> 4.38 | K16: =SUM(SUMIFS('Partidos de este año'!M:M,'Partidos de este año'!E:E,'Predicciones de la liguilla'!D16), SUMIFS('Partidos de este año'!F:F, 'Partidos de este año'!L:L, 'Predicciones de la liguilla'!D16)) -> 2.92 | L16: 1.46 | M16: 6 | N16: 6.00 | O16: =RANK(N16, N$13:N$16) -> 2 | Q16: 0.00
C17: D | D17: Argentina | E17: 0% | F17: =COUNTIF('Partidos de este año'!$E$5:$G$41, D17) -> 3 | G17: =COUNTIF('Partidos de este año'!I:I, D17) -> 1 | H17: =COUNTIFS('Partidos de este año'!E:E, D17, 'Partidos de este año'!I:I, "Dibujar")+COUNTIFS('Partidos de este año'!G:G, D17, 'Partidos de este año'!I:I, "Dibujar") -> 0 | I17: 2 | J17: =SUM(SUMIF('Partidos de este año'!E:E, D17,'Partidos de este año'!L:L), SUMIF('Partidos de este año'!G:G,D17,'Partidos de este año'!M:M)) -> 2.28 | K17: =SUM(SUMIFS('Partidos de este año'!M:M,'Partidos de este año'!E:E,'Predicciones de la liguilla'!D17), SUMIFS('Partidos de este año'!F:F, 'Partidos de este año'!L:L, 'Predicciones de la liguilla'!D17)) -> 3.24 | L17: -0.96 | M17: 3 | N17: 3.00 | O17: =RANK(N17, N$17:N$20) -> 4 | Q17: 0.00
C18: D | D18: Inglaterra | E18: 0% | F18: =COUNTIF('Partidos de este año'!$E$5:$G$41, D18) -> 3 | G18: =COUNTIF('Partidos de este año'!I:I, D18) -> 2 | H18: =COUNTIFS('Partidos de este año'!E:E, D18, 'Partidos de este año'!I:I, "Dibujar")+COUNTIFS('Partidos de este año'!G:G, D18, 'Partidos de este año'!I:I, "Dibujar") -> 0 | I18: 1 | J18: =SUM(SUMIF('Partidos de este año'!E:E, D18,'Partidos de este año'!L:L), SUMIF('Partidos de este año'!G:G,D18,'Partidos de este año'!M:M)) -> 5.74 | K18: =SUM(SUMIFS('Partidos de este año'!M:M,'Partidos de este año'!E:E,'Predicciones de la liguilla'!D18), SUMIFS('Partidos de este año'!F:F, 'Partidos de este año'!L:L, 'Predicciones de la liguilla'!D18)) -> 1.66 | L18: 4.08 | M18: 6 | N18: 6.00 | O18: =RANK(N18, N$17:N$20) -> 1 | Q18: 0.00
C19: D | D19: Japón | E19: 0% | F19: =COUNTIF('Partidos de este año'!$E$5:$G$41, D19) -> 3 | G19: =COUNTIF('Partidos de este año'!I:I, D19) -> 2 | H19: =COUNTIFS('Partidos de este año'!E:E, D19, 'Partidos de este año'!I:I, "Dibujar")+COUNTIFS('Partidos de este año'!G:G, D19, 'Partidos de este año'!I:I, "Dibujar") -> 0 | I19: 1 | J19: =SUM(SUMIF('Partidos de este año'!E:E, D19,'Partidos de este año'!L:L), SUMIF('Partidos de este año'!G:G,D19,'Partidos de este año'!M:M)) -> 6.14 | K19: =SUM(SUMIFS('Partidos de este año'!M:M,'Partidos de este año'!E:E,'Predicciones de la liguilla'!D19), SUMIFS('Partidos de este año'!F:F, 'Partidos de este año'!L:L, 'Predicciones de la liguilla'!D19)) -> 2.84 | L19: 3.30 | M19: 6 | N19: 6.00 | O19: =RANK(N19, N$17:N$20) -> 2 | Q19: 0.00
C20: D | D20: Escocia | E20: 0% | F20: =COUNTIF('Partidos de este año'!$E$5:$G$41, D20) -> 3 | G20: =COUNTIF('Partidos de este año'!I:I, D20) -> 1 | H20: =COUNTIFS('Partidos de este año'!E:E, D20, 'Partidos de este año'!I:I, "Dibujar")+COUNTIFS('Partidos de este año'!G:G, D20, 'Partidos de este año'!I:I, "Dibujar") -> 0 | I20: 2 | J20: =SUM(SUMIF('Partidos de este año'!E:E, D20,'Partidos de este año'!L:L), SUMIF('Partidos de este año'!G:G,D20,'Partidos de este año'!M:M)) -> 4.54 | K20: =SUM(SUMIFS('Partidos de este año'!M:M,'Partidos de este año'!E:E,'Predicciones de la liguilla'!D20), SUMIFS('Partidos de este año'!F:F, 'Partidos de este año'!L:L, 'Predicciones de la liguilla'!D20)) -> 1.72 | L20: 2.82 | M20: 3 | N20: 3.00 | O20: =RANK(N20, N$17:N$20) -> 3 | P20: 4 | Q20: 3.00
C21: E | D21: Camerún | E21: 0% | F21: =COUNTIF('Partidos de este año'!$E$5:$G$41, D21) -> 3 | G21: =COUNTIF('Partidos de este año'!I:I, D21) -> 2 | H21: =COUNTIFS('Partidos de este año'!E:E, D21, 'Partidos de este año'!I:I, "Dibujar")+COUNTIFS('Partidos de este año'!G:G, D21, 'Partidos de este año'!I:I, "Dibujar") -> 0 | I21: 1 | J21: =SUM(SUMIF('Partidos de este año'!E:E, D21,'Partidos de este año'!L:L), SUMIF('Partidos de este año'!G:G,D21,'Partidos de este año'!M:M)) -> 4.76 | K21: =SUM(SUMIFS('Partidos de este año'!M:M,'Partidos de este año'!E:E,'Predicciones de la liguilla'!D21), SUMIFS('Partidos de este año'!F:F, 'Partidos de este año'!L:L, 'Predicciones de la liguilla'!D21)) -> 1.52 | L21: 3.24 | M21: =(G21*3)+(H21*1) -> 6 | N21: 6.00 | O21: =RANK(N21, N$21:N$24) -> 1 | Q21: 0.00
C22: E | D22: Canadá | E22: 0% | F22: =COUNTIF('Partidos de este año'!$E$5:$G$41, D22) -> 3 | G22: =COUNTIF('Partidos de este año'!I:I, D22) -> 2 | H22: =COUNTIFS('Partidos de este año'!E:E, D22, 'Partidos de este año'!I:I, "Dibujar")+COUNTIFS('Partidos de este año'!G:G, D22, 'Partidos de este año'!I:I, "Dibujar") -> 0 | I22: 1 | J22: =SUM(SUMIF('Partidos de este año'!E:E, D22,'Partidos de este año'!L:L), SUMIF('Partidos de este año'!G:G,D22,'Partidos de este año'!M:M)) -> 4.30 | K22: =SUM(SUMIFS('Partidos de este año'!M:M,'Partidos de este año'!E:E,'Predicciones de la liguilla'!D22), SUMIFS('Partidos de este año'!F:F, 'Partidos de este año'!L:L, 'Predicciones de la liguilla'!D22)) -> 2.96 | L22: 1.34 | M22: 6 | N22: 6.00 | O22: =RANK(N22, N$21:N$24) -> 3 | P22: 1 | Q22: 6.00
C23: E | D23: Países Bajos | E23: 0% | F23: =COUNTIF('Partidos de este año'!$E$5:$G$41, D23) -> 3 | G23: =COUNTIF('Partidos de este año'!I:I, D23) -> 2 | H23: =COUNTIFS('Partidos de este año'!E:E, D23, 'Partidos de este año'!I:I, "Dibujar")+COUNTIFS('Partidos de este año'!G:G, D23, 'Partidos de este año'!I:I, "Dibujar") -> 0 | I23: 1 | J23: =SUM(SUMIF('Partidos de este año'!E:E, D23,'Partidos de este año'!L:L), SUMIF('Partidos de este año'!G:G,D23,'Partidos de este año'!M:M)) -> 4.56 | K23: =SUM(SUMIFS('Partidos de este año'!M:M,'Partidos de este año'!E:E,'Predicciones de la liguilla'!D23), SUMIFS('Partidos de este año'!F:F, 'Partidos de este año'!L:L, 'Predicciones de la liguilla'!D23)) -> 3.06 | L23: 1.50 | M23: 6 | N23: 6.00 | O23: =RANK(N23, N$21:N$24) -> 2 | Q23: 0.00
C24: E | D24: Nueva Zelanda | E24: 0% | F24: =COUNTIF('Partidos de este año'!$E$5:$G$41, D24) -> 3 | G24: =COUNTIF('Partidos de este año'!I:I, D24) -> 0 | H24: =COUNTIFS('Partidos de este año'!E:E, D24, 'Partidos de este año'!I:I, "Dibujar")+COUNTIFS('Partidos de este año'!G:G, D24, 'Partidos de este año'!I:I, "Dibujar") -> 0 | I24: 3 | J24: =SUM(SUMIF('Partidos de este año'!E:E, D24,'Partidos de este año'!L:L), SUMIF('Partidos de este año'!G:G,D24,'Partidos de este año'!M:M)) -> 4.34 | K24: =SUM(SUMIFS('Partidos de este año'!M:M,'Partidos de este año'!E:E,'Predicciones de la liguilla'!D24), SUMIFS('Partidos de este año'!F:F, 'Partidos de este año'!L:L, 'Predicciones de la liguilla'!D24)) -> 1.72 | L24: 2.62 | M24: 0 | N24: 0.00 | O24: =RANK(N24, N$21:N$24) -> 4 | Q24: 0.00
C25: F | D25: Chile | E25: 0% | F25: =COUNTIF('Partidos de este año'!$E$5:$G$41, D25) -> 3 | G25: =COUNTIF('Partidos de este año'!I:I, D25) -> 0 | H25: =COUNTIFS('Partidos de este año'!E:E, D25, 'Partidos de este año'!I:I, "Dibujar")+COUNTIFS('Partidos de este año'!G:G, D25, 'Partidos de este año'!I:I, "Dibujar") -> 0 | I25: 3 | J25: =SUM(SUMIF('Partidos de este año'!E:E, D25,'Partidos de este año'!L:L), SUMIF('Partidos de este año'!G:G,D25,'Partidos de este año'!M:M)) -> 1.96 | K25: =SUM(SUMIFS('Partidos de este año'!M:M,'Partidos de este año'!E:E,'Predicciones de la liguilla'!D25), SUMIFS('Partidos de este año'!F:F, 'Partidos de este año'!L:L, 'Predicciones de la liguilla'!D25)) -> 2.90 | L25: -0.94 | M25: 0 | N25: -0.00 | O25: =RANK(N25, N$25:N$28) -> 4 | Q25: 0.00
C26: F | D26: Suecia | E26: 0% | F26: =COUNTIF('Partidos de este año'!$E$5:$G$41, D26) -> 3 | G26: =COUNTIF('Partidos de este año'!I:I, D26) -> 3 | H26: =COUNTIFS('Partidos de este año'!E:E, D26, 'Partidos de este año'!I:I, "Dibujar")+COUNTIFS('Partidos de este año'!G:G, D26, 'Partidos de este año'!I:I, "Dibujar") -> 0 | I26: 0 | J26: =SUM(SUMIF('Partidos de este año'!E:E, D26,'Partidos de este año'!L:L), SUMIF('Partidos de este año'!G:G,D26,'Partidos de este año'!M:M)) -> 7.30 | K26: =SUM(SUMIFS('Partidos de este año'!M:M,'Partidos de este año'!E:E,'Predicciones de la liguilla'!D26), SUMIFS('Partidos de este año'!F:F, 'Partidos de este año'!L:L, 'Predicciones de la liguilla'!D26)) -> 1.66 | L26: 5.64 | M26: 9 | N26: 9.01 | O26: =RANK(N26, N$25:N$28) -> 1 | Q26: 0.00
C27: F | D27: Tailandia | E27: 0% | F27: =COUNTIF('Partidos de este año'!$E$5:$G$41, D27) -> 3 | G27: =COUNTIF('Partidos de este año'!I:I, D27) -> 1 | H27: =COUNTIFS('Partidos de este año'!E:E, D27, 'Partidos de este año'!I:I, "Dibujar")+COUNTIFS('Partidos de este año'!G:G, D27, 'Partidos de este año'!I:I, "Dibujar") -> 0 | I27: 2 | J27: =SUM(SUMIF('Partidos de este año'!E:E, D27,'Partidos de este año'!L:L), SUMIF('Partidos de este año'!G:G,D27,'Partidos de este año'!M:M)) -> 2.44 | K27: =SUM(SUMIFS('Partidos de este año'!M:M,'Partidos de este año'!E:E,'Predicciones de la liguilla'!D27), SUMIFS('Partidos de este año'!F:F, 'Partidos de este año'!L:L, 'Predicciones de la liguilla'!D27)) -> 1.36 | L27: 1.08 | M27: 3 | N27: 3.00 | O27: =RANK(N27, N$25:N$28) -> 3 | P27: 6 | Q27: 3.00
C28: F | D28: Estados Unidos | E28: 0% | F28: =COUNTIF('Partidos de este año'!$E$5:$G$41, D28) -> 3 | G28: =COUNTIF('Partidos de este año'!I:I, D28) -> 2 | H28: =COUNTIFS('Partidos de este año'!E:E, D28, 'Partidos de este año'!I:I, "Dibujar")+COUNTIFS('Partidos de este año'!G:G, D28, 'Partidos de este año'!I:I, "Dibujar") -> 0 | I28: 1 | J28: =SUM(SUMIF('Partidos de este año'!E:E, D28,'Partidos de este año'!L:L), SUMIF('Partidos de este año'!G:G,D28,'Partidos de este año'!M:M)) -> 6.74 | K28: =SUM(SUMIFS('Partidos de este año'!M:M,'Partidos de este año'!E:E,'Predicciones de la liguilla'!D28), SUMIFS('Partidos de este año'!F:F, 'Partidos de este año'!L:L, 'Predicciones de la liguilla'!D28)) -> 0.52 | L28: 6.22 | M28: 6 | N28: 6.01 | O28: =RANK(N28, N$25:N$28) -> 2 | Q28: 0.00

Sheet Partidos de este año
C2: Partidos de este año
C4: Partidos de 2019 | J4: Tus ajustes | L4: Hidden Colum A | M4: Hidden Columb B | O4: Inputs from Your Previous Steps | Q4: Simulation Results -->
C5: Date | D5: Group | E5: Team A | F5: Predicted Score A | G5: Team B | H5: Predicted Score B | I5: Winner | J5: Team A Predictions | K5: Team B Predictions | L5: Column1 | M5: Column2 | N5: Column3 | O5: Team A Average Goals Scored | P5: Team B Average Goals Scored | Q5: Team A Iteration 1 | R5: Team A Iteration 2 | S5: Team A Iteration 3 | T5: Team A Iteration 4 | U5: Team A Iteration 5 | V5: Team A Iteration 6 | W5: Team A Iteration 7 | X5: Team A Iteration 8 | Y5: Team A Iteration 9 | Z5: Team A Iteration 10 | AA5: Team A Iteration 11 | AB5: Team A Iteration 12 | AC5: Team A Iteration 13 | AD5: Team A Iteration 14 | AE5: Team A Iteration 15 | AF5: Team A Iteration 16 | AG5: Team A Iteration 17 | AH5: Team A Iteration 18 | AI5: Team A Iteration 19 | AJ5: Team A Iteration 20 | AK5: Team A Iteration 21 | AL5: Team A Iteration 22 | AM5: Team A Iteration 23 | AN5: Team A Iteration 24 | AO5: Team A Iteration 25 | AP5: Team A Iteration 26 | AQ5: Team A Iteration 27 | AR5: Team A Iteration 28 | AS5: Team A Iteration 29 | AT5: Team A Iteration 30 | AU5: Team A Iteration 31 | AV5: Team A Iteration 32 | AW5: Team A Iteration 33 | AX5: Team A Iteration 34 | AY5: Team A Iteration 35 | AZ5: Team A Iteration 36 | BA5: Team A Iteration 37 | BB5: Team A Iteration 38 | BC5: Team A Iteration 39 | BD5: Team A Iteration 40 | BE5: Team A Iteration 41 | BF5: Team A Iteration 42 | BG5: Team A Iteration 43 | BH5: Team A Iteration 44 | BI5: Team A Iteration 45 | BJ5: Team A Iteration 46 | BK5: Team A Iteration 47 | BL5: Team A Iteration 48 | BM5: Team A Iteration 49 | BN5: Team A Iteration 50 | BP5: Team B Iteration 1 | BQ5: Team B Iteration 2 | BR5: Team B Iteration 3 | BS5: Team B Iteration 4 | BT5: Team B Iteration 5 | BU5: Team B Iteration 6 | BV5: Team B Iteration 7 | BW5: Team B Iteration 8 | BX5: Team B Iteration 9 | BY5: Team B Iteration 10 | BZ5: Team B Iteration 11 | CA5: Team B Iteration 12 | CB5: Team B Iteration 13 | CC5: Team B Iteration 14 | CD5: Team B Iteration 15 | CE5: Team B Iteration 16 | CF5: Team B Iteration 17 | CG5: Team B Iteration 18 | CH5: Team B Iteration 19 | CI5: Team B Iteration 20 | CJ5: Team B Iteration 21 | CK5: Team B Iteration 22 | CL5: Team B Iteration 23 | CM5: Team B Iteration 24 | CN5: Team B Iteration 25 | CO5: Team B Iteration 26 | CP5: Team B Iteration 27 | CQ5: Team B Iteration 28 | CR5: Team B Iteration 29 | CS5: Team B Iteration 30 | CT5: Team B Iteration 31 | CU5: Team B Iteration 32 | CV5: Team B Iteration 33 | CW5: Team B Iteration 34 | CX5: Team B Iteration 35 | CY5: Team B Iteration 36 | CZ5: Team B Iteration 37 | DA5: Team B Iteration 38 | DB5: Team B Iteration 39 | DC5: Team B Iteration 40 | DD5: Team B Iteration 41 | DE5: Team B Iteration 42 | DF5: Team B Iteration 43 | DG5: Team B Iteration 44 | DH5: Team B Iteration 45 | DI5: Team B Iteration 46 | DJ5: Team B Iteration 47 | DK5: Team B Iteration 48 | DL5: Team B Iteration 49 | DM5: Team B Iteration 50
C6: 2019-06-07 | D6: A | E6: Francia | F6: =(AVERAGE(Q6:BN6))*(1+INDEX('Predicciones de la liguilla'!$C$4:$O$28, MATCH('Partidos de este año'!E6,'Predicciones de la liguilla'!$D$4:$D$28,0),3)) -> 1.60 | G6: República de Corea | H6: =(AVERAGE(BP6:DM6))*(1+INDEX('Predicciones de la liguilla'!$C$4:$O$28, MATCH('Partidos de este año'!G6,'Predicciones de la liguilla'!$D$4:$D$28,0),3)) -> 1.56 | I6: =IF(L6>M6,E6,IF(L6=M6,"Dibujar",G6)) -> Francia | L6: =IF(ISBLANK(J6), F6,J6) -> 1.6 | M6: =IF(ISBLANK(K6), H6,K6) -> 1.56 | N6: =IF(L6>M6,E6,IF(L6=M6,"Dibujar",G6)) -> Francia | O6: =(OFFSET('Apéndice 3 - Goles por grupo'!$C$13,(INDEX('Apéndice 1 - Datos de equipos'!$C$13:$F$112,MATCH(G6,'Apéndice 1 - Datos de equipos'!$C$13:$C$112,0),4)/10),(INDEX('Apéndice 1 - Datos de equipos'!$C$13:$F$112,MATCH(E6,'Apéndice 1 - Datos de equipos'!$C$13:$C$112,0),4)/10))) -> 1.50 | P6: =OFFSET('Apéndice 3 - Goles por grupo'!$C$13,(INDEX('Apéndice 1 - Datos de equipos'!$C$13:$F$112, MATCH(E6,'Apéndice 1 - Datos de equipos'!$C$13:$C$112,0),4)/10), (INDEX('Apéndice 1 - Datos de equipos'!$C$13:$F$112, MATCH(G6, 'Apéndice 1 - Datos de equipos'!$C$13:$C$112,0),4)/10)) -> 1.50 | Q6: =_xlfn.IFNA(MATCH(RAND(), _xlfn.POISSON.DIST({0,1,2,3,4,5,6,7,8,9},$O6, TRUE),1), 0) -> 1 | R6: =_xlfn.IFNA(MATCH(RAND(), _xlfn.POISSON.DIST({0,1,2,3,4,5,6,7,8,9},$O6, TRUE),1), 0) -> 0 | S6: =_xlfn.IFNA(MATCH(RAND(), _xlfn.POISSON.DIST({0,1,2,3,4,5,6,7,8,9},$O6, TRUE),1), 0) -> 0 | T6: =_xlfn.IFNA(MATCH(RAND(), _xlfn.POISSON.DIST({0,1,2,3,4,5,6,7,8,9},$O6, TRUE),1), 0) -> 2 | U6: =_xlfn.IFNA(MATCH(RAND(), _xlfn.POISSON.DIST({0,1,2,3,4,5,6,7,8,9},$O6, TRUE),1), 0) -> 3 | V6: =_xlfn.IFNA(MATCH(RAND(), _xlfn.POISSON.DIST({0,1,2,3,4,5,6,7,8,9},$O6, TRUE),1), 0) -> 3 | W6: =_xlfn.IFNA(MATCH(RAND(), _xlfn.POISSON.DIST({0,1,2,3,4,5,6,7,8,9},$O6, TRUE),1), 0) -> 1 | X6: =_xlfn.IFNA(MATCH(RAND(), _xlfn.POISSON.DIST({0,1,2,3,4,5,6,7,8,9},$O6, TRUE),1), 0) -> 3 | Y6: =_xlfn.IFNA(MATCH(RAND(), _xlfn.POISSON.DIST({0,1,2,3,4,5,6,7,8,9},$O6, TRUE),1), 0) -> 0 | Z6: =_xlfn.IFNA(MATCH(RAND(), _xlfn.POISSON.DIST({0,1,2,3,4,5,6,7,8,9},$O6, TRUE),1), 0) -> 3 | AA6: =_xlfn.IFNA(MATCH(RAND(), _xlfn.POISSON.DIST({0,1,2,3,4,5,6,7,8,9},$O6, TRUE),1), 0) -> 5 | AB6: =_xlfn.IFNA(MATCH(RAND(), _xlfn.POISSON.DIST({0,1,2,3,4,5,6,7,8,9},$O6, TRUE),1), 0) -> 2 | AC6: =_xlfn.IFNA(MATCH(RAND(), _xlfn.POISSON.DIST({0,1,2,3,4,5,6,7,8,9},$O6, TRUE),1), 0) -> 3 | AD6: =_xlfn.IFNA(MATCH(RAND(), _xlfn.POISSON.DIST({0,1,2,3,4,5,6,7,8,9},$O6, TRUE),1), 0) -> 2 | AE6: =_xlfn.IFNA(MATCH(RAND(), _xlfn.POISSON.DIST({0,1,2,3,4,5,6,7,8,9},$O6, TRUE),1), 0) -> 1 | AF6: =_xlfn.IFNA(MATCH(RAND(), _xlfn.POISSON.DIST({0,1,2,3,4,5,6,7,8,9},$O6, TRUE),1), 0) -> 3 | AG6: =_xlfn.IFNA(MATCH(RAND(), _xlfn.POISSON.DIST({0,1,2,3,4,5,6,7,8,9},$O6, TRUE),1), 0) -> 1 | AH6: =_xlfn.IFNA(MATCH(RAND(), _xlfn.POISSON.DIST({0,1,2,3,4,5,6,7,8,9},$O6, TRUE),1), 0) -> 2 | AI6: =_xlfn.IFNA(MATCH(RAND(), _xlfn.POISSON.DIST({0,1,2,3,4,5,6,7,8,9},$O6, TRUE),1), 0) -> 0 | AJ6: =_xlfn.IFNA(MATCH(RAND(), _xlfn.POISSON.DIST({0,1,2,3,4,5,6,7,8,9},$O6, TRUE),1), 0) -> 1 | AK6: =_xlfn.IFNA(MATCH(RAND(), _xlfn.POISSON.DIST({0,1,2,3,4,5,6,7,8,9},$O6, TRUE),1), 0) -> 2 | AL6: =_xlfn.IFNA(MATCH(RAND(), _xlfn.POISSON.DIST({0,1,2,3,4,5,6,7,8,9},$O6, TRUE),1), 0) -> 3 | AM6: =_xlfn.IFNA(MATCH(RAND(), _xlfn.POISSON.DIST({0,1,2,3,4,5,6,7,8,9},$O6, TRUE),1), 0) -> 2 | AN6: =_xlfn.IFNA(MATCH(RAND(), _xlfn.POISSON.DIST({0,1,2,3,4,5,6,7,8,9},$O6, TRUE),1), 0) -> 1 | AO6: =_xlfn.IFNA(MATCH(RAND(), _xlfn.POISSON.DIST({0,1,2,3,4,5,6,7,8,9},$O6, TRUE),1), 0) -> 2 | AP6: =_xlfn.IFNA(MATCH(RAND(), _xlfn.POISSON.DIST({0,1,2,3,4,5,6,7,8,9},$O6, TRUE),1), 0) -> 4 | AQ6: =_xlfn.IFNA(MATCH(RAND(), _xlfn.POISSON.DIST({0,1,2,3,4,5,6,7,8,9},$O6, TRUE),1), 0) -> 1 | AR6: =_xlfn.IFNA(MATCH(RAND(), _xlfn.POISSON.DIST({0,1,2,3,4,5,6,7,8,9},$O6, TRUE),1), 0) -> 1 | AS6: =_xlfn.IFNA(MATCH(RAND(), _xlfn.POISSON.DIST({0,1,2,3,4,5,6,7,8,9},$O6, TRUE),1), 0) -> 2 | AT6: =_xlfn.IFNA(MATCH(RAND(), _xlfn.POISSON.DIST({0,1,2,3,4,5,6,7,8,9},$O6, TRUE),1), 0) -> 1 | AU6: =_xlfn.IFNA(MATCH(RAND(), _xlfn.POISSON.DIST({0,1,2,3,4,5,6,7,8,9},$O6, TRUE),1), 0) -> 1 | AV6: =_xlfn.IFNA(MATCH(RAND(), _xlfn.POISSON.DIST({0,1,2,3,4,5,6,7,8,9},$O6, TRUE),1), 0) -> 1 | AW6: =_xlfn.IFNA(MATCH(RAND(), _xlfn.POISSON.DIST({0,1,2,3,4,5,6,7,8,9},$O6, TRUE),1), 0) -> 2 | AX6: =_xlfn.IFNA(MATCH(RAND(), _xlfn.POISSON.DIST({0,1,2,3,4,5,6,7,8,9},$O6, TRUE),1), 0) -> 0 | AY6: =_xlfn.IFNA(MATCH(RAND(), _xlfn.POISSON.DIST({0,1,2,3,4,5,6,7,8,9},$O6, TRUE),1), 0) -> 2 | AZ6: =_xlfn.IFNA(MATCH(RAND(), _xlfn.POISSON.DIST({0,1,2,3,4,5,6,7,8,9},$O6, TRUE),1), 0) -> 3 | BA6: =_xlfn.IFNA(MATCH(RAND(), _xlfn.POISSON.DIST({0,1,2,3,4,5,6,7,8,9},$O6, TRUE),1), 0) -> 0 | BB6: =_xlfn.IFNA(MATCH(RAND(), _xlfn.POISSON.DIST({0,1,2,3,4,5,6,7,8,9},$O6, TRUE),1), 0) -> 1 | BC6: =_xlfn.IFNA(MATCH(RAND(), _xlfn.POISSON.DIST({0,1,2,3,4,5,6,7,8,9},$O6, TRUE),1), 0) -> 0 | BD6: =_xlfn.IFNA(MATCH(RAND(), _xlfn.POISSON.DIST({0,1,2,3,4,5,6,7,8,9},$O6, TRUE),1), 0) -> 1 | BE6: =_xlfn.IFNA(MATCH(RAND(), _xlfn.POISSON.DIST({0,1,2,3,4,5,6,7,8,9},$O6, TRUE),1), 0) -> 4 | BF6: =_xlfn.IFNA(MATCH(RAND(), _xlfn.POISSON.DIST({0,1,2,3,4,5,6,7,8,9},$O6, TRUE),1), 0) -> 0 | BG6: =_xlfn.IFNA(MATCH(RAND(), _xlfn.POISSON.DIST({0,1,2,3,4,5,6,7,8,9},$O6, TRUE),1), 0) -> 0 | BH6: =_xlfn.IFNA(MATCH(RAND(), _xlfn.POISSON.DIST({0,1,2,3,4,5,6,7,8,9},$O6, TRUE),1), 0) -> 4 | BI6: =_xlfn.IFNA(MATCH(RAND(), _xlfn.POISSON.DIST({0,1,2,3,4,5,6,7,8,9},$O6, TRUE),1), 0) -> 1 | BJ6: =_xlfn.IFNA(MATCH(RAND(), _xlfn.POISSON.DIST({0,1,2,3,4,5,6,7,8,9},$O6, TRUE),1), 0) -> 0 | BK6: =_xlfn.IFNA(MATCH(RAND(), _xlfn.POISSON.DIST({0,1,2,3,4,5,6,7,8,9},$O6, TRUE),1), 0) -> 0 | BL6: =_xlfn.IFNA(MATCH(RAND(), _xlfn.POISSON.DIST({0,1,2,3,4,5,6,7,8,9},$O6, TRUE),1), 0) -> 1 | BM6: =_xlfn.IFNA(MATCH(RAND(), _xlfn.POISSON.DIST({0,1,2,3,4,5,6,7,8,9},$O6, TRUE),1), 0) -> 0 | BN6: =_xlfn.IFNA(MATCH(RAND(), _xlfn.POISSON.DIST({0,1,2,3,4,5,6,7,8,9},$O6, TRUE),1), 0) -> 4 | BP6: =_xlfn.IFNA(MATCH(RAND(), _xlfn.POISSON.DIST({0,1,2,3,4,5,6,7,8,9},$P6, TRUE),1), 0) -> 0 | BQ6: =_xlfn.IFNA(MATCH(RAND(), _xlfn.POISSON.DIST({0,1,2,3,4,5,6,7,8,9},$P6, TRUE),1), 0) -> 2 | BR6: =_xlfn.IFNA(MATCH(RAND(), _xlfn.POISSON.DIST({0,1,2,3,4,5,6,7,8,9},$P6, TRUE),1), 0) -> 1 | BS6: =_xlfn.IFNA(MATCH(RAND(), _xlfn.POISSON.DIST({0,1,2,3,4,5,6,7,8,9},$P6, TRUE),1), 0) -> 0 | BT6: =_xlfn.IFNA(MATCH(RAND(), _xlfn.POISSON.DIST({0,1,2,3,4,5,6,7,8,9},$P6, TRUE),1), 0) -> 1 | BU6: =_xlfn.IFNA(MATCH(RAND(), _xlfn.POISSON.DIST({0,1,2,3,4,5,6,7,8,9},$P6, TRUE),1), 0) -> 3 | BV6: =_xlfn.IFNA(MATCH(RAND(), _xlfn.POISSON.DIST({0,1,2,3,4,5,6,7,8,9},$P6, TRUE),1), 0) -> 2 | BW6: =_xlfn.IFNA(MATCH(RAND(), _xlfn.POISSON.DIST({0,1,2,3,4,5,6,7,8,9},$P6, TRUE),1), 0) -> 6 | BX6: =_xlfn.IFNA(MATCH(RAND(), _xlfn.POISSON.DIST({0,1,2,3,4,5,6,7,8,9},$P6, TRUE),1), 0) -> 2 | BY6: =_xlfn.IFNA(MATCH(RAND(), _xlfn.POISSON.DIST({0,1,2,3,4,5,6,7,8,9},$P6, TRUE),1), 0) -> 1 | BZ6: =_xlfn.IFNA(MATCH(RAND(), _xlfn.POISSON.DIST({0,1,2,3,4,5,6,7,8,9},$P6, TRUE),1), 0) -> 2 | CA6: =_xlfn.IFNA(MATCH(RAND(), _xlfn.POISSON.DIST({0,1,2,3,4,5,6,7,8,9},$P6, TRUE),1), 0) -> 0 | CB6: =_xlfn.IFNA(MATCH(RAND(), _xlfn.POISSON.DIST({0,1,2,3,4,5,6,7,8,9},$P6, TRUE),1), 0) -> 2 | CC6: =_xlfn.IFNA(MATCH(RAND(), _xlfn.POISSON.DIST({0,1,2,3,4,5,6,7,8,9},$P6, TRUE),1), 0) -> 2 | CD6: =_xlfn.IFNA(MATCH(RAND(), _xlfn.POISSON.DIST({0,1,2,3,4,5,6,7,8,9},$P6, TRUE),1), 0) -> 3 | CE6: =_xlfn.IFNA(MATCH(RAND(), _xlfn.POISSON.DIST({0,1,2,3,4,5,6,7,8,9},$P6, TRUE),1), 0) -> 2 | CF6: =_xlfn.IFNA(MATCH(RAND(), _xlfn.POISSON.DIST({0,1,2,3,4,5,6,7,8,9},$P6, TRUE),1), 0) -> 3 | CG6: =_xlfn.IFNA(MATCH(RAND(), _xlfn.POISSON.DIST({0,1,2,3,4,5,6,7,8,9},$P6, TRUE),1), 0) -> 0 | CH6: =_xlfn.IFNA(MATCH(RAND(), _xlfn.POISSON.DIST({0,1,2,3,4,5,6,7,8,9},$P6, TRUE),1), 0) -> 4 | CI6: =_xlfn.IFNA(MATCH(RAND(), _xlfn.POISSON.DIST({0,1,2,3,4,5,6,7,8,9},$P6, TRUE),1), 0) -> 1 | CJ6: =_xlfn.IFNA(MATCH(RAND(), _xlfn.POISSON.DIST({0,1,2,3,4,5,6,7,8,9},$P6, TRUE),1), 0) -> 1 | CK6: =_xlfn.IFNA(MATCH(RAND(), _xlfn.POISSON.DIST({0,1,2,3,4,5,6,7,8,9},$P6, TRUE),1), 0) -> 2 | CL6: =_xlfn.IFNA(MATCH(RAND(), _xlfn.POISSON.DIST({0,1,2,3,4,5,6,7,8,9},$P6, TRUE),1), 0) -> 0 | CM6: =_xlfn.IFNA(MATCH(RAND(), _xlfn.POISSON.DIST({0,1,2,3,4,5,6,7,8,9},$P6, TRUE),1), 0) -> 1 | CN6: =_xlfn.IFNA(MATCH(RAND(), _xlfn.POISSON.DIST({0,1,2,3,4,5,6,7,8,9},$P6, TRUE),1), 0) -> 1 | CO6: =_xlfn.IFNA(MATCH(RAND(), _xlfn.POISSON.DIST({0,1,2,3,4,5,6,7,8,9},$P6, TRUE),1), 0) -> 2 | CP6: =_xlfn.IFNA(MATCH(RAND(), _xlfn.POISSON.DIST({0,1,2,3,4,5,6,7,8,9},$P6, TRUE),1), 0) -> 1 | CQ6: =_xlfn.IFNA(MATCH(RAND(), _xlfn.POISSON.DIST({0,1,2,3,4,5,6,7,8,9},$P6, TRUE),1), 0) -> 3 | CR6: =_xlfn.IFNA(MATCH(RAND(), _xlfn.POISSON.DIST({0,1,2,3,4,5,6,7,8,9},$P6, TRUE),1), 0) -> 2 | CS6: =_xlfn.IFNA(MATCH(RAND(), _xlfn.POISSON.DIST({0,1,2,3,4,5,6,7,8,9},$P6, TRUE),1), 0) -> 4 | CT6: =_xlfn.IFNA(MATCH(RAND(), _xlfn.POISSON.DIST({0,1,2,3,4,5,6,7,8,9},$P6, TRUE),1), 0) -> 1 | CU6: =_xlfn.IFNA(MATCH(RAND(), _xlfn.POISSON.DIST({0,1,2,3,4,5,6,7,8,9},$P6, TRUE),1), 0) -> 1 | CV6: =_xlfn.IFNA(MATCH(RAND(), _xlfn.POISSON.DIST({0,1,2,3,4,5,6,7,8,9},$P6, TRUE),1), 0) -> 3 | CW6: =_xlfn.IFNA(MATCH(RAND(), _xlfn.POISSON.DIST({0,1,2,3,4,5,6,7,8,9},$P6, TRUE),1), 0) -> 1 | CX6: =_xlfn.IFNA(MATCH(RAND(), _xlfn.POISSON.DIST({0,1,2,3,4,5,6,7,8,9},$P6, TRUE),1), 0) -> 2 | CY6: =_xlfn.IFNA(MATCH(RAND(), _xlfn.POISSON.DIST({0,1,2,3,4,5,6,7,8,9},$P6, TRUE),1), 0) -> 0 | CZ6: =_xlfn.IFNA(MATCH(RAND(), _xlfn.POISSON.DIST({0,1,2,3,4,5,6,7,8,9},$P6, TRUE),1), 0) -> 2 | DA6: =_xlfn.IFNA(MATCH(RAND(), _xlfn.POISSON.DIST({0,1,2,3,4,5,6,7,8,9},$P6, TRUE),1), 0) -> 1 | DB6: =_xlfn.IFNA(MATCH(RAND(), _xlfn.POISSON.DIST({0,1,2,3,4,5,6,7,8,9},$P6, TRUE),1), 0) -> 2 | DC6: =_xlfn.IFNA(MATCH(RAND(), _xlfn.POISSON.DIST({0,1,2,3,4,5,6,7,8,9},$P6, TRUE),1), 0) -> 2 | DD6: =_xlfn.IFNA(MATCH(RAND(), _xlfn.POISSON.DIST({0,1,2,3,4,5,6,7,8,9},$P6, TRUE),1), 0) -> 0 | DE6: =_xlfn.IFNA(MATCH(RAND(), _xlfn.POISSON.DIST({0,1,2,3,4,5,6,7,8,9},$P6, TRUE),1), 0) -> 1 | DF6: =_xlfn.IFNA(MATCH(RAND(), _xlfn.POISSON.DIST({0,1,2,3,4,5,6,7,8,9},$P6, TRUE),1), 0) -> 1 | DG6: =_xlfn.IFNA(MATCH(RAND(), _xlfn.POISSON.DIST({0,1,2,3,4,5,6,7,8,9},$P6, TRUE),1), 0) -> 0 | DH6: =_xlfn.IFNA(MATCH(RAND(), _xlfn.POISSON.DIST({0,1,2,3,4,5,6,7,8,9},$P6, TRUE),1), 0) -> 1 | DI6: =_xlfn.IFNA(MATCH(RAND(), _xlfn.POISSON.DIST({0,1,2,3,4,5,6,7,8,9},$P6, TRUE),1), 0) -> 2 | DJ6: =_xlfn.IFNA(MATCH(RAND(), _xlfn.POISSON.DIST({0,1,2,3,4,5,6,7,8,9},$P6, TRUE),1), 0) -> 2 | DK6: =_xlfn.IFNA(MATCH(RAND(), _xlfn.POISSON.DIST({0,1,2,3,4,5,6,7,8,9},$P6, TRUE),1), 0) -> 1 | DL6: =_xlfn.IFNA(MATCH(RAND(), _xlfn.POISSON.DIST({0,1,2,3,4,5,6,7,8,9},$P6, TRUE),1), 0) -> 1 | DM6: =_xlfn.IFNA(MATCH(RAND(), _xlfn.POISSON.DIST({0,1,2,3,4,5,6,7,8,9},$P6, TRUE),1), 0) -> 0
C7: 2019-06-08 | D7: B | E7: Alemania | F7: =(AVERAGE(Q7:BN7))*(1+INDEX('Predicciones de la liguilla'!$C$4:$O$28, MATCH('Partidos de este año'!E7,'Predicciones de la liguilla'!$D$4:$D$28,0),3)) -> 1.52 | G7: China PR | H7: =(AVERAGE(BP7:DM7))*(1+INDEX('Predicciones de la liguilla'!$C$4:$O$28, MATCH('Partidos de este año'!G7,'Predicciones de la liguilla'!$D$4:$D$28,0),3)) -> 1.60 | I7: =IF(L7>M7,E7,IF(L7=M7,"Dibujar",G7)) -> China PR | L7: 1.52 | M7: 1.6 | N7: =IF(L7>M7,E7,IF(L7=M7,"Dibujar",G7)) -> China PR | O7: =(OFFSET('Apéndice 3 - Goles por grupo'!$C$13,(INDEX('Apéndice 1 - Datos de equipos'!$C$13:$F$112,MATCH(G7,'Apéndice 1 - Datos de equipos'!$C$13:$C$112,0),4)/10),(INDEX('Apéndice 1 - Datos de equipos'!$C$13:$F$112,MATCH(E7,'Apéndice 1 - Datos de equipos'!$C$13:$C$112,0),4)/10))) -> 1.50 | P7: =OFFSET('Apéndice 3 - Goles por grupo'!$C$13,(INDEX('Apéndice 1 - Datos de equipos'!$C$13:$F$112, MATCH(E7,'Apéndice 1 - Datos de equipos'!$C$13:$C$112,0),4)/10), (INDEX('Apéndice 1 - Datos de equipos'!$C$13:$F$112, MATCH(G7, 'Apéndice 1 - Datos de equipos'!$C$13:$C$112,0),4)/10)) -> 1.50 | Q7: =_xlfn.IFNA(MATCH(RAND(), _xlfn.POISSON.DIST({0,1,2,3,4,5,6,7,8,9},$O7, TRUE),1), 0) -> 0 | R7: =_xlfn.IFNA(MATCH(RAND(), _xlfn.POISSON.DIST({0,1,2,3,4,5,6,7,8,9},$O7, TRUE),1), 0) -> 0 | S7: =_xlfn.IFNA(MATCH(RAND(), _xlfn.POISSON.DIST({0,1,2,3,4,5,6,7,8,9},$O7, TRUE),1), 0) -> 0 | T7: =_xlfn.IFNA(MATCH(RAND(), _xlfn.POISSON.DIST({0,1,2,3,4,5,6,7,8,9},$O7, TRUE),1), 0) -> 2 | U7: =_xlfn.IFNA(MATCH(RAND(), _xlfn.POISSON.DIST({0,1,2,3,4,5,6,7,8,9},$O7, TRUE),1), 0) -> 4 | V7: =_xlfn.IFNA(MATCH(RAND(), _xlfn.POISSON.DIST({0,1,2,3,4,5,6,7,8,9},$O7, TRUE),1), 0) -> 2 | W7: =_xlfn.IFNA(MATCH(RAND(), _xlfn.POISSON.DIST({0,1,2,3,4,5,6,7,8,9},$O7, TRUE),1), 0) -> 1 | X7: =_xlfn.IFNA(MATCH(RAND(), _xlfn.POISSON.DIST({0,1,2,3,4,5,6,7,8,9},$O7, TRUE),1), 0) -> 3 | Y7: =_xlfn.IFNA(MATCH(RAND(), _xlfn.POISSON.DIST({0,1,2,3,4,5,6,7,8,9},$O7, TRUE),1), 0) -> 3 | Z7: =_xlfn.IFNA(MATCH(RAND(), _xlfn.POISSON.DIST({0,1,2,3,4,5,6,7,8,9},$O7, TRUE),1), 0) -> 1 | AA7: =_xlfn.IFNA(MATCH(RAND(), _xlfn.POISSON.DIST({0,1,2,3,4,5,6,7,8,9},$O7, TRUE),1), 0) -> 2 | AB7: =_xlfn.IFNA(MATCH(RAND(), _xlfn.POISSON.DIST({0,1,2,3,4,5,6,7,8,9},$O7, TRUE),1), 0) -> 0 | AC7: =_xlfn.IFNA(MATCH(RAND(), _xlfn.POISSON.DIST({0,1,2,3,4,5,6,7,8,9},$O7, TRUE),1), 0) -> 1 | AD7: =_xlfn.IFNA(MATCH(RAND(), _xlfn.POISSON.DIST({0,1,2,3,4,5,6,7,8,9},$O7, TRUE),1), 0) -> 4 | AE7: =_xlfn.IFNA(MATCH(RAND(), _xlfn.POISSON.DIST({0,1,2,3,4,5,6,7,8,9},$O7, TRUE),1), 0) -> 2 | AF7: =_xlfn.IFNA(MATCH(RAND(), _xlfn.POISSON.DIST({0,1,2,3,4,5,6,7,8,9},$O7, TRUE),1), 0) -> 6 | AG7: =_xlfn.IFNA(MATCH(RAND(), _xlfn.POISSON.DIST({0,1,2,3,4,5,6,7,8,9},$O7, TRUE),1), 0) -> 1 | AH7: =_xlfn.IFNA(MATCH(RAND(), _xlfn.POISSON.DIST({0,1,2,3,4,5,6,7,8,9},$O7, TRUE),1), 0) -> 1 | AI7: =_xlfn.IFNA(MATCH(RAND(), _xlfn.POISSON.DIST({0,1,2,3,4,5,6,7,8,9},$O7, TRUE),1), 0) -> 4 | AJ7: =_xlfn.IFNA(MATCH(RAND(), _xlfn.POISSON.DIST({0,1,2,3,4,5,6,7,8,9},$O7, TRUE),1), 0) -> 1 | AK7: =_xlfn.IFNA(MATCH(RAND(), _xlfn.POISSON.DIST({0,1,2,3,4,5,6,7,8,9},$O7, TRUE),1), 0) -> 2 | AL7: =_xlfn.IFNA(MATCH(RAND(), _xlfn.POISSON.DIST({0,1,2,3,4,5,6,7,8,9},$O7, TRUE),1), 0) -> 1 | AM7: =_xlfn.IFNA(MATCH(RAND(), _xlfn.POISSON.DIST({0,1,2,3,4,5,6,7,8,9},$O7, TRUE),1), 0) -> 0 | AN7: =_xlfn.IFNA(MATCH(RAND(), _xlfn.POISSON.DIST({0,1,2,3,4,5,6,7,8,9},$O7, TRUE),1), 0) -> 2 | AO7: =_xlfn.IFNA(MATCH(RAND(), _xlfn.POISSON.DIST({0,1,2,3,4,5,6,7,8,9},$O7, TRUE),1), 0) -> 0 | AP7: =_xlfn.IFNA(MATCH(RAND(), _xlfn.POISSON.DIST({0,1,2,3,4,5,6,7,8,9},$O7, TRUE),1), 0) -> 2 | AQ7: =_xlfn.IFNA(MATCH(RAND(), _xlfn.POISSON.DIST({0,1,2,3,4,5,6,7,8,9},$O7, TRUE),1), 0) -> 3 | AR7: =_xlfn.IFNA(MATCH(RAND(), _xlfn.POISSON.DIST({0,1,2,3,4,5,6,7,8,9},$O7, TRUE),1), 0) -> 1 | AS7: =_xlfn.IFNA(MATCH(RAND(), _xlfn.POISSON.DIST({0,1,2,3,4,5,6,7,8,9},$O7, TRUE),1), 0) -> 2 | AT7: =_xlfn.IFNA(MATCH(RAND(), _xlfn.POISSON.DIST({0,1,2,3,4,5,6,7,8,9},$O7, TRUE),1), 0) -> 2 | AU7: =_xlfn.IFNA(MATCH(RAND(), _xlfn.POISSON.DIST({0,1,2,3,4,5,6,7,8,9},$O7, TRUE),1), 0) -> 0 | AV7: =_xlfn.IFNA(MATCH(RAND(), _xlfn.POISSON.DIST({0,1,2,3,4,5,6,7,8,9},$O7, TRUE),1), 0) -> 1 | AW7: =_xlfn.IFNA(MATCH(RAND(), _xlfn.POISSON.DIST({0,1,2,3,4,5,6,7,8,9},$O7, TRUE),1), 0) -> 1 | AX7: =_xlfn.IFNA(MATCH(RAND(), _xlfn.POISSON.DIST({0,1,2,3,4,5,6,7,8,9},$O7, TRUE),1), 0) -> 0 | AY7: =_xlfn.IFNA(MATCH(RAND(), _xlfn.POISSON.DIST({0,1,2,3,4,5,6,7,8,9},$O7, TRUE),1), 0) -> 0 | AZ7: =_xlfn.IFNA(MATCH(RAND(), _xlfn.POISSON.DIST({0,1,2,3,4,5,6,7,8,9},$O7, TRUE),1), 0) -> 3 | BA7: =_xlfn.IFNA(MATCH(RAND(), _xlfn.POISSON.DIST({0,1,2,3,4,5,6,7,8,9},$O7, TRUE),1), 0) -> 1 | BB7: =_xlfn.IFNA(MATCH(RAND(), _xlfn.POISSON.DIST({0,1,2,3,4,5,6,7,8,9},$O7, TRUE),1), 0) -> 0 | BC7: =_xlfn.IFNA(MATCH(RAND(), _xlfn.POISSON.DIST({0,1,2,3,4,5,6,7,8,9},$O7, TRUE),1), 0) -> 1 | BD7: =_xlfn.IFNA(MATCH(RAND(), _xlfn.POISSON.DIST({0,1,2,3,4,5,6,7,8,9},$O7, TRUE),1), 0) -> 1 | BE7: =_xlfn.IFNA(MATCH(RAND(), _xlfn.POISSON.DIST({0,1,2,3,4,5,6,7,8,9},$O7, TRUE),1), 0) -> 0 | BF7: =_xlfn.IFNA(MATCH(RAND(), _xlfn.POISSON.DIST({0,1,2,3,4,5,6,7,8,9},$O7, TRUE),1), 0) -> 2 | BG7: =_xlfn.IFNA(MATCH(RAND(), _xlfn.POISSON.DIST({0,1,2,3,4,5,6,7,8,9},$O7, TRUE),1), 0) -> 1 | BH7: =_xlfn.IFNA(MATCH(RAND(), _xlfn.POISSON.DIST({0,1,2,3,4,5,6,7,8,9},$O7, TRUE),1), 0) -> 4 | BI7: =_xlfn.IFNA(MATCH(RAND(), _xlfn.POISSON.DIST({0,1,2,3,4,5,6,7,8,9},$O7, TRUE),1), 0) -> 1 | BJ7: =_xlfn.IFNA(MATCH(RAND(), _xlfn.POISSON.DIST({0,1,2,3,4,5,6,7,8,9},$O7, TRUE),1), 0) -> 0 | BK7: =_xlfn.IFNA(MATCH(RAND(), _xlfn.POISSON.DIST({0,1,2,3,4,5,6,7,8,9},$O7, TRUE),1), 0) -> 1 | BL7: =_xlfn.IFNA(MATCH(RAND(), _xlfn.POISSON.DIST({0,1,2,3,4,5,6,7,8,9},$O7, TRUE),1), 0) -> 3 | BM7: =_xlfn.IFNA(MATCH(RAND(), _xlfn.POISSON.DIST({0,1,2,3,4,5,6,7,8,9},$O7, TRUE),1), 0) -> 1 | BN7: =_xlfn.IFNA(MATCH(RAND(), _xlfn.POISSON.DIST({0,1,2,3,4,5,6,7,8,9},$O7, TRUE),1), 0) -> 2 | BP7: =_xlfn.IFNA(MATCH(RAND(), _xlfn.POISSON.DIST({0,1,2,3,4,5,6,7,8,9},$P7, TRUE),1), 0) -> 1 | BQ7: =_xlfn.IFNA(MATCH(RAND(), _xlfn.POISSON.DIST({0,1,2,3,4,5,6,7,8,9},$P7, TRUE),1), 0) -> 0 | BR7: =_xlfn.IFNA(MATCH(RAND(), _xlfn.POISSON.DIST({0,1,2,3,4,5,6,7,8,9},$P7, TRUE),1), 0) -> 2 | BS7: =_xlfn.IFNA(MATCH(RAND(), _xlfn.POISSON.DIST({0,1,2,3,4,5,6,7,8,9},$P7, TRUE),1), 0) -> 2 | BT7: =_xlfn.IFNA(MATCH(RAND(), _xlfn.POISSON.DIST({0,1,2,3,4,5,6,7,8,9},$P7, TRUE),1), 0) -> 0 | BU7: =_xlfn.IFNA(MATCH(RAND(), _xlfn.POISSON.DIST({0,1,2,3,4,5,6,7,8,9},$P7, TRUE),1), 0) -> 0 | BV7: =_xlfn.IFNA(MATCH(RAND(), _xlfn.POISSON.DIST({0,1,2,3,4,5,6,7,8,9},$P7, TRUE),1), 0) -> 2 | BW7: =_xlfn.IFNA(MATCH(RAND(), _xlfn.POISSON.DIST({0,1,2,3,4,5,6,7,8,9},$P7, TRUE),1), 0) -> 2 | BX7: =_xlfn.IFNA(MATCH(RAND(), _xlfn.POISSON.DIST({0,1,2,3,4,5,6,7,8,9},$P7, TRUE),1), 0) -> 1 | BY7: =_xlfn.IFNA(MATCH(RAND(), _xlfn.POISSON.DIST({0,1,2,3,4,5,6,7,8,9},$P7, TRUE),1), 0) -> 2 | BZ7: =_xlfn.IFNA(MATCH(RAND(), _xlfn.POISSON.DIST({0,1,2,3,4,5,6,7,8,9},$P7, TRUE),1), 0) -> 0 | CA7: =_xlfn.IFNA(MATCH(RAND(), _xlfn.POISSON.DIST({0,1,2,3,4,5,6,7,8,9},$P7, TRUE),1), 0) -> 1 | CB7: =_xlfn.IFNA(MATCH(RAND(), _xlfn.POISSON.DIST({0,1,2,3,4,5,6,7,8,9},$P7, TRUE),1), 0) -> 1 | CC7: =_xlfn.IFNA(MATCH(RAND(), _xlfn.POISSON.DIST({0,1,2,3,4,5,6,7,8,9},$P7, TRUE),1), 0) -> 0 | CD7: =_xlfn.IFNA(MATCH(RAND(), _xlfn.POISSON.DIST({0,1,2,3,4,5,6,7,8,9},$P7, TRUE),1), 0) -> 1 | CE7: =_xlfn.IFNA(MATCH(RAND(), _xlfn.POISSON.DIST({0,1,2,3,4,5,6,7,8,9},$P7, TRUE),1), 0) -> 3 | CF7: =_xlfn.IFNA(MATCH(RAND(), _xlfn.POISSON.DIST({0,1,2,3,4,5,6,7,8,9},$P7, TRUE),1), 0) -> 2 | CG7: =_xlfn.IFNA(MATCH(RAND(), _xlfn.POISSON.DIST({0,1,2,3,4,5,6,7,8,9},$P7, TRUE),1), 0) -> 2 | CH7: =_xlfn.IFNA(MATCH(RAND(), _xlfn.POISSON.DIST({0,1,2,3,4,5,6,7,8,9},$P7, TRUE),1), 0) -> 2 | CI7: =_xlfn.IFNA(MATCH(RAND(), _xlfn.POISSON.DIST({0,1,2,3,4,5,6,7,8,9},$P7, TRUE),1), 0) -> 0 | CJ7: =_xlfn.IFNA(MATCH(RAND(), _xlfn.POISSON.DIST({0,1,2,3,4,5,6,7,8,9},$P7, TRUE),1), 0) -> 2 | CK7: =_xlfn.IFNA(MATCH(RAND(), _xlfn.POISSON.DIST({0,1,2,3,4,5,6,7,8,9},$P7, TRUE),1), 0) -> 3 | CL7: =_xlfn.IFNA(MATCH(RAND(), _xlfn.POISSON.DIST({0,1,2,3,4,5,6,7,8,9},$P7, TRUE),1), 0) -> 1 | CM7: =_xlfn.IFNA(MATCH(RAND(), _xlfn.POISSON.DIST({0,1,2,3,4,5,6,7,8,9},$P7, TRUE),1), 0) -> 2 | CN7: =_xlfn.IFNA(MATCH(RAND(), _xlfn.POISSON.DIST({0,1,2,3,4,5,6,7,8,9},$P7, TRUE),1), 0) -> 5 | CO7: =_xlfn.IFNA(MATCH(RAND(), _xlfn.POISSON.DIST({0,1,2,3,4,5,6,7,8,9},$P7, TRUE),1), 0) -> 2 | CP7: =_xlfn.IFNA(MATCH(RAND(), _xlfn.POISSON.DIST({0,1,2,3,4,5,6,7,8,9},$P7, TRUE),1), 0) -> 1 | CQ7: =_xlfn.IFNA(MATCH(RAND(), _xlfn.POISSON.DIST({0,1,2,3,4,5,6,7,8,9},$P7, TRUE),1), 0) -> 1 | CR7: =_xlfn.IFNA(MATCH(RAND(), _xlfn.POISSON.DIST({0,1,2,3,4,5,6,7,8,9},$P7, TRUE),1), 0) -> 2 | CS7: =_xlfn.IFNA(MATCH(RAND(), _xlfn.POISSON.DIST({0,1,2,3,4,5,6,7,8,9},$P7, TRUE),1), 0) -> 1 | CT7: =_xlfn.IFNA(MATCH(RAND(), _xlfn.POISSON.DIST({0,1,2,3,4,5,6,7,8,9},$P7, TRUE),1), 0) -> 2 | CU7: =_xlfn.IFNA(MATCH(RAND(), _xlfn.POISSON.DIST({0,1,2,3,4,5,6,7,8,9},$P7, TRUE),1), 0) -> 0 | CV7: =_xlfn.IFNA(MATCH(RAND(), _xlfn.POISSON.DIST({0,1,2,3,4,5,6,7,8,9},$P7, TRUE),1), 0) -> 0 | CW7: =_xlfn.IFNA(MATCH(RAND(), _xlfn.POISSON.DIST({0,1,2,3,4,5,6,7,8,9},$P7, TRUE),1), 0) -> 2 | CX7: =_xlfn.IFNA(MATCH(RAND(), _xlfn.POISSON.DIST({0,1,2,3,4,5,6,7,8,9},$P7, TRUE),1), 0) -> 1 | CY7: =_xlfn.IFNA(MATCH(RAND(), _xlfn.POISSON.DIST({0,1,2,3,4,5,6,7,8,9},$P7, TRUE),1), 0) -> 0 | CZ7: =_xlfn.IFNA(MATCH(RAND(), _xlfn.POISSON.DIST({0,1,2,3,4,5,6,7,8,9},$P7, TRUE),1), 0) -> 3 | DA7: =_xlfn.IFNA(MATCH(RAND(), _xlfn.POISSON.DIST({0,1,2,3,4,5,6,7,8,9},$P7, TRUE),1), 0) -> 2 | DB7: =_xlfn.IFNA(MATCH(RAND(), _xlfn.POISSON.DIST({0,1,2,3,4,5,6,7,8,9},$P7, TRUE),1), 0) -> 2 | DC7: =_xlfn.IFNA(MATCH(RAND(), _xlfn.POISSON.DIST({0,1,2,3,4,5,6,7,8,9},$P7, TRUE),1), 0) -> 4 | DD7: =_xlfn.IFNA(MATCH(RAND(), _xlfn.POISSON.DIST({0,1,2,3,4,5,6,7,8,9},$P7, TRUE),1), 0) -> 1 | DE7: =_xlfn.IFNA(MATCH(RAND(), _xlfn.POISSON.DIST({0,1,2,3,4,5,6,7,8,9},$P7, TRUE),1), 0) -> 2 | DF7: =_xlfn.IFNA(MATCH(RAND(), _xlfn.POISSON.DIST({0,1,2,3,4,5,6,7,8,9},$P7, TRUE),1), 0) -> 3 | DG7: =_xlfn.IFNA(MATCH(RAND(), _xlfn.POISSON.DIST({0,1,2,3,4,5,6,7,8,9},$P7, TRUE),1), 0) -> 4 | DH7: =_xlfn.IFNA(MATCH(RAND(), _xlfn.POISSON.DIST({0,1,2,3,4,5,6,7,8,9},$P7, TRUE),1), 0) -> 0 | DI7: =_xlfn.IFNA(MATCH(RAND(), _xlfn.POISSON.DIST({0,1,2,3,4,5,6,7,8,9},$P7, TRUE),1), 0) -> 0 | DJ7: =_xlfn.IFNA(MATCH(RAND(), _xlfn.POISSON.DIST({0,1,2,3,4,5,6,7,8,9},$P7, TRUE),1), 0) -> 3 | DK7: =_xlfn.IFNA(MATCH(RAND(), _xlfn.POISSON.DIST({0,1,2,3,4,5,6,7,8,9},$P7, TRUE),1), 0) -> 1 | DL7: =_xlfn.IFNA(MATCH(RAND(), _xlfn.POISSON.DIST({0,1,2,3,4,5,6,7,8,9},$P7, TRUE),1), 0) -> 2 | DM7: =_xlfn.IFNA(MATCH(RAND(), _xlfn.POISSON.DIST({0,1,2,3,4,5,6,7,8,9},$P7, TRUE),1), 0) -> 4
C8: 2019-06-08 | D8: B | E8: España | F8: =(AVERAGE(Q8:BN8))*(1+INDEX('Predicciones de la liguilla'!$C$4:$O$28, MATCH('Partidos de este año'!E8,'Predicciones de la liguilla'!$D$4:$D$28,0),3)) -> 1.54 | G8: Sudáfrica | H8: =(AVERAGE(BP8:DM8))*(1+INDEX('Predicciones de la liguilla'!$C$4:$O$28, MATCH('Partidos de este año'!G8,'Predicciones de la liguilla'!$D$4:$D$28,0),3)) -> 1.52 | I8: =IF(L8>M8,E8,IF(L8=M8,"Dibujar",G8)) -> España | L8: 1.54 | M8: 1.52 | N8: =IF(L8>M8,E8,IF(L8=M8,"Dibujar",G8)) -> España | O8: =(OFFSET('Apéndice 3 - Goles por grupo'!$C$13,(INDEX('Apéndice 1 - Datos de equipos'!$C$13:$F$112,MATCH(G8,'Apéndice 1 - Datos de equipos'!$C$13:$C$112,0),4)/10),(INDEX('Apéndice 1 - Datos de equipos'!$C$13:$F$112,MATCH(E8,'Apéndice 1 - Datos de equipos'!$C$13:$C$112,0),4)/10))) -> 1.50 | P8: =OFFSET('Apéndice 3 - Goles por grupo'!$C$13,(INDEX('Apéndice 1 - Datos de equipos'!$C$13:$F$112, MATCH(E8,'Apéndice 1 - Datos de equipos'!$C$13:$C$112,0),4)/10), (INDEX('Apéndice 1 - Datos de equipos'!$C$13:$F$112, MATCH(G8, 'Apéndice 1 - Datos de equipos'!$C$13:$C$112,0),4)/10)) -> 1.50 | Q8: =_xlfn.IFNA(MATCH(RAND(), _xlfn.POISSON.DIST({0,1,2,3,4,5,6,7,8,9},$O8, TRUE),1), 0) -> 1 | R8: =_xlfn.IFNA(MATCH(RAND(), _xlfn.POISSON.DIST({0,1,2,3,4,5,6,7,8,9},$O8, TRUE),1), 0) -> 0 | S8: =_xlfn.IFNA(MATCH(RAND(), _xlfn.POISSON.DIST({0,1,2,3,4,5,6,7,8,9},$O8, TRUE),1), 0) -> 0 | T8: =_xlfn.IFNA(MATCH(RAND(), _xlfn.POISSON.DIST({0,1,2,3,4,5,6,7,8,9},$O8, TRUE),1), 0) -> 0 | U8: =_xlfn.IFNA(MATCH(RAND(), _xlfn.POISSON.DIST({0,1,2,3,4,5,6,7,8,9},$O8, TRUE),1), 0) -> 1 | V8: =_xlfn.IFNA(MATCH(RAND(), _xlfn.POISSON.DIST({0,1,2,3,4,5,6,7,8,9},$O8, TRUE),1), 0) -> 1 | W8: =_xlfn.IFNA(MATCH(RAND(), _xlfn.POISSON.DIST({0,1,2,3,4,5,6,7,8,9},$O8, TRUE),1), 0) -> 1 | X8: =_xlfn.IFNA(MATCH(RAND(), _xlfn.POISSON.DIST({0,1,2,3,4,5,6,7,8,9},$O8, TRUE),1), 0) -> 0 | Y8: =_xlfn.IFNA(MATCH(RAND(), _xlfn.POISSON.DIST({0,1,2,3,4,5,6,7,8,9},$O8, TRUE),1), 0) -> 1 | Z8: =_xlfn.IFNA(MATCH(RAND(), _xlfn.POISSON.DIST({0,1,2,3,4,5,6,7,8,9},$O8, TRUE),1), 0) -> 6 | AA8: =_xlfn.IFNA(MATCH(RAND(), _xlfn.POISSON.DIST({0,1,2,3,4,5,6,7,8,9},$O8, TRUE),1), 0) -> 1 | AB8: =_xlfn.IFNA(MATCH(RAND(), _xlfn.POISSON.DIST({0,1,2,3,4,5,6,7,8,9},$O8, TRUE),1), 0) -> 1 | AC8: =_xlfn.IFNA(MATCH(RAND(), _xlfn.POISSON.DIST({0,1,2,3,4,5,6,7,8,9},$O8, TRUE),1), 0) -> 1 | AD8: =_xlfn.IFNA(MATCH(RAND(), _xlfn.POISSON.DIST({0,1,2,3,4,5,6,7,8,9},$O8, TRUE),1), 0) -> 1 | AE8: =_xlfn.IFNA(MATCH(RAND(), _xlfn.POISSON.DIST({0,1,2,3,4,5,6,7,8,9},$O8, TRUE),1), 0) -> 1 | AF8: =_xlfn.IFNA(MATCH(RAND(), _xlfn.POISSON.DIST({0,1,2,3,4,5,6,7,8,9},$O8, TRUE),1), 0) -> 4 | AG8: =_xlfn.IFNA(MATCH(RAND(), _xlfn.POISSON.DIST({0,1,2,3,4,5,6,7,8,9},$O8, TRUE),1), 0) -> 2 | AH8: =_xlfn.IFNA(MATCH(RAND(), _xlfn.POISSON.DIST({0,1,2,3,4,5,6,7,8,9},$O8, TRUE),1), 0) -> 3 | AI8: =_xlfn.IFNA(MATCH(RAND(), _xlfn.POISSON.DIST({0,1,2,3,4,5,6,7,8,9},$O8, TRUE),1), 0) -> 5 | AJ8: =_xlfn.IFNA(MATCH(RAND(), _xlfn.POISSON.DIST({0,1,2,3,4,5,6,7,8,9},$O8, TRUE),1), 0) -> 4 | AK8: =_xlfn.IFNA(MATCH(RAND(), _xlfn.POISSON.DIST({0,1,2,3,4,5,6,7,8,9},$O8, TRUE),1), 0) -> 4 | AL8: =_xlfn.IFNA(MATCH(RAND(), _xlfn.POISSON.DIST({0,1,2,3,4,5,6,7,8,9},$O8, TRUE),1), 0) -> 1 | AM8: =_xlfn.IFNA(MATCH(RAND(), _xlfn.POISSON.DIST({0,1,2,3,4,5,6,7,8,9},$O8, TRUE),1), 0) -> 1 | AN8: =_xlfn.IFNA(MATCH(RAND(), _xlfn.POISSON.DIST({0,1,2,3,4,5,6,7,8,9},$O8, TRUE),1), 0) -> 1 | AO8: =_xlfn.IFNA(MATCH(RAND(), _xlfn.POISSON.DIST({0,1,2,3,4,5,6,7,8,9},$O8, TRUE),1), 0) -> 1 | AP8: =_xlfn.IFNA(MATCH(RAND(), _xlfn.POISSON.DIST({0,1,2,3,4,5,6,7,8,9},$O8, TRUE),1), 0) -> 3 | AQ8: =_xlfn.IFNA(MATCH(RAND(), _xlfn.POISSON.DIST({0,1,2,3,4,5,6,7,8,9},$O8, TRUE),1), 0) -> 2 | AR8: =_xlfn.IFNA(MATCH(RAND(), _xlfn.POISSON.DIST({0,1,2,3,4,5,6,7,8,9},$O8, TRUE),1), 0) -> 0 | AS8: =_xlfn.IFNA(MATCH(RAND(), _xlfn.POISSON.DIST({0,1,2,3,4,5,6,7,8,9},$O8, TRUE),1), 0) -> 1 | AT8: =_xlfn.IFNA(MATCH(RAND(), _xlfn.POISSON.DIST({0,1,2,3,4,5,6,7,8,9},$O8, TRUE),1), 0) -> 1 | AU8: =_xlfn.IFNA(MATCH(RAND(), _xlfn.POISSON.DIST({0,1,2,3,4,5,6,7,8,9},$O8, TRUE),1), 0) -> 1 | AV8: =_xlfn.IFNA(MATCH(RAND(), _xlfn.POISSON.DIST({0,1,2,3,4,5,6,7,8,9},$O8, TRUE),1), 0) -> 2 | AW8: =_xlfn.IFNA(MATCH(RAND(), _xlfn.POISSON.DIST({0,1,2,3,4,5,6,7,8,9},$O8, TRUE),1), 0) -> 0 | AX8: =_xlfn.IFNA(MATCH(RAND(), _xlfn.POISSON.DIST({0,1,2,3,4,5,6,7,8,9},$O8, TRUE),1), 0) -> 3 | AY8: =_xlfn.IFNA(MATCH(RAND(), _xlfn.POISSON.DIST({0,1,2,3,4,5,6,7,8,9},$O8, TRUE),1), 0) -> 3 | AZ8: =_xlfn.IFNA(MATCH(RAND(), _xlfn.POISSON.DIST({0,1,2,3,4,5,6,7,8,9},$O8, TRUE),1), 0) -> 2 | BA8: =_xlfn.IFNA(MATCH(RAND(), _xlfn.POISSON.DIST({0,1,2,3,4,5,6,7,8,9},$O8, TRUE),1), 0) -> 2 | BB8: =_xlfn.IFNA(MATCH(RAND(), _xlfn.POISSON.DIST({0,1,2,3,4,5,6,7,8,9},$O8, TRUE),1), 0) -> 1 | BC8: =_xlfn.IFNA(MATCH(RAND(), _xlfn.POISSON.DIST({0,1,2,3,4,5,6,7,8,9},$O8, TRUE),1), 0) -> 1 | BD8: =_xlfn.IFNA(MATCH(RAND(), _xlfn.POISSON.DIST({0,1,2,3,4,5,6,7,8,9},$O8, TRUE),1), 0) -> 3 | BE8: =_xlfn.IFNA(MATCH(RAND(), _xlfn.POISSON.DIST({0,1,2,3,4,5,6,7,8,9},$O8, TRUE),1), 0) -> 1 | BF8: =_xlfn.IFNA(MATCH(RAND(), _xlfn.POISSON.DIST({0,1,2,3,4,5,6,7,8,9},$O8, TRUE),1), 0) -> 2 | BG8: =_xlfn.IFNA(MATCH(RAND(), _xlfn.POISSON.DIST({0,1,2,3,4,5,6,7,8,9},$O8, TRUE),1), 0) -> 0 | BH8: =_xlfn.IFNA(MATCH(RAND(), _xlfn.POISSON.DIST({0,1,2,3,4,5,6,7,8,9},$O8, TRUE),1), 0) -> 2 | BI8: =_xlfn.IFNA(MATCH(RAND(), _xlfn.POISSON.DIST({0,1,2,3,4,5,6,7,8,9},$O8, TRUE),1), 0) -> 0 | BJ8: =_xlfn.IFNA(MATCH(RAND(), _xlfn.POISSON.DIST({0,1,2,3,4,5,6,7,8,9},$O8, TRUE),1), 0) -> 1 | BK8: =_xlfn.IFNA(MATCH(RAND(), _xlfn.POISSON.DIST({0,1,2,3,4,5,6,7,8,9},$O8, TRUE),1), 0) -> 0 | BL8: =_xlfn.IFNA(MATCH(RAND(), _xlfn.POISSON.DIST({0,1,2,3,4,5,6,7,8,9},$O8, TRUE),1), 0) -> 1 | BM8: =_xlfn.IFNA(MATCH(RAND(), _xlfn.POISSON.DIST({0,1,2,3,4,5,6,7,8,9},$O8, TRUE),1), 0) -> 3 | BN8: =_xlfn.IFNA(MATCH(RAND(), _xlfn.POISSON.DIST({0,1,2,3,4,5,6,7,8,9},$O8, TRUE),1), 0) -> 0 | BP8: =_xlfn.IFNA(MATCH(RAND(), _xlfn.POISSON.DIST({0,1,2,3,4,5,6,7,8,9},$P8, TRUE),1), 0) -> 1 | BQ8: =_xlfn.IFNA(MATCH(RAND(), _xlfn.POISSON.DIST({0,1,2,3,4,5,6,7,8,9},$P8, TRUE),1), 0) -> 3 | BR8: =_xlfn.IFNA(MATCH(RAND(), _xlfn.POISSON.DIST({0,1,2,3,4,5,6,7,8,9},$P8, TRUE),1), 0) -> 5 | BS8: =_xlfn.IFNA(MATCH(RAND(), _xlfn.POISSON.DIST({0,1,2,3,4,5,6,7,8,9},$P8, TRUE),1), 0) -> 0 | BT8: =_xlfn.IFNA(MATCH(RAND(), _xlfn.POISSON.DIST({0,1,2,3,4,5,6,7,8,9},$P8, TRUE),1), 0) -> 4 | BU8: =_xlfn.IFNA(MATCH(RAND(), _xlfn.POISSON.DIST({0,1,2,3,4,5,6,7,8,9},$P8, TRUE),1), 0) -> 0 | BV8: =_xlfn.IFNA(MATCH(RAND(), _xlfn.POISSON.DIST({0,1,2,3,4,5,6,7,8,9},$P8, TRUE),1), 0) -> 2 | BW8: =_xlfn.IFNA(MATCH(RAND(), _xlfn.POISSON.DIST({0,1,2,3,4,5,6,7,8,9},$P8, TRUE),1), 0) -> 1 | BX8: =_xlfn.IFNA(MATCH(RAND(), _xlfn.POISSON.DIST({0,1,2,3,4,5,6,7,8,9},$P8, TRUE),1), 0) -> 1 | BY8: =_xlfn.IFNA(MATCH(RAND(), _xlfn.POISSON.DIST({0,1,2,3,4,5,6,7,8,9},$P8, TRUE),1), 0) -> 3 | BZ8: =_xlfn.IFNA(MATCH(RAND(), _xlfn.POISSON.DIST({0,1,2,3,4,5,6,7,8,9},$P8, TRUE),1), 0) -> 2 | CA8: =_xlfn.IFNA(MATCH(RAND(), _xlfn.POISSON.DIST({0,1,2,3,4,5,6,7,8,9},$P8, TRUE),1), 0) -> 1 | CB8: =_xlfn.IFNA(MATCH(RAND(), _xlfn.POISSON.DIST({0,1,2,3,4,5,6,7,8,9},$P8, TRUE),1), 0) -> 3 | CC8: =_xlfn.IFNA(MATCH(RAND(), _xlfn.POISSON.DIST({0,1,2,3,4,5,6,7,8,9},$P8, TRUE),1), 0) -> 2 | CD8: =_xlfn.IFNA(MATCH(RAND(), _xlfn.POISSON.DIST({0,1,2,3,4,5,6,7,8,9},$P8, TRUE),1), 0) -> 0 | CE8: =_xlfn.IFNA(MATCH(RAND(), _xlfn.POISSON.DIST({0,1,2,3,4,5,6,7,8,9},$P8, TRUE),1), 0) -> 4 | CF8: =_xlfn.IFNA(MATCH(RAND(), _xlfn.POISSON.DIST({0,1,2,3,4,5,6,7,8,9},$P8, TRUE),1), 0) -> 2 | CG8: =_xlfn.IFNA(MATCH(RAND(), _xlfn.POISSON.DIST({0,1,2,3,4,5,6,7,8,9},$P8, TRUE),1), 0) -> 0 | CH8: =_xlfn.IFNA(MATCH(RAND(), _xlfn.POISSON.DIST({0,1,2,3,4,5,6,7,8,9},$P8, TRUE),1), 0) -> 0 | CI8: =_xlfn.IFNA(MATCH(RAND(), _xlfn.POISSON.DIST({0,1,2,3,4,5,6,7,8,9},$P8, TRUE),1), 0) -> 0 | CJ8: =_xlfn.IFNA(MATCH(RAND(), _xlfn.POISSON.DIST({0,1,2,3,4,5,6,7,8,9},$P8, TRUE),1), 0) -> 1 | CK8: =_xlfn.IFNA(MATCH(RAND(), _xlfn.POISSON.DIST({0,1,2,3,4,5,6,7,8,9},$P8, TRUE),1), 0) -> 2 | CL8: =_xlfn.IFNA(MATCH(RAND(), _xlfn.POISSON.DIST({0,1,2,3,4,5,6,7,8,9},$P8, TRUE),1), 0) -> 0 | CM8: =_xlfn.IFNA(MATCH(RAND(), _xlfn.POISSON.DIST({0,1,2,3,4,5,6,7,8,9},$P8, TRUE),1), 0) -> 1 | CN8: =_xlfn.IFNA(MATCH(RAND(), _xlfn.POISSON.DIST({0,1,2,3,4,5,6,7,8,9},$P8, TRUE),1), 0) -> 0 | CO8: =_xlfn.IFNA(MATCH(RAND(), _xlfn.POISSON.DIST({0,1,2,3,4,5,6,7,8,9},$P8, TRUE),1), 0) -> 2 | CP8: =_xlfn.IFNA(MATCH(RAND(), _xlfn.POISSON.DIST({0,1,2,3,4,5,6,7,8,9},$P8, TRUE),1), 0) -> 2 | CQ8: =_xlfn.IFNA(MATCH(RAND(), _xlfn.POISSON.DIST({0,1,2,3,4,5,6,7,8,9},$P8, TRUE),1), 0) -> 0 | CR8: =_xlfn.IFNA(MATCH(RAND(), _xlfn.POISSON.DIST({0,1,2,3,4,5,6,7,8,9},$P8, TRUE),1), 0) -> 1 | CS8: =_xlfn.IFNA(MATCH(RAND(), _xlfn.POISSON.DIST({0,1,2,3,4,5,6,7,8,9},$P8, TRUE),1), 0) -> 1 | CT8: =_xlfn.IFNA(MATCH(RAND(), _xlfn.POISSON.DIST({0,1,2,3,4,5,6,7,8,9},$P8, TRUE),1), 0) -> 2 | CU8: =_xlfn.IFNA(MATCH(RAND(), _xlfn.POISSON.DIST({0,1,2,3,4,5,6,7,8,9},$P8, TRUE),1), 0) -> 3 | CV8: =_xlfn.IFNA(MATCH(RAND(), _xlfn.POISSON.DIST({0,1,2,3,4,5,6,7,8,9},$P8, TRUE),1), 0) -> 0 | CW8: =_xlfn.IFNA(MATCH(RAND(), _xlfn.POISSON.DIST({0,1,2,3,4,5,6,7,8,9},$P8, TRUE),1), 0) -> 0 | CX8: =_xlfn.IFNA(MATCH(RAND(), _xlfn.POISSON.DIST({0,1,2,3,4,5,6,7,8,9},$P8, TRUE),1), 0) -> 4 | CY8: =_xlfn.IFNA(MATCH(RAND(), _xlfn.POISSON.DIST({0,1,2,3,4,5,6,7,8,9},$P8, TRUE),1), 0) -> 0 | CZ8: =_xlfn.IFNA(MATCH(RAND(), _xlfn.POISSON.DIST({0,1,2,3,4,5,6,7,8,9},$P8, TRUE),1), 0) -> 2 | DA8: =_xlfn.IFNA(MATCH(RAND(), _xlfn.POISSON.DIST({0,1,2,3,4,5,6,7,8,9},$P8, TRUE),1), 0) -> 0 | DB8: =_xlfn.IFNA(MATCH(RAND(), _xlfn.POISSON.DIST({0,1,2,3,4,5,6,7,8,9},$P8, TRUE),1), 0) -> 1 | DC8: =_xlfn.IFNA(MATCH(RAND(), _xlfn.POISSON.DIST({0,1,2,3,4,5,6,7,8,9},$P8, TRUE),1), 0) -> 3 | DD8: =_xlfn.IFNA(MATCH(RAND(), _xlfn.POISSON.DIST({0,1,2,3,4,5,6,7,8,9},$P8, TRUE),1), 0) -> 3 | DE8: =_xlfn.IFNA(MATCH(RAND(), _xlfn.POISSON.DIST({0,1,2,3,4,5,6,7,8,9},$P8, TRUE),1), 0) -> 3 | DF8: =_xlfn.IFNA(MATCH(RAND(), _xlfn.POISSON.DIST({0,1,2,3,4,5,6,7,8,9},$P8, TRUE),1), 0) -> 1 | DG8: =_xlfn.IFNA(MATCH(RAND(), _xlfn.POISSON.DIST({0,1,2,3,4,5,6,7,8,9},$P8, TRUE),1), 0) -> 1 | DH8: =_xlfn.IFNA(MATCH(RAND(), _xlfn.POISSON.DIST({0,1,2,3,4,5,6,7,8,9},$P8, TRUE),1), 0) -> 1 | DI8: =_xlfn.IFNA(MATCH(RAND(), _xlfn.POISSON.DIST({0,1,2,3,4,5,6,7,8,9},$P8, TRUE),1), 0) -> 0 | DJ8: =_xlfn.IFNA(MATCH(RAND(), _xlfn.POISSON.DIST({0,1,2,3,4,5,6,7,8,9},$P8, TRUE),1), 0) -> 2 | DK8: =_xlfn.IFNA(MATCH(RAND(), _xlfn.POISSON.DIST({0,1,2,3,4,5,6,7,8,9},$P8, TRUE),1), 0) -> 0 | DL8: =_xlfn.IFNA(MATCH(RAND(), _xlfn.POISSON.DIST({0,1,2,3,4,5,6,7,8,9},$P8, TRUE),1), 0) -> 3 | DM8: =_xlfn.IFNA(MATCH(RAND(), _xlfn.POISSON.DIST({0,1,2,3,4,5,6,7,8,9},$P8, TRUE),1), 0) -> 3
C9: 2019-06-08 | D9: A | E9: Noruega | F9: =(AVERAGE(Q9:BN9))*(1+INDEX('Predicciones de la liguilla'!$C$4:$O$28, MATCH('Partidos de este año'!E9,'Predicciones de la liguilla'!$D$4:$D$28,0),3)) -> 1.60 | G9: Nigeria | H9: =(AVERAGE(BP9:DM9))*(1+INDEX('Predicciones de la liguilla'!$C$4:$O$28, MATCH('Partidos de este año'!G9,'Predicciones de la liguilla'!$D$4:$D$28,0),3)) -> 1.66 | I9: =IF(L9>M9,E9,IF(L9=M9,"Dibujar",G9)) -> Nigeria | L9: 1.6 | M9: 1.66 | N9: =IF(L9>M9,E9,IF(L9=M9,"Dibujar",G9)) -> Nigeria | O9: =(OFFSET('Apéndice 3 - Goles por grupo'!$C$13,(INDEX('Apéndice 1 - Datos de equipos'!$C$13:$F$112,MATCH(G9,'Apéndice 1 - Datos de equipos'!$C$13:$C$112,0),4)/10),(INDEX('Apéndice 1 - Datos de equipos'!$C$13:$F$112,MATCH(E9,'Apéndice 1 - Datos de equipos'!$C$13:$C$112,0),4)/10))) -> 1.50 | P9: =OFFSET('Apéndice 3 - Goles por grupo'!$C$13,(INDEX('Apéndice 1 - Datos de equipos'!$C$13:$F$112, MATCH(E9,'Apéndice 1 - Datos de equipos'!$C$13:$C$112,0),4)/10), (INDEX('Apéndice 1 - Datos de equipos'!$C$13:$F$112, MATCH(G9, 'Apéndice 1 - Datos de equipos'!$C$13:$C$112,0),4)/10)) -> 1.50 | Q9: =_xlfn.IFNA(MATCH(RAND(), _xlfn.POISSON.DIST({0,1,2,3,4,5,6,7,8,9},$O9, TRUE),1), 0) -> 3 | R9: =_xlfn.IFNA(MATCH(RAND(), _xlfn.POISSON.DIST({0,1,2,3,4,5,6,7,8,9},$O9, TRUE),1), 0) -> 2 | S9: =_xlfn.IFNA(MATCH(RAND(), _xlfn.POISSON.DIST({0,1,2,3,4,5,6,7,8,9},$O9, TRUE),1), 0) -> 1 | T9: =_xlfn.IFNA(MATCH(RAND(), _xlfn.POISSON.DIST({0,1,2,3,4,5,6,7,8,9},$O9, TRUE),1), 0) -> 1 | U9: =_xlfn.IFNA(MATCH(RAND(), _xlfn.POISSON.DIST({0,1,2,3,4,5,6,7,8,9},$O9, TRUE),1), 0) -> 1 | V9: =_xlfn.IFNA(MATCH(RAND(), _xlfn.POISSON.DIST({0,1,2,3,4,5,6,7,8,9},$O9, TRUE),1), 0) -> 3 | W9: =_xlfn.IFNA(MATCH(RAND(), _xlfn.POISSON.DIST({0,1,2,3,4,5,6,7,8,9},$O9, TRUE),1), 0) -> 2 | X9: =_xlfn.IFNA(MATCH(RAND(), _xlfn.POISSON.DIST({0,1,2,3,4,5,6,7,8,9},$O9, TRUE),1), 0) -> 3 | Y9: =_xlfn.IFNA(MATCH(RAND(), _xlfn.POISSON.DIST({0,1,2,3,4,5,6,7,8,9},$O9, TRUE),1), 0) -> 0 | Z9: =_xlfn.IFNA(MATCH(RAND(), _xlfn.POISSON.DIST({0,1,2,3,4,5,6,7,8,9},$O9, TRUE),1), 0) -> 1 | AA9: =_xlfn.IFNA(MATCH(RAND(), _xlfn.POISSON.DIST({0,1,2,3,4,5,6,7,8,9},$O9, TRUE),1), 0) -> 2 | AB9: =_xlfn.IFNA(MATCH(RAND(), _xlfn.POISSON.DIST({0,1,2,3,4,5,6,7,8,9},$O9, TRUE),1), 0) -> 2 | AC9: =_xlfn.IFNA(MATCH(RAND(), _xlfn.POISSON.DIST({0,1,2,3,4,5,6,7,8,9},$O9, TRUE),1), 0) -> 3 | AD9: =_xlfn.IFNA(MATCH(RAND(), _xlfn.POISSON.DIST({0,1,2,3,4,5,6,7,8,9},$O9, TRUE),1), 0) -> 0 | AE9: =_xlfn.IFNA(MATCH(RAND(), _xlfn.POISSON.DIST({0,1,2,3,4,5,6,7,8,9},$O9, TRUE),1), 0) -> 1 | AF9: =_xlfn.IFNA(MATCH(RAND(), _xlfn.POISSON.DIST({0,1,2,3,4,5,6,7,8,9},$O9, TRUE),1), 0) -> 4 | AG9: =_xlfn.IFNA(MATCH(RAND(), _xlfn.POISSON.DIST({0,1,2,3,4,5,6,7,8,9},$O9, TRUE),1), 0) -> 5 | AH9: =_xlfn.IFNA(MATCH(RAND(), _xlfn.POISSON.DIST({0,1,2,3,4,5,6,7,8,9},$O9, TRUE),1), 0) -> 1 | AI9: =_xlfn.IFNA(MATCH(RAND(), _xlfn.POISSON.DIST({0,1,2,3,4,5,6,7,8,9},$O9, TRUE),1), 0) -> 2 | AJ9: =_xlfn.IFNA(MATCH(RAND(), _xlfn.POISSON.DIST({0,1,2,3,4,5,6,7,8,9},$O9, TRUE),1), 0) -> 0 | AK9: =_xlfn.IFNA(MATCH(RAND(), _xlfn.POISSON.DIST({0,1,2,3,4,5,6,7,8,9},$O9, TRUE),1), 0) -> 1 | AL9: =_xlfn.IFNA(MATCH(RAND(), _xlfn.POISSON.DIST({0,1,2,3,4,5,6,7,8,9},$O9, TRUE),1), 0) -> 2 | AM9: =_xlfn.IFNA(MATCH(RAND(), _xlfn.POISSON.DIST({0,1,2,3,4,5,6,7,8,9},$O9, TRUE),1), 0) -> 1 | AN9: =_xlfn.IFNA(MATCH(RAND(), _xlfn.POISSON.DIST({0,1,2,3,4,5,6,7,8,9},$O9, TRUE),1), 0) -> 0 | AO9: =_xlfn.IFNA(MATCH(RAND(), _xlfn.POISSON.DIST({0,1,2,3,4,5,6,7,8,9},$O9, TRUE),1), 0) -> 4 | AP9: =_xlfn.IFNA(MATCH(RAND(), _xlfn.POISSON.DIST({0,1,2,3,4,5,6,7,8,9},$O9, TRUE),1), 0) -> 2 | AQ9: =_xlfn.IFNA(MATCH(RAND(), _xlfn.POISSON.DIST({0,1,2,3,4,5,6,7,8,9},$O9, TRUE),1), 0) -> 2 | AR9: =_xlfn.IFNA(MATCH(RAND(), _xlfn.POISSON.DIST({0,1,2,3,4,5,6,7,8,9},$O9, TRUE),1), 0) -> 0 | AS9: =_xlfn.IFNA(MATCH(RAND(), _xlfn.POISSON.DIST({0,1,2,3,4,5,6,7,8,9},$O9, TRUE),1), 0) -> 1 | AT9: =_xlfn.IFNA(MATCH(RAND(), _xlfn.POISSON.DIST({0,1,2,3,4,5,6,7,8,9},$O9, TRUE),1), 0) -> 2 | AU9: =_xlfn.IFNA(MATCH(RAND(), _xlfn.POISSON.DIST({0,1,2,3,4,5,6,7,8,9},$O9, TRUE),1), 0) -> 1 | AV9: =_xlfn.IFNA(MATCH(RAND(), _xlfn.POISSON.DIST({0,1,2,3,4,5,6,7,8,9},$O9, TRUE),1), 0) -> 0 | AW9: =_xlfn.IFNA(MATCH(RAND(), _xlfn.POISSON.DIST({0,1,2,3,4,5,6,7,8,9},$O9, TRUE),1), 0) -> 0 | AX9: =_xlfn.IFNA(MATCH(RAND(), _xlfn.POISSON.DIST({0,1,2,3,4,5,6,7,8,9},$O9, TRUE),1), 0) -> 1 | AY9: =_xlfn.IFNA(MATCH(RAND(), _xlfn.POISSON.DIST({0,1,2,3,4,5,6,7,8,9},$O9, TRUE),1), 0) -> 0 | AZ9: =_xlfn.IFNA(MATCH(RAND(), _xlfn.POISSON.DIST({0,1,2,3,4,5,6,7,8,9},$O9, TRUE),1), 0) -> 1 | BA9: =_xlfn.IFNA(MATCH(RAND(), _xlfn.POISSON.DIST({0,1,2,3,4,5,6,7,8,9},$O9, TRUE),1), 0) -> 4 | BB9: =_xlfn.IFNA(MATCH(RAND(), _xlfn.POISSON.DIST({0,1,2,3,4,5,6,7,8,9},$O9, TRUE),1), 0) -> 4 | BC9: =_xlfn.IFNA(MATCH(RAND(), _xlfn.POISSON.DIST({0,1,2,3,4,5,6,7,8,9},$O9, TRUE),1), 0) -> 1 | BD9: =_xlfn.IFNA(MATCH(RAND(), _xlfn.POISSON.DIST({0,1,2,3,4,5,6,7,8,9},$O9, TRUE),1), 0) -> 2 | BE9: =_xlfn.IFNA(MATCH(RAND(), _xlfn.POISSON.DIST({0,1,2,3,4,5,6,7,8,9},$O9, TRUE),1), 0) -> 1 | BF9: =_xlfn.IFNA(MATCH(RAND(), _xlfn.POISSON.DIST({0,1,2,3,4,5,6,7,8,9},$O9, TRUE),1), 0) -> 2 | BG9: =_xlfn.IFNA(MATCH(RAND(), _xlfn.POISSON.DIST({0,1,2,3,4,5,6,7,8,9},$O9, TRUE),1), 0) -> 4 | BH9: =_xlfn.IFNA(MATCH(RAND(), _xlfn.POISSON.DIST({0,1,2,3,4,5,6,7,8,9},$O9, TRUE),1), 0) -> 0 | BI9: =_xlfn.IFNA(MATCH(RAND(), _xlfn.POISSON.DIST({0,1,2,3,4,5,6,7,8,9},$O9, TRUE),1), 0) -> 2 | BJ9: =_xlfn.IFNA(MATCH(RAND(), _xlfn.POISSON.DIST({0,1,2,3,4,5,6,7,8,9},$O9, TRUE),1), 0) -> 1 | BK9: =_xlfn.IFNA(MATCH(RAND(), _xlfn.POISSON.DIST({0,1,2,3,4,5,6,7,8,9},$O9, TRUE),1), 0) -> 0 | BL9: =_xlfn.IFNA(MATCH(RAND(), _xlfn.POISSON.DIST({0,1,2,3,4,5,6,7,8,9},$O9, TRUE),1), 0) -> 0 | BM9: =_xlfn.IFNA(MATCH(RAND(), _xlfn.POISSON.DIST({0,1,2,3,4,5,6,7,8,9},$O9, TRUE),1), 0) -> 2 | BN9: =_xlfn.IFNA(MATCH(RAND(), _xlfn.POISSON.DIST({0,1,2,3,4,5,6,7,8,9},$O9, TRUE),1), 0) -> 2 | BP9: =_xlfn.IFNA(MATCH(RAND(), _xlfn.POISSON.DIST({0,1,2,3,4,5,6,7,8,9},$P9, TRUE),1), 0) -> 1 | BQ9: =_xlfn.IFNA(MATCH(RAND(), _xlfn.POISSON.DIST({0,1,2,3,4,5,6,7,8,9},$P9, TRUE),1), 0) -> 3 | BR9: =_xlfn.IFNA(MATCH(RAND(), _xlfn.POISSON.DIST({0,1,2,3,4,5,6,7,8,9},$P9, TRUE),1), 0) -> 0 | BS9: =_xlfn.IFNA(MATCH(RAND(), _xlfn.POISSON.DIST({0,1,2,3,4,5,6,7,8,9},$P9, TRUE),1), 0) -> 2 | BT9: =_xlfn.IFNA(MATCH(RAND(), _xlfn.POISSON.DIST({0,1,2,3,4,5,6,7,8,9},$P9, TRUE),1), 0) -> 2 | BU9: =_xlfn.IFNA(MATCH(RAND(), _xlfn.POISSON.DIST({0,1,2,3,4,5,6,7,8,9},$P9, TRUE),1), 0) -> 0 | BV9: =_xlfn.IFNA(MATCH(RAND(), _xlfn.POISSON.DIST({0,1,2,3,4,5,6,7,8,9},$P9, TRUE),1), 0) -> 1 | BW9: =_xlfn.IFNA(MATCH(RAND(), _xlfn.POISSON.DIST({0,1,2,3,4,5,6,7,8,9},$P9, TRUE),1), 0) -> 1 | BX9: =_xlfn.IFNA(MATCH(RAND(), _xlfn.POISSON.DIST({0,1,2,3,4,5,6,7,8,9},$P9, TRUE),1), 0) -> 2 | BY9: =_xlfn.IFNA(MATCH(RAND(), _xlfn.POISSON.DIST({0,1,2,3,4,5,6,7,8,9},$P9, TRUE),1), 0) -> 4 | BZ9: =_xlfn.IFNA(MATCH(RAND(), _xlfn.POISSON.DIST({0,1,2,3,4,5,6,7,8,9},$P9, TRUE),1), 0) -> 2 | CA9: =_xlfn.IFNA(MATCH(RAND(), _xlfn.POISSON.DIST({0,1,2,3,4,5,6,7,8,9},$P9, TRUE),1), 0) -> 2 | CB9: =_xlfn.IFNA(MATCH(RAND(), _xlfn.POISSON.DIST({0,1,2,3,4,5,6,7,8,9},$P9, TRUE),1), 0) -> 1 | CC9: =_xlfn.IFNA(MATCH(RAND(), _xlfn.POISSON.DIST({0,1,2,3,4,5,6,7,8,9},$P9, TRUE),1), 0) -> 3 | CD9: =_xlfn.IFNA(MATCH(RAND(), _xlfn.POISSON.DIST({0,1,2,3,4,5,6,7,8,9},$P9, TRUE),1), 0) -> 0 | CE9: =_xlfn.IFNA(MATCH(RAND(), _xlfn.POISSON.DIST({0,1,2,3,4,5,6,7,8,9},$P9, TRUE),1), 0) -> 5 | CF9: =_xlfn.IFNA(MATCH(RAND(), _xlfn.POISSON.DIST({0,1,2,3,4,5,6,7,8,9},$P9, TRUE),1), 0) -> 3 | CG9: =_xlfn.IFNA(MATCH(RAND(), _xlfn.POISSON.DIST({0,1,2,3,4,5,6,7,8,9},$P9, TRUE),1), 0) -> 1 | CH9: =_xlfn.IFNA(MATCH(RAND(), _xlfn.POISSON.DIST({0,1,2,3,4,5,6,7,8,9},$P9, TRUE),1), 0) -> 1 | CI9: =_xlfn.IFNA(MATCH(RAND(), _xlfn.POISSON.DIST({0,1,2,3,4,5,6,7,8,9},$P9, TRUE),1), 0) -> 2 | CJ9: =_xlfn.IFNA(MATCH(RAND(), _xlfn.POISSON.DIST({0,1,2,3,4,5,6,7,8,9},$P9, TRUE),1), 0) -> 3 | CK9: =_xlfn.IFNA(MATCH(RAND(), _xlfn.POISSON.DIST({0,1,2,3,4,5,6,7,8,9},$P9, TRUE),1), 0) -> 4 | CL9: =_xlfn.IFNA(MATCH(RAND(), _xlfn.POISSON.DIST({0,1,2,3,4,5,6,7,8,9},$P9, TRUE),1), 0) -> 1 | CM9: =_xlfn.IFNA(MATCH(RAND(), _xlfn.POISSON.DIST({0,1,2,3,4,5,6,7,8,9},$P9, TRUE),1), 0) -> 2 | CN9: =_xlfn.IFNA(MATCH(RAND(), _xlfn.POISSON.DIST({0,1,2,3,4,5,6,7,8,9},$P9, TRUE),1), 0) -> 1 | CO9: =_xlfn.IFNA(MATCH(RAND(), _xlfn.POISSON.DIST({0,1,2,3,4,5,6,7,8,9},$P9, TRUE),1), 0) -> 0 | CP9: =_xlfn.IFNA(MATCH(RAND(), _xlfn.POISSON.DIST({0,1,2,3,4,5,6,7,8,9},$P9, TRUE),1), 0) -> 1 | CQ9: =_xlfn.IFNA(MATCH(RAND(), _xlfn.POISSON.DIST({0,1,2,3,4,5,6,7,8,9},$P9, TRUE),1), 0) -> 0 | CR9: =_xlfn.IFNA(MATCH(RAND(), _xlfn.POISSON.DIST({0,1,2,3,4,5,6,7,8,9},$P9, TRUE),1), 0) -> 0 | CS9: =_xlfn.IFNA(MATCH(RAND(), _xlfn.POISSON.DIST({0,1,2,3,4,5,6,7,8,9},$P9, TRUE),1), 0) -> 3 | CT9: =_xlfn.IFNA(MATCH(RAND(), _xlfn.POISSON.DIST({0,1,2,3,4,5,6,7,8,9},$P9, TRUE),1), 0) -> 5 | CU9: =_xlfn.IFNA(MATCH(RAND(), _xlfn.POISSON.DIST({0,1,2,3,4,5,6,7,8,9},$P9, TRUE),1), 0) -> 1 | CV9: =_xlfn.IFNA(MATCH(RAND(), _xlfn.POISSON.DIST({0,1,2,3,4,5,6,7,8,9},$P9, TRUE),1), 0) -> 2 | CW9: =_xlfn.IFNA(MATCH(RAND(), _xlfn.POISSON.DIST({0,1,2,3,4,5,6,7,8,9},$P9, TRUE),1), 0) -> 4 | CX9: =_xlfn.IFNA(MATCH(RAND(), _xlfn.POISSON.DIST({0,1,2,3,4,5,6,7,8,9},$P9, TRUE),1), 0) -> 0 | CY9: =_xlfn.IFNA(MATCH(RAND(), _xlfn.POISSON.DIST({0,1,2,3,4,5,6,7,8,9},$P9, TRUE),1), 0) -> 2 | CZ9: =_xlfn.IFNA(MATCH(RAND(), _xlfn.POISSON.DIST({0,1,2,3,4,5,6,7,8,9},$P9, TRUE),1), 0) -> 0 | DA9: =_xlfn.IFNA(MATCH(RAND(), _xlfn.POISSON.DIST({0,1,2,3,4,5,6,7,8,9},$P9, TRUE),1), 0) -> 1 | DB9: =_xlfn.IFNA(MATCH(RAND(), _xlfn.POISSON.DIST({0,1,2,3,4,5,6,7,8,9},$P9, TRUE),1), 0) -> 3 | DC9: =_xlfn.IFNA(MATCH(RAND(), _xlfn.POISSON.DIST({0,1,2,3,4,5,6,7,8,9},$P9, TRUE),1), 0) -> 0 | DD9: =_xlfn.IFNA(MATCH(RAND(), _xlfn.POISSON.DIST({0,1,2,3,4,5,6,7,8,9},$P9, TRUE),1), 0) -> 4 | DE9: =_xlfn.IFNA(MATCH(RAND(), _xlfn.POISSON.DIST({0,1,2,3,4,5,6,7,8,9},$P9, TRUE),1), 0) -> 2 | DF9: =_xlfn.IFNA(MATCH(RAND(), _xlfn.POISSON.DIST({0,1,2,3,4,5,6,7,8,9},$P9, TRUE),1), 0) -> 1 | DG9: =_xlfn.IFNA(MATCH(RAND(), _xlfn.POISSON.DIST({0,1,2,3,4,5,6,7,8,9},$P9, TRUE),1), 0) -> 1 | DH9: =_xlfn.IFNA(MATCH(RAND(), _xlfn.POISSON.DIST({0,1,2,3,4,5,6,7,8,9},$P9, TRUE),1), 0) -> 1 | DI9: =_xlfn.IFNA(MATCH(RAND(), _xlfn.POISSON.DIST({0,1,2,3,4,5,6,7,8,9},$P9, TRUE),1), 0) -> 0 | DJ9: =_xlfn.IFNA(MATCH(RAND(), _xlfn.POISSON.DIST({0,1,2,3,4,5,6,7,8,9},$P9, TRUE),1), 0) -> 1 | DK9: =_xlfn.IFNA(MATCH(RAND(), _xlfn.POISSON.DIST({0,1,2,3,4,5,6,7,8,9},$P9, TRUE),1), 0) -> 2 | DL9: =_xlfn.IFNA(MATCH(RAND(), _xlfn.POISSON.DIST({0,1,2,3,4,5,6,7,8,9},$P9, TRUE),1), 0) -> 0 | DM9: =_xlfn.IFNA(MATCH(RAND(), _xlfn.POISSON.DIST({0,1,2,3,4,5,6,7,8,9},$P9, TRUE),1), 0) -> 2
C10: 2019-06-09 | D10: C | E10: Australia | F10: =(AVERAGE(Q10:BN10))*(1+INDEX('Predicciones de la liguilla'!$C$4:$O$28, MATCH('Partidos de este año'!E10,'Predicciones de la liguilla'!$D$4:$D$28,0),3)) -> 1.40 | G10: Italia | H10: =(AVERAGE(BP10:DM10))*(1+INDEX('Predicciones de la liguilla'!$C$4:$O$28, MATCH('Partidos de este año'!G10,'Predicciones de la liguilla'!$D$4:$D$28,0),3)) -> 1.74 | I10: =IF(L10>M10,E10,IF(L10=M10,"Dibujar",G10)) -> Italia | L10: 1.4 | M10: 1.74 | N10: =IF(L10>M10,E10,IF(L10=M10,"Dibujar",G10)) -> Italia | O10: =(OFFSET('Apéndice 3 - Goles por grupo'!$C$13,(INDEX('Apéndice 1 - Datos de equipos'!$C$13:$F$112,MATCH(G10,'Apéndice 1 - Datos de equipos'!$C$13:$C$112,0),4)/10),(INDEX('Apéndice 1 - Datos de equipos'!$C$13:$F$112,MATCH(E10,'Apéndice 1 - Datos de equipos'!$C$13:$C$112,0),4)/10))) -> 1.50 | P10: =OFFSET('Apéndice 3 - Goles por grupo'!$C$13,(INDEX('Apéndice 1 - Datos de equipos'!$C$13:$F$112, MATCH(E10,'Apéndice 1 - Datos de equipos'!$C$13:$C$112,0),4)/10), (INDEX('Apéndice 1 - Datos de equipos'!$C$13:$F$112, MATCH(G10, 'Apéndice 1 - Datos de equipos'!$C$13:$C$112,0),4)/10)) -> 1.50 | Q10: =_xlfn.IFNA(MATCH(RAND(), _xlfn.POISSON.DIST({0,1,2,3,4,5,6,7,8,9},$O10, TRUE),1), 0) -> 0 | R10: =_xlfn.IFNA(MATCH(RAND(), _xlfn.POISSON.DIST({0,1,2,3,4,5,6,7,8,9},$O10, TRUE),1), 0) -> 1 | S10: =_xlfn.IFNA(MATCH(RAND(), _xlfn.POISSON.DIST({0,1,2,3,4,5,6,7,8,9},$O10, TRUE),1), 0) -> 1 | T10: =_xlfn.IFNA(MATCH(RAND(), _xlfn.POISSON.DIST({0,1,2,3,4,5,6,7,8,9},$O10, TRUE),1), 0) -> 1 | U10: =_xlfn.IFNA(MATCH(RAND(), _xlfn.POISSON.DIST({0,1,2,3,4,5,6,7,8,9},$O10, TRUE),1), 0) -> 2 | V10: =_xlfn.IFNA(MATCH(RAND(), _xlfn.POISSON.DIST({0,1,2,3,4,5,6,7,8,9},$O10, TRUE),1), 0) -> 1 | W10: =_xlfn.IFNA(MATCH(RAND(), _xlfn.POISSON.DIST({0,1,2,3,4,5,6,7,8,9},$O10, TRUE),1), 0) -> 1 | X10: =_xlfn.IFNA(MATCH(RAND(), _xlfn.POISSON.DIST({0,1,2,3,4,5,6,7,8,9},$O10, TRUE),1), 0) -> 3 | Y10: =_xlfn.IFNA(MATCH(RAND(), _xlfn.POISSON.DIST({0,1,2,3,4,5,6,7,8,9},$O10, TRUE),1), 0) -> 1 | Z10: =_xlfn.IFNA(MATCH(RAND(), _xlfn.POISSON.DIST({0,1,2,3,4,5,6,7,8,9},$O10, TRUE),1), 0) -> 1 | AA10: =_xlfn.IFNA(MATCH(RAND(), _xlfn.POISSON.DIST({0,1,2,3,4,5,6,7,8,9},$O10, TRUE),1), 0) -> 1 | AB10: =_xlfn.IFNA(MATCH(RAND(), _xlfn.POISSON.DIST({0,1,2,3,4,5,6,7,8,9},$O10, TRUE),1), 0) -> 1 | AC10: =_xlfn.IFNA(MATCH(RAND(), _xlfn.POISSON.DIST({0,1,2,3,4,5,6,7,8,9},$O10, TRUE),1), 0) -> 1 | AD10: =_xlfn.IFNA(MATCH(RAND(), _xlfn.POISSON.DIST({0,1,2,3,4,5,6,7,8,9},$O10, TRUE),1), 0) -> 4 | AE10: =_xlfn.IFNA(MATCH(RAND(), _xlfn.POISSON.DIST({0,1,2,3,4,5,6,7,8,9},$O10, TRUE),1), 0) -> 2 | AF10: =_xlfn.IFNA(MATCH(RAND(), _xlfn.POISSON.DIST({0,1,2,3,4,5,6,7,8,9},$O10, TRUE),1), 0) -> 0 | AG10: =_xlfn.IFNA(MATCH(RAND(), _xlfn.POISSON.DIST({0,1,2,3,4,5,6,7,8,9},$O10, TRUE),1), 0) -> 3 | AH10: =_xlfn.IFNA(MATCH(RAND(), _xlfn.POISSON.DIST({0,1,2,3,4,5,6,7,8,9},$O10, TRUE),1), 0) -> 5 | AI10: =_xlfn.IFNA(MATCH(RAND(), _xlfn.POISSON.DIST({0,1,2,3,4,5,6,7,8,9},$O10, TRUE),1), 0) -> 1 | AJ10: =_xlfn.IFNA(MATCH(RAND(), _xlfn.POISSON.DIST({0,1,2,3,4,5,6,7,8,9},$O10, TRUE),1), 0) -> 3 | AK10: =_xlfn.IFNA(MATCH(RAND(), _xlfn.POISSON.DIST({0,1,2,3,4,5,6,7,8,9},$O10, TRUE),1), 0) -> 0 | AL10: =_xlfn.IFNA(MATCH(RAND(), _xlfn.POISSON.DIST({0,1,2,3,4,5,6,7,8,9},$O10, TRUE),1), 0) -> 0 | AM10: =_xlfn.IFNA(MATCH(RAND(), _xlfn.POISSON.DIST({0,1,2,3,4,5,6,7,8,9},$O10, TRUE),1), 0) -> 0 | AN10: =_xlfn.IFNA(MATCH(RAND(), _xlfn.POISSON.DIST({0,1,2,3,4,5,6,7,8,9},$O10, TRUE),1), 0) -> 3 | AO10: =_xlfn.IFNA(MATCH(RAND(), _xlfn.POISSON.DIST({0,1,2,3,4,5,6,7,8,9},$O10, TRUE),1), 0) -> 1 | AP10: =_xlfn.IFNA(MATCH(RAND(), _xlfn.POISSON.DIST({0,1,2,3,4,5,6,7,8,9},$O10, TRUE),1), 0) -> 1 | AQ10: =_xlfn.IFNA(MATCH(RAND(), _xlfn.POISSON.DIST({0,1,2,3,4,5,6,7,8,9},$O10, TRUE),1), 0) -> 0 | AR10: =_xlfn.IFNA(MATCH(RAND(), _xlfn.POISSON.DIST({0,1,2,3,4,5,6,7,8,9},$O10, TRUE),1), 0) -> 1 | AS10: =_xlfn.IFNA(MATCH(RAND(), _xlfn.POISSON.DIST({0,1,2,3,4,5,6,7,8,9},$O10, TRUE),1), 0) -> 0 | AT10: =_xlfn.IFNA(MATCH(RAND(), _xlfn.POISSON.DIST({0,1,2,3,4,5,6,7,8,9},$O10, TRUE),1), 0) -> 1 | AU10: =_xlfn.IFNA(MATCH(RAND(), _xlfn.POISSON.DIST({0,1,2,3,4,5,6,7,8,9},$O10, TRUE),1), 0) -> 3 | AV10: =_xlfn.IFNA(MATCH(RAND(), _xlfn.POISSON.DIST({0,1,2,3,4,5,6,7,8,9},$O10, TRUE),1), 0) -> 4 | AW10: =_xlfn.IFNA(MATCH(RAND(), _xlfn.POISSON.DIST({0,1,2,3,4,5,6,7,8,9},$O10, TRUE),1), 0) -> 0 | AX10: =_xlfn.IFNA(MATCH(RAND(), _xlfn.POISSON.DIST({0,1,2,3,4,5,6,7,8,9},$O10, TRUE),1), 0) -> 0 | AY10: =_xlfn.IFNA(MATCH(RAND(), _xlfn.POISSON.DIST({0,1,2,3,4,5,6,7,8,9},$O10, TRUE),1), 0) -> 2 | AZ10: =_xlfn.IFNA(MATCH(RAND(), _xlfn.POISSON.DIST({0,1,2,3,4,5,6,7,8,9},$O10, TRUE),1), 0) -> 1 | BA10: =_xlfn.IFNA(MATCH(RAND(), _xlfn.POISSON.DIST({0,1,2,3,4,5,6,7,8,9},$O10, TRUE),1), 0) -> 1 | BB10: =_xlfn.IFNA(MATCH(RAND(), _xlfn.POISSON.DIST({0,1,2,3,4,5,6,7,8,9},$O10, TRUE),1), 0) -> 0 | BC10: =_xlfn.IFNA(MATCH(RAND(), _xlfn.POISSON.DIST({0,1,2,3,4,5,6,7,8,9},$O10, TRUE),1), 0) -> 1 | BD10: =_xlfn.IFNA(MATCH(RAND(), _xlfn.POISSON.DIST({0,1,2,3,4,5,6,7,8,9},$O10, TRUE),1), 0) -> 3 | BE10: =_xlfn.IFNA(MATCH(RAND(), _xlfn.POISSON.DIST({0,1,2,3,4,5,6,7,8,9},$O10, TRUE),1), 0) -> 1 | BF10: =_xlfn.IFNA(MATCH(RAND(), _xlfn.POISSON.DIST({0,1,2,3,4,5,6,7,8,9},$O10, TRUE),1), 0) -> 1 | BG10: =_xlfn.IFNA(MATCH(RAND(), _xlfn.POISSON.DIST({0,1,2,3,4,5,6,7,8,9},$O10, TRUE),1), 0) -> 3 | BH10: =_xlfn.IFNA(MATCH(RAND(), _xlfn.POISSON.DIST({0,1,2,3,4,5,6,7,8,9},$O10, TRUE),1), 0) -> 1 | BI10: =_xlfn.IFNA(MATCH(RAND(), _xlfn.POISSON.DIST({0,1,2,3,4,5,6,7,8,9},$O10, TRUE),1), 0) -> 0 | BJ10: =_xlfn.IFNA(MATCH(RAND(), _xlfn.POISSON.DIST({0,1,2,3,4,5,6,7,8,9},$O10, TRUE),1), 0) -> 1 | BK10: =_xlfn.IFNA(MATCH(RAND(), _xlfn.POISSON.DIST({0,1,2,3,4,5,6,7,8,9},$O10, TRUE),1), 0) -> 4 | BL10: =_xlfn.IFNA(MATCH(RAND(), _xlfn.POISSON.DIST({0,1,2,3,4,5,6,7,8,9},$O10, TRUE),1), 0) -> 3 | BM10: =_xlfn.IFNA(MATCH(RAND(), _xlfn.POISSON.DIST({0,1,2,3,4,5,6,7,8,9},$O10, TRUE),1), 0) -> 0 | BN10: =_xlfn.IFNA(MATCH(RAND(), _xlfn.POISSON.DIST({0,1,2,3,4,5,6,7,8,9},$O10, TRUE),1), 0) -> 1 | BP10: =_xlfn.IFNA(MATCH(RAND(), _xlfn.POISSON.DIST({0,1,2,3,4,5,6,7,8,9},$P10, TRUE),1), 0) -> 3 | BQ10: =_xlfn.IFNA(MATCH(RAND(), _xlfn.POISSON.DIST({0,1,2,3,4,5,6,7,8,9},$P10, TRUE),1), 0) -> 1 | BR10: =_xlfn.IFNA(MATCH(RAND(), _xlfn.POISSON.DIST({0,1,2,3,4,5,6,7,8,9},$P10, TRUE),1), 0) -> 4 | BS10: =_xlfn.IFNA(MATCH(RAND(), _xlfn.POISSON.DIST({0,1,2,3,4,5,6,7,8,9},$P10, TRUE),1), 0) -> 2 | BT10: =_xlfn.IFNA(MATCH(RAND(), _xlfn.POISSON.DIST({0,1,2,3,4,5,6,7,8,9},$P10, TRUE),1), 0) -> 5 | BU10: =_xlfn.IFNA(MATCH(RAND(), _xlfn.POISSON.DIST({0,1,2,3,4,5,6,7,8,9},$P10, TRUE),1), 0) -> 1 | BV10: =_xlfn.IFNA(MATCH(RAND(), _xlfn.POISSON.DIST({0,1,2,3,4,5,6,7,8,9},$P10, TRUE),1), 0) -> 3 | BW10: =_xlfn.IFNA(MATCH(RAND(), _xlfn.POISSON.DIST({0,1,2,3,4,5,6,7,8,9},$P10, TRUE),1), 0) -> 1 | BX10: =_xlfn.IFNA(MATCH(RAND(), _xlfn.POISSON.DIST({0,1,2,3,4,5,6,7,8,9},$P10, TRUE),1), 0) -> 2 | BY10: =_xlfn.IFNA(MATCH(RAND(), _xlfn.POISSON.DIST({0,1,2,3,4,5,6,7,8,9},$P10, TRUE),1), 0) -> 4 | BZ10: =_xlfn.IFNA(MATCH(RAND(), _xlfn.POISSON.DIST({0,1,2,3,4,5,6,7,8,9},$P10, TRUE),1), 0) -> 2 | CA10: =_xlfn.IFNA(MATCH(RAND(), _xlfn.POISSON.DIST({0,1,2,3,4,5,6,7,8,9},$P10, TRUE),1), 0) -> 0 | CB10: =_xlfn.IFNA(MATCH(RAND(), _xlfn.POISSON.DIST({0,1,2,3,4,5,6,7,8,9},$P10, TRUE),1), 0) -> 1 | CC10: =_xlfn.IFNA(MATCH(RAND(), _xlfn.POISSON.DIST({0,1,2,3,4,5,6,7,8,9},$P10, TRUE),1), 0) -> 4 | CD10: =_xlfn.IFNA(MATCH(RAND(), _xlfn.POISSON.DIST({0,1,2,3,4,5,6,7,8,9},$P10, TRUE),1), 0) -> 5 | CE10: =_xlfn.IFNA(MATCH(RAND(), _xlfn.POISSON.DIST({0,1,2,3,4,5,6,7,8,9},$P10, TRUE),1), 0) -> 5 | CF10: =_xlfn.IFNA(MATCH(RAND(), _xlfn.POISSON.DIST({0,1,2,3,4,5,6,7,8,9},$P10, TRUE),1), 0) -> 1 | CG10: =_xlfn.IFNA(MATCH(RAND(), _xlfn.POISSON.DIST({0,1,2,3,4,5,6,7,8,9},$P10, TRUE),1), 0) -> 0 | CH10: =_xlfn.IFNA(MATCH(RAND(), _xlfn.POISSON.DIST({0,1,2,3,4,5,6,7,8,9},$P10, TRUE),1), 0) -> 2 | CI10: =_xlfn.IFNA(MATCH(RAND(), _xlfn.POISSON.DIST({0,1,2,3,4,5,6,7,8,9},$P10, TRUE),1), 0) -> 2 | CJ10: =_xlfn.IFNA(MATCH(RAND(), _xlfn.POISSON.DIST({0,1,2,3,4,5,6,7,8,9},$P10, TRUE),1), 0) -> 1 | CK10: =_xlfn.IFNA(MATCH(RAND(), _xlfn.POISSON.DIST({0,1,2,3,4,5,6,7,8,9},$P10, TRUE),1), 0) -> 0 | CL10: =_xlfn.IFNA(MATCH(RAND(), _xlfn.POISSON.DIST({0,1,2,3,4,5,6,7,8,9},$P10, TRUE),1), 0) -> 2 | CM10: =_xlfn.IFNA(MATCH(RAND(), _xlfn.POISSON.DIST({0,1,2,3,4,5,6,7,8,9},$P10, TRUE),1), 0) -> 2 | CN10: =_xlfn.IFNA(MATCH(RAND(), _xlfn.POISSON.DIST({0,1,2,3,4,5,6,7,8,9},$P10, TRUE),1), 0) -> 1 | CO10: =_xlfn.IFNA(MATCH(RAND(), _xlfn.POISSON.DIST({0,1,2,3,4,5,6,7,8,9},$P10, TRUE),1), 0) -> 3 | CP10: =_xlfn.IFNA(MATCH(RAND(), _xlfn.POISSON.DIST({0,1,2,3,4,5,6,7,8,9},$P10, TRUE),1), 0) -> 1 | CQ10: =_xlfn.IFNA(MATCH(RAND(), _xlfn.POISSON.DIST({0,1,2,3,4,5,6,7,8,9},$P10, TRUE),1), 0) -> 2 | CR10: =_xlfn.IFNA(MATCH(RAND(), _xlfn.POISSON.DIST({0,1,2,3,4,5,6,7,8,9},$P10, TRUE),1), 0) -> 1 | CS10: =_xlfn.IFNA(MATCH(RAND(), _xlfn.POISSON.DIST({0,1,2,3,4,5,6,7,8,9},$P10, TRUE),1), 0) -> 4 | CT10: =_xlfn.IFNA(MATCH(RAND(), _xlfn.POISSON.DIST({0,1,2,3,4,5,6,7,8,9},$P10, TRUE),1), 0) -> 0 | CU10: =_xlfn.IFNA(MATCH(RAND(), _xlfn.POISSON.DIST({0,1,2,3,4,5,6,7,8,9},$P10, TRUE),1), 0) -> 2 | CV10: =_xlfn.IFNA(MATCH(RAND(), _xlfn.POISSON.DIST({0,1,2,3,4,5,6,7,8,9},$P10, TRUE),1), 0) -> 0 | CW10: =_xlfn.IFNA(MATCH(RAND(), _xlfn.POISSON.DIST({0,1,2,3,4,5,6,7,8,9},$P10, TRUE),1), 0) -> 1 | CX10: =_xlfn.IFNA(MATCH(RAND(), _xlfn.POISSON.DIST({0,1,2,3,4,5,6,7,8,9},$P10, TRUE),1), 0) -> 2 | CY10: =_xlfn.IFNA(MATCH(RAND(), _xlfn.POISSON.DIST({0,1,2,3,4,5,6,7,8,9},$P10, TRUE),1), 0) -> 1 | CZ10: =_xlfn.IFNA(MATCH(RAND(), _xlfn.POISSON.DIST({0,1,2,3,4,5,6,7,8,9},$P10, TRUE),1), 0) -> 1 | DA10: =_xlfn.IFNA(MATCH(RAND(), _xlfn.POISSON.DIST({0,1,2,3,4,5,6,7,8,9},$P10, TRUE),1), 0) -> 2 | DB10: =_xlfn.IFNA(MATCH(RAND(), _xlfn.POISSON.DIST({0,1,2,3,4,5,6,7,8,9},$P10, TRUE),1), 0) -> 1 | DC10: =_xlfn.IFNA(MATCH(RAND(), _xlfn.POISSON.DIST({0,1,2,3,4,5,6,7,8,9},$P10, TRUE),1), 0) -> 0 | DD10: =_xlfn.IFNA(MATCH(RAND(), _xlfn.POISSON.DIST({0,1,2,3,4,5,6,7,8,9},$P10, TRUE),1), 0) -> 1 | DE10: =_xlfn.IFNA(MATCH(RAND(), _xlfn.POISSON.DIST({0,1,2,3,4,5,6,7,8,9},$P10, TRUE),1), 0) -> 0 | DF10: =_xlfn.IFNA(MATCH(RAND(), _xlfn.POISSON.DIST({0,1,2,3,4,5,6,7,8,9},$P10, TRUE),1), 0) -> 0 | DG10: =_xlfn.IFNA(MATCH(RAND(), _xlfn.POISSON.DIST({0,1,2,3,4,5,6,7,8,9},$P10, TRUE),1), 0) -> 3 | DH10: =_xlfn.IFNA(MATCH(RAND(), _xlfn.POISSON.DIST({0,1,2,3,4,5,6,7,8,9},$P10, TRUE),1), 0) -> 1 | DI10: =_xlfn.IFNA(MATCH(RAND(), _xlfn.POISSON.DIST({0,1,2,3,4,5,6,7,8,9},$P10, TRUE),1), 0) -> 2 | DJ10: =_xlfn.IFNA(MATCH(RAND(), _xlfn.POISSON.DIST({0,1,2,3,4,5,6,7,8,9},$P10, TRUE),1), 0) -> 1 | DK10: =_xlfn.IFNA(MATCH(RAND(), _xlfn.POISSON.DIST({0,1,2,3,4,5,6,7,8,9},$P10, TRUE),1), 0) -> 1 | DL10: =_xlfn.IFNA(MATCH(RAND(), _xlfn.POISSON.DIST({0,1,2,3,4,5,6,7,8,9},$P10, TRUE),1), 0) -> 2 | DM10: =_xlfn.IFNA(MATCH(RAND(), _xlfn.POISSON.DIST({0,1,2,3,4,5,6,7,8,9},$P10, TRUE),1), 0) -> 1
C11: 2019-06-09 | D11: C | E11: Brasil | F11: =(AVERAGE(Q11:BN11))*(1+INDEX('Predicciones de la liguilla'!$C$4:$O$28, MATCH('Partidos de este año'!E11,'Predicciones de la liguilla'!$D$4:$D$28,0),3)) -> 1.34 | G11: Jamaica | H11: =(AVERAGE(BP11:DM11))*(1+INDEX('Predicciones de la liguilla'!$C$4:$O$28, MATCH('Partidos de este año'!G11,'Predicciones de la liguilla'!$D$4:$D$28,0),3)) -> 1.42 | I11: =IF(L11>M11,E11,IF(L11=M11,"Dibujar",G11)) -> Jamaica | L11: 1.34 | M11: 1.42 | N11: =IF(L11>M11,E11,IF(L11=M11,"Dibujar",G11)) -> Jamaica | O11: =(OFFSET('Apéndice 3 - Goles por grupo'!$C$13,(INDEX('Apéndice 1 - Datos de equipos'!$C$13:$F$112,MATCH(G11,'Apéndice 1 - Datos de equipos'!$C$13:$C$112,0),4)/10),(INDEX('Apéndice 1 - Datos de equipos'!$C$13:$F$112,MATCH(E11,'Apéndice 1 - Datos de equipos'!$C$13:$C$112,0),4)/10))) -> 1.50 | P11: =OFFSET('Apéndice 3 - Goles por grupo'!$C$13,(INDEX('Apéndice 1 - Datos de equipos'!$C$13:$F$112, MATCH(E11,'Apéndice 1 - Datos de equipos'!$C$13:$C$112,0),4)/10), (INDEX('Apéndice 1 - Datos de equipos'!$C$13:$F$112, MATCH(G11, 'Apéndice 1 - Datos de equipos'!$C$13:$C$112,0),4)/10)) -> 1.50 | Q11: =_xlfn.IFNA(MATCH(RAND(), _xlfn.POISSON.DIST({0,1,2,3,4,5,6,7,8,9},$O11, TRUE),1), 0) -> 0 | R11: =_xlfn.IFNA(MATCH(RAND(), _xlfn.POISSON.DIST({0,1,2,3,4,5,6,7,8,9},$O11, TRUE),1), 0) -> 1 | S11: =_xlfn.IFNA(MATCH(RAND(), _xlfn.POISSON.DIST({0,1,2,3,4,5,6,7,8,9},$O11, TRUE),1), 0) -> 2 | T11: =_xlfn.IFNA(MATCH(RAND(), _xlfn.POISSON.DIST({0,1,2,3,4,5,6,7,8,9},$O11, TRUE),1), 0) -> 0 | U11: =_xlfn.IFNA(MATCH(RAND(), _xlfn.POISSON.DIST({0,1,2,3,4,5,6,7,8,9},$O11, TRUE),1), 0) -> 3 | V11: =_xlfn.IFNA(MATCH(RAND(), _xlfn.POISSON.DIST({0,1,2,3,4,5,6,7,8,9},$O11, TRUE),1), 0) -> 0 | W11: =_xlfn.IFNA(MATCH(RAND(), _xlfn.POISSON.DIST({0,1,2,3,4,5,6,7,8,9},$O11, TRUE),1), 0) -> 1 | X11: =_xlfn.IFNA(MATCH(RAND(), _xlfn.POISSON.DIST({0,1,2,3,4,5,6,7,8,9},$O11, TRUE),1), 0) -> 2 | Y11: =_xlfn.IFNA(MATCH(RAND(), _xlfn.POISSON.DIST({0,1,2,3,4,5,6,7,8,9},$O11, TRUE),1), 0) -> 2 | Z11: =_xlfn.IFNA(MATCH(RAND(), _xlfn.POISSON.DIST({0,1,2,3,4,5,6,7,8,9},$O11, TRUE),1), 0) -> 0 | AA11: =_xlfn.IFNA(MATCH(RAND(), _xlfn.POISSON.DIST({0,1,2,3,4,5,6,7,8,9},$O11, TRUE),1), 0) -> 1 | AB11: =_xlfn.IFNA(MATCH(RAND(), _xlfn.POISSON.DIST({0,1,2,3,4,5,6,7,8,9},$O11, TRUE),1), 0) -> 2 | AC11: =_xlfn.IFNA(MATCH(RAND(), _xlfn.POISSON.DIST({0,1,2,3,4,5,6,7,8,9},$O11, TRUE),1), 0) -> 1 | AD11: =_xlfn.IFNA(MATCH(RAND(), _xlfn.POISSON.DIST({0,1,2,3,4,5,6,7,8,9},$O11, TRUE),1), 0) -> 2 | AE11: =_xlfn.IFNA(MATCH(RAND(), _xlfn.POISSON.DIST({0,1,2,3,4,5,6,7,8,9},$O11, TRUE),1), 0) -> 2 | AF11: =_xlfn.IFNA(MATCH(RAND(), _xlfn.POISSON.DIST({0,1,2,3,4,5,6,7,8,9},$O11, TRUE),1), 0) -> 0 | AG11: =_xlfn.IFNA(MATCH(RAND(), _xlfn.POISSON.DIST({0,1,2,3,4,5,6,7,8,9},$O11, TRUE),1), 0) -> 1 | AH11: =_xlfn.IFNA(MATCH(RAND(), _xlfn.POISSON.DIST({0,1,2,3,4,5,6,7,8,9},$O11, TRUE),1), 0) -> 2 | AI11: =_xlfn.IFNA(MATCH(RAND(), _xlfn.POISSON.DIST({0,1,2,3,4,5,6,7,8,9},$O11, TRUE),1), 0) -> 4 | AJ11: =_xlfn.IFNA(MATCH(RAND(), _xlfn.POISSON.DIST({0,1,2,3,4,5,6,7,8,9},$O11, TRUE),1), 0) -> 2 | AK11: =_xlfn.IFNA(MATCH(RAND(), _xlfn.POISSON.DIST({0,1,2,3,4,5,6,7,8,9},$O11, TRUE),1), 0) -> 0 | AL11: =_xlfn.IFNA(MATCH(RAND(), _xlfn.POISSON.DIST({0,1,2,3,4,5,6,7,8,9},$O11, TRUE),1), 0) -> 0 | AM11: =_xlfn.IFNA(MATCH(RAND(), _xlfn.POISSON.DIST({0,1,2,3,4,5,6,7,8,9},$O11, TRUE),1), 0) -> 1 | AN11: =_xlfn.IFNA(MATCH(RAND(), _xlfn.POISSON.DIST({0,1,2,3,4,5,6,7,8,9},$O11, TRUE),1), 0) -> 2 | AO11: =_xlfn.IFNA(MATCH(RAND(), _xlfn.POISSON.DIST({0,1,2,3,4,5,6,7,8,9},$O11, TRUE),1), 0) -> 0 | AP11: =_xlfn.IFNA(MATCH(RAND(), _xlfn.POISSON.DIST({0,1,2,3,4,5,6,7,8,9},$O11, TRUE),1), 0) -> 2 | AQ11: =_xlfn.IFNA(MATCH(RAND(), _xlfn.POISSON.DIST({0,1,2,3,4,5,6,7,8,9},$O11, TRUE),1), 0) -> 2 | AR11: =_xlfn.IFNA(MATCH(RAND(), _xlfn.POISSON.DIST({0,1,2,3,4,5,6,7,8,9},$O11, TRUE),1), 0) -> 1 | AS11: =_xlfn.IFNA(MATCH(RAND(), _xlfn.POISSON.DIST({0,1,2,3,4,5,6,7,8,9},$O11, TRUE),1), 0) -> 0 | AT11: =_xlfn.IFNA(MATCH(RAND(), _xlfn.POISSON.DIST({0,1,2,3,4,5,6,7,8,9},$O11, TRUE),1), 0) -> 1 | AU11: =_xlfn.IFNA(MATCH(RAND(), _xlfn.POISSON.DIST({0,1,2,3,4,5,6,7,8,9},$O11, TRUE),1), 0) -> 0 | AV11: =_xlfn.IFNA(MATCH(RAND(), _xlfn.POISSON.DIST({0,1,2,3,4,5,6,7,8,9},$O11, TRUE),1), 0) -> 2 | AW11: =_xlfn.IFNA(MATCH(RAND(), _xlfn.POISSON.DIST({0,1,2,3,4,5,6,7,8,9},$O11, TRUE),1), 0) -> 1 | AX11: =_xlfn.IFNA(MATCH(RAND(), _xlfn.POISSON.DIST({0,1,2,3,4,5,6,7,8,9},$O11, TRUE),1), 0) -> 0 | AY11: =_xlfn.IFNA(MATCH(RAND(), _xlfn.POISSON.DIST({0,1,2,3,4,5,6,7,8,9},$O11, TRUE),1), 0) -> 1 | AZ11: =_xlfn.IFNA(MATCH(RAND(), _xlfn.POISSON.DIST({0,1,2,3,4,5,6,7,8,9},$O11, TRUE),1), 0) -> 2 | BA11: =_xlfn.IFNA(MATCH(RAND(), _xlfn.POISSON.DIST({0,1,2,3,4,5,6,7,8,9},$O11, TRUE),1), 0) -> 1 | BB11: =_xlfn.IFNA(MATCH(RAND(), _xlfn.POISSON.DIST({0,1,2,3,4,5,6,7,8,9},$O11, TRUE),1), 0) -> 3 | BC11: =_xlfn.IFNA(MATCH(RAND(), _xlfn.POISSON.DIST({0,1,2,3,4,5,6,7,8,9},$O11, TRUE),1), 0) -> 2 | BD11: =_xlfn.IFNA(MATCH(RAND(), _xlfn.POISSON.DIST({0,1,2,3,4,5,6,7,8,9},$O11, TRUE),1), 0) -> 2 | BE11: =_xlfn.IFNA(MATCH(RAND(), _xlfn.POISSON.DIST({0,1,2,3,4,5,6,7,8,9},$O11, TRUE),1), 0) -> 2 | BF11: =_xlfn.IFNA(MATCH(RAND(), _xlfn.POISSON.DIST({0,1,2,3,4,5,6,7,8,9},$O11, TRUE),1), 0) -> 1 | BG11: =_xlfn.IFNA(MATCH(RAND(), _xlfn.POISSON.DIST({0,1,2,3,4,5,6,7,8,9},$O11, TRUE),1), 0) -> 0 | BH11: =_xlfn.IFNA(MATCH(RAND(), _xlfn.POISSON.DIST({0,1,2,3,4,5,6,7,8,9},$O11, TRUE),1), 0) -> 1 | BI11: =_xlfn.IFNA(MATCH(RAND(), _xlfn.POISSON.DIST({0,1,2,3,4,5,6,7,8,9},$O11, TRUE),1), 0) -> 3 | BJ11: =_xlfn.IFNA(MATCH(RAND(), _xlfn.POISSON.DIST({0,1,2,3,4,5,6,7,8,9},$O11, TRUE),1), 0) -> 3 | BK11: =_xlfn.IFNA(MATCH(RAND(), _xlfn.POISSON.DIST({0,1,2,3,4,5,6,7,8,9},$O11, TRUE),1), 0) -> 4 | BL11: =_xlfn.IFNA(MATCH(RAND(), _xlfn.POISSON.DIST({0,1,2,3,4,5,6,7,8,9},$O11, TRUE),1), 0) -> 0 | BM11: =_xlfn.IFNA(MATCH(RAND(), _xlfn.POISSON.DIST({0,1,2,3,4,5,6,7,8,9},$O11, TRUE),1), 0) -> 1 | BN11: =_xlfn.IFNA(MATCH(RAND(), _xlfn.POISSON.DIST({0,1,2,3,4,5,6,7,8,9},$O11, TRUE),1), 0) -> 1 | BP11: =_xlfn.IFNA(MATCH(RAND(), _xlfn.POISSON.DIST({0,1,2,3,4,5,6,7,8,9},$P11, TRUE),1), 0) -> 2 | BQ11: =_xlfn.IFNA(MATCH(RAND(), _xlfn.POISSON.DIST({0,1,2,3,4,5,6,7,8,9},$P11, TRUE),1), 0) -> 0 | BR11: =_xlfn.IFNA(MATCH(RAND(), _xlfn.POISSON.DIST({0,1,2,3,4,5,6,7,8,9},$P11, TRUE),1), 0) -> 1 | BS11: =_xlfn.IFNA(MATCH(RAND(), _xlfn.POISSON.DIST({0,1,2,3,4,5,6,7,8,9},$P11, TRUE),1), 0) -> 0 | BT11: =_xlfn.IFNA(MATCH(RAND(), _xlfn.POISSON.DIST({0,1,2,3,4,5,6,7,8,9},$P11, TRUE),1), 0) -> 1 | BU11: =_xlfn.IFNA(MATCH(RAND(), _xlfn.POISSON.DIST({0,1,2,3,4,5,6,7,8,9},$P11, TRUE),1), 0) -> 0 | BV11: =_xlfn.IFNA(MATCH(RAND(), _xlfn.POISSON.DIST({0,1,2,3,4,5,6,7,8,9},$P11, TRUE),1), 0) -> 0 | BW11: =_xlfn.IFNA(MATCH(RAND(), _xlfn.POISSON.DIST({0,1,2,3,4,5,6,7,8,9},$P11, TRUE),1), 0) -> 2 | BX11: =_xlfn.IFNA(MATCH(RAND(), _xlfn.POISSON.DIST({0,1,2,3,4,5,6,7,8,9},$P11, TRUE),1), 0) -> 1 | BY11: =_xlfn.IFNA(MATCH(RAND(), _xlfn.POISSON.DIST({0,1,2,3,4,5,6,7,8,9},$P11, TRUE),1), 0) -> 1 | BZ11: =_xlfn.IFNA(MATCH(RAND(), _xlfn.POISSON.DIST({0,1,2,3,4,5,6,7,8,9},$P11, TRUE),1), 0) -> 1 | CA11: =_xlfn.IFNA(MATCH(RAND(), _xlfn.POISSON.DIST({0,1,2,3,4,5,6,7,8,9},$P11, TRUE),1), 0) -> 2 | CB11: =_xlfn.IFNA(MATCH(RAND(), _xlfn.POISSON.DIST({0,1,2,3,4,5,6,7,8,9},$P11, TRUE),1), 0) -> 1 | CC11: =_xlfn.IFNA(MATCH(RAND(), _xlfn.POISSON.DIST({0,1,2,3,4,5,6,7,8,9},$P11, TRUE),1), 0) -> 2 | CD11: =_xlfn.IFNA(MATCH(RAND(), _xlfn.POISSON.DIST({0,1,2,3,4,5,6,7,8,9},$P11, TRUE),1), 0) -> 0 | CE11: =_xlfn.IFNA(MATCH(RAND(), _xlfn.POISSON.DIST({0,1,2,3,4,5,6,7,8,9},$P11, TRUE),1), 0) -> 1 | CF11: =_xlfn.IFNA(MATCH(RAND(), _xlfn.POISSON.DIST({0,1,2,3,4,5,6,7,8,9},$P11, TRUE),1), 0) -> 3 | CG11: =_xlfn.IFNA(MATCH(RAND(), _xlfn.POISSON.DIST({0,1,2,3,4,5,6,7,8,9},$P11, TRUE),1), 0) -> 1 | CH11: =_xlfn.IFNA(MATCH(RAND(), _xlfn.POISSON.DIST({0,1,2,3,4,5,6,7,8,9},$P11, TRUE),1), 0) -> 0 | CI11: =_xlfn.IFNA(MATCH(RAND(), _xlfn.POISSON.DIST({0,1,2,3,4,5,6,7,8,9},$P11, TRUE),1), 0) -> 3 | CJ11: =_xlfn.IFNA(MATCH(RAND(), _xlfn.POISSON.DIST({0,1,2,3,4,5,6,7,8,9},$P11, TRUE),1), 0) -> 2 | CK11: =_xlfn.IFNA(MATCH(RAND(), _xlfn.POISSON.DIST({0,1,2,3,4,5,6,7,8,9},$P11, TRUE),1), 0) -> 2 | CL11: =_xlfn.IFNA(MATCH(RAND(), _xlfn.POISSON.DIST({0,1,2,3,4,5,6,7,8,9},$P11, TRUE),1), 0) -> 1 | CM11: =_xlfn.IFNA(MATCH(RAND(), _xlfn.POISSON.DIST({0,1,2,3,4,5,6,7,8,9},$P11, TRUE),1), 0) -> 1 | CN11: =_xlfn.IFNA(MATCH(RAND(), _xlfn.POISSON.DIST({0,1,2,3,4,5,6,7,8,9},$P11, TRUE),1), 0) -> 0 | CO11: =_xlfn.IFNA(MATCH(RAND(), _xlfn.POISSON.DIST({0,1,2,3,4,5,6,7,8,9},$P11, TRUE),1), 0) -> 1 | CP11: =_xlfn.IFNA(MATCH(RAND(), _xlfn.POISSON.DIST({0,1,2,3,4,5,6,7,8,9},$P11, TRUE),1), 0) -> 0 | CQ11: =_xlfn.IFNA(MATCH(RAND(), _xlfn.POISSON.DIST({0,1,2,3,4,5,6,7,8,9},$P11, TRUE),1), 0) -> 0 | CR11: =_xlfn.IFNA(MATCH(RAND(), _xlfn.POISSON.DIST({0,1,2,3,4,5,6,7,8,9},$P11, TRUE),1), 0) -> 1 | CS11: =_xlfn.IFNA(MATCH(RAND(), _xlfn.POISSON.DIST({0,1,2,3,4,5,6,7,8,9},$P11, TRUE),1), 0) -> 1 | CT11: =_xlfn.IFNA(MATCH(RAND(), _xlfn.POISSON.DIST({0,1,2,3,4,5,6,7,8,9},$P11, TRUE),1), 0) -> 3 | CU11: =_xlfn.IFNA(MATCH(RAND(), _xlfn.POISSON.DIST({0,1,2,3,4,5,6,7,8,9},$P11, TRUE),1), 0) -> 2 | CV11: =_xlfn.IFNA(MATCH(RAND(), _xlfn.POISSON.DIST({0,1,2,3,4,5,6,7,8,9},$P11, TRUE),1), 0) -> 1 | CW11: =_xlfn.IFNA(MATCH(RAND(), _xlfn.POISSON.DIST({0,1,2,3,4,5,6,7,8,9},$P11, TRUE),1), 0) -> 2 | CX11: =_xlfn.IFNA(MATCH(RAND(), _xlfn.POISSON.DIST({0,1,2,3,4,5,6,7,8,9},$P11, TRUE),1), 0) -> 4 | CY11: =_xlfn.IFNA(MATCH(RAND(), _xlfn.POISSON.DIST({0,1,2,3,4,5,6,7,8,9},$P11, TRUE),1), 0) -> 2 | CZ11: =_xlfn.IFNA(MATCH(RAND(), _xlfn.POISSON.DIST({0,1,2,3,4,5,6,7,8,9},$P11, TRUE),1), 0) -> 2 | DA11: =_xlfn.IFNA(MATCH(RAND(), _xlfn.POISSON.DIST({0,1,2,3,4,5,6,7,8,9},$P11, TRUE),1), 0) -> 2 | DB11: =_xlfn.IFNA(MATCH(RAND(), _xlfn.POISSON.DIST({0,1,2,3,4,5,6,7,8,9},$P11, TRUE),1), 0) -> 1 | DC11: =_xlfn.IFNA(MATCH(RAND(), _xlfn.POISSON.DIST({0,1,2,3,4,5,6,7,8,9},$P11, TRUE),1), 0) -> 2 | DD11: =_xlfn.IFNA(MATCH(RAND(), _xlfn.POISSON.DIST({0,1,2,3,4,5,6,7,8,9},$P11, TRUE),1), 0) -> 0 | DE11: =_xlfn.IFNA(MATCH(RAND(), _xlfn.POISSON.DIST({0,1,2,3,4,5,6,7,8,9},$P11, TRUE),1), 0) -> 0 | DF11: =_xlfn.IFNA(MATCH(RAND(), _xlfn.POISSON.DIST({0,1,2,3,4,5,6,7,8,9},$P11, TRUE),1), 0) -> 4 | DG11: =_xlfn.IFNA(MATCH(RAND(), _xlfn.POISSON.DIST({0,1,2,3,4,5,6,7,8,9},$P11, TRUE),1), 0) -> 3 | DH11: =_xlfn.IFNA(MATCH(RAND(), _xlfn.POISSON.DIST({0,1,2,3,4,5,6,7,8,9},$P11, TRUE),1), 0) -> 1 | DI11: =_xlfn.IFNA(MATCH(RAND(), _xlfn.POISSON.DIST({0,1,2,3,4,5,6,7,8,9},$P11, TRUE),1), 0) -> 3 | DJ11: =_xlfn.IFNA(MATCH(RAND(), _xlfn.POISSON.DIST({0,1,2,3,4,5,6,7,8,9},$P11, TRUE),1), 0) -> 0 | DK11: =_xlfn.IFNA(MATCH(RAND(), _xlfn.POISSON.DIST({0,1,2,3,4,5,6,7,8,9},$P11, TRUE),1), 0) -> 3 | DL11: =_xlfn.IFNA(MATCH(RAND(), _xlfn.POISSON.DIST({0,1,2,3,4,5,6,7,8,9},$P11, TRUE),1), 0) -> 3 | DM11: =_xlfn.IFNA(MATCH(RAND(), _xlfn.POISSON.DIST({0,1,2,3,4,5,6,7,8,9},$P11, TRUE),1), 0) -> 2
C12: 2019-06-09 | D12: D | E12: Inglaterra | F12: =(AVERAGE(Q12:BN12))*(1+INDEX('Predicciones de la liguilla'!$C$4:$O$28, MATCH('Partidos de este año'!E12,'Predicciones de la liguilla'!$D$4:$D$28,0),3)) -> 1.52 | G12: Escocia | H12: =(AVERAGE(BP12:DM12))*(1+INDEX('Predicciones de la liguilla'!$C$4:$O$28, MATCH('Partidos de este año'!G12,'Predicciones de la liguilla'!$D$4:$D$28,0),3)) -> 1.42 | I12: =IF(L12>M12,E12,IF(L12=M12,"Dibujar",G12)) -> Inglaterra | L12: 1.52 | M12: 1.42 | N12: =IF(L12>M12,E12,IF(L12=M12,"Dibujar",G12)) -> Inglaterra | O12: =(OFFSET('Apéndice 3 - Goles por grupo'!$C$13,(INDEX('Apéndice 1 - Datos de equipos'!$C$13:$F$112,MATCH(G12,'Apéndice 1 - Datos de equipos'!$C$13:$C$112,0),4)/10),(INDEX('Apéndice 1 - Datos de equipos'!$C$13:$F$112,MATCH(E12,'Apéndice 1 - Datos de equipos'!$C$13:$C$112,0),4)/10))) -> 1.50 | P12: =OFFSET('Apéndice 3 - Goles por grupo'!$C$13,(INDEX('Apéndice 1 - Datos de equipos'!$C$13:$F$112, MATCH(E12,'Apéndice 1 - Datos de equipos'!$C$13:$C$112,0),4)/10), (INDEX('Apéndice 1 - Datos de equipos'!$C$13:$F$112, MATCH(G12, 'Apéndice 1 - Datos de equipos'!$C$13:$C$112,0),4)/10)) -> 1.50 | Q12: =_xlfn.IFNA(MATCH(RAND(), _xlfn.POISSON.DIST({0,1,2,3,4,5,6,7,8,9},$O12, TRUE),1), 0) -> 3 | R12: =_xlfn.IFNA(MATCH(RAND(), _xlfn.POISSON.DIST({0,1,2,3,4,5,6,7,8,9},$O12, TRUE),1), 0) -> 0 | S12: =_xlfn.IFNA(MATCH(RAND(), _xlfn.POISSON.DIST({0,1,2,3,4,5,6,7,8,9},$O12, TRUE),1), 0) -> 3 | T12: =_xlfn.IFNA(MATCH(RAND(), _xlfn.POISSON.DIST({0,1,2,3,4,5,6,7,8,9},$O12, TRUE),1), 0) -> 2 | U12: =_xlfn.IFNA(MATCH(RAND(), _xlfn.POISSON.DIST({0,1,2,3,4,5,6,7,8,9},$O12, TRUE),1), 0) -> 1 | V12: =_xlfn.IFNA(MATCH(RAND(), _xlfn.POISSON.DIST({0,1,2,3,4,5,6,7,8,9},$O12, TRUE),1), 0) -> 2 | W12: =_xlfn.IFNA(MATCH(RAND(), _xlfn.POISSON.DIST({0,1,2,3,4,5,6,7,8,9},$O12, TRUE),1), 0) -> 3 | X12: =_xlfn.IFNA(MATCH(RAND(), _xlfn.POISSON.DIST({0,1,2,3,4,5,6,7,8,9},$O12, TRUE),1), 0) -> 1 | Y12: =_xlfn.IFNA(MATCH(RAND(), _xlfn.POISSON.DIST({0,1,2,3,4,5,6,7,8,9},$O12, TRUE),1), 0) -> 0 | Z12: =_xlfn.IFNA(MATCH(RAND(), _xlfn.POISSON.DIST({0,1,2,3,4,5,6,7,8,9},$O12, TRUE),1), 0) -> 2 | AA12: =_xlfn.IFNA(MATCH(RAND(), _xlfn.POISSON.DIST({0,1,2,3,4,5,6,7,8,9},$O12, TRUE),1), 0) -> 2 | AB12: =_xlfn.IFNA(MATCH(RAND(), _xlfn.POISSON.DIST({0,1,2,3,4,5,6,7,8,9},$O12, TRUE),1), 0) -> 1 | AC12: =_xlfn.IFNA(MATCH(RAND(), _xlfn.POISSON.DIST({0,1,2,3,4,5,6,7,8,9},$O12, TRUE),1), 0) -> 1 | AD12: =_xlfn.IFNA(MATCH(RAND(), _xlfn.POISSON.DIST({0,1,2,3,4,5,6,7,8,9},$O12, TRUE),1), 0) -> 2 | AE12: =_xlfn.IFNA(MATCH(RAND(), _xlfn.POISSON.DIST({0,1,2,3,4,5,6,7,8,9},$O12, TRUE),1), 0) -> 1 | AF12: =_xlfn.IFNA(MATCH(RAND(), _xlfn.POISSON.DIST({0,1,2,3,4,5,6,7,8,9},$O12, TRUE),1), 0) -> 3 | AG12: =_xlfn.IFNA(MATCH(RAND(), _xlfn.POISSON.DIST({0,1,2,3,4,5,6,7,8,9},$O12, TRUE),1), 0) -> 4 | AH12: =_xlfn.IFNA(MATCH(RAND(), _xlfn.POISSON.DIST({0,1,2,3,4,5,6,7,8,9},$O12, TRUE),1), 0) -> 0 | AI12: =_xlfn.IFNA(MATCH(RAND(), _xlfn.POISSON.DIST({0,1,2,3,4,5,6,7,8,9},$O12, TRUE),1), 0) -> 2 | AJ12: =_xlfn.IFNA(MATCH(RAND(), _xlfn.POISSON.DIST({0,1,2,3,4,5,6,7,8,9},$O12, TRUE),1), 0) -> 0 | AK12: =_xlfn.IFNA(MATCH(RAND(), _xlfn.POISSON.DIST({0,1,2,3,4,5,6,7,8,9},$O12, TRUE),1), 0) -> 1 | AL12: =_xlfn.IFNA(MATCH(RAND(), _xlfn.POISSON.DIST({0,1,2,3,4,5,6,7,8,9},$O12, TRUE),1), 0) -> 0 | AM12: =_xlfn.IFNA(MATCH(RAND(), _xlfn.POISSON.DIST({0,1,2,3,4,5,6,7,8,9},$O12, TRUE),1), 0) -> 0 | AN12: =_xlfn.IFNA(MATCH(RAND(), _xlfn.POISSON.DIST({0,1,2,3,4,5,6,7,8,9},$O12, TRUE),1), 0) -> 3 | AO12: =_xlfn.IFNA(MATCH(RAND(), _xlfn.POISSON.DIST({0,1,2,3,4,5,6,7,8,9},$O12, TRUE),1), 0) -> 1 | AP12: =_xlfn.IFNA(MATCH(RAND(), _xlfn.POISSON.DIST({0,1,2,3,4,5,6,7,8,9},$O12, TRUE),1), 0) -> 3 | AQ12: =_xlfn.IFNA(MATCH(RAND(), _xlfn.POISSON.DIST({0,1,2,3,4,5,6,7,8,9},$O12, TRUE),1), 0) -> 0 | AR12: =_xlfn.IFNA(MATCH(RAND(), _xlfn.POISSON.DIST({0,1,2,3,4,5,6,7,8,9},$O12, TRUE),1), 0) -> 0 | AS12: =_xlfn.IFNA(MATCH(RAND(), _xlfn.POISSON.DIST({0,1,2,3,4,5,6,7,8,9},$O12, TRUE),1), 0) -> 1 | AT12: =_xlfn.IFNA(MATCH(RAND(), _xlfn.POISSON.DIST({0,1,2,3,4,5,6,7,8,9},$O12, TRUE),1), 0) -> 4 | AU12: =_xlfn.IFNA(MATCH(RAND(), _xlfn.POISSON.DIST({0,1,2,3,4,5,6,7,8,9},$O12, TRUE),1), 0) -> 0 | AV12: =_xlfn.IFNA(MATCH(RAND(), _xlfn.POISSON.DIST({0,1,2,3,4,5,6,7,8,9},$O12, TRUE),1), 0) -> 5 | AW12: =_xlfn.IFNA(MATCH(RAND(), _xlfn.POISSON.DIST({0,1,2,3,4,5,6,7,8,9},$O12, TRUE),1), 0) -> 2 | AX12: =_xlfn.IFNA(MATCH(RAND(), _xlfn.POISSON.DIST({0,1,2,3,4,5,6,7,8,9},$O12, TRUE),1), 0) -> 4 | AY12: =_xlfn.IFNA(MATCH(RAND(), _xlfn.POISSON.DIST({0,1,2,3,4,5,6,7,8,9},$O12, TRUE),1), 0) -> 1 | AZ12: =_xlfn.IFNA(MATCH(RAND(), _xlfn.POISSON.DIST({0,1,2,3,4,5,6,7,8,9},$O12, TRUE),1), 0) -> 0 | BA12: =_xlfn.IFNA(MATCH(RAND(), _xlfn.POISSON.DIST({0,1,2,3,4,5,6,7,8,9},$O12, TRUE),1), 0) -> 2 | BB12: =_xlfn.IFNA(MATCH(RAND(), _xlfn.POISSON.DIST({0,1,2,3,4,5,6,7,8,9},$O12, TRUE),1), 0) -> 3 | BC12: =_xlfn.IFNA(MATCH(RAND(), _xlfn.POISSON.DIST({0,1,2,3,4,5,6,7,8,9},$O12, TRUE),1), 0) -> 0 | BD12: =_xlfn.IFNA(MATCH(RAND(), _xlfn.POISSON.DIST({0,1,2,3,4,5,6,7,8,9},$O12, TRUE),1), 0) -> 1 | BE12: =_xlfn.IFNA(MATCH(RAND(), _xlfn.POISSON.DIST({0,1,2,3,4,5,6,7,8,9},$O12, TRUE),1), 0) -> 0 | BF12: =_xlfn.IFNA(MATCH(RAND(), _xlfn.POISSON.DIST({0,1,2,3,4,5,6,7,8,9},$O12, TRUE),1), 0) -> 1 | BG12: =_xlfn.IFNA(MATCH(RAND(), _xlfn.POISSON.DIST({0,1,2,3,4,5,6,7,8,9},$O12, TRUE),1), 0) -> 2 | BH12: =_xlfn.IFNA(MATCH(RAND(), _xlfn.POISSON.DIST({0,1,2,3,4,5,6,7,8,9},$O12, TRUE),1), 0) -> 4 | BI12: =_xlfn.IFNA(MATCH(RAND(), _xlfn.POISSON.DIST({0,1,2,3,4,5,6,7,8,9},$O12, TRUE),1), 0) -> 0 | BJ12: =_xlfn.IFNA(MATCH(RAND(), _xlfn.POISSON.DIST({0,1,2,3,4,5,6,7,8,9},$O12, TRUE),1), 0) -> 2 | BK12: =_xlfn.IFNA(MATCH(RAND(), _xlfn.POISSON.DIST({0,1,2,3,4,5,6,7,8,9},$O12, TRUE),1), 0) -> 1 | BL12: =_xlfn.IFNA(MATCH(RAND(), _xlfn.POISSON.DIST({0,1,2,3,4,5,6,7,8,9},$O12, TRUE),1), 0) -> 0 | BM12: =_xlfn.IFNA(MATCH(RAND(), _xlfn.POISSON.DIST({0,1,2,3,4,5,6,7,8,9},$O12, TRUE),1), 0) -> 0 | BN12: =_xlfn.IFNA(MATCH(RAND(), _xlfn.POISSON.DIST({0,1,2,3,4,5,6,7,8,9},$O12, TRUE),1), 0) -> 2 | BP12: =_xlfn.IFNA(MATCH(RAND(), _xlfn.POISSON.DIST({0,1,2,3,4,5,6,7,8,9},$P12, TRUE),1), 0) -> 1 | BQ12: =_xlfn.IFNA(MATCH(RAND(), _xlfn.POISSON.DIST({0,1,2,3,4,5,6,7,8,9},$P12, TRUE),1), 0) -> 1 | BR12: =_xlfn.IFNA(MATCH(RAND(), _xlfn.POISSON.DIST({0,1,2,3,4,5,6,7,8,9},$P12, TRUE),1), 0) -> 1 | BS12: =_xlfn.IFNA(MATCH(RAND(), _xlfn.POISSON.DIST({0,1,2,3,4,5,6,7,8,9},$P12, TRUE),1), 0) -> 2 | BT12: =_xlfn.IFNA(MATCH(RAND(), _xlfn.POISSON.DIST({0,1,2,3,4,5,6,7,8,9},$P12, TRUE),1), 0) -> 3 | BU12: =_xlfn.IFNA(MATCH(RAND(), _xlfn.POISSON.DIST({0,1,2,3,4,5,6,7,8,9},$P12, TRUE),1), 0) -> 2 | BV12: =_xlfn.IFNA(MATCH(RAND(), _xlfn.POISSON.DIST({0,1,2,3,4,5,6,7,8,9},$P12, TRUE),1), 0) -> 2 | BW12: =_xlfn.IFNA(MATCH(RAND(), _xlfn.POISSON.DIST({0,1,2,3,4,5,6,7,8,9},$P12, TRUE),1), 0) -> 0 | BX12: =_xlfn.IFNA(MATCH(RAND(), _xlfn.POISSON.DIST({0,1,2,3,4,5,6,7,8,9},$P12, TRUE),1), 0) -> 0 | BY12: =_xlfn.IFNA(MATCH(RAND(), _xlfn.POISSON.DIST({0,1,2,3,4,5,6,7,8,9},$P12, TRUE),1), 0) -> 2 | BZ12: =_xlfn.IFNA(MATCH(RAND(), _xlfn.POISSON.DIST({0,1,2,3,4,5,6,7,8,9},$P12, TRUE),1), 0) -> 1 | CA12: =_xlfn.IFNA(MATCH(RAND(), _xlfn.POISSON.DIST({0,1,2,3,4,5,6,7,8,9},$P12, TRUE),1), 0) -> 1 | CB12: =_xlfn.IFNA(MATCH(RAND(), _xlfn.POISSON.DIST({0,1,2,3,4,5,6,7,8,9},$P12, TRUE),1), 0) -> 2 | CC12: =_xlfn.IFNA(MATCH(RAND(), _xlfn.POISSON.DIST({0,1,2,3,4,5,6,7,8,9},$P12, TRUE),1), 0) -> 1 | CD12: =_xlfn.IFNA(MATCH(RAND(), _xlfn.POISSON.DIST({0,1,2,3,4,5,6,7,8,9},$P12, TRUE),1), 0) -> 0 | CE12: =_xlfn.IFNA(MATCH(RAND(), _xlfn.POISSON.DIST({0,1,2,3,4,5,6,7,8,9},$P12, TRUE),1), 0) -> 1 | CF12: =_xlfn.IFNA(MATCH(RAND(), _xlfn.POISSON.DIST({0,1,2,3,4,5,6,7,8,9},$P12, TRUE),1), 0) -> 2 | CG12: =_xlfn.IFNA(MATCH(RAND(), _xlfn.POISSON.DIST({0,1,2,3,4,5,6,7,8,9},$P12, TRUE),1), 0) -> 0 | CH12: =_xlfn.IFNA(MATCH(RAND(), _xlfn.POISSON.DIST({0,1,2,3,4,5,6,7,8,9},$P12, TRUE),1), 0) -> 1 | CI12: =_xlfn.IFNA(MATCH(RAND(), _xlfn.POISSON.DIST({0,1,2,3,4,5,6,7,8,9},$P12, TRUE),1), 0) -> 1 | CJ12: =_xlfn.IFNA(MATCH(RAND(), _xlfn.POISSON.DIST({0,1,2,3,4,5,6,7,8,9},$P12, TRUE),1), 0) -> 0 | CK12: =_xlfn.IFNA(MATCH(RAND(), _xlfn.POISSON.DIST({0,1,2,3,4,5,6,7,8,9},$P12, TRUE),1), 0) -> 4 | CL12: =_xlfn.IFNA(MATCH(RAND(), _xlfn.POISSON.DIST({0,1,2,3,4,5,6,7,8,9},$P12, TRUE),1), 0) -> 1 | CM12: =_xlfn.IFNA(MATCH(RAND(), _xlfn.POISSON.DIST({0,1,2,3,4,5,6,7,8,9},$P12, TRUE),1), 0) -> 0 | CN12: =_xlfn.IFNA(MATCH(RAND(), _xlfn.POISSON.DIST({0,1,2,3,4,5,6,7,8,9},$P12, TRUE),1), 0) -> 1 | CO12: =_xlfn.IFNA(MATCH(RAND(), _xlfn.POISSON.DIST({0,1,2,3,4,5,6,7,8,9},$P12, TRUE),1), 0) -> 3 | CP12: =_xlfn.IFNA(MATCH(RAND(), _xlfn.POISSON.DIST({0,1,2,3,4,5,6,7,8,9},$P12, TRUE),1), 0) -> 2 | CQ12: =_xlfn.IFNA(MATCH(RAND(), _xlfn.POISSON.DIST({0,1,2,3,4,5,6,7,8,9},$P12, TRUE),1), 0) -> 5 | CR12: =_xlfn.IFNA(MATCH(RAND(), _xlfn.POISSON.DIST({0,1,2,3,4,5,6,7,8,9},$P12, TRUE),1), 0) -> 1 | CS12: =_xlfn.IFNA(MATCH(RAND(), _xlfn.POISSON.DIST({0,1,2,3,4,5,6,7,8,9},$P12, TRUE),1), 0) -> 1 | CT12: =_xlfn.IFNA(MATCH(RAND(), _xlfn.POISSON.DIST({0,1,2,3,4,5,6,7,8,9},$P12, TRUE),1), 0) -> 0 | CU12: =_xlfn.IFNA(MATCH(RAND(), _xlfn.POISSON.DIST({0,1,2,3,4,5,6,7,8,9},$P12, TRUE),1), 0) -> 3 | CV12: =_xlfn.IFNA(MATCH(RAND(), _xlfn.POISSON.DIST({0,1,2,3,4,5,6,7,8,9},$P12, TRUE),1), 0) -> 3 | CW12: =_xlfn.IFNA(MATCH(RAND(), _xlfn.POISSON.DIST({0,1,2,3,4,5,6,7,8,9},$P12, TRUE),1), 0) -> 1 | CX12: =_xlfn.IFNA(MATCH(RAND(), _xlfn.POISSON.DIST({0,1,2,3,4,5,6,7,8,9},$P12, TRUE),1), 0) -> 1 | CY12: =_xlfn.IFNA(MATCH(RAND(), _xlfn.POISSON.DIST({0,1,2,3,4,5,6,7,8,9},$P12, TRUE),1), 0) -> 1 | CZ12: =_xlfn.IFNA(MATCH(RAND(), _xlfn.POISSON.DIST({0,1,2,3,4,5,6,7,8,9},$P12, TRUE),1), 0) -> 3 | DA12: =_xlfn.IFNA(MATCH(RAND(), _xlfn.POISSON.DIST({0,1,2,3,4,5,6,7,8,9},$P12, TRUE),1), 0) -> 0 | DB12: =_xlfn.IFNA(MATCH(RAND(), _xlfn.POISSON.DIST({0,1,2,3,4,5,6,7,8,9},$P12, TRUE),1), 0) -> 2 | DC12: =_xlfn.IFNA(MATCH(RAND(), _xlfn.POISSON.DIST({0,1,2,3,4,5,6,7,8,9},$P12, TRUE),1), 0) -> 3 | DD12: =_xlfn.IFNA(MATCH(RAND(), _xlfn.POISSON.DIST({0,1,2,3,4,5,6,7,8,9},$P12, TRUE),1), 0) -> 1 | DE12: =_xlfn.IFNA(MATCH(RAND(), _xlfn.POISSON.DIST({0,1,2,3,4,5,6,7,8,9},$P12, TRUE),1), 0) -> 1 | DF12: =_xlfn.IFNA(MATCH(RAND(), _xlfn.POISSON.DIST({0,1,2,3,4,5,6,7,8,9},$P12, TRUE),1), 0) -> 1 | DG12: =_xlfn.IFNA(MATCH(RAND(), _xlfn.POISSON.DIST({0,1,2,3,4,5,6,7,8,9},$P12, TRUE),1), 0) -> 3 | DH12: =_xlfn.IFNA(MATCH(RAND(), _xlfn.POISSON.DIST({0,1,2,3,4,5,6,7,8,9},$P12, TRUE),1), 0) -> 1 | DI12: =_xlfn.IFNA(MATCH(RAND(), _xlfn.POISSON.DIST({0,1,2,3,4,5,6,7,8,9},$P12, TRUE),1), 0) -> 1 | DJ12: =_xlfn.IFNA(MATCH(RAND(), _xlfn.POISSON.DIST({0,1,2,3,4,5,6,7,8,9},$P12, TRUE),1), 0) -> 1 | DK12: =_xlfn.IFNA(MATCH(RAND(), _xlfn.POISSON.DIST({0,1,2,3,4,5,6,7,8,9},$P12, TRUE),1), 0) -> 0 | DL12: =_xlfn.IFNA(MATCH(RAND(), _xlfn.POISSON.DIST({0,1,2,3,4,5,6,7,8,9},$P12, TRUE),1), 0) -> 3 | DM12: =_xlfn.IFNA(MATCH(RAND(), _xlfn.POISSON.DIST({0,1,2,3,4,5,6,7,8,9},$P12, TRUE),1), 0) -> 0
C13: 2019-06-10 | D13: D | E13: Argentina | F13: =(AVERAGE(Q13:BN13))*(1+INDEX('Predicciones de la liguilla'!$C$4:$O$28, MATCH('Partidos de este año'!E13,'Predicciones de la liguilla'!$D$4:$D$28,0),3)) -> 0.32 | G13: Japón | H13: =(AVERAGE(BP13:DM13))*(1+INDEX('Predicciones de la liguilla'!$C$4:$O$28, MATCH('Partidos de este año'!G13,'Predicciones de la liguilla'!$D$4:$D$28,0),3)) -> 3.24 | I13: =IF(L13>M13,E13,IF(L13=M13,"Dibujar",G13)) -> Japón | L13: 0.32 | M13: 3.24 | N13: =IF(L13>M13,E13,IF(L13=M13,"Dibujar",G13)) -> Japón | O13: =(OFFSET('Apéndice 3 - Goles por grupo'!$C$13,(INDEX('Apéndice 1 - Datos de equipos'!$C$13:$F$112,MATCH(G13,'Apéndice 1 - Datos de equipos'!$C$13:$C$112,0),4)/10),(INDEX('Apéndice 1 - Datos de equipos'!$C$13:$F$112,MATCH(E13,'Apéndice 1 - Datos de equipos'!$C$13:$C$112,0),4)/10))) -> 0.38 | P13: =OFFSET('Apéndice 3 - Goles por grupo'!$C$13,(INDEX('Apéndice 1 - Datos de equipos'!$C$13:$F$112, MATCH(E13,'Apéndice 1 - Datos de equipos'!$C$13:$C$112,0),4)/10), (INDEX('Apéndice 1 - Datos de equipos'!$C$13:$F$112, MATCH(G13, 'Apéndice 1 - Datos de equipos'!$C$13:$C$112,0),4)/10)) -> 2.94 | Q13: =_xlfn.IFNA(MATCH(RAND(), _xlfn.POISSON.DIST({0,1,2,3,4,5,6,7,8,9},$O13, TRUE),1), 0) -> 0 | R13: =_xlfn.IFNA(MATCH(RAND(), _xlfn.POISSON.DIST({0,1,2,3,4,5,6,7,8,9},$O13, TRUE),1), 0) -> 0 | S13: =_xlfn.IFNA(MATCH(RAND(), _xlfn.POISSON.DIST({0,1,2,3,4,5,6,7,8,9},$O13, TRUE),1), 0) -> 1 | T13: =_xlfn.IFNA(MATCH(RAND(), _xlfn.POISSON.DIST({0,1,2,3,4,5,6,7,8,9},$O13, TRUE),1), 0) -> 0 | U13: =_xlfn.IFNA(MATCH(RAND(), _xlfn.POISSON.DIST({0,1,2,3,4,5,6,7,8,9},$O13, TRUE),1), 0) -> 0 | V13: =_xlfn.IFNA(MATCH(RAND(), _xlfn.POISSON.DIST({0,1,2,3,4,5,6,7,8,9},$O13, TRUE),1), 0) -> 1 | W13: =_xlfn.IFNA(MATCH(RAND(), _xlfn.POISSON.DIST({0,1,2,3,4,5,6,7,8,9},$O13, TRUE),1), 0) -> 0 | X13: =_xlfn.IFNA(MATCH(RAND(), _xlfn.POISSON.DIST({0,1,2,3,4,5,6,7,8,9},$O13, TRUE),1), 0) -> 0 | Y13: =_xlfn.IFNA(MATCH(RAND(), _xlfn.POISSON.DIST({0,1,2,3,4,5,6,7,8,9},$O13, TRUE),1), 0) -> 1 | Z13: =_xlfn.IFNA(MATCH(RAND(), _xlfn.POISSON.DIST({0,1,2,3,4,5,6,7,8,9},$O13, TRUE),1), 0) -> 1 | AA13: =_xlfn.IFNA(MATCH(RAND(), _xlfn.POISSON.DIST({0,1,2,3,4,5,6,7,8,9},$O13, TRUE),1), 0) -> 0 | AB13: =_xlfn.IFNA(MATCH(RAND(), _xlfn.POISSON.DIST({0,1,2,3,4,5,6,7,8,9},$O13, TRUE),1), 0) -> 1 | AC13: =_xlfn.IFNA(MATCH(RAND(), _xlfn.POISSON.DIST({0,1,2,3,4,5,6,7,8,9},$O13, TRUE),1), 0) -> 0 | AD13: =_xlfn.IFNA(MATCH(RAND(), _xlfn.POISSON.DIST({0,1,2,3,4,5,6,7,8,9},$O13, TRUE),1), 0) -> 0 | AE13: =_xlfn.IFNA(MATCH(RAND(), _xlfn.POISSON.DIST({0,1,2,3,4,5,6,7,8,9},$O13, TRUE),1), 0) -> 0 | AF13: =_xlfn.IFNA(MATCH(RAND(), _xlfn.POISSON.DIST({0,1,2,3,4,5,6,7,8,9},$O13, TRUE),1), 0) -> 2 | AG13: =_xlfn.IFNA(MATCH(RAND(), _xlfn.POISSON.DIST({0,1,2,3,4,5,6,7,8,9},$O13, TRUE),1), 0) -> 0 | AH13: =_xlfn.IFNA(MATCH(RAND(), _xlfn.POISSON.DIST({0,1,2,3,4,5,6,7,8,9},$O13, TRUE),1), 0) -> 0 | AI13: =_xlfn.IFNA(MATCH(RAND(), _xlfn.POISSON.DIST({0,1,2,3,4,5,6,7,8,9},$O13, TRUE),1), 0) -> 0 | AJ13: =_xlfn.IFNA(MATCH(RAND(), _xlfn.POISSON.DIST({0,1,2,3,4,5,6,7,8,9},$O13, TRUE),1), 0) -> 1 | AK13: =_xlfn.IFNA(MATCH(RAND(), _xlfn.POISSON.DIST({0,1,2,3,4,5,6,7,8,9},$O13, TRUE),1), 0) -> 0 | AL13: =_xlfn.IFNA(MATCH(RAND(), _xlfn.POISSON.DIST({0,1,2,3,4,5,6,7,8,9},$O13, TRUE),1), 0) -> 0 | AM13: =_xlfn.IFNA(MATCH(RAND(), _xlfn.POISSON.DIST({0,1,2,3,4,5,6,7,8,9},$O13, TRUE),1), 0) -> 1 | AN13: =_xlfn.IFNA(MATCH(RAND(), _xlfn.POISSON.DIST({0,1,2,3,4,5,6,7,8,9},$O13, TRUE),1), 0) -> 0 | AO13: =_xlfn.IFNA(MATCH(RAND(), _xlfn.POISSON.DIST({0,1,2,3,4,5,6,7,8,9},$O13, TRUE),1), 0) -> 0 | AP13: =_xlfn.IFNA(MATCH(RAND(), _xlfn.POISSON.DIST({0,1,2,3,4,5,6,7,8,9},$O13, TRUE),1), 0) -> 0 | AQ13: =_xlfn.IFNA(MATCH(RAND(), _xlfn.POISSON.DIST({0,1,2,3,4,5,6,7,8,9},$O13, TRUE),1), 0) -> 0 | AR13: =_xlfn.IFNA(MATCH(RAND(), _xlfn.POISSON.DIST({0,1,2,3,4,5,6,7,8,9},$O13, TRUE),1), 0) -> 0 | AS13: =_xlfn.IFNA(MATCH(RAND(), _xlfn.POISSON.DIST({0,1,2,3,4,5,6,7,8,9},$O13, TRUE),1), 0) -> 1 | AT13: =_xlfn.IFNA(MATCH(RAND(), _xlfn.POISSON.DIST({0,1,2,3,4,5,6,7,8,9},$O13, TRUE),1), 0) -> 1 | AU13: =_xlfn.IFNA(MATCH(RAND(), _xlfn.POISSON.DIST({0,1,2,3,4,5,6,7,8,9},$O13, TRUE),1), 0) -> 0 | AV13: =_xlfn.IFNA(MATCH(RAND(), _xlfn.POISSON.DIST({0,1,2,3,4,5,6,7,8,9},$O13, TRUE),1), 0) -> 0 | AW13: =_xlfn.IFNA(MATCH(RAND(), _xlfn.POISSON.DIST({0,1,2,3,4,5,6,7,8,9},$O13, TRUE),1), 0) -> 0 | AX13: =_xlfn.IFNA(MATCH(RAND(), _xlfn.POISSON.DIST({0,1,2,3,4,5,6,7,8,9},$O13, TRUE),1), 0) -> 0 | AY13: =_xlfn.IFNA(MATCH(RAND(), _xlfn.POISSON.DIST({0,1,2,3,4,5,6,7,8,9},$O13, TRUE),1), 0) -> 0 | AZ13: =_xlfn.IFNA(MATCH(RAND(), _xlfn.POISSON.DIST({0,1,2,3,4,5,6,7,8,9},$O13, TRUE),1), 0) -> 0 | BA13: =_xlfn.IFNA(MATCH(RAND(), _xlfn.POISSON.DIST({0,1,2,3,4,5,6,7,8,9},$O13, TRUE),1), 0) -> 0 | BB13: =_xlfn.IFNA(MATCH(RAND(), _xlfn.POISSON.DIST({0,1,2,3,4,5,6,7,8,9},$O13, TRUE),1), 0) -> 0 | BC13: =_xlfn.IFNA(MATCH(RAND(), _xlfn.POISSON.DIST({0,1,2,3,4,5,6,7,8,9},$O13, TRUE),1), 0) -> 0 | BD13: =_xlfn.IFNA(MATCH(RAND(), _xlfn.POISSON.DIST({0,1,2,3,4,5,6,7,8,9},$O13, TRUE),1), 0) -> 0 | BE13: =_xlfn.IFNA(MATCH(RAND(), _xlfn.POISSON.DIST({0,1,2,3,4,5,6,7,8,9},$O13, TRUE),1), 0) -> 0 | BF13: =_xlfn.IFNA(MATCH(RAND(), _xlfn.POISSON.DIST({0,1,2,3,4,5,6,7,8,9},$O13, TRUE),1), 0) -> 1 | BG13: =_xlfn.IFNA(MATCH(RAND(), _xlfn.POISSON.DIST({0,1,2,3,4,5,6,7,8,9},$O13, TRUE),1), 0) -> 0 | BH13: =_xlfn.IFNA(MATCH(RAND(), _xlfn.POISSON.DIST({0,1,2,3,4,5,6,7,8,9},$O13, TRUE),1), 0) -> 0 | BI13: =_xlfn.IFNA(MATCH(RAND(), _xlfn.POISSON.DIST({0,1,2,3,4,5,6,7,8,9},$O13, TRUE),1), 0) -> 2 | BJ13: =_xlfn.IFNA(MATCH(RAND(), _xlfn.POISSON.DIST({0,1,2,3,4,5,6,7,8,9},$O13, TRUE),1), 0) -> 0 | BK13: =_xlfn.IFNA(MATCH(RAND(), _xlfn.POISSON.DIST({0,1,2,3,4,5,6,7,8,9},$O13, TRUE),1), 0) -> 0 | BL13: =_xlfn.IFNA(MATCH(RAND(), _xlfn.POISSON.DIST({0,1,2,3,4,5,6,7,8,9},$O13, TRUE),1), 0) -> 1 | BM13: =_xlfn.IFNA(MATCH(RAND(), _xlfn.POISSON.DIST({0,1,2,3,4,5,6,7,8,9},$O13, TRUE),1), 0) -> 0 | BN13: =_xlfn.IFNA(MATCH(RAND(), _xlfn.POISSON.DIST({0,1,2,3,4,5,6,7,8,9},$O13, TRUE),1), 0) -> 1 | BP13: =_xlfn.IFNA(MATCH(RAND(), _xlfn.POISSON.DIST({0,1,2,3,4,5,6,7,8,9},$P13, TRUE),1), 0) -> 8 | BQ13: =_xlfn.IFNA(MATCH(RAND(), _xlfn.POISSON.DIST({0,1,2,3,4,5,6,7,8,9},$P13, TRUE),1), 0) -> 6 | BR13: =_xlfn.IFNA(MATCH(RAND(), _xlfn.POISSON.DIST({0,1,2,3,4,5,6,7,8,9},$P13, TRUE),1), 0) -> 2 | BS13: =_xlfn.IFNA(MATCH(RAND(), _xlfn.POISSON.DIST({0,1,2,3,4,5,6,7,8,9},$P13, TRUE),1), 0) -> 3 | BT13: =_xlfn.IFNA(MATCH(RAND(), _xlfn.POISSON.DIST({0,1,2,3,4,5,6,7,8,9},$P13, TRUE),1), 0) -> 3 | BU13: =_xlfn.IFNA(MATCH(RAND(), _xlfn.POISSON.DIST({0,1,2,3,4,5,6,7,8,9},$P13, TRUE),1), 0) -> 2 | BV13: =_xlfn.IFNA(MATCH(RAND(), _xlfn.POISSON.DIST({0,1,2,3,4,5,6,7,8,9},$P13, TRUE),1), 0) -> 5 | BW13: =_xlfn.IFNA(MATCH(RAND(), _xlfn.POISSON.DIST({0,1,2,3,4,5,6,7,8,9},$P13, TRUE),1), 0) -> 2 | BX13: =_xlfn.IFNA(MATCH(RAND(), _xlfn.POISSON.DIST({0,1,2,3,4,5,6,7,8,9},$P13, TRUE),1), 0) -> 4 | BY13: =_xlfn.IFNA(MATCH(RAND(), _xlfn.POISSON.DIST({0,1,2,3,4,5,6,7,8,9},$P13, TRUE),1), 0) -> 4 | BZ13: =_xlfn.IFNA(MATCH(RAND(), _xlfn.POISSON.DIST({0,1,2,3,4,5,6,7,8,9},$P13, TRUE),1), 0) -> 3 | CA13: =_xlfn.IFNA(MATCH(RAND(), _xlfn.POISSON.DIST({0,1,2,3,4,5,6,7,8,9},$P13, TRUE),1), 0) -> 5 | CB13: =_xlfn.IFNA(MATCH(RAND(), _xlfn.POISSON.DIST({0,1,2,3,4,5,6,7,8,9},$P13, TRUE),1), 0) -> 4 | CC13: =_xlfn.IFNA(MATCH(RAND(), _xlfn.POISSON.DIST({0,1,2,3,4,5,6,7,8,9},$P13, TRUE),1), 0) -> 4 | CD13: =_xlfn.IFNA(MATCH(RAND(), _xlfn.POISSON.DIST({0,1,2,3,4,5,6,7,8,9},$P13, TRUE),1), 0) -> 1 | CE13: =_xlfn.IFNA(MATCH(RAND(), _xlfn.POISSON.DIST({0,1,2,3,4,5,6,7,8,9},$P13, TRUE),1), 0) -> 6 | CF13: =_xlfn.IFNA(MATCH(RAND(), _xlfn.POISSON.DIST({0,1,2,3,4,5,6,7,8,9},$P13, TRUE),1), 0) -> 3 | CG13: =_xlfn.IFNA(MATCH(RAND(), _xlfn.POISSON.DIST({0,1,2,3,4,5,6,7,8,9},$P13, TRUE),1), 0) -> 3 | CH13: =_xlfn.IFNA(MATCH(RAND(), _xlfn.POISSON.DIST({0,1,2,3,4,5,6,7,8,9},$P13, TRUE),1), 0) -> 1 | CI13: =_xlfn.IFNA(MATCH(RAND(), _xlfn.POISSON.DIST({0,1,2,3,4,5,6,7,8,9},$P13, TRUE),1), 0) -> 0 | CJ13: =_xlfn.IFNA(MATCH(RAND(), _xlfn.POISSON.DIST({0,1,2,3,4,5,6,7,8,9},$P13, TRUE),1), 0) -> 2 | CK13: =_xlfn.IFNA(MATCH(RAND(), _xlfn.POISSON.DIST({0,1,2,3,4,5,6,7,8,9},$P13, TRUE),1), 0) -> 2 | CL13: =_xlfn.IFNA(MATCH(RAND(), _xlfn.POISSON.DIST({0,1,2,3,4,5,6,7,8,9},$P13, TRUE),1), 0) -> 5 | CM13: =_xlfn.IFNA(MATCH(RAND(), _xlfn.POISSON.DIST({0,1,2,3,4,5,6,7,8,9},$P13, TRUE),1), 0) -> 2 | CN13: =_xlfn.IFNA(MATCH(RAND(), _xlfn.POISSON.DIST({0,1,2,3,4,5,6,7,8,9},$P13, TRUE),1), 0) -> 0 | CO13: =_xlfn.IFNA(MATCH(RAND(), _xlfn.POISSON.DIST({0,1,2,3,4,5,6,7,8,9},$P13, TRUE),1), 0) -> 7 | CP13: =_xlfn.IFNA(MATCH(RAND(), _xlfn.POISSON.DIST({0,1,2,3,4,5,6,7,8,9},$P13, TRUE),1), 0) -> 2 | CQ13: =_xlfn.IFNA(MATCH(RAND(), _xlfn.POISSON.DIST({0,1,2,3,4,5,6,7,8,9},$P13, TRUE),1), 0) -> 1 | CR13: =_xlfn.IFNA(MATCH(RAND(), _xlfn.POISSON.DIST({0,1,2,3,4,5,6,7,8,9},$P13, TRUE),1), 0) -> 2 | CS13: =_xlfn.IFNA(MATCH(RAND(), _xlfn.POISSON.DIST({0,1,2,3,4,5,6,7,8,9},$P13, TRUE),1), 0) -> 2 | CT13: =_xlfn.IFNA(MATCH(RAND(), _xlfn.POISSON.DIST({0,1,2,3,4,5,6,7,8,9},$P13, TRUE),1), 0) -> 2 | CU13: =_xlfn.IFNA(MATCH(RAND(), _xlfn.POISSON.DIST({0,1,2,3,4,5,6,7,8,9},$P13, TRUE),1), 0) -> 2 | CV13: =_xlfn.IFNA(MATCH(RAND(), _xlfn.POISSON.DIST({0,1,2,3,4,5,6,7,8,9},$P13, TRUE),1), 0) -> 7 | CW13: =_xlfn.IFNA(MATCH(RAND(), _xlfn.POISSON.DIST({0,1,2,3,4,5,6,7,8,9},$P13, TRUE),1), 0) -> 3 | CX13: =_xlfn.IFNA(MATCH(RAND(), _xlfn.POISSON.DIST({0,1,2,3,4,5,6,7,8,9},$P13, TRUE),1), 0) -> 5 | CY13: =_xlfn.IFNA(MATCH(RAND(), _xlfn.POISSON.DIST({0,1,2,3,4,5,6,7,8,9},$P13, TRUE),1), 0) -> 5 | CZ13: =_xlfn.IFNA(MATCH(RAND(), _xlfn.POISSON.DIST({0,1,2,3,4,5,6,7,8,9},$P13, TRUE),1), 0) -> 0 | DA13: =_xlfn.IFNA(MATCH(RAND(), _xlfn.POISSON.DIST({0,1,2,3,4,5,6,7,8,9},$P13, TRUE),1), 0) -> 3 | DB13: =_xlfn.IFNA(MATCH(RAND(), _xlfn.POISSON.DIST({0,1,2,3,4,5,6,7,8,9},$P13, TRUE),1), 0) -> 5 | DC13: =_xlfn.IFNA(MATCH(RAND(), _xlfn.POISSON.DIST({0,1,2,3,4,5,6,7,8,9},$P13, TRUE),1), 0) -> 4 | DD13: =_xlfn.IFNA(MATCH(RAND(), _xlfn.POISSON.DIST({0,1,2,3,4,5,6,7,8,9},$P13, TRUE),1), 0) -> 2 | DE13: =_xlfn.IFNA(MATCH(RAND(), _xlfn.POISSON.DIST({0,1,2,3,4,5,6,7,8,9},$P13, TRUE),1), 0) -> 4 | DF13: =_xlfn.IFNA(MATCH(RAND(), _xlfn.POISSON.DIST({0,1,2,3,4,5,6,7,8,9},$P13, TRUE),1), 0) -> 5 | DG13: =_xlfn.IFNA(MATCH(RAND(), _xlfn.POISSON.DIST({0,1,2,3,4,5,6,7,8,9},$P13, TRUE),1), 0) -> 1 | DH13: =_xlfn.IFNA(MATCH(RAND(), _xlfn.POISSON.DIST({0,1,2,3,4,5,6,7,8,9},$P13, TRUE),1), 0) -> 4 | DI13: =_xlfn.IFNA(MATCH(RAND(), _xlfn.POISSON.DIST({0,1,2,3,4,5,6,7,8,9},$P13, TRUE),1), 0) -> 5 | DJ13: =_xlfn.IFNA(MATCH(RAND(), _xlfn.POISSON.DIST({0,1,2,3,4,5,6,7,8,9},$P13, TRUE),1), 0) -> 5 | DK13: =_xlfn.IFNA(MATCH(RAND(), _xlfn.POISSON.DIST({0,1,2,3,4,5,6,7,8,9},$P13, TRUE),1), 0) -> 0 | DL13: =_xlfn.IFNA(MATCH(RAND(), _xlfn.POISSON.DIST({0,1,2,3,4,5,6,7,8,9},$P13, TRUE),1), 0) -> 1 | DM13: =_xlfn.IFNA(MATCH(RAND(), _xlfn.POISSON.DIST({0,1,2,3,4,5,6,7,8,9},$P13, TRUE),1), 0) -> 5
C14: 2019-06-10 | D14: E | E14: Canadá | F14: =(AVERAGE(Q14:BN14))*(1+INDEX('Predicciones de la liguilla'!$C$4:$O$28, MATCH('Partidos de este año'!E14,'Predicciones de la liguilla'!$D$4:$D$28,0),3)) -> 1.26 | G14: Camerún | H14: =(AVERAGE(BP14:DM14))*(1+INDEX('Predicciones de la liguilla'!$C$4:$O$28, MATCH('Partidos de este año'!G14,'Predicciones de la liguilla'!$D$4:$D$28,0),3)) -> 1.70 | I14: =IF(L14>M14,E14,IF(L14=M14,"Dibujar",G14)) -> Camerún | L14: 1.26 | M14: 1.7 | N14: =IF(L14>M14,E14,IF(L14=M14,"Dibujar",G14)) -> Camerún | O14: =(OFFSET('Apéndice 3 - Goles por grupo'!$C$13,(INDEX('Apéndice 1 - Datos de equipos'!$C$13:$F$112,MATCH(G14,'Apéndice 1 - Datos de equipos'!$C$13:$C$112,0),4)/10),(INDEX('Apéndice 1 - Datos de equipos'!$C$13:$F$112,MATCH(E14,'Apéndice 1 - Datos de equipos'!$C$13:$C$112,0),4)/10))) -> 1.50 | P14: =OFFSET('Apéndice 3 - Goles por grupo'!$C$13,(INDEX('Apéndice 1 - Datos de equipos'!$C$13:$F$112, MATCH(E14,'Apéndice 1 - Datos de equipos'!$C$13:$C$112,0),4)/10), (INDEX('Apéndice 1 - Datos de equipos'!$C$13:$F$112, MATCH(G14, 'Apéndice 1 - Datos de equipos'!$C$13:$C$112,0),4)/10)) -> 1.50 | Q14: =_xlfn.IFNA(MATCH(RAND(), _xlfn.POISSON.DIST({0,1,2,3,4,5,6,7,8,9},$O14, TRUE),1), 0) -> 0 | R14: =_xlfn.IFNA(MATCH(RAND(), _xlfn.POISSON.DIST({0,1,2,3,4,5,6,7,8,9},$O14, TRUE),1), 0) -> 3 | S14: =_xlfn.IFNA(MATCH(RAND(), _xlfn.POISSON.DIST({0,1,2,3,4,5,6,7,8,9},$O14, TRUE),1), 0) -> 2 | T14: =_xlfn.IFNA(MATCH(RAND(), _xlfn.POISSON.DIST({0,1,2,3,4,5,6,7,8,9},$O14, TRUE),1), 0) -> 0 | U14: =_xlfn.IFNA(MATCH(RAND(), _xlfn.POISSON.DIST({0,1,2,3,4,5,6,7,8,9},$O14, TRUE),1), 0) -> 0 | V14: =_xlfn.IFNA(MATCH(RAND(), _xlfn.POISSON.DIST({0,1,2,3,4,5,6,7,8,9},$O14, TRUE),1), 0) -> 0 | W14: =_xlfn.IFNA(MATCH(RAND(), _xlfn.POISSON.DIST({0,1,2,3,4,5,6,7,8,9},$O14, TRUE),1), 0) -> 0 | X14: =_xlfn.IFNA(MATCH(RAND(), _xlfn.POISSON.DIST({0,1,2,3,4,5,6,7,8,9},$O14, TRUE),1), 0) -> 0 | Y14: =_xlfn.IFNA(MATCH(RAND(), _xlfn.POISSON.DIST({0,1,2,3,4,5,6,7,8,9},$O14, TRUE),1), 0) -> 3 | Z14: =_xlfn.IFNA(MATCH(RAND(), _xlfn.POISSON.DIST({0,1,2,3,4,5,6,7,8,9},$O14, TRUE),1), 0) -> 3 | AA14: =_xlfn.IFNA(MATCH(RAND(), _xlfn.POISSON.DIST({0,1,2,3,4,5,6,7,8,9},$O14, TRUE),1), 0) -> 1 | AB14: =_xlfn.IFNA(MATCH(RAND(), _xlfn.POISSON.DIST({0,1,2,3,4,5,6,7,8,9},$O14, TRUE),1), 0) -> 0 | AC14: =_xlfn.IFNA(MATCH(RAND(), _xlfn.POISSON.DIST({0,1,2,3,4,5,6,7,8,9},$O14, TRUE),1), 0) -> 2 | AD14: =_xlfn.IFNA(MATCH(RAND(), _xlfn.POISSON.DIST({0,1,2,3,4,5,6,7,8,9},$O14, TRUE),1), 0) -> 0 | AE14: =_xlfn.IFNA(MATCH(RAND(), _xlfn.POISSON.DIST({0,1,2,3,4,5,6,7,8,9},$O14, TRUE),1), 0) -> 4 | AF14: =_xlfn.IFNA(MATCH(RAND(), _xlfn.POISSON.DIST({0,1,2,3,4,5,6,7,8,9},$O14, TRUE),1), 0) -> 0 | AG14: =_xlfn.IFNA(MATCH(RAND(), _xlfn.POISSON.DIST({0,1,2,3,4,5,6,7,8,9},$O14, TRUE),1), 0) -> 0 | AH14: =_xlfn.IFNA(MATCH(RAND(), _xlfn.POISSON.DIST({0,1,2,3,4,5,6,7,8,9},$O14, TRUE),1), 0) -> 3 | AI14: =_xlfn.IFNA(MATCH(RAND(), _xlfn.POISSON.DIST({0,1,2,3,4,5,6,7,8,9},$O14, TRUE),1), 0) -> 2 | AJ14: =_xlfn.IFNA(MATCH(RAND(), _xlfn.POISSON.DIST({0,1,2,3,4,5,6,7,8,9},$O14, TRUE),1), 0) -> 1 | AK14: =_xlfn.IFNA(MATCH(RAND(), _xlfn.POISSON.DIST({0,1,2,3,4,5,6,7,8,9},$O14, TRUE),1), 0) -> 1 | AL14: =_xlfn.IFNA(MATCH(RAND(), _xlfn.POISSON.DIST({0,1,2,3,4,5,6,7,8,9},$O14, TRUE),1), 0) -> 0 | AM14: =_xlfn.IFNA(MATCH(RAND(), _xlfn.POISSON.DIST({0,1,2,3,4,5,6,7,8,9},$O14, TRUE),1), 0) -> 0 | AN14: =_xlfn.IFNA(MATCH(RAND(), _xlfn.POISSON.DIST({0,1,2,3,4,5,6,7,8,9},$O14, TRUE),1), 0) -> 1 | AO14: =_xlfn.IFNA(MATCH(RAND(), _xlfn.POISSON.DIST({0,1,2,3,4,5,6,7,8,9},$O14, TRUE),1), 0) -> 1 | AP14: =_xlfn.IFNA(MATCH(RAND(), _xlfn.POISSON.DIST({0,1,2,3,4,5,6,7,8,9},$O14, TRUE),1), 0) -> 1 | AQ14: =_xlfn.IFNA(MATCH(RAND(), _xlfn.POISSON.DIST({0,1,2,3,4,5,6,7,8,9},$O14, TRUE),1), 0) -> 1 | AR14: =_xlfn.IFNA(MATCH(RAND(), _xlfn.POISSON.DIST({0,1,2,3,4,5,6,7,8,9},$O14, TRUE),1), 0) -> 0 | AS14: =_xlfn.IFNA(MATCH(RAND(), _xlfn.POISSON.DIST({0,1,2,3,4,5,6,7,8,9},$O14, TRUE),1), 0) -> 1 | AT14: =_xlfn.IFNA(MATCH(RAND(), _xlfn.POISSON.DIST({0,1,2,3,4,5,6,7,8,9},$O14, TRUE),1), 0) -> 1 | AU14: =_xlfn.IFNA(MATCH(RAND(), _xlfn.POISSON.DIST({0,1,2,3,4,5,6,7,8,9},$O14, TRUE),1), 0) -> 1 | AV14: =_xlfn.IFNA(MATCH(RAND(), _xlfn.POISSON.DIST({0,1,2,3,4,5,6,7,8,9},$O14, TRUE),1), 0) -> 1 | AW14: =_xlfn.IFNA(MATCH(RAND(), _xlfn.POISSON.DIST({0,1,2,3,4,5,6,7,8,9},$O14, TRUE),1), 0) -> 0 | AX14: =_xlfn.IFNA(MATCH(RAND(), _xlfn.POISSON.DIST({0,1,2,3,4,5,6,7,8,9},$O14, TRUE),1), 0) -> 2 | AY14: =_xlfn.IFNA(MATCH(RAND(), _xlfn.POISSON.DIST({0,1,2,3,4,5,6,7,8,9},$O14, TRUE),1), 0) -> 0 | AZ14: =_xlfn.IFNA(MATCH(RAND(), _xlfn.POISSON.DIST({0,1,2,3,4,5,6,7,8,9},$O14, TRUE),1), 0) -> 0 | BA14: =_xlfn.IFNA(MATCH(RAND(), _xlfn.POISSON.DIST({0,1,2,3,4,5,6,7,8,9},$O14, TRUE),1), 0) -> 1 | BB14: =_xlfn.IFNA(MATCH(RAND(), _xlfn.POISSON.DIST({0,1,2,3,4,5,6,7,8,9},$O14, TRUE),1), 0) -> 5 | BC14: =_xlfn.IFNA(MATCH(RAND(), _xlfn.POISSON.DIST({0,1,2,3,4,5,6,7,8,9},$O14, TRUE),1), 0) -> 2 | BD14: =_xlfn.IFNA(MATCH(RAND(), _xlfn.POISSON.DIST({0,1,2,3,4,5,6,7,8,9},$O14, TRUE),1), 0) -> 1 | BE14: =_xlfn.IFNA(MATCH(RAND(), _xlfn.POISSON.DIST({0,1,2,3,4,5,6,7,8,9},$O14, TRUE),1), 0) -> 0 | BF14: =_xlfn.IFNA(MATCH(RAND(), _xlfn.POISSON.DIST({0,1,2,3,4,5,6,7,8,9},$O14, TRUE),1), 0) -> 3 | BG14: =_xlfn.IFNA(MATCH(RAND(), _xlfn.POISSON.DIST({0,1,2,3,4,5,6,7,8,9},$O14, TRUE),1), 0) -> 1 | BH14: =_xlfn.IFNA(MATCH(RAND(), _xlfn.POISSON.DIST({0,1,2,3,4,5,6,7,8,9},$O14, TRUE),1), 0) -> 2 | BI14: =_xlfn.IFNA(MATCH(RAND(), _xlfn.POISSON.DIST({0,1,2,3,4,5,6,7,8,9},$O14, TRUE),1), 0) -> 2 | BJ14: =_xlfn.IFNA(MATCH(RAND(), _xlfn.POISSON.DIST({0,1,2,3,4,5,6,7,8,9},$O14, TRUE),1), 0) -> 0 | BK14: =_xlfn.IFNA(MATCH(RAND(), _xlfn.POISSON.DIST({0,1,2,3,4,5,6,7,8,9},$O14, TRUE),1), 0) -> 3 | BL14: =_xlfn.IFNA(MATCH(RAND(), _xlfn.POISSON.DIST({0,1,2,3,4,5,6,7,8,9},$O14, TRUE),1), 0) -> 3 | BM14: =_xlfn.IFNA(MATCH(RAND(), _xlfn.POISSON.DIST({0,1,2,3,4,5,6,7,8,9},$O14, TRUE),1), 0) -> 3 | BN14: =_xlfn.IFNA(MATCH(RAND(), _xlfn.POISSON.DIST({0,1,2,3,4,5,6,7,8,9},$O14, TRUE),1), 0) -> 2 | BP14: =_xlfn.IFNA(MATCH(RAND(), _xlfn.POISSON.DIST({0,1,2,3,4,5,6,7,8,9},$P14, TRUE),1), 0) -> 0 | BQ14: =_xlfn.IFNA(MATCH(RAND(), _xlfn.POISSON.DIST({0,1,2,3,4,5,6,7,8,9},$P14, TRUE),1), 0) -> 1 | BR14: =_xlfn.IFNA(MATCH(RAND(), _xlfn.POISSON.DIST({0,1,2,3,4,5,6,7,8,9},$P14, TRUE),1), 0) -> 0 | BS14: =_xlfn.IFNA(MATCH(RAND(), _xlfn.POISSON.DIST({0,1,2,3,4,5,6,7,8,9},$P14, TRUE),1), 0) -> 3 | BT14: =_xlfn.IFNA(MATCH(RAND(), _xlfn.POISSON.DIST({0,1,2,3,4,5,6,7,8,9},$P14, TRUE),1), 0) -> 0 | BU14: =_xlfn.IFNA(MATCH(RAND(), _xlfn.POISSON.DIST({0,1,2,3,4,5,6,7,8,9},$P14, TRUE),1), 0) -> 0 | BV14: =_xlfn.IFNA(MATCH(RAND(), _xlfn.POISSON.DIST({0,1,2,3,4,5,6,7,8,9},$P14, TRUE),1), 0) -> 4 | BW14: =_xlfn.IFNA(MATCH(RAND(), _xlfn.POISSON.DIST({0,1,2,3,4,5,6,7,8,9},$P14, TRUE),1), 0) -> 0 | BX14: =_xlfn.IFNA(MATCH(RAND(), _xlfn.POISSON.DIST({0,1,2,3,4,5,6,7,8,9},$P14, TRUE),1), 0) -> 2 | BY14: =_xlfn.IFNA(MATCH(RAND(), _xlfn.POISSON.DIST({0,1,2,3,4,5,6,7,8,9},$P14, TRUE),1), 0) -> 0 | BZ14: =_xlfn.IFNA(MATCH(RAND(), _xlfn.POISSON.DIST({0,1,2,3,4,5,6,7,8,9},$P14, TRUE),1), 0) -> 4 | CA14: =_xlfn.IFNA(MATCH(RAND(), _xlfn.POISSON.DIST({0,1,2,3,4,5,6,7,8,9},$P14, TRUE),1), 0) -> 1 | CB14: =_xlfn.IFNA(MATCH(RAND(), _xlfn.POISSON.DIST({0,1,2,3,4,5,6,7,8,9},$P14, TRUE),1), 0) -> 4 | CC14: =_xlfn.IFNA(MATCH(RAND(), _xlfn.POISSON.DIST({0,1,2,3,4,5,6,7,8,9},$P14, TRUE),1), 0) -> 4 | CD14: =_xlfn.IFNA(MATCH(RAND(), _xlfn.POISSON.DIST({0,1,2,3,4,5,6,7,8,9},$P14, TRUE),1), 0) -> 0 | CE14: =_xlfn.IFNA(MATCH(RAND(), _xlfn.POISSON.DIST({0,1,2,3,4,5,6,7,8,9},$P14, TRUE),1), 0) -> 1 | CF14: =_xlfn.IFNA(MATCH(RAND(), _xlfn.POISSON.DIST({0,1,2,3,4,5,6,7,8,9},$P14, TRUE),1), 0) -> 2 | CG14: =_xlfn.IFNA(MATCH(RAND(), _xlfn.POISSON.DIST({0,1,2,3,4,5,6,7,8,9},$P14, TRUE),1), 0) -> 3 | CH14: =_xlfn.IFNA(MATCH(RAND(), _xlfn.POISSON.DIST({0,1,2,3,4,5,6,7,8,9},$P14, TRUE),1), 0) -> 2 | CI14: =_xlfn.IFNA(MATCH(RAND(), _xlfn.POISSON.DIST({0,1,2,3,4,5,6,7,8,9},$P14, TRUE),1), 0) -> 0 | CJ14: =_xlfn.IFNA(MATCH(RAND(), _xlfn.POISSON.DIST({0,1,2,3,4,5,6,7,8,9},$P14, TRUE),1), 0) -> 3 | CK14: =_xlfn.IFNA(MATCH(RAND(), _xlfn.POISSON.DIST({0,1,2,3,4,5,6,7,8,9},$P14, TRUE),1), 0) -> 3 | CL14: =_xlfn.IFNA(MATCH(RAND(), _xlfn.POISSON.DIST({0,1,2,3,4,5,6,7,8,9},$P14, TRUE),1), 0) -> 0 | CM14: =_xlfn.IFNA(MATCH(RAND(), _xlfn.POISSON.DIST({0,1,2,3,4,5,6,7,8,9},$P14, TRUE),1), 0) -> 1 | CN14: =_xlfn.IFNA(MATCH(RAND(), _xlfn.POISSON.DIST({0,1,2,3,4,5,6,7,8,9},$P14, TRUE),1), 0) -> 1 | CO14: =_xlfn.IFNA(MATCH(RAND(), _xlfn.POISSON.DIST({0,1,2,3,4,5,6,7,8,9},$P14, TRUE),1), 0) -> 2 | CP14: =_xlfn.IFNA(MATCH(RAND(), _xlfn.POISSON.DIST({0,1,2,3,4,5,6,7,8,9},$P14, TRUE),1), 0) -> 0 | CQ14: =_xlfn.IFNA(MATCH(RAND(), _xlfn.POISSON.DIST({0,1,2,3,4,5,6,7,8,9},$P14, TRUE),1), 0) -> 2 | CR14: =_xlfn.IFNA(MATCH(RAND(), _xlfn.POISSON.DIST({0,1,2,3,4,5,6,7,8,9},$P14, TRUE),1), 0) -> 4 | CS14: =_xlfn.IFNA(MATCH(RAND(), _xlfn.POISSON.DIST({0,1,2,3,4,5,6,7,8,9},$P14, TRUE),1), 0) -> 2 | CT14: =_xlfn.IFNA(MATCH(RAND(), _xlfn.POISSON.DIST({0,1,2,3,4,5,6,7,8,9},$P14, TRUE),1), 0) -> 1 | CU14: =_xlfn.IFNA(MATCH(RAND(), _xlfn.POISSON.DIST({0,1,2,3,4,5,6,7,8,9},$P14, TRUE),1), 0) -> 2 | CV14: =_xlfn.IFNA(MATCH(RAND(), _xlfn.POISSON.DIST({0,1,2,3,4,5,6,7,8,9},$P14, TRUE),1), 0) -> 0 | CW14: =_xlfn.IFNA(MATCH(RAND(), _xlfn.POISSON.DIST({0,1,2,3,4,5,6,7,8,9},$P14, TRUE),1), 0) -> 3 | CX14: =_xlfn.IFNA(MATCH(RAND(), _xlfn.POISSON.DIST({0,1,2,3,4,5,6,7,8,9},$P14, TRUE),1), 0) -> 1 | CY14: =_xlfn.IFNA(MATCH(RAND(), _xlfn.POISSON.DIST({0,1,2,3,4,5,6,7,8,9},$P14, TRUE),1), 0) -> 2 | CZ14: =_xlfn.IFNA(MATCH(RAND(), _xlfn.POISSON.DIST({0,1,2,3,4,5,6,7,8,9},$P14, TRUE),1), 0) -> 4 | DA14: =_xlfn.IFNA(MATCH(RAND(), _xlfn.POISSON.DIST({0,1,2,3,4,5,6,7,8,9},$P14, TRUE),1), 0) -> 4 | DB14: =_xlfn.IFNA(MATCH(RAND(), _xlfn.POISSON.DIST({0,1,2,3,4,5,6,7,8,9},$P14, TRUE),1), 0) -> 1 | DC14: =_xlfn.IFNA(MATCH(RAND(), _xlfn.POISSON.DIST({0,1,2,3,4,5,6,7,8,9},$P14, TRUE),1), 0) -> 1 | DD14: =_xlfn.IFNA(MATCH(RAND(), _xlfn.POISSON.DIST({0,1,2,3,4,5,6,7,8,9},$P14, TRUE),1), 0) -> 2 | DE14: =_xlfn.IFNA(MATCH(RAND(), _xlfn.POISSON.DIST({0,1,2,3,4,5,6,7,8,9},$P14, TRUE),1), 0) -> 2 | DF14: =_xlfn.IFNA(MATCH(RAND(), _xlfn.POISSON.DIST({0,1,2,3,4,5,6,7,8,9},$P14, TRUE),1), 0) -> 1 | DG14: =_xlfn.IFNA(MATCH(RAND(), _xlfn.POISSON.DIST({0,1,2,3,4,5,6,7,8,9},$P14, TRUE),1), 0) -> 0 | DH14: =_xlfn.IFNA(MATCH(RAND(), _xlfn.POISSON.DIST({0,1,2,3,4,5,6,7,8,9},$P14, TRUE),1), 0) -> 2 | DI14: =_xlfn.IFNA(MATCH(RAND(), _xlfn.POISSON.DIST({0,1,2,3,4,5,6,7,8,9},$P14, TRUE),1), 0) -> 3 | DJ14: =_xlfn.IFNA(MATCH(RAND(), _xlfn.POISSON.DIST({0,1,2,3,4,5,6,7,8,9},$P14, TRUE),1), 0) -> 1 | DK14: =_xlfn.IFNA(MATCH(RAND(), _xlfn.POISSON.DIST({0,1,2,3,4,5,6,7,8,9},$P14, TRUE),1), 0) -> 1 | DL14: =_xlfn.IFNA(MATCH(RAND(), _xlfn.POISSON.DIST({0,1,2,3,4,5,6,7,8,9},$P14, TRUE),1), 0) -> 4 | DM14: =_xlfn.IFNA(MATCH(RAND(), _xlfn.POISSON.DIST({0,1,2,3,4,5,6,7,8,9},$P14, TRUE),1), 0) -> 1
C15: 2019-06-11 | D15: E | E15: Nueva Zelanda | F15: =(AVERAGE(Q15:BN15))*(1+INDEX('Predicciones de la liguilla'!$C$4:$O$28, MATCH('Partidos de este año'!E15,'Predicciones de la liguilla'!$D$4:$D$28,0),3)) -> 1.56 | G15: Países Bajos | H15: =(AVERAGE(BP15:DM15))*(1+INDEX('Predicciones de la liguilla'!$C$4:$O$28, MATCH('Partidos de este año'!G15,'Predicciones de la liguilla'!$D$4:$D$28,0),3)) -> 1.72 | I15: =IF(L15>M15,E15,IF(L15=M15,"Dibujar",G15)) -> Países Bajos | L15: 1.56 | M15: 1.72 | N15: =IF(L15>M15,E15,IF(L15=M15,"Dibujar",G15)) -> Países Bajos | O15: =(OFFSET('Apéndice 3 - Goles por grupo'!$C$13,(INDEX('Apéndice 1 - Datos de equipos'!$C$13:$F$112,MATCH(G15,'Apéndice 1 - Datos de equipos'!$C$13:$C$112,0),4)/10),(INDEX('Apéndice 1 - Datos de equipos'!$C$13:$F$112,MATCH(E15,'Apéndice 1 - Datos de equipos'!$C$13:$C$112,0),4)/10))) -> 1.50 | P15: =OFFSET('Apéndice 3 - Goles por grupo'!$C$13,(INDEX('Apéndice 1 - Datos de equipos'!$C$13:$F$112, MATCH(E15,'Apéndice 1 - Datos de equipos'!$C$13:$C$112,0),4)/10), (INDEX('Apéndice 1 - Datos de equipos'!$C$13:$F$112, MATCH(G15, 'Apéndice 1 - Datos de equipos'!$C$13:$C$112,0),4)/10)) -> 1.50 | Q15: =_xlfn.IFNA(MATCH(RAND(), _xlfn.POISSON.DIST({0,1,2,3,4,5,6,7,8,9},$O15, TRUE),1), 0) -> 1 | R15: =_xlfn.IFNA(MATCH(RAND(), _xlfn.POISSON.DIST({0,1,2,3,4,5,6,7,8,9},$O15, TRUE),1), 0) -> 2 | S15: =_xlfn.IFNA(MATCH(RAND(), _xlfn.POISSON.DIST({0,1,2,3,4,5,6,7,8,9},$O15, TRUE),1), 0) -> 1 | T15: =_xlfn.IFNA(MATCH(RAND(), _xlfn.POISSON.DIST({0,1,2,3,4,5,6,7,8,9},$O15, TRUE),1), 0) -> 1 | U15: =_xlfn.IFNA(MATCH(RAND(), _xlfn.POISSON.DIST({0,1,2,3,4,5,6,7,8,9},$O15, TRUE),1), 0) -> 2 | V15: =_xlfn.IFNA(MATCH(RAND(), _xlfn.POISSON.DIST({0,1,2,3,4,5,6,7,8,9},$O15, TRUE),1), 0) -> 1 | W15: =_xlfn.IFNA(MATCH(RAND(), _xlfn.POISSON.DIST({0,1,2,3,4,5,6,7,8,9},$O15, TRUE),1), 0) -> 1 | X15: =_xlfn.IFNA(MATCH(RAND(), _xlfn.POISSON.DIST({0,1,2,3,4,5,6,7,8,9},$O15, TRUE),1), 0) -> 0 | Y15: =_xlfn.IFNA(MATCH(RAND(), _xlfn.POISSON.DIST({0,1,2,3,4,5,6,7,8,9},$O15, TRUE),1), 0) -> 2 | Z15: =_xlfn.IFNA(MATCH(RAND(), _xlfn.POISSON.DIST({0,1,2,3,4,5,6,7,8,9},$O15, TRUE),1), 0) -> 0 | AA15: =_xlfn.IFNA(MATCH(RAND(), _xlfn.POISSON.DIST({0,1,2,3,4,5,6,7,8,9},$O15, TRUE),1), 0) -> 0 | AB15: =_xlfn.IFNA(MATCH(RAND(), _xlfn.POISSON.DIST({0,1,2,3,4,5,6,7,8,9},$O15, TRUE),1), 0) -> 0 | AC15: =_xlfn.IFNA(MATCH(RAND(), _xlfn.POISSON.DIST({0,1,2,3,4,5,6,7,8,9},$O15, TRUE),1), 0) -> 2 | AD15: =_xlfn.IFNA(MATCH(RAND(), _xlfn.POISSON.DIST({0,1,2,3,4,5,6,7,8,9},$O15, TRUE),1), 0) -> 0 | AE15: =_xlfn.IFNA(MATCH(RAND(), _xlfn.POISSON.DIST({0,1,2,3,4,5,6,7,8,9},$O15, TRUE),1), 0) -> 1 | AF15: =_xlfn.IFNA(MATCH(RAND(), _xlfn.POISSON.DIST({0,1,2,3,4,5,6,7,8,9},$O15, TRUE),1), 0) -> 1 | AG15: =_xlfn.IFNA(MATCH(RAND(), _xlfn.POISSON.DIST({0,1,2,3,4,5,6,7,8,9},$O15, TRUE),1), 0) -> 2 | AH15: =_xlfn.IFNA(MATCH(RAND(), _xlfn.POISSON.DIST({0,1,2,3,4,5,6,7,8,9},$O15, TRUE),1), 0) -> 1 | AI15: =_xlfn.IFNA(MATCH(RAND(), _xlfn.POISSON.DIST({0,1,2,3,4,5,6,7,8,9},$O15, TRUE),1), 0) -> 1 | AJ15: =_xlfn.IFNA(MATCH(RAND(), _xlfn.POISSON.DIST({0,1,2,3,4,5,6,7,8,9},$O15, TRUE),1), 0) -> 2 | AK15: =_xlfn.IFNA(MATCH(RAND(), _xlfn.POISSON.DIST({0,1,2,3,4,5,6,7,8,9},$O15, TRUE),1), 0) -> 0 | AL15: =_xlfn.IFNA(MATCH(RAND(), _xlfn.POISSON.DIST({0,1,2,3,4,5,6,7,8,9},$O15, TRUE),1), 0) -> 3 | AM15: =_xlfn.IFNA(MATCH(RAND(), _xlfn.POISSON.DIST({0,1,2,3,4,5,6,7,8,9},$O15, TRUE),1), 0) -> 3 | AN15: =_xlfn.IFNA(MATCH(RAND(), _xlfn.POISSON.DIST({0,1,2,3,4,5,6,7,8,9},$O15, TRUE),1), 0) -> 0 | AO15: =_xlfn.IFNA(MATCH(RAND(), _xlfn.POISSON.DIST({0,1,2,3,4,5,6,7,8,9},$O15, TRUE),1), 0) -> 2 | AP15: =_xlfn.IFNA(MATCH(RAND(), _xlfn.POISSON.DIST({0,1,2,3,4,5,6,7,8,9},$O15, TRUE),1), 0) -> 2 | AQ15: =_xlfn.IFNA(MATCH(RAND(), _xlfn.POISSON.DIST({0,1,2,3,4,5,6,7,8,9},$O15, TRUE),1), 0) -> 3 | AR15: =_xlfn.IFNA(MATCH(RAND(), _xlfn.POISSON.DIST({0,1,2,3,4,5,6,7,8,9},$O15, TRUE),1), 0) -> 2 | AS15: =_xlfn.IFNA(MATCH(RAND(), _xlfn.POISSON.DIST({0,1,2,3,4,5,6,7,8,9},$O15, TRUE),1), 0) -> 2 | AT15: =_xlfn.IFNA(MATCH(RAND(), _xlfn.POISSON.DIST({0,1,2,3,4,5,6,7,8,9},$O15, TRUE),1), 0) -> 0 | AU15: =_xlfn.IFNA(MATCH(RAND(), _xlfn.POISSON.DIST({0,1,2,3,4,5,6,7,8,9},$O15, TRUE),1), 0) -> 2 | AV15: =_xlfn.IFNA(MATCH(RAND(), _xlfn.POISSON.DIST({0,1,2,3,4,5,6,7,8,9},$O15, TRUE),1), 0) -> 2 | AW15: =_xlfn.IFNA(MATCH(RAND(), _xlfn.POISSON.DIST({0,1,2,3,4,5,6,7,8,9},$O15, TRUE),1), 0) -> 2 | AX15: =_xlfn.IFNA(MATCH(RAND(), _xlfn.POISSON.DIST({0,1,2,3,4,5,6,7,8,9},$O15, TRUE),1), 0) -> 1 | AY15: =_xlfn.IFNA(MATCH(RAND(), _xlfn.POISSON.DIST({0,1,2,3,4,5,6,7,8,9},$O15, TRUE),1), 0) -> 4 | AZ15: =_xlfn.IFNA(MATCH(RAND(), _xlfn.POISSON.DIST({0,1,2,3,4,5,6,7,8,9},$O15, TRUE),1), 0) -> 1 | BA15: =_xlfn.IFNA(MATCH(RAND(), _xlfn.POISSON.DIST({0,1,2,3,4,5,6,7,8,9},$O15, TRUE),1), 0) -> 3 | BB15: =_xlfn.IFNA(MATCH(RAND(), _xlfn.POISSON.DIST({0,1,2,3,4,5,6,7,8,9},$O15, TRUE),1), 0) -> 2 | BC15: =_xlfn.IFNA(MATCH(RAND(), _xlfn.POISSON.DIST({0,1,2,3,4,5,6,7,8,9},$O15, TRUE),1), 0) -> 1 | BD15: =_xlfn.IFNA(MATCH(RAND(), _xlfn.POISSON.DIST({0,1,2,3,4,5,6,7,8,9},$O15, TRUE),1), 0) -> 0 | BE15: =_xlfn.IFNA(MATCH(RAND(), _xlfn.POISSON.DIST({0,1,2,3,4,5,6,7,8,9},$O15, TRUE),1), 0) -> 1 | BF15: =_xlfn.IFNA(MATCH(RAND(), _xlfn.POISSON.DIST({0,1,2,3,4,5,6,7,8,9},$O15, TRUE),1), 0) -> 2 | BG15: =_xlfn.IFNA(MATCH(RAND(), _xlfn.POISSON.DIST({0,1,2,3,4,5,6,7,8,9},$O15, TRUE),1), 0) -> 2 | BH15: =_xlfn.IFNA(MATCH(RAND(), _xlfn.POISSON.DIST({0,1,2,3,4,5,6,7,8,9},$O15, TRUE),1), 0) -> 1 | BI15: =_xlfn.IFNA(MATCH(RAND(), _xlfn.POISSON.DIST({0,1,2,3,4,5,6,7,8,9},$O15, TRUE),1), 0) -> 3 | BJ15: =_xlfn.IFNA(MATCH(RAND(), _xlfn.POISSON.DIST({0,1,2,3,4,5,6,7,8,9},$O15, TRUE),1), 0) -> 1 | BK15: =_xlfn.IFNA(MATCH(RAND(), _xlfn.POISSON.DIST({0,1,2,3,4,5,6,7,8,9},$O15, TRUE),1), 0) -> 1 | BL15: =_xlfn.IFNA(MATCH(RAND(), _xlfn.POISSON.DIST({0,1,2,3,4,5,6,7,8,9},$O15, TRUE),1), 0) -> 6 | BM15: =_xlfn.IFNA(MATCH(RAND(), _xlfn.POISSON.DIST({0,1,2,3,4,5,6,7,8,9},$O15, TRUE),1), 0) -> 2 | BN15: =_xlfn.IFNA(MATCH(RAND(), _xlfn.POISSON.DIST({0,1,2,3,4,5,6,7,8,9},$O15, TRUE),1), 0) -> 3 | BP15: =_xlfn.IFNA(MATCH(RAND(), _xlfn.POISSON.DIST({0,1,2,3,4,5,6,7,8,9},$P15, TRUE),1), 0) -> 1 | BQ15: =_xlfn.IFNA(MATCH(RAND(), _xlfn.POISSON.DIST({0,1,2,3,4,5,6,7,8,9},$P15, TRUE),1), 0) -> 2 | BR15: =_xlfn.IFNA(MATCH(RAND(), _xlfn.POISSON.DIST({0,1,2,3,4,5,6,7,8,9},$P15, TRUE),1), 0) -> 1 | BS15: =_xlfn.IFNA(MATCH(RAND(), _xlfn.POISSON.DIST({0,1,2,3,4,5,6,7,8,9},$P15, TRUE),1), 0) -> 2 | BT15: =_xlfn.IFNA(MATCH(RAND(), _xlfn.POISSON.DIST({0,1,2,3,4,5,6,7,8,9},$P15, TRUE),1), 0) -> 1 | BU15: =_xlfn.IFNA(MATCH(RAND(), _xlfn.POISSON.DIST({0,1,2,3,4,5,6,7,8,9},$P15, TRUE),1), 0) -> 4 | BV15: =_xlfn.IFNA(MATCH(RAND(), _xlfn.POISSON.DIST({0,1,2,3,4,5,6,7,8,9},$P15, TRUE),1), 0) -> 2 | BW15: =_xlfn.IFNA(MATCH(RAND(), _xlfn.POISSON.DIST({0,1,2,3,4,5,6,7,8,9},$P15, TRUE),1), 0) -> 3 | BX15: =_xlfn.IFNA(MATCH(RAND(), _xlfn.POISSON.DIST({0,1,2,3,4,5,6,7,8,9},$P15, TRUE),1), 0) -> 2 | BY15: =_xlfn.IFNA(MATCH(RAND(), _xlfn.POISSON.DIST({0,1,2,3,4,5,6,7,8,9},$P15, TRUE),1), 0) -> 3 | BZ15: =_xlfn.IFNA(MATCH(RAND(), _xlfn.POISSON.DIST({0,1,2,3,4,5,6,7,8,9},$P15, TRUE),1), 0) -> 1 | CA15: =_xlfn.IFNA(MATCH(RAND(), _xlfn.POISSON.DIST({0,1,2,3,4,5,6,7,8,9},$P15, TRUE),1), 0) -> 2 | CB15: =_xlfn.IFNA(MATCH(RAND(), _xlfn.POISSON.DIST({0,1,2,3,4,5,6,7,8,9},$P15, TRUE),1), 0) -> 3 | CC15: =_xlfn.IFNA(MATCH(RAND(), _xlfn.POISSON.DIST({0,1,2,3,4,5,6,7,8,9},$P15, TRUE),1), 0) -> 2 | CD15: =_xlfn.IFNA(MATCH(RAND(), _xlfn.POISSON.DIST({0,1,2,3,4,5,6,7,8,9},$P15, TRUE),1), 0) -> 1 | CE15: =_xlfn.IFNA(MATCH(RAND(), _xlfn.POISSON.DIST({0,1,2,3,4,5,6,7,8,9},$P15, TRUE),1), 0) -> 1 | CF15: =_xlfn.IFNA(MATCH(RAND(), _xlfn.POISSON.DIST({0,1,2,3,4,5,6,7,8,9},$P15, TRUE),1), 0) -> 1 | CG15: =_xlfn.IFNA(MATCH(RAND(), _xlfn.POISSON.DIST({0,1,2,3,4,5,6,7,8,9},$P15, TRUE),1), 0) -> 4 | CH15: =_xlfn.IFNA(MATCH(RAND(), _xlfn.POISSON.DIST({0,1,2,3,4,5,6,7,8,9},$P15, TRUE),1), 0) -> 1 | CI15: =_xlfn.IFNA(MATCH(RAND(), _xlfn.POISSON.DIST({0,1,2,3,4,5,6,7,8,9},$P15, TRUE),1), 0) -> 3 | CJ15: =_xlfn.IFNA(MATCH(RAND(), _xlfn.POISSON.DIST({0,1,2,3,4,5,6,7,8,9},$P15, TRUE),1), 0) -> 3 | CK15: =_xlfn.IFNA(MATCH(RAND(), _xlfn.POISSON.DIST({0,1,2,3,4,5,6,7,8,9},$P15, TRUE),1), 0) -> 1 | CL15: =_xlfn.IFNA(MATCH(RAND(), _xlfn.POISSON.DIST({0,1,2,3,4,5,6,7,8,9},$P15, TRUE),1), 0) -> 1 | CM15: =_xlfn.IFNA(MATCH(RAND(), _xlfn.POISSON.DIST({0,1,2,3,4,5,6,7,8,9},$P15, TRUE),1), 0) -> 2 | CN15: =_xlfn.IFNA(MATCH(RAND(), _xlfn.POISSON.DIST({0,1,2,3,4,5,6,7,8,9},$P15, TRUE),1), 0) -> 0 | CO15: =_xlfn.IFNA(MATCH(RAND(), _xlfn.POISSON.DIST({0,1,2,3,4,5,6,7,8,9},$P15, TRUE),1), 0) -> 1 | CP15: =_xlfn.IFNA(MATCH(RAND(), _xlfn.POISSON.DIST({0,1,2,3,4,5,6,7,8,9},$P15, TRUE),1), 0) -> 0 | CQ15: =_xlfn.IFNA(MATCH(RAND(), _xlfn.POISSON.DIST({0,1,2,3,4,5,6,7,8,9},$P15, TRUE),1), 0) -> 2 | CR15: =_xlfn.IFNA(MATCH(RAND(), _xlfn.POISSON.DIST({0,1,2,3,4,5,6,7,8,9},$P15, TRUE),1), 0) -> 3 | CS15: =_xlfn.IFNA(MATCH(RAND(), _xlfn.POISSON.DIST({0,1,2,3,4,5,6,7,8,9},$P15, TRUE),1), 0) -> 0 | CT15: =_xlfn.IFNA(MATCH(RAND(), _xlfn.POISSON.DIST({0,1,2,3,4,5,6,7,8,9},$P15, TRUE),1), 0) -> 3 | CU15: =_xlfn.IFNA(MATCH(RAND(), _xlfn.POISSON.DIST({0,1,2,3,4,5,6,7,8,9},$P15, TRUE),1), 0) -> 0 | CV15: =_xlfn.IFNA(MATCH(RAND(), _xlfn.POISSON.DIST({0,1,2,3,4,5,6,7,8,9},$P15, TRUE),1), 0) -> 0 | CW15: =_xlfn.IFNA(MATCH(RAND(), _xlfn.POISSON.DIST({0,1,2,3,4,5,6,7,8,9},$P15, TRUE),1), 0) -> 1 | CX15: =_xlfn.IFNA(MATCH(RAND(), _xlfn.POISSON.DIST({0,1,2,3,4,5,6,7,8,9},$P15, TRUE),1), 0) -> 1 | CY15: =_xlfn.IFNA(MATCH(RAND(), _xlfn.POISSON.DIST({0,1,2,3,4,5,6,7,8,9},$P15, TRUE),1), 0) -> 2 | CZ15: =_xlfn.IFNA(MATCH(RAND(), _xlfn.POISSON.DIST({0,1,2,3,4,5,6,7,8,9},$P15, TRUE),1), 0) -> 2 | DA15: =_xlfn.IFNA(MATCH(RAND(), _xlfn.POISSON.DIST({0,1,2,3,4,5,6,7,8,9},$P15, TRUE),1), 0) -> 0 | DB15: =_xlfn.IFNA(MATCH(RAND(), _xlfn.POISSON.DIST({0,1,2,3,4,5,6,7,8,9},$P15, TRUE),1), 0) -> 1 | DC15: =_xlfn.IFNA(MATCH(RAND(), _xlfn.POISSON.DIST({0,1,2,3,4,5,6,7,8,9},$P15, TRUE),1), 0) -> 3 | DD15: =_xlfn.IFNA(MATCH(RAND(), _xlfn.POISSON.DIST({0,1,2,3,4,5,6,7,8,9},$P15, TRUE),1), 0) -> 2 | DE15: =_xlfn.IFNA(MATCH(RAND(), _xlfn.POISSON.DIST({0,1,2,3,4,5,6,7,8,9},$P15, TRUE),1), 0) -> 0 | DF15: =_xlfn.IFNA(MATCH(RAND(), _xlfn.POISSON.DIST({0,1,2,3,4,5,6,7,8,9},$P15, TRUE),1), 0) -> 3 | DG15: =_xlfn.IFNA(MATCH(RAND(), _xlfn.POISSON.DIST({0,1,2,3,4,5,6,7,8,9},$P15, TRUE),1), 0) -> 1 | DH15: =_xlfn.IFNA(MATCH(RAND(), _xlfn.POISSON.DIST({0,1,2,3,4,5,6,7,8,9},$P15, TRUE),1), 0) -> 3 | DI15: =_xlfn.IFNA(MATCH(RAND(), _xlfn.POISSON.DIST({0,1,2,3,4,5,6,7,8,9},$P15, TRUE),1), 0) -> 1 | DJ15: =_xlfn.IFNA(MATCH(RAND(), _xlfn.POISSON.DIST({0,1,2,3,4,5,6,7,8,9},$P15, TRUE),1), 0) -> 2 | DK15: =_xlfn.IFNA(MATCH(RAND(), _xlfn.POISSON.DIST({0,1,2,3,4,5,6,7,8,9},$P15, TRUE),1), 0) -> 2 | DL15: =_xlfn.IFNA(MATCH(RAND(), _xlfn.POISSON.DIST({0,1,2,3,4,5,6,7,8,9},$P15, TRUE),1), 0) -> 4 | DM15: =_xlfn.IFNA(MATCH(RAND(), _xlfn.POISSON.DIST({0,1,2,3,4,5,6,7,8,9},$P15, TRUE),1), 0) -> 2
C16: 2019-06-11 | D16: F | E16: Chile | F16: =(AVERAGE(Q16:BN16))*(1+INDEX('Predicciones de la liguilla'!$C$4:$O$28, MATCH('Partidos de este año'!E16,'Predicciones de la liguilla'!$D$4:$D$28,0),3)) -> 0.28 | G16: Suecia | H16: =(AVERAGE(BP16:DM16))*(1+INDEX('Predicciones de la liguilla'!$C$4:$O$28, MATCH('Partidos de este año'!G16,'Predicciones de la liguilla'!$D$4:$D$28,0),3)) -> 2.90 | I16: =IF(L16>M16,E16,IF(L16=M16,"Dibujar",G16)) -> Suecia | L16: 0.28 | M16: 2.9 | N16: =IF(L16>M16,E16,IF(L16=M16,"Dibujar",G16)) -> Suecia | O16: =(OFFSET('Apéndice 3 - Goles por grupo'!$C$13,(INDEX('Apéndice 1 - Datos de equipos'!$C$13:$F$112,MATCH(G16,'Apéndice 1 - Datos de equipos'!$C$13:$C$112,0),4)/10),(INDEX('Apéndice 1 - Datos de equipos'!$C$13:$F$112,MATCH(E16,'Apéndice 1 - Datos de equipos'!$C$13:$C$112,0),4)/10))) -> 0.38 | P16: =OFFSET('Apéndice 3 - Goles por grupo'!$C$13,(INDEX('Apéndice 1 - Datos de equipos'!$C$13:$F$112, MATCH(E16,'Apéndice 1 - Datos de equipos'!$C$13:$C$112,0),4)/10), (INDEX('Apéndice 1 - Datos de equipos'!$C$13:$F$112, MATCH(G16, 'Apéndice 1 - Datos de equipos'!$C$13:$C$112,0),4)/10)) -> 2.94 | Q16: =_xlfn.IFNA(MATCH(RAND(), _xlfn.POISSON.DIST({0,1,2,3,4,5,6,7,8,9},$O16, TRUE),1), 0) -> 1 | R16: =_xlfn.IFNA(MATCH(RAND(), _xlfn.POISSON.DIST({0,1,2,3,4,5,6,7,8,9},$O16, TRUE),1), 0) -> 1 | S16: =_xlfn.IFNA(MATCH(RAND(), _xlfn.POISSON.DIST({0,1,2,3,4,5,6,7,8,9},$O16, TRUE),1), 0) -> 1 | T16: =_xlfn.IFNA(MATCH(RAND(), _xlfn.POISSON.DIST({0,1,2,3,4,5,6,7,8,9},$O16, TRUE),1), 0) -> 1 | U16: =_xlfn.IFNA(MATCH(RAND(), _xlfn.POISSON.DIST({0,1,2,3,4,5,6,7,8,9},$O16, TRUE),1), 0) -> 0 | V16: =_xlfn.IFNA(MATCH(RAND(), _xlfn.POISSON.DIST({0,1,2,3,4,5,6,7,8,9},$O16, TRUE),1), 0) -> 0 | W16: =_xlfn.IFNA(MATCH(RAND(), _xlfn.POISSON.DIST({0,1,2,3,4,5,6,7,8,9},$O16, TRUE),1), 0) -> 0 | X16: =_xlfn.IFNA(MATCH(RAND(), _xlfn.POISSON.DIST({0,1,2,3,4,5,6,7,8,9},$O16, TRUE),1), 0) -> 0 | Y16: =_xlfn.IFNA(MATCH(RAND(), _xlfn.POISSON.DIST({0,1,2,3,4,5,6,7,8,9},$O16, TRUE),1), 0) -> 0 | Z16: =_xlfn.IFNA(MATCH(RAND(), _xlfn.POISSON.DIST({0,1,2,3,4,5,6,7,8,9},$O16, TRUE),1), 0) -> 0 | AA16: =_xlfn.IFNA(MATCH(RAND(), _xlfn.POISSON.DIST({0,1,2,3,4,5,6,7,8,9},$O16, TRUE),1), 0) -> 0 | AB16: =_xlfn.IFNA(MATCH(RAND(), _xlfn.POISSON.DIST({0,1,2,3,4,5,6,7,8,9},$O16, TRUE),1), 0) -> 0 | AC16: =_xlfn.IFNA(MATCH(RAND(), _xlfn.POISSON.DIST({0,1,2,3,4,5,6,7,8,9},$O16, TRUE),1), 0) -> 0 | AD16: =_xlfn.IFNA(MATCH(RAND(), _xlfn.POISSON.DIST({0,1,2,3,4,5,6,7,8,9},$O16, TRUE),1), 0) -> 0 | AE16: =_xlfn.IFNA(MATCH(RAND(), _xlfn.POISSON.DIST({0,1,2,3,4,5,6,7,8,9},$O16, TRUE),1), 0) -> 2 | AF16: =_xlfn.IFNA(MATCH(RAND(), _xlfn.POISSON.DIST({0,1,2,3,4,5,6,7,8,9},$O16, TRUE),1), 0) -> 0 | AG16: =_xlfn.IFNA(MATCH(RAND(), _xlfn.POISSON.DIST({0,1,2,3,4,5,6,7,8,9},$O16, TRUE),1), 0) -> 0 | AH16: =_xlfn.IFNA(MATCH(RAND(), _xlfn.POISSON.DIST({0,1,2,3,4,5,6,7,8,9},$O16, TRUE),1), 0) -> 0 | AI16: =_xlfn.IFNA(MATCH(RAND(), _xlfn.POISSON.DIST({0,1,2,3,4,5,6,7,8,9},$O16, TRUE),1), 0) -> 0 | AJ16: =_xlfn.IFNA(MATCH(RAND(), _xlfn.POISSON.DIST({0,1,2,3,4,5,6,7,8,9},$O16, TRUE),1), 0) -> 0 | AK16: =_xlfn.IFNA(MATCH(RAND(), _xlfn.POISSON.DIST({0,1,2,3,4,5,6,7,8,9},$O16, TRUE),1), 0) -> 0 | AL16: =_xlfn.IFNA(MATCH(RAND(), _xlfn.POISSON.DIST({0,1,2,3,4,5,6,7,8,9},$O16, TRUE),1), 0) -> 0 | AM16: =_xlfn.IFNA(MATCH(RAND(), _xlfn.POISSON.DIST({0,1,2,3,4,5,6,7,8,9},$O16, TRUE),1), 0) -> 0 | AN16: =_xlfn.IFNA(MATCH(RAND(), _xlfn.POISSON.DIST({0,1,2,3,4,5,6,7,8,9},$O16, TRUE),1), 0) -> 1 | AO16: =_xlfn.IFNA(MATCH(RAND(), _xlfn.POISSON.DIST({0,1,2,3,4,5,6,7,8,9},$O16, TRUE),1), 0) -> 1 | AP16: =_xlfn.IFNA(MATCH(RAND(), _xlfn.POISSON.DIST({0,1,2,3,4,5,6,7,8,9},$O16, TRUE),1), 0) -> 0 | AQ16: =_xlfn.IFNA(MATCH(RAND(), _xlfn.POISSON.DIST({0,1,2,3,4,5,6,7,8,9},$O16, TRUE),1), 0) -> 0 | AR16: =_xlfn.IFNA(MATCH(RAND(), _xlfn.POISSON.DIST({0,1,2,3,4,5,6,7,8,9},$O16, TRUE),1), 0) -> 0 | AS16: =_xlfn.IFNA(MATCH(RAND(), _xlfn.POISSON.DIST({0,1,2,3,4,5,6,7,8,9},$O16, TRUE),1), 0) -> 0 | AT16: =_xlfn.IFNA(MATCH(RAND(), _xlfn.POISSON.DIST({0,1,2,3,4,5,6,7,8,9},$O16, TRUE),1), 0) -> 0 | AU16: =_xlfn.IFNA(MATCH(RAND(), _xlfn.POISSON.DIST({0,1,2,3,4,5,6,7,8,9},$O16, TRUE),1), 0) -> 0 | AV16: =_xlfn.IFNA(MATCH(RAND(), _xlfn.POISSON.DIST({0,1,2,3,4,5,6,7,8,9},$O16, TRUE),1), 0) -> 0 | AW16: =_xlfn.IFNA(MATCH(RAND(), _xlfn.POISSON.DIST({0,1,2,3,4,5,6,7,8,9},$O16, TRUE),1), 0) -> 0 | AX16: =_xlfn.IFNA(MATCH(RAND(), _xlfn.POISSON.DIST({0,1,2,3,4,5,6,7,8,9},$O16, TRUE),1), 0) -> 0 | AY16: =_xlfn.IFNA(MATCH(RAND(), _xlfn.POISSON.DIST({0,1,2,3,4,5,6,7,8,9},$O16, TRUE),1), 0) -> 0 | AZ16: =_xlfn.IFNA(MATCH(RAND(), _xlfn.POISSON.DIST({0,1,2,3,4,5,6,7,8,9},$O16, TRUE),1), 0) -> 0 | BA16: =_xlfn.IFNA(MATCH(RAND(), _xlfn.POISSON.DIST({0,1,2,3,4,5,6,7,8,9},$O16, TRUE),1), 0) -> 0 | BB16: =_xlfn.IFNA(MATCH(RAND(), _xlfn.POISSON.DIST({0,1,2,3,4,5,6,7,8,9},$O16, TRUE),1), 0) -> 1 | BC16: =_xlfn.IFNA(MATCH(RAND(), _xlfn.POISSON.DIST({0,1,2,3,4,5,6,7,8,9},$O16, TRUE),1), 0) -> 0 | BD16: =_xlfn.IFNA(MATCH(RAND(), _xlfn.POISSON.DIST({0,1,2,3,4,5,6,7,8,9},$O16, TRUE),1), 0) -> 2 | BE16: =_xlfn.IFNA(MATCH(RAND(), _xlfn.POISSON.DIST({0,1,2,3,4,5,6,7,8,9},$O16, TRUE),1), 0) -> 0 | BF16: =_xlfn.IFNA(MATCH(RAND(), _xlfn.POISSON.DIST({0,1,2,3,4,5,6,7,8,9},$O16, TRUE),1), 0) -> 0 | BG16: =_xlfn.IFNA(MATCH(RAND(), _xlfn.POISSON.DIST({0,1,2,3,4,5,6,7,8,9},$O16, TRUE),1), 0) -> 0 | BH16: =_xlfn.IFNA(MATCH(RAND(), _xlfn.POISSON.DIST({0,1,2,3,4,5,6,7,8,9},$O16, TRUE),1), 0) -> 0 | BI16: =_xlfn.IFNA(MATCH(RAND(), _xlfn.POISSON.DIST({0,1,2,3,4,5,6,7,8,9},$O16, TRUE),1), 0) -> 0 | BJ16: =_xlfn.IFNA(MATCH(RAND(), _xlfn.POISSON.DIST({0,1,2,3,4,5,6,7,8,9},$O16, TRUE),1), 0) -> 1 | BK16: =_xlfn.IFNA(MATCH(RAND(), _xlfn.POISSON.DIST({0,1,2,3,4,5,6,7,8,9},$O16, TRUE),1), 0) -> 2 | BL16: =_xlfn.IFNA(MATCH(RAND(), _xlfn.POISSON.DIST({0,1,2,3,4,5,6,7,8,9},$O16, TRUE),1), 0) -> 0 | BM16: =_xlfn.IFNA(MATCH(RAND(), _xlfn.POISSON.DIST({0,1,2,3,4,5,6,7,8,9},$O16, TRUE),1), 0) -> 0 | BN16: =_xlfn.IFNA(MATCH(RAND(), _xlfn.POISSON.DIST({0,1,2,3,4,5,6,7,8,9},$O16, TRUE),1), 0) -> 0 | BP16: =_xlfn.IFNA(MATCH(RAND(), _xlfn.POISSON.DIST({0,1,2,3,4,5,6,7,8,9},$P16, TRUE),1), 0) -> 6 | BQ16: =_xlfn.IFNA(MATCH(RAND(), _xlfn.POISSON.DIST({0,1,2,3,4,5,6,7,8,9},$P16, TRUE),1), 0) -> 4 | BR16: =_xlfn.IFNA(MATCH(RAND(), _xlfn.POISSON.DIST({0,1,2,3,4,5,6,7,8,9},$P16, TRUE),1), 0) -> 0 | BS16: =_xlfn.IFNA(MATCH(RAND(), _xlfn.POISSON.DIST({0,1,2,3,4,5,6,7,8,9},$P16, TRUE),1), 0) -> 7 | BT16: =_xlfn.IFNA(MATCH(RAND(), _xlfn.POISSON.DIST({0,1,2,3,4,5,6,7,8,9},$P16, TRUE),1), 0) -> 0 | BU16: =_xlfn.IFNA(MATCH(RAND(), _xlfn.POISSON.DIST({0,1,2,3,4,5,6,7,8,9},$P16, TRUE),1), 0) -> 3 | BV16: =_xlfn.IFNA(MATCH(RAND(), _xlfn.POISSON.DIST({0,1,2,3,4,5,6,7,8,9},$P16, TRUE),1), 0) -> 2 | BW16: =_xlfn.IFNA(MATCH(RAND(), _xlfn.POISSON.DIST({0,1,2,3,4,5,6,7,8,9},$P16, TRUE),1), 0) -> 3 | BX16: =_xlfn.IFNA(MATCH(RAND(), _xlfn.POISSON.DIST({0,1,2,3,4,5,6,7,8,9},$P16, TRUE),1), 0) -> 7 | BY16: =_xlfn.IFNA(MATCH(RAND(), _xlfn.POISSON.DIST({0,1,2,3,4,5,6,7,8,9},$P16, TRUE),1), 0) -> 1 | BZ16: =_xlfn.IFNA(MATCH(RAND(), _xlfn.POISSON.DIST({0,1,2,3,4,5,6,7,8,9},$P16, TRUE),1), 0) -> 2 | CA16: =_xlfn.IFNA(MATCH(RAND(), _xlfn.POISSON.DIST({0,1,2,3,4,5,6,7,8,9},$P16, TRUE),1), 0) -> 1 | CB16: =_xlfn.IFNA(MATCH(RAND(), _xlfn.POISSON.DIST({0,1,2,3,4,5,6,7,8,9},$P16, TRUE),1), 0) -> 3 | CC16: =_xlfn.IFNA(MATCH(RAND(), _xlfn.POISSON.DIST({0,1,2,3,4,5,6,7,8,9},$P16, TRUE),1), 0) -> 1 | CD16: =_xlfn.IFNA(MATCH(RAND(), _xlfn.POISSON.DIST({0,1,2,3,4,5,6,7,8,9},$P16, TRUE),1), 0) -> 5 | CE16: =_xlfn.IFNA(MATCH(RAND(), _xlfn.POISSON.DIST({0,1,2,3,4,5,6,7,8,9},$P16, TRUE),1), 0) -> 5 | CF16: =_xlfn.IFNA(MATCH(RAND(), _xlfn.POISSON.DIST({0,1,2,3,4,5,6,7,8,9},$P16, TRUE),1), 0) -> 1 | CG16: =_xlfn.IFNA(MATCH(RAND(), _xlfn.POISSON.DIST({0,1,2,3,4,5,6,7,8,9},$P16, TRUE),1), 0) -> 3 | CH16: =_xlfn.IFNA(MATCH(RAND(), _xlfn.POISSON.DIST({0,1,2,3,4,5,6,7,8,9},$P16, TRUE),1), 0) -> 1 | CI16: =_xlfn.IFNA(MATCH(RAND(), _xlfn.POISSON.DIST({0,1,2,3,4,5,6,7,8,9},$P16, TRUE),1), 0) -> 1 | CJ16: =_xlfn.IFNA(MATCH(RAND(), _xlfn.POISSON.DIST({0,1,2,3,4,5,6,7,8,9},$P16, TRUE),1), 0) -> 3 | CK16: =_xlfn.IFNA(MATCH(RAND(), _xlfn.POISSON.DIST({0,1,2,3,4,5,6,7,8,9},$P16, TRUE),1), 0) -> 1 | CL16: =_xlfn.IFNA(MATCH(RAND(), _xlfn.POISSON.DIST({0,1,2,3,4,5,6,7,8,9},$P16, TRUE),1), 0) -> 0 | CM16: =_xlfn.IFNA(MATCH(RAND(), _xlfn.POISSON.DIST({0,1,2,3,4,5,6,7,8,9},$P16, TRUE),1), 0) -> 2 | CN16: =_xlfn.IFNA(MATCH(RAND(), _xlfn.POISSON.DIST({0,1,2,3,4,5,6,7,8,9},$P16, TRUE),1), 0) -> 6 | CO16: =_xlfn.IFNA(MATCH(RAND(), _xlfn.POISSON.DIST({0,1,2,3,4,5,6,7,8,9},$P16, TRUE),1), 0) -> 5 | CP16: =_xlfn.IFNA(MATCH(RAND(), _xlfn.POISSON.DIST({0,1,2,3,4,5,6,7,8,9},$P16, TRUE),1), 0) -> 2 | CQ16: =_xlfn.IFNA(MATCH(RAND(), _xlfn.POISSON.DIST({0,1,2,3,4,5,6,7,8,9},$P16, TRUE),1), 0) -> 4 | CR16: =_xlfn.IFNA(MATCH(RAND(), _xlfn.POISSON.DIST({0,1,2,3,4,5,6,7,8,9},$P16, TRUE),1), 0) -> 1 | CS16: =_xlfn.IFNA(MATCH(RAND(), _xlfn.POISSON.DIST({0,1,2,3,4,5,6,7,8,9},$P16, TRUE),1), 0) -> 6 | CT16: =_xlfn.IFNA(MATCH(RAND(), _xlfn.POISSON.DIST({0,1,2,3,4,5,6,7,8,9},$P16, TRUE),1), 0) -> 2 | CU16: =_xlfn.IFNA(MATCH(RAND(), _xlfn.POISSON.DIST({0,1,2,3,4,5,6,7,8,9},$P16, TRUE),1), 0) -> 6 | CV16: =_xlfn.IFNA(MATCH(RAND(), _xlfn.POISSON.DIST({0,1,2,3,4,5,6,7,8,9},$P16, TRUE),1), 0) -> 2 | CW16: =_xlfn.IFNA(MATCH(RAND(), _xlfn.POISSON.DIST({0,1,2,3,4,5,6,7,8,9},$P16, TRUE),1), 0) -> 0 | CX16: =_xlfn.IFNA(MATCH(RAND(), _xlfn.POISSON.DIST({0,1,2,3,4,5,6,7,8,9},$P16, TRUE),1), 0) -> 2 | CY16: =_xlfn.IFNA(MATCH(RAND(), _xlfn.POISSON.DIST({0,1,2,3,4,5,6,7,8,9},$P16, TRUE),1), 0) -> 3 | CZ16: =_xlfn.IFNA(MATCH(RAND(), _xlfn.POISSON.DIST({0,1,2,3,4,5,6,7,8,9},$P16, TRUE),1), 0) -> 5 | DA16: =_xlfn.IFNA(MATCH(RAND(), _xlfn.POISSON.DIST({0,1,2,3,4,5,6,7,8,9},$P16, TRUE),1), 0) -> 4 | DB16: =_xlfn.IFNA(MATCH(RAND(), _xlfn.POISSON.DIST({0,1,2,3,4,5,6,7,8,9},$P16, TRUE),1), 0) -> 4 | DC16: =_xlfn.IFNA(MATCH(RAND(), _xlfn.POISSON.DIST({0,1,2,3,4,5,6,7,8,9},$P16, TRUE),1), 0) -> 1 | DD16: =_xlfn.IFNA(MATCH(RAND(), _xlfn.POISSON.DIST({0,1,2,3,4,5,6,7,8,9},$P16, TRUE),1), 0) -> 2 | DE16: =_xlfn.IFNA(MATCH(RAND(), _xlfn.POISSON.DIST({0,1,2,3,4,5,6,7,8,9},$P16, TRUE),1), 0) -> 4 | DF16: =_xlfn.IFNA(MATCH(RAND(), _xlfn.POISSON.DIST({0,1,2,3,4,5,6,7,8,9},$P16, TRUE),1), 0) -> 3 | DG16: =_xlfn.IFNA(MATCH(RAND(), _xlfn.POISSON.DIST({0,1,2,3,4,5,6,7,8,9},$P16, TRUE),1), 0) -> 2 | DH16: =_xlfn.IFNA(MATCH(RAND(), _xlfn.POISSON.DIST({0,1,2,3,4,5,6,7,8,9},$P16, TRUE),1), 0) -> 4 | DI16: =_xlfn.IFNA(MATCH(RAND(), _xlfn.POISSON.DIST({0,1,2,3,4,5,6,7,8,9},$P16, TRUE),1), 0) -> 2 | DJ16: =_xlfn.IFNA(MATCH(RAND(), _xlfn.POISSON.DIST({0,1,2,3,4,5,6,7,8,9},$P16, TRUE),1), 0) -> 4 | DK16: =_xlfn.IFNA(MATCH(RAND(), _xlfn.POISSON.DIST({0,1,2,3,4,5,6,7,8,9},$P16, TRUE),1), 0) -> 1 | DL16: =_xlfn.IFNA(MATCH(RAND(), _xlfn.POISSON.DIST({0,1,2,3,4,5,6,7,8,9},$P16, TRUE),1), 0) -> 2 | DM16: =_xlfn.IFNA(MATCH(RAND(), _xlfn.POISSON.DIST({0,1,2,3,4,5,6,7,8,9},$P16, TRUE),1), 0) -> 6
C17: 2019-06-11 | D17: F | E17: Estados Unidos | F17: =(AVERAGE(Q17:BN17))*(1+INDEX('Predicciones de la liguilla'!$C$4:$O$28, MATCH('Partidos de este año'!E17,'Predicciones de la liguilla'!$D$4:$D$28,0),3)) -> 3.00 | G17: Tailandia | H17: =(AVERAGE(BP17:DM17))*(1+INDEX('Predicciones de la liguilla'!$C$4:$O$28, MATCH('Partidos de este año'!G17,'Predicciones de la liguilla'!$D$4:$D$28,0),3)) -> 0.20 | I17: =IF(L17>M17,E17,IF(L17=M17,"Dibujar",G17)) -> Estados Unidos | L17: 3 | M17: 0.2 | N17: =IF(L17>M17,E17,IF(L17=M17,"Dibujar",G17)) -> Estados Unidos | O17: =(OFFSET('Apéndice 3 - Goles por grupo'!$C$13,(INDEX('Apéndice 1 - Datos de equipos'!$C$13:$F$112,MATCH(G17,'Apéndice 1 - Datos de equipos'!$C$13:$C$112,0),4)/10),(INDEX('Apéndice 1 - Datos de equipos'!$C$13:$F$112,MATCH(E17,'Apéndice 1 - Datos de equipos'!$C$13:$C$112,0),4)/10))) -> 2.94 | P17: =OFFSET('Apéndice 3 - Goles por grupo'!$C$13,(INDEX('Apéndice 1 - Datos de equipos'!$C$13:$F$112, MATCH(E17,'Apéndice 1 - Datos de equipos'!$C$13:$C$112,0),4)/10), (INDEX('Apéndice 1 - Datos de equipos'!$C$13:$F$112, MATCH(G17, 'Apéndice 1 - Datos de equipos'!$C$13:$C$112,0),4)/10)) -> 0.38 | Q17: =_xlfn.IFNA(MATCH(RAND(), _xlfn.POISSON.DIST({0,1,2,3,4,5,6,7,8,9},$O17, TRUE),1), 0) -> 2 | R17: =_xlfn.IFNA(MATCH(RAND(), _xlfn.POISSON.DIST({0,1,2,3,4,5,6,7,8,9},$O17, TRUE),1), 0) -> 2 | S17: =_xlfn.IFNA(MATCH(RAND(), _xlfn.POISSON.DIST({0,1,2,3,4,5,6,7,8,9},$O17, TRUE),1), 0) -> 3 | T17: =_xlfn.IFNA(MATCH(RAND(), _xlfn.POISSON.DIST({0,1,2,3,4,5,6,7,8,9},$O17, TRUE),1), 0) -> 1 | U17: =_xlfn.IFNA(MATCH(RAND(), _xlfn.POISSON.DIST({0,1,2,3,4,5,6,7,8,9},$O17, TRUE),1), 0) -> 6 | V17: =_xlfn.IFNA(MATCH(RAND(), _xlfn.POISSON.DIST({0,1,2,3,4,5,6,7,8,9},$O17, TRUE),1), 0) -> 4 | W17: =_xlfn.IFNA(MATCH(RAND(), _xlfn.POISSON.DIST({0,1,2,3,4,5,6,7,8,9},$O17, TRUE),1), 0) -> 5 | X17: =_xlfn.IFNA(MATCH(RAND(), _xlfn.POISSON.DIST({0,1,2,3,4,5,6,7,8,9},$O17, TRUE),1), 0) -> 3 | Y17: =_xlfn.IFNA(MATCH(RAND(), _xlfn.POISSON.DIST({0,1,2,3,4,5,6,7,8,9},$O17, TRUE),1), 0) -> 5 | Z17: =_xlfn.IFNA(MATCH(RAND(), _xlfn.POISSON.DIST({0,1,2,3,4,5,6,7,8,9},$O17, TRUE),1), 0) -> 3 | AA17: =_xlfn.IFNA(MATCH(RAND(), _xlfn.POISSON.DIST({0,1,2,3,4,5,6,7,8,9},$O17, TRUE),1), 0) -> 1 | AB17: =_xlfn.IFNA(MATCH(RAND(), _xlfn.POISSON.DIST({0,1,2,3,4,5,6,7,8,9},$O17, TRUE),1), 0) -> 4 | AC17: =_xlfn.IFNA(MATCH(RAND(), _xlfn.POISSON.DIST({0,1,2,3,4,5,6,7,8,9},$O17, TRUE),1), 0) -> 5 | AD17: =_xlfn.IFNA(MATCH(RAND(), _xlfn.POISSON.DIST({0,1,2,3,4,5,6,7,8,9},$O17, TRUE),1), 0) -> 5 | AE17: =_xlfn.IFNA(MATCH(RAND(), _xlfn.POISSON.DIST({0,1,2,3,4,5,6,7,8,9},$O17, TRUE),1), 0) -> 1 | AF17: =_xlfn.IFNA(MATCH(RAND(), _xlfn.POISSON.DIST({0,1,2,3,4,5,6,7,8,9},$O17, TRUE),1), 0) -> 2 | AG17: =_xlfn.IFNA(MATCH(RAND(), _xlfn.POISSON.DIST({0,1,2,3,4,5,6,7,8,9},$O17, TRUE),1), 0) -> 1 | AH17: =_xlfn.IFNA(MATCH(RAND(), _xlfn.POISSON.DIST({0,1,2,3,4,5,6,7,8,9},$O17, TRUE),1), 0) -> 6 | AI17: =_xlfn.IFNA(MATCH(RAND(), _xlfn.POISSON.DIST({0,1,2,3,4,5,6,7,8,9},$O17, TRUE),1), 0) -> 4 | AJ17: =_xlfn.IFNA(MATCH(RAND(), _xlfn.POISSON.DIST({0,1,2,3,4,5,6,7,8,9},$O17, TRUE),1), 0) -> 1 | AK17: =_xlfn.IFNA(MATCH(RAND(), _xlfn.POISSON.DIST({0,1,2,3,4,5,6,7,8,9},$O17, TRUE),1), 0) -> 4 | AL17: =_xlfn.IFNA(MATCH(RAND(), _xlfn.POISSON.DIST({0,1,2,3,4,5,6,7,8,9},$O17, TRUE),1), 0) -> 5 | AM17: =_xlfn.IFNA(MATCH(RAND(), _xlfn.POISSON.DIST({0,1,2,3,4,5,6,7,8,9},$O17, TRUE),1), 0) -> 0 | AN17: =_xlfn.IFNA(MATCH(RAND(), _xlfn.POISSON.DIST({0,1,2,3,4,5,6,7,8,9},$O17, TRUE),1), 0) -> 2 | AO17: =_xlfn.IFNA(MATCH(RAND(), _xlfn.POISSON.DIST({0,1,2,3,4,5,6,7,8,9},$O17, TRUE),1), 0) -> 3 | AP17: =_xlfn.IFNA(MATCH(RAND(), _xlfn.POISSON.DIST({0,1,2,3,4,5,6,7,8,9},$O17, TRUE),1), 0) -> 2 | AQ17: =_xlfn.IFNA(MATCH(RAND(), _xlfn.POISSON.DIST({0,1,2,3,4,5,6,7,8,9},$O17, TRUE),1), 0) -> 4 | AR17: =_xlfn.IFNA(MATCH(RAND(), _xlfn.POISSON.DIST({0,1,2,3,4,5,6,7,8,9},$O17, TRUE),1), 0) -> 2 | AS17: =_xlfn.IFNA(MATCH(RAND(), _xlfn.POISSON.DIST({0,1,2,3,4,5,6,7,8,9},$O17, TRUE),1), 0) -> 4 | AT17: =_xlfn.IFNA(MATCH(RAND(), _xlfn.POISSON.DIST({0,1,2,3,4,5,6,7,8,9},$O17, TRUE),1), 0) -> 7 | AU17: =_xlfn.IFNA(MATCH(RAND(), _xlfn.POISSON.DIST({0,1,2,3,4,5,6,7,8,9},$O17, TRUE),1), 0) -> 4 | AV17: =_xlfn.IFNA(MATCH(RAND(), _xlfn.POISSON.DIST({0,1,2,3,4,5,6,7,8,9},$O17, TRUE),1), 0) -> 2 | AW17: =_xlfn.IFNA(MATCH(RAND(), _xlfn.POISSON.DIST({0,1,2,3,4,5,6,7,8,9},$O17, TRUE),1), 0) -> 3 | AX17: =_xlfn.IFNA(MATCH(RAND(), _xlfn.POISSON.DIST({0,1,2,3,4,5,6,7,8,9},$O17, TRUE),1), 0) -> 2 | AY17: =_xlfn.IFNA(MATCH(RAND(), _xlfn.POISSON.DIST({0,1,2,3,4,5,6,7,8,9},$O17, TRUE),1), 0) -> 0 | AZ17: =_xlfn.IFNA(MATCH(RAND(), _xlfn.POISSON.DIST({0,1,2,3,4,5,6,7,8,9},$O17, TRUE),1), 0) -> 6 | BA17: =_xlfn.IFNA(MATCH(RAND(), _xlfn.POISSON.DIST({0,1,2,3,4,5,6,7,8,9},$O17, TRUE),1), 0) -> 1 | BB17: =_xlfn.IFNA(MATCH(RAND(), _xlfn.POISSON.DIST({0,1,2,3,4,5,6,7,8,9},$O17, TRUE),1), 0) -> 5 | BC17: =_xlfn.IFNA(MATCH(RAND(), _xlfn.POISSON.DIST({0,1,2,3,4,5,6,7,8,9},$O17, TRUE),1), 0) -> 4 | BD17: =_xlfn.IFNA(MATCH(RAND(), _xlfn.POISSON.DIST({0,1,2,3,4,5,6,7,8,9},$O17, TRUE),1), 0) -> 0 | BE17: =_xlfn.IFNA(MATCH(RAND(), _xlfn.POISSON.DIST({0,1,2,3,4,5,6,7,8,9},$O17, TRUE),1), 0) -> 3 | BF17: =_xlfn.IFNA(MATCH(RAND(), _xlfn.POISSON.DIST({0,1,2,3,4,5,6,7,8,9},$O17, TRUE),1), 0) -> 1 | BG17: =_xlfn.IFNA(MATCH(RAND(), _xlfn.POISSON.DIST({0,1,2,3,4,5,6,7,8,9},$O17, TRUE),1), 0) -> 1 | BH17: =_xlfn.IFNA(MATCH(RAND(), _xlfn.POISSON.DIST({0,1,2,3,4,5,6,7,8,9},$O17, TRUE),1), 0) -> 4 | BI17: =_xlfn.IFNA(MATCH(RAND(), _xlfn.POISSON.DIST({0,1,2,3,4,5,6,7,8,9},$O17, TRUE),1), 0) -> 1 | BJ17: =_xlfn.IFNA(MATCH(RAND(), _xlfn.POISSON.DIST({0,1,2,3,4,5,6,7,8,9},$O17, TRUE),1), 0) -> 2 | BK17: =_xlfn.IFNA(MATCH(RAND(), _xlfn.POISSON.DIST({0,1,2,3,4,5,6,7,8,9},$O17, TRUE),1), 0) -> 2 | BL17: =_xlfn.IFNA(MATCH(RAND(), _xlfn.POISSON.DIST({0,1,2,3,4,5,6,7,8,9},$O17, TRUE),1), 0) -> 5 | BM17: =_xlfn.IFNA(MATCH(RAND(), _xlfn.POISSON.DIST({0,1,2,3,4,5,6,7,8,9},$O17, TRUE),1), 0) -> 4 | BN17: =_xlfn.IFNA(MATCH(RAND(), _xlfn.POISSON.DIST({0,1,2,3,4,5,6,7,8,9},$O17, TRUE),1), 0) -> 3 | BP17: =_xlfn.IFNA(MATCH(RAND(), _xlfn.POISSON.DIST({0,1,2,3,4,5,6,7,8,9},$P17, TRUE),1), 0) -> 0 | BQ17: =_xlfn.IFNA(MATCH(RAND(), _xlfn.POISSON.DIST({0,1,2,3,4,5,6,7,8,9},$P17, TRUE),1), 0) -> 0 | BR17: =_xlfn.IFNA(MATCH(RAND(), _xlfn.POISSON.DIST({0,1,2,3,4,5,6,7,8,9},$P17, TRUE),1), 0) -> 0 | BS17: =_xlfn.IFNA(MATCH(RAND(), _xlfn.POISSON.DIST({0,1,2,3,4,5,6,7,8,9},$P17, TRUE),1), 0) -> 0 | BT17: =_xlfn.IFNA(MATCH(RAND(), _xlfn.POISSON.DIST({0,1,2,3,4,5,6,7,8,9},$P17, TRUE),1), 0) -> 0 | BU17: =_xlfn.IFNA(MATCH(RAND(), _xlfn.POISSON.DIST({0,1,2,3,4,5,6,7,8,9},$P17, TRUE),1), 0) -> 0 | BV17: =_xlfn.IFNA(MATCH(RAND(), _xlfn.POISSON.DIST({0,1,2,3,4,5,6,7,8,9},$P17, TRUE),1), 0) -> 0 | BW17: =_xlfn.IFNA(MATCH(RAND(), _xlfn.POISSON.DIST({0,1,2,3,4,5,6,7,8,9},$P17, TRUE),1), 0) -> 0 | BX17: =_xlfn.IFNA(MATCH(RAND(), _xlfn.POISSON.DIST({0,1,2,3,4,5,6,7,8,9},$P17, TRUE),1), 0) -> 0 | BY17: =_xlfn.IFNA(MATCH(RAND(), _xlfn.POISSON.DIST({0,1,2,3,4,5,6,7,8,9},$P17, TRUE),1), 0) -> 0 | BZ17: =_xlfn.IFNA(MATCH(RAND(), _xlfn.POISSON.DIST({0,1,2,3,4,5,6,7,8,9},$P17, TRUE),1), 0) -> 0 | CA17: =_xlfn.IFNA(MATCH(RAND(), _xlfn.POISSON.DIST({0,1,2,3,4,5,6,7,8,9},$P17, TRUE),1), 0) -> 2 | CB17: =_xlfn.IFNA(MATCH(RAND(), _xlfn.POISSON.DIST({0,1,2,3,4,5,6,7,8,9},$P17, TRUE),1), 0) -> 0 | CC17: =_xlfn.IFNA(MATCH(RAND(), _xlfn.POISSON.DIST({0,1,2,3,4,5,6,7,8,9},$P17, TRUE),1), 0) -> 0 | CD17: =_xlfn.IFNA(MATCH(RAND(), _xlfn.POISSON.DIST({0,1,2,3,4,5,6,7,8,9},$P17, TRUE),1), 0) -> 0 | CE17: =_xlfn.IFNA(MATCH(RAND(), _xlfn.POISSON.DIST({0,1,2,3,4,5,6,7,8,9},$P17, TRUE),1), 0) -> 0 | CF17: =_xlfn.IFNA(MATCH(RAND(), _xlfn.POISSON.DIST({0,1,2,3,4,5,6,7,8,9},$P17, TRUE),1), 0) -> 0 | CG17: =_xlfn.IFNA(MATCH(RAND(), _xlfn.POISSON.DIST({0,1,2,3,4,5,6,7,8,9},$P17, TRUE),1), 0) -> 1 | CH17: =_xlfn.IFNA(MATCH(RAND(), _xlfn.POISSON.DIST({0,1,2,3,4,5,6,7,8,9},$P17, TRUE),1), 0) -> 0 | CI17: =_xlfn.IFNA(MATCH(RAND(), _xlfn.POISSON.DIST({0,1,2,3,4,5,6,7,8,9},$P17, TRUE),1), 0) -> 0 | CJ17: =_xlfn.IFNA(MATCH(RAND(), _xlfn.POISSON.DIST({0,1,2,3,4,5,6,7,8,9},$P17, TRUE),1), 0) -> 0 | CK17: =_xlfn.IFNA(MATCH(RAND(), _xlfn.POISSON.DIST({0,1,2,3,4,5,6,7,8,9},$P17, TRUE),1), 0) -> 0 | CL17: =_xlfn.IFNA(MATCH(RAND(), _xlfn.POISSON.DIST({0,1,2,3,4,5,6,7,8,9},$P17, TRUE),1), 0) -> 0 | CM17: =_xlfn.IFNA(MATCH(RAND(), _xlfn.POISSON.DIST({0,1,2,3,4,5,6,7,8,9},$P17, TRUE),1), 0) -> 0 | CN17: =_xlfn.IFNA(MATCH(RAND(), _xlfn.POISSON.DIST({0,1,2,3,4,5,6,7,8,9},$P17, TRUE),1), 0) -> 1 | CO17: =_xlfn.IFNA(MATCH(RAND(), _xlfn.POISSON.DIST({0,1,2,3,4,5,6,7,8,9},$P17, TRUE),1), 0) -> 0 | CP17: =_xlfn.IFNA(MATCH(RAND(), _xlfn.POISSON.DIST({0,1,2,3,4,5,6,7,8,9},$P17, TRUE),1), 0) -> 0 | CQ17: =_xlfn.IFNA(MATCH(RAND(), _xlfn.POISSON.DIST({0,1,2,3,4,5,6,7,8,9},$P17, TRUE),1), 0) -> 0 | CR17: =_xlfn.IFNA(MATCH(RAND(), _xlfn.POISSON.DIST({0,1,2,3,4,5,6,7,8,9},$P17, TRUE),1), 0) -> 0 | CS17: =_xlfn.IFNA(MATCH(RAND(), _xlfn.POISSON.DIST({0,1,2,3,4,5,6,7,8,9},$P17, TRUE),1), 0) -> 0 | CT17: =_xlfn.IFNA(MATCH(RAND(), _xlfn.POISSON.DIST({0,1,2,3,4,5,6,7,8,9},$P17, TRUE),1), 0) -> 0 | CU17: =_xlfn.IFNA(MATCH(RAND(), _xlfn.POISSON.DIST({0,1,2,3,4,5,6,7,8,9},$P17, TRUE),1), 0) -> 0 | CV17: =_xlfn.IFNA(MATCH(RAND(), _xlfn.POISSON.DIST({0,1,2,3,4,5,6,7,8,9},$P17, TRUE),1), 0) -> 0 | CW17: =_xlfn.IFNA(MATCH(RAND(), _xlfn.POISSON.DIST({0,1,2,3,4,5,6,7,8,9},$P17, TRUE),1), 0) -> 0 | CX17: =_xlfn.IFNA(MATCH(RAND(), _xlfn.POISSON.DIST({0,1,2,3,4,5,6,7,8,9},$P17, TRUE),1), 0) -> 0 | CY17: =_xlfn.IFNA(MATCH(RAND(), _xlfn.POISSON.DIST({0,1,2,3,4,5,6,7,8,9},$P17, TRUE),1), 0) -> 1 | CZ17: =_xlfn.IFNA(MATCH(RAND(), _xlfn.POISSON.DIST({0,1,2,3,4,5,6,7,8,9},$P17, TRUE),1), 0) -> 0 | DA17: =_xlfn.IFNA(MATCH(RAND(), _xlfn.POISSON.DIST({0,1,2,3,4,5,6,7,8,9},$P17, TRUE),1), 0) -> 1 | DB17: =_xlfn.IFNA(MATCH(RAND(), _xlfn.POISSON.DIST({0,1,2,3,4,5,6,7,8,9},$P17, TRUE),1), 0) -> 1 | DC17: =_xlfn.IFNA(MATCH(RAND(), _xlfn.POISSON.DIST({0,1,2,3,4,5,6,7,8,9},$P17, TRUE),1), 0) -> 0 | DD17: =_xlfn.IFNA(MATCH(RAND(), _xlfn.POISSON.DIST({0,1,2,3,4,5,6,7,8,9},$P17, TRUE),1), 0) -> 0 | DE17: =_xlfn.IFNA(MATCH(RAND(), _xlfn.POISSON.DIST({0,1,2,3,4,5,6,7,8,9},$P17, TRUE),1), 0) -> 0 | DF17: =_xlfn.IFNA(MATCH(RAND(), _xlfn.POISSON.DIST({0,1,2,3,4,5,6,7,8,9},$P17, TRUE),1), 0) -> 0 | DG17: =_xlfn.IFNA(MATCH(RAND(), _xlfn.POISSON.DIST({0,1,2,3,4,5,6,7,8,9},$P17, TRUE),1), 0) -> 0 | DH17: =_xlfn.IFNA(MATCH(RAND(), _xlfn.POISSON.DIST({0,1,2,3,4,5,6,7,8,9},$P17, TRUE),1), 0) -> 0 | DI17: =_xlfn.IFNA(MATCH(RAND(), _xlfn.POISSON.DIST({0,1,2,3,4,5,6,7,8,9},$P17, TRUE),1), 0) -> 1 | DJ17: =_xlfn.IFNA(MATCH(RAND(), _xlfn.POISSON.DIST({0,1,2,3,4,5,6,7,8,9},$P17, TRUE),1), 0) -> 1 | DK17: =_xlfn.IFNA(MATCH(RAND(), _xlfn.POISSON.DIST({0,1,2,3,4,5,6,7,8,9},$P17, TRUE),1), 0) -> 0 | DL17: =_xlfn.IFNA(MATCH(RAND(), _xlfn.POISSON.DIST({0,1,2,3,4,5,6,7,8,9},$P17, TRUE),1), 0) -> 0 | DM17: =_xlfn.IFNA(MATCH(RAND(), _xlfn.POISSON.DIST({0,1,2,3,4,5,6,7,8,9},$P17, TRUE),1), 0) -> 1
C18: 2019-06-12 | D18: A | E18: Nigeria | F18: =(AVERAGE(Q18:BN18))*(1+INDEX('Predicciones de la liguilla'!$C$4:$O$28, MATCH('Partidos de este año'!E18,'Predicciones de la liguilla'!$D$4:$D$28,0),3)) -> 1.28 | G18: República de Corea | H18: =(AVERAGE(BP18:DM18))*(1+INDEX('Predicciones de la liguilla'!$C$4:$O$28, MATCH('Partidos de este año'!G18,'Predicciones de la liguilla'!$D$4:$D$28,0),3)) -> 1.46 | I18: =IF(L18>M18,E18,IF(L18=M18,"Dibujar",G18)) -> República de Corea | L18: 1.28 | M18: 1.46 | N18: =IF(L18>M18,E18,IF(L18=M18,"Dibujar",G18)) -> República de Corea | O18: =(OFFSET('Apéndice 3 - Goles por grupo'!$C$13,(INDEX('Apéndice 1 - Datos de equipos'!$C$13:$F$112,MATCH(G18,'Apéndice 1 - Datos de equipos'!$C$13:$C$112,0),4)/10),(INDEX('Apéndice 1 - Datos de equipos'!$C$13:$F$112,MATCH(E18,'Apéndice 1 - Datos de equipos'!$C$13:$C$112,0),4)/10))) -> 1.50 | P18: =OFFSET('Apéndice 3 - Goles por grupo'!$C$13,(INDEX('Apéndice 1 - Datos de equipos'!$C$13:$F$112, MATCH(E18,'Apéndice 1 - Datos de equipos'!$C$13:$C$112,0),4)/10), (INDEX('Apéndice 1 - Datos de equipos'!$C$13:$F$112, MATCH(G18, 'Apéndice 1 - Datos de equipos'!$C$13:$C$112,0),4)/10)) -> 1.50 | Q18: =_xlfn.IFNA(MATCH(RAND(), _xlfn.POISSON.DIST({0,1,2,3,4,5,6,7,8,9},$O18, TRUE),1), 0) -> 1 | R18: =_xlfn.IFNA(MATCH(RAND(), _xlfn.POISSON.DIST({0,1,2,3,4,5,6,7,8,9},$O18, TRUE),1), 0) -> 1 | S18: =_xlfn.IFNA(MATCH(RAND(), _xlfn.POISSON.DIST({0,1,2,3,4,5,6,7,8,9},$O18, TRUE),1), 0) -> 0 | T18: =_xlfn.IFNA(MATCH(RAND(), _xlfn.POISSON.DIST({0,1,2,3,4,5,6,7,8,9},$O18, TRUE),1), 0) -> 4 | U18: =_xlfn.IFNA(MATCH(RAND(), _xlfn.POISSON.DIST({0,1,2,3,4,5,6,7,8,9},$O18, TRUE),1), 0) -> 0 | V18: =_xlfn.IFNA(MATCH(RAND(), _xlfn.POISSON.DIST({0,1,2,3,4,5,6,7,8,9},$O18, TRUE),1), 0) -> 2 | W18: =_xlfn.IFNA(MATCH(RAND(), _xlfn.POISSON.DIST({0,1,2,3,4,5,6,7,8,9},$O18, TRUE),1), 0) -> 3 | X18: =_xlfn.IFNA(MATCH(RAND(), _xlfn.POISSON.DIST({0,1,2,3,4,5,6,7,8,9},$O18, TRUE),1), 0) -> 1 | Y18: =_xlfn.IFNA(MATCH(RAND(), _xlfn.POISSON.DIST({0,1,2,3,4,5,6,7,8,9},$O18, TRUE),1), 0) -> 2 | Z18: =_xlfn.IFNA(MATCH(RAND(), _xlfn.POISSON.DIST({0,1,2,3,4,5,6,7,8,9},$O18, TRUE),1), 0) -> 0 | AA18: =_xlfn.IFNA(MATCH(RAND(), _xlfn.POISSON.DIST({0,1,2,3,4,5,6,7,8,9},$O18, TRUE),1), 0) -> 0 | AB18: =_xlfn.IFNA(MATCH(RAND(), _xlfn.POISSON.DIST({0,1,2,3,4,5,6,7,8,9},$O18, TRUE),1), 0) -> 0 | AC18: =_xlfn.IFNA(MATCH(RAND(), _xlfn.POISSON.DIST({0,1,2,3,4,5,6,7,8,9},$O18, TRUE),1), 0) -> 2 | AD18: =_xlfn.IFNA(MATCH(RAND(), _xlfn.POISSON.DIST({0,1,2,3,4,5,6,7,8,9},$O18, TRUE),1), 0) -> 0 | AE18: =_xlfn.IFNA(MATCH(RAND(), _xlfn.POISSON.DIST({0,1,2,3,4,5,6,7,8,9},$O18, TRUE),1), 0) -> 0 | AF18: =_xlfn.IFNA(MATCH(RAND(), _xlfn.POISSON.DIST({0,1,2,3,4,5,6,7,8,9},$O18, TRUE),1), 0) -> 0 | AG18: =_xlfn.IFNA(MATCH(RAND(), _xlfn.POISSON.DIST({0,1,2,3,4,5,6,7,8,9},$O18, TRUE),1), 0) -> 4 | AH18: =_xlfn.IFNA(MATCH(RAND(), _xlfn.POISSON.DIST({0,1,2,3,4,5,6,7,8,9},$O18, TRUE),1), 0) -> 1 | AI18: =_xlfn.IFNA(MATCH(RAND(), _xlfn.POISSON.DIST({0,1,2,3,4,5,6,7,8,9},$O18, TRUE),1), 0) -> 4 | AJ18: =_xlfn.IFNA(MATCH(RAND(), _xlfn.POISSON.DIST({0,1,2,3,4,5,6,7,8,9},$O18, TRUE),1), 0) -> 2 | AK18: =_xlfn.IFNA(MATCH(RAND(), _xlfn.POISSON.DIST({0,1,2,3,4,5,6,7,8,9},$O18, TRUE),1), 0) -> 1 | AL18: =_xlfn.IFNA(MATCH(RAND(), _xlfn.POISSON.DIST({0,1,2,3,4,5,6,7,8,9},$O18, TRUE),1), 0) -> 4 | AM18: =_xlfn.IFNA(MATCH(RAND(), _xlfn.POISSON.DIST({0,1,2,3,4,5,6,7,8,9},$O18, TRUE),1), 0) -> 1 | AN18: =_xlfn.IFNA(MATCH(RAND(), _xlfn.POISSON.DIST({0,1,2,3,4,5,6,7,8,9},$O18, TRUE),1), 0) -> 0 | AO18: =_xlfn.IFNA(MATCH(RAND(), _xlfn.POISSON.DIST({0,1,2,3,4,5,6,7,8,9},$O18, TRUE),1), 0) -> 0 | AP18: =_xlfn.IFNA(MATCH(RAND(), _xlfn.POISSON.DIST({0,1,2,3,4,5,6,7,8,9},$O18, TRUE),1), 0) -> 2 | AQ18: =_xlfn.IFNA(MATCH(RAND(), _xlfn.POISSON.DIST({0,1,2,3,4,5,6,7,8,9},$O18, TRUE),1), 0) -> 3 | AR18: =_xlfn.IFNA(MATCH(RAND(), _xlfn.POISSON.DIST({0,1,2,3,4,5,6,7,8,9},$O18, TRUE),1), 0) -> 1 | AS18: =_xlfn.IFNA(MATCH(RAND(), _xlfn.POISSON.DIST({0,1,2,3,4,5,6,7,8,9},$O18, TRUE),1), 0) -> 0 | AT18: =_xlfn.IFNA(MATCH(RAND(), _xlfn.POISSON.DIST({0,1,2,3,4,5,6,7,8,9},$O18, TRUE),1), 0) -> 0 | AU18: =_xlfn.IFNA(MATCH(RAND(), _xlfn.POISSON.DIST({0,1,2,3,4,5,6,7,8,9},$O18, TRUE),1), 0) -> 1 | AV18: =_xlfn.IFNA(MATCH(RAND(), _xlfn.POISSON.DIST({0,1,2,3,4,5,6,7,8,9},$O18, TRUE),1), 0) -> 0 | AW18: =_xlfn.IFNA(MATCH(RAND(), _xlfn.POISSON.DIST({0,1,2,3,4,5,6,7,8,9},$O18, TRUE),1), 0) -> 1 | AX18: =_xlfn.IFNA(MATCH(RAND(), _xlfn.POISSON.DIST({0,1,2,3,4,5,6,7,8,9},$O18, TRUE),1), 0) -> 2 | AY18: =_xlfn.IFNA(MATCH(RAND(), _xlfn.POISSON.DIST({0,1,2,3,4,5,6,7,8,9},$O18, TRUE),1), 0) -> 3 | AZ18: =_xlfn.IFNA(MATCH(RAND(), _xlfn.POISSON.DIST({0,1,2,3,4,5,6,7,8,9},$O18, TRUE),1), 0) -> 0 | BA18: =_xlfn.IFNA(MATCH(RAND(), _xlfn.POISSON.DIST({0,1,2,3,4,5,6,7,8,9},$O18, TRUE),1), 0) -> 2 | BB18: =_xlfn.IFNA(MATCH(RAND(), _xlfn.POISSON.DIST({0,1,2,3,4,5,6,7,8,9},$O18, TRUE),1), 0) -> 3 | BC18: =_xlfn.IFNA(MATCH(RAND(), _xlfn.POISSON.DIST({0,1,2,3,4,5,6,7,8,9},$O18, TRUE),1), 0) -> 0 | BD18: =_xlfn.IFNA(MATCH(RAND(), _xlfn.POISSON.DIST({0,1,2,3,4,5,6,7,8,9},$O18, TRUE),1), 0) -> 1 | BE18: =_xlfn.IFNA(MATCH(RAND(), _xlfn.POISSON.DIST({0,1,2,3,4,5,6,7,8,9},$O18, TRUE),1), 0) -> 0 | BF18: =_xlfn.IFNA(MATCH(RAND(), _xlfn.POISSON.DIST({0,1,2,3,4,5,6,7,8,9},$O18, TRUE),1), 0) -> 1 | BG18: =_xlfn.IFNA(MATCH(RAND(), _xlfn.POISSON.DIST({0,1,2,3,4,5,6,7,8,9},$O18, TRUE),1), 0) -> 3 | BH18: =_xlfn.IFNA(MATCH(RAND(), _xlfn.POISSON.DIST({0,1,2,3,4,5,6,7,8,9},$O18, TRUE),1), 0) -> 0 | BI18: =_xlfn.IFNA(MATCH(RAND(), _xlfn.POISSON.DIST({0,1,2,3,4,5,6,7,8,9},$O18, TRUE),1), 0) -> 1 | BJ18: =_xlfn.IFNA(MATCH(RAND(), _xlfn.POISSON.DIST({0,1,2,3,4,5,6,7,8,9},$O18, TRUE),1), 0) -> 2 | BK18: =_xlfn.IFNA(MATCH(RAND(), _xlfn.POISSON.DIST({0,1,2,3,4,5,6,7,8,9},$O18, TRUE),1), 0) -> 2 | BL18: =_xlfn.IFNA(MATCH(RAND(), _xlfn.POISSON.DIST({0,1,2,3,4,5,6,7,8,9},$O18, TRUE),1), 0) -> 2 | BM18: =_xlfn.IFNA(MATCH(RAND(), _xlfn.POISSON.DIST({0,1,2,3,4,5,6,7,8,9},$O18, TRUE),1), 0) -> 1 | BN18: =_xlfn.IFNA(MATCH(RAND(), _xlfn.POISSON.DIST({0,1,2,3,4,5,6,7,8,9},$O18, TRUE),1), 0) -> 0 | BP18: =_xlfn.IFNA(MATCH(RAND(), _xlfn.POISSON.DIST({0,1,2,3,4,5,6,7,8,9},$P18, TRUE),1), 0) -> 1 | BQ18: =_xlfn.IFNA(MATCH(RAND(), _xlfn.POISSON.DIST({0,1,2,3,4,5,6,7,8,9},$P18, TRUE),1), 0) -> 1 | BR18: =_xlfn.IFNA(MATCH(RAND(), _xlfn.POISSON.DIST({0,1,2,3,4,5,6,7,8,9},$P18, TRUE),1), 0) -> 0 | BS18: =_xlfn.IFNA(MATCH(RAND(), _xlfn.POISSON.DIST({0,1,2,3,4,5,6,7,8,9},$P18, TRUE),1), 0) -> 1 | BT18: =_xlfn.IFNA(MATCH(RAND(), _xlfn.POISSON.DIST({0,1,2,3,4,5,6,7,8,9},$P18, TRUE),1), 0) -> 1 | BU18: =_xlfn.IFNA(MATCH(RAND(), _xlfn.POISSON.DIST({0,1,2,3,4,5,6,7,8,9},$P18, TRUE),1), 0) -> 1 | BV18: =_xlfn.IFNA(MATCH(RAND(), _xlfn.POISSON.DIST({0,1,2,3,4,5,6,7,8,9},$P18, TRUE),1), 0) -> 1 | BW18: =_xlfn.IFNA(MATCH(RAND(), _xlfn.POISSON.DIST({0,1,2,3,4,5,6,7,8,9},$P18, TRUE),1), 0) -> 2 | BX18: =_xlfn.IFNA(MATCH(RAND(), _xlfn.POISSON.DIST({0,1,2,3,4,5,6,7,8,9},$P18, TRUE),1), 0) -> 4 | BY18: =_xlfn.IFNA(MATCH(RAND(), _xlfn.POISSON.DIST({0,1,2,3,4,5,6,7,8,9},$P18, TRUE),1), 0) -> 2 | BZ18: =_xlfn.IFNA(MATCH(RAND(), _xlfn.POISSON.DIST({0,1,2,3,4,5,6,7,8,9},$P18, TRUE),1), 0) -> 1 | CA18: =_xlfn.IFNA(MATCH(RAND(), _xlfn.POISSON.DIST({0,1,2,3,4,5,6,7,8,9},$P18, TRUE),1), 0) -> 1 | CB18: =_xlfn.IFNA(MATCH(RAND(), _xlfn.POISSON.DIST({0,1,2,3,4,5,6,7,8,9},$P18, TRUE),1), 0) -> 0 | CC18: =_xlfn.IFNA(MATCH(RAND(), _xlfn.POISSON.DIST({0,1,2,3,4,5,6,7,8,9},$P18, TRUE),1), 0) -> 3 | CD18: =_xlfn.IFNA(MATCH(RAND(), _xlfn.POISSON.DIST({0,1,2,3,4,5,6,7,8,9},$P18, TRUE),1), 0) -> 1 | CE18: =_xlfn.IFNA(MATCH(RAND(), _xlfn.POISSON.DIST({0,1,2,3,4,5,6,7,8,9},$P18, TRUE),1), 0) -> 0 | CF18: =_xlfn.IFNA(MATCH(RAND(), _xlfn.POISSON.DIST({0,1,2,3,4,5,6,7,8,9},$P18, TRUE),1), 0) -> 4 | CG18: =_xlfn.IFNA(MATCH(RAND(), _xlfn.POISSON.DIST({0,1,2,3,4,5,6,7,8,9},$P18, TRUE),1), 0) -> 0 | CH18: =_xlfn.IFNA(MATCH(RAND(), _xlfn.POISSON.DIST({0,1,2,3,4,5,6,7,8,9},$P18, TRUE),1), 0) -> 0 | CI18: =_xlfn.IFNA(MATCH(RAND(), _xlfn.POISSON.DIST({0,1,2,3,4,5,6,7,8,9},$P18, TRUE),1), 0) -> 2 | CJ18: =_xlfn.IFNA(MATCH(RAND(), _xlfn.POISSON.DIST({0,1,2,3,4,5,6,7,8,9},$P18, TRUE),1), 0) -> 2 | CK18: =_xlfn.IFNA(MATCH(RAND(), _xlfn.POISSON.DIST({0,1,2,3,4,5,6,7,8,9},$P18, TRUE),1), 0) -> 1 | CL18: =_xlfn.IFNA(MATCH(RAND(), _xlfn.POISSON.DIST({0,1,2,3,4,5,6,7,8,9},$P18, TRUE),1), 0) -> 2 | CM18: =_xlfn.IFNA(MATCH(RAND(), _xlfn.POISSON.DIST({0,1,2,3,4,5,6,7,8,9},$P18, TRUE),1), 0) -> 0 | CN18: =_xlfn.IFNA(MATCH(RAND(), _xlfn.POISSON.DIST({0,1,2,3,4,5,6,7,8,9},$P18, TRUE),1), 0) -> 2 | CO18: =_xlfn.IFNA(MATCH(RAND(), _xlfn.POISSON.DIST({0,1,2,3,4,5,6,7,8,9},$P18, TRUE),1), 0) -> 1 | CP18: =_xlfn.IFNA(MATCH(RAND(), _xlfn.POISSON.DIST({0,1,2,3,4,5,6,7,8,9},$P18, TRUE),1), 0) -> 2 | CQ18: =_xlfn.IFNA(MATCH(RAND(), _xlfn.POISSON.DIST({0,1,2,3,4,5,6,7,8,9},$P18, TRUE),1), 0) -> 2 | CR18: =_xlfn.IFNA(MATCH(RAND(), _xlfn.POISSON.DIST({0,1,2,3,4,5,6,7,8,9},$P18, TRUE),1), 0) -> 2 | CS18: =_xlfn.IFNA(MATCH(RAND(), _xlfn.POISSON.DIST({0,1,2,3,4,5,6,7,8,9},$P18, TRUE),1), 0) -> 1 | CT18: =_xlfn.IFNA(MATCH(RAND(), _xlfn.POISSON.DIST({0,1,2,3,4,5,6,7,8,9},$P18, TRUE),1), 0) -> 2 | CU18: =_xlfn.IFNA(MATCH(RAND(), _xlfn.POISSON.DIST({0,1,2,3,4,5,6,7,8,9},$P18, TRUE),1), 0) -> 1 | CV18: =_xlfn.IFNA(MATCH(RAND(), _xlfn.POISSON.DIST({0,1,2,3,4,5,6,7,8,9},$P18, TRUE),1), 0) -> 1 | CW18: =_xlfn.IFNA(MATCH(RAND(), _xlfn.POISSON.DIST({0,1,2,3,4,5,6,7,8,9},$P18, TRUE),1), 0) -> 1 | CX18: =_xlfn.IFNA(MATCH(RAND(), _xlfn.POISSON.DIST({0,1,2,3,4,5,6,7,8,9},$P18, TRUE),1), 0) -> 0 | CY18: =_xlfn.IFNA(MATCH(RAND(), _xlfn.POISSON.DIST({0,1,2,3,4,5,6,7,8,9},$P18, TRUE),1), 0) -> 0 | CZ18: =_xlfn.IFNA(MATCH(RAND(), _xlfn.POISSON.DIST({0,1,2,3,4,5,6,7,8,9},$P18, TRUE),1), 0) -> 4 | DA18: =_xlfn.IFNA(MATCH(RAND(), _xlfn.POISSON.DIST({0,1,2,3,4,5,6,7,8,9},$P18, TRUE),1), 0) -> 2 | DB18: =_xlfn.IFNA(MATCH(RAND(), _xlfn.POISSON.DIST({0,1,2,3,4,5,6,7,8,9},$P18, TRUE),1), 0) -> 2 | DC18: =_xlfn.IFNA(MATCH(RAND(), _xlfn.POISSON.DIST({0,1,2,3,4,5,6,7,8,9},$P18, TRUE),1), 0) -> 4 | DD18: =_xlfn.IFNA(MATCH(RAND(), _xlfn.POISSON.DIST({0,1,2,3,4,5,6,7,8,9},$P18, TRUE),1), 0) -> 0 | DE18: =_xlfn.IFNA(MATCH(RAND(), _xlfn.POISSON.DIST({0,1,2,3,4,5,6,7,8,9},$P18, TRUE),1), 0) -> 2 | DF18: =_xlfn.IFNA(MATCH(RAND(), _xlfn.POISSON.DIST({0,1,2,3,4,5,6,7,8,9},$P18, TRUE),1), 0) -> 0 | DG18: =_xlfn.IFNA(MATCH(RAND(), _xlfn.POISSON.DIST({0,1,2,3,4,5,6,7,8,9},$P18, TRUE),1), 0) -> 2 | DH18: =_xlfn.IFNA(MATCH(RAND(), _xlfn.POISSON.DIST({0,1,2,3,4,5,6,7,8,9},$P18, TRUE),1), 0) -> 3 | DI18: =_xlfn.IFNA(MATCH(RAND(), _xlfn.POISSON.DIST({0,1,2,3,4,5,6,7,8,9},$P18, TRUE),1), 0) -> 2 | DJ18: =_xlfn.IFNA(MATCH(RAND(), _xlfn.POISSON.DIST({0,1,2,3,4,5,6,7,8,9},$P18, TRUE),1), 0) -> 1 | DK18: =_xlfn.IFNA(MATCH(RAND(), _xlfn.POISSON.DIST({0,1,2,3,4,5,6,7,8,9},$P18, TRUE),1), 0) -> 2 | DL18: =_xlfn.IFNA(MATCH(RAND(), _xlfn.POISSON.DIST({0,1,2,3,4,5,6,7,8,9},$P18, TRUE),1), 0) -> 2 | DM18: =_xlfn.IFNA(MATCH(RAND(), _xlfn.POISSON.DIST({0,1,2,3,4,5,6,7,8,9},$P18, TRUE),1), 0) -> 1
C19: 2019-06-12 | D19: B | E19: Alemania | F19: =(AVERAGE(Q19:BN19))*(1+INDEX('Predicciones de la liguilla'!$C$4:$O$28, MATCH('Partidos de este año'!E19,'Predicciones de la liguilla'!$D$4:$D$28,0),3)) -> 1.46 | G19: España | H19: =(AVERAGE(BP19:DM19))*(1+INDEX('Predicciones de la liguilla'!$C$4:$O$28, MATCH('Partidos de este año'!G19,'Predicciones de la liguilla'!$D$4:$D$28,0),3)) -> 1.60 | I19: =IF(L19>M19,E19,IF(L19=M19,"Dibujar",G19)) -> España | L19: 1.46 | M19: 1.6 | N19: =IF(L19>M19,E19,IF(L19=M19,"Dibujar",G19)) -> España | O19: =(OFFSET('Apéndice 3 - Goles por grupo'!$C$13,(INDEX('Apéndice 1 - Datos de equipos'!$C$13:$F$112,MATCH(G19,'Apéndice 1 - Datos de equipos'!$C$13:$C$112,0),4)/10),(INDEX('Apéndice 1 - Datos de equipos'!$C$13:$F$112,MATCH(E19,'Apéndice 1 - Datos de equipos'!$C$13:$C$112,0),4)/10))) -> 1.50 | P19: =OFFSET('Apéndice 3 - Goles por grupo'!$C$13,(INDEX('Apéndice 1 - Datos de equipos'!$C$13:$F$112, MATCH(E19,'Apéndice 1 - Datos de equipos'!$C$13:$C$112,0),4)/10), (INDEX('Apéndice 1 - Datos de equipos'!$C$13:$F$112, MATCH(G19, 'Apéndice 1 - Datos de equipos'!$C$13:$C$112,0),4)/10)) -> 1.50 | Q19: =_xlfn.IFNA(MATCH(RAND(), _xlfn.POISSON.DIST({0,1,2,3,4,5,6,7,8,9},$O19, TRUE),1), 0) -> 0 | R19: =_xlfn.IFNA(MATCH(RAND(), _xlfn.POISSON.DIST({0,1,2,3,4,5,6,7,8,9},$O19, TRUE),1), 0) -> 4 | S19: =_xlfn.IFNA(MATCH(RAND(), _xlfn.POISSON.DIST({0,1,2,3,4,5,6,7,8,9},$O19, TRUE),1), 0) -> 4 | T19: =_xlfn.IFNA(MATCH(RAND(), _xlfn.POISSON.DIST({0,1,2,3,4,5,6,7,8,9},$O19, TRUE),1), 0) -> 1 | U19: =_xlfn.IFNA(MATCH(RAND(), _xlfn.POISSON.DIST({0,1,2,3,4,5,6,7,8,9},$O19, TRUE),1), 0) -> 2 | V19: =_xlfn.IFNA(MATCH(RAND(), _xlfn.POISSON.DIST({0,1,2,3,4,5,6,7,8,9},$O19, TRUE),1), 0) -> 0 | W19: =_xlfn.IFNA(MATCH(RAND(), _xlfn.POISSON.DIST({0,1,2,3,4,5,6,7,8,9},$O19, TRUE),1), 0) -> 1 | X19: =_xlfn.IFNA(MATCH(RAND(), _xlfn.POISSON.DIST({0,1,2,3,4,5,6,7,8,9},$O19, TRUE),1), 0) -> 2 | Y19: =_xlfn.IFNA(MATCH(RAND(), _xlfn.POISSON.DIST({0,1,2,3,4,5,6,7,8,9},$O19, TRUE),1), 0) -> 1 | Z19: =_xlfn.IFNA(MATCH(RAND(), _xlfn.POISSON.DIST({0,1,2,3,4,5,6,7,8,9},$O19, TRUE),1), 0) -> 3 | AA19: =_xlfn.IFNA(MATCH(RAND(), _xlfn.POISSON.DIST({0,1,2,3,4,5,6,7,8,9},$O19, TRUE),1), 0) -> 0 | AB19: =_xlfn.IFNA(MATCH(RAND(), _xlfn.POISSON.DIST({0,1,2,3,4,5,6,7,8,9},$O19, TRUE),1), 0) -> 2 | AC19: =_xlfn.IFNA(MATCH(RAND(), _xlfn.POISSON.DIST({0,1,2,3,4,5,6,7,8,9},$O19, TRUE),1), 0) -> 1 | AD19: =_xlfn.IFNA(MATCH(RAND(), _xlfn.POISSON.DIST({0,1,2,3,4,5,6,7,8,9},$O19, TRUE),1), 0) -> 3 | AE19: =_xlfn.IFNA(MATCH(RAND(), _xlfn.POISSON.DIST({0,1,2,3,4,5,6,7,8,9},$O19, TRUE),1), 0) -> 0 | AF19: =_xlfn.IFNA(MATCH(RAND(), _xlfn.POISSON.DIST({0,1,2,3,4,5,6,7,8,9},$O19, TRUE),1), 0) -> 1 | AG19: =_xlfn.IFNA(MATCH(RAND(), _xlfn.POISSON.DIST({0,1,2,3,4,5,6,7,8,9},$O19, TRUE),1), 0) -> 0 | AH19: =_xlfn.IFNA(MATCH(RAND(), _xlfn.POISSON.DIST({0,1,2,3,4,5,6,7,8,9},$O19, TRUE),1), 0) -> 3 | AI19: =_xlfn.IFNA(MATCH(RAND(), _xlfn.POISSON.DIST({0,1,2,3,4,5,6,7,8,9},$O19, TRUE),1), 0) -> 2 | AJ19: =_xlfn.IFNA(MATCH(RAND(), _xlfn.POISSON.DIST({0,1,2,3,4,5,6,7,8,9},$O19, TRUE),1), 0) -> 1 | AK19: =_xlfn.IFNA(MATCH(RAND(), _xlfn.POISSON.DIST({0,1,2,3,4,5,6,7,8,9},$O19, TRUE),1), 0) -> 4 | AL19: =_xlfn.IFNA(MATCH(RAND(), _xlfn.POISSON.DIST({0,1,2,3,4,5,6,7,8,9},$O19, TRUE),1), 0) -> 1 | AM19: =_xlfn.IFNA(MATCH(RAND(), _xlfn.POISSON.DIST({0,1,2,3,4,5,6,7,8,9},$O19, TRUE),1), 0) -> 2 | AN19: =_xlfn.IFNA(MATCH(RAND(), _xlfn.POISSON.DIST({0,1,2,3,4,5,6,7,8,9},$O19, TRUE),1), 0) -> 2 | AO19: =_xlfn.IFNA(MATCH(RAND(), _xlfn.POISSON.DIST({0,1,2,3,4,5,6,7,8,9},$O19, TRUE),1), 0) -> 2 | AP19: =_xlfn.IFNA(MATCH(RAND(), _xlfn.POISSON.DIST({0,1,2,3,4,5,6,7,8,9},$O19, TRUE),1), 0) -> 2 | AQ19: =_xlfn.IFNA(MATCH(RAND(), _xlfn.POISSON.DIST({0,1,2,3,4,5,6,7,8,9},$O19, TRUE),1), 0) -> 0 | AR19: =_xlfn.IFNA(MATCH(RAND(), _xlfn.POISSON.DIST({0,1,2,3,4,5,6,7,8,9},$O19, TRUE),1), 0) -> 0 | AS19: =_xlfn.IFNA(MATCH(RAND(), _xlfn.POISSON.DIST({0,1,2,3,4,5,6,7,8,9},$O19, TRUE),1), 0) -> 3 | AT19: =_xlfn.IFNA(MATCH(RAND(), _xlfn.POISSON.DIST({0,1,2,3,4,5,6,7,8,9},$O19, TRUE),1), 0) -> 0 | AU19: =_xlfn.IFNA(MATCH(RAND(), _xlfn.POISSON.DIST({0,1,2,3,4,5,6,7,8,9},$O19, TRUE),1), 0) -> 1 | AV19: =_xlfn.IFNA(MATCH(RAND(), _xlfn.POISSON.DIST({0,1,2,3,4,5,6,7,8,9},$O19, TRUE),1), 0) -> 1 | AW19: =_xlfn.IFNA(MATCH(RAND(), _xlfn.POISSON.DIST({0,1,2,3,4,5,6,7,8,9},$O19, TRUE),1), 0) -> 2 | AX19: =_xlfn.IFNA(MATCH(RAND(), _xlfn.POISSON.DIST({0,1,2,3,4,5,6,7,8,9},$O19, TRUE),1), 0) -> 2 | AY19: =_xlfn.IFNA(MATCH(RAND(), _xlfn.POISSON.DIST({0,1,2,3,4,5,6,7,8,9},$O19, TRUE),1), 0) -> 1 | AZ19: =_xlfn.IFNA(MATCH(RAND(), _xlfn.POISSON.DIST({0,1,2,3,4,5,6,7,8,9},$O19, TRUE),1), 0) -> 2 | BA19: =_xlfn.IFNA(MATCH(RAND(), _xlfn.POISSON.DIST({0,1,2,3,4,5,6,7,8,9},$O19, TRUE),1), 0) -> 0 | BB19: =_xlfn.IFNA(MATCH(RAND(), _xlfn.POISSON.DIST({0,1,2,3,4,5,6,7,8,9},$O19, TRUE),1), 0) -> 2 | BC19: =_xlfn.IFNA(MATCH(RAND(), _xlfn.POISSON.DIST({0,1,2,3,4,5,6,7,8,9},$O19, TRUE),1), 0) -> 1 | BD19: =_xlfn.IFNA(MATCH(RAND(), _xlfn.POISSON.DIST({0,1,2,3,4,5,6,7,8,9},$O19, TRUE),1), 0) -> 0 | BE19: =_xlfn.IFNA(MATCH(RAND(), _xlfn.POISSON.DIST({0,1,2,3,4,5,6,7,8,9},$O19, TRUE),1), 0) -> 2 | BF19: =_xlfn.IFNA(MATCH(RAND(), _xlfn.POISSON.DIST({0,1,2,3,4,5,6,7,8,9},$O19, TRUE),1), 0) -> 0 | BG19: =_xlfn.IFNA(MATCH(RAND(), _xlfn.POISSON.DIST({0,1,2,3,4,5,6,7,8,9},$O19, TRUE),1), 0) -> 1 | BH19: =_xlfn.IFNA(MATCH(RAND(), _xlfn.POISSON.DIST({0,1,2,3,4,5,6,7,8,9},$O19, TRUE),1), 0) -> 3 | BI19: =_xlfn.IFNA(MATCH(RAND(), _xlfn.POISSON.DIST({0,1,2,3,4,5,6,7,8,9},$O19, TRUE),1), 0) -> 1 | BJ19: =_xlfn.IFNA(MATCH(RAND(), _xlfn.POISSON.DIST({0,1,2,3,4,5,6,7,8,9},$O19, TRUE),1), 0) -> 1 | BK19: =_xlfn.IFNA(MATCH(RAND(), _xlfn.POISSON.DIST({0,1,2,3,4,5,6,7,8,9},$O19, TRUE),1), 0) -> 2 | BL19: =_xlfn.IFNA(MATCH(RAND(), _xlfn.POISSON.DIST({0,1,2,3,4,5,6,7,8,9},$O19, TRUE),1), 0) -> 1 | BM19: =_xlfn.IFNA(MATCH(RAND(), _xlfn.POISSON.DIST({0,1,2,3,4,5,6,7,8,9},$O19, TRUE),1), 0) -> 2 | BN19: =_xlfn.IFNA(MATCH(RAND(), _xlfn.POISSON.DIST({0,1,2,3,4,5,6,7,8,9},$O19, TRUE),1), 0) -> 1 | BP19: =_xlfn.IFNA(MATCH(RAND(), _xlfn.POISSON.DIST({0,1,2,3,4,5,6,7,8,9},$P19, TRUE),1), 0) -> 1 | BQ19: =_xlfn.IFNA(MATCH(RAND(), _xlfn.POISSON.DIST({0,1,2,3,4,5,6,7,8,9},$P19, TRUE),1), 0) -> 0 | BR19: =_xlfn.IFNA(MATCH(RAND(), _xlfn.POISSON.DIST({0,1,2,3,4,5,6,7,8,9},$P19, TRUE),1), 0) -> 2 | BS19: =_xlfn.IFNA(MATCH(RAND(), _xlfn.POISSON.DIST({0,1,2,3,4,5,6,7,8,9},$P19, TRUE),1), 0) -> 2 | BT19: =_xlfn.IFNA(MATCH(RAND(), _xlfn.POISSON.DIST({0,1,2,3,4,5,6,7,8,9},$P19, TRUE),1), 0) -> 1 | BU19: =_xlfn.IFNA(MATCH(RAND(), _xlfn.POISSON.DIST({0,1,2,3,4,5,6,7,8,9},$P19, TRUE),1), 0) -> 0 | BV19: =_xlfn.IFNA(MATCH(RAND(), _xlfn.POISSON.DIST({0,1,2,3,4,5,6,7,8,9},$P19, TRUE),1), 0) -> 4 | BW19: =_xlfn.IFNA(MATCH(RAND(), _xlfn.POISSON.DIST({0,1,2,3,4,5,6,7,8,9},$P19, TRUE),1), 0) -> 3 | BX19: =_xlfn.IFNA(MATCH(RAND(), _xlfn.POISSON.DIST({0,1,2,3,4,5,6,7,8,9},$P19, TRUE),1), 0) -> 0 | BY19: =_xlfn.IFNA(MATCH(RAND(), _xlfn.POISSON.DIST({0,1,2,3,4,5,6,7,8,9},$P19, TRUE),1), 0) -> 2 | BZ19: =_xlfn.IFNA(MATCH(RAND(), _xlfn.POISSON.DIST({0,1,2,3,4,5,6,7,8,9},$P19, TRUE),1), 0) -> 1 | CA19: =_xlfn.IFNA(MATCH(RAND(), _xlfn.POISSON.DIST({0,1,2,3,4,5,6,7,8,9},$P19, TRUE),1), 0) -> 0 | CB19: =_xlfn.IFNA(MATCH(RAND(), _xlfn.POISSON.DIST({0,1,2,3,4,5,6,7,8,9},$P19, TRUE),1), 0) -> 1 | CC19: =_xlfn.IFNA(MATCH(RAND(), _xlfn.POISSON.DIST({0,1,2,3,4,5,6,7,8,9},$P19, TRUE),1), 0) -> 0 | CD19: =_xlfn.IFNA(MATCH(RAND(), _xlfn.POISSON.DIST({0,1,2,3,4,5,6,7,8,9},$P19, TRUE),1), 0) -> 1 | CE19: =_xlfn.IFNA(MATCH(RAND(), _xlfn.POISSON.DIST({0,1,2,3,4,5,6,7,8,9},$P19, TRUE),1), 0) -> 2 | CF19: =_xlfn.IFNA(MATCH(RAND(), _xlfn.POISSON.DIST({0,1,2,3,4,5,6,7,8,9},$P19, TRUE),1), 0) -> 0 | CG19: =_xlfn.IFNA(MATCH(RAND(), _xlfn.POISSON.DIST({0,1,2,3,4,5,6,7,8,9},$P19, TRUE),1), 0) -> 3 | CH19: =_xlfn.IFNA(MATCH(RAND(), _xlfn.POISSON.DIST({0,1,2,3,4,5,6,7,8,9},$P19, TRUE),1), 0) -> 1 | CI19: =_xlfn.IFNA(MATCH(RAND(), _xlfn.POISSON.DIST({0,1,2,3,4,5,6,7,8,9},$P19, TRUE),1), 0) -> 1 | CJ19: =_xlfn.IFNA(MATCH(RAND(), _xlfn.POISSON.DIST({0,1,2,3,4,5,6,7,8,9},$P19, TRUE),1), 0) -> 2 | CK19: =_xlfn.IFNA(MATCH(RAND(), _xlfn.POISSON.DIST({0,1,2,3,4,5,6,7,8,9},$P19, TRUE),1), 0) -> 0 | CL19: =_xlfn.IFNA(MATCH(RAND(), _xlfn.POISSON.DIST({0,1,2,3,4,5,6,7,8,9},$P19, TRUE),1), 0) -> 2 | CM19: =_xlfn.IFNA(MATCH(RAND(), _xlfn.POISSON.DIST({0,1,2,3,4,5,6,7,8,9},$P19, TRUE),1), 0) -> 3 | CN19: =_xlfn.IFNA(MATCH(RAND(), _xlfn.POISSON.DIST({0,1,2,3,4,5,6,7,8,9},$P19, TRUE),1), 0) -> 0 | CO19: =_xlfn.IFNA(MATCH(RAND(), _xlfn.POISSON.DIST({0,1,2,3,4,5,6,7,8,9},$P19, TRUE),1), 0) -> 4 | CP19: =_xlfn.IFNA(MATCH(RAND(), _xlfn.POISSON.DIST({0,1,2,3,4,5,6,7,8,9},$P19, TRUE),1), 0) -> 0 | CQ19: =_xlfn.IFNA(MATCH(RAND(), _xlfn.POISSON.DIST({0,1,2,3,4,5,6,7,8,9},$P19, TRUE),1), 0) -> 0 | CR19: =_xlfn.IFNA(MATCH(RAND(), _xlfn.POISSON.DIST({0,1,2,3,4,5,6,7,8,9},$P19, TRUE),1), 0) -> 1 | CS19: =_xlfn.IFNA(MATCH(RAND(), _xlfn.POISSON.DIST({0,1,2,3,4,5,6,7,8,9},$P19, TRUE),1), 0) -> 2 | CT19: =_xlfn.IFNA(MATCH(RAND(), _xlfn.POISSON.DIST({0,1,2,3,4,5,6,7,8,9},$P19, TRUE),1), 0) -> 5 | CU19: =_xlfn.IFNA(MATCH(RAND(), _xlfn.POISSON.DIST({0,1,2,3,4,5,6,7,8,9},$P19, TRUE),1), 0) -> 1 | CV19: =_xlfn.IFNA(MATCH(RAND(), _xlfn.POISSON.DIST({0,1,2,3,4,5,6,7,8,9},$P19, TRUE),1), 0) -> 1 | CW19: =_xlfn.IFNA(MATCH(RAND(), _xlfn.POISSON.DIST({0,1,2,3,4,5,6,7,8,9},$P19, TRUE),1), 0) -> 2 | CX19: =_xlfn.IFNA(MATCH(RAND(), _xlfn.POISSON.DIST({0,1,2,3,4,5,6,7,8,9},$P19, TRUE),1), 0) -> 2 | CY19: =_xlfn.IFNA(MATCH(RAND(), _xlfn.POISSON.DIST({0,1,2,3,4,5,6,7,8,9},$P19, TRUE),1), 0) -> 1 | CZ19: =_xlfn.IFNA(MATCH(RAND(), _xlfn.POISSON.DIST({0,1,2,3,4,5,6,7,8,9},$P19, TRUE),1), 0) -> 1 | DA19: =_xlfn.IFNA(MATCH(RAND(), _xlfn.POISSON.DIST({0,1,2,3,4,5,6,7,8,9},$P19, TRUE),1), 0) -> 3 | DB19: =_xlfn.IFNA(MATCH(RAND(), _xlfn.POISSON.DIST({0,1,2,3,4,5,6,7,8,9},$P19, TRUE),1), 0) -> 3 | DC19: =_xlfn.IFNA(MATCH(RAND(), _xlfn.POISSON.DIST({0,1,2,3,4,5,6,7,8,9},$P19, TRUE),1), 0) -> 2 | DD19: =_xlfn.IFNA(MATCH(RAND(), _xlfn.POISSON.DIST({0,1,2,3,4,5,6,7,8,9},$P19, TRUE),1), 0) -> 3 | DE19: =_xlfn.IFNA(MATCH(RAND(), _xlfn.POISSON.DIST({0,1,2,3,4,5,6,7,8,9},$P19, TRUE),1), 0) -> 3 | DF19: =_xlfn.IFNA(MATCH(RAND(), _xlfn.POISSON.DIST({0,1,2,3,4,5,6,7,8,9},$P19, TRUE),1), 0) -> 0 | DG19: =_xlfn.IFNA(MATCH(RAND(), _xlfn.POISSON.DIST({0,1,2,3,4,5,6,7,8,9},$P19, TRUE),1), 0) -> 1 | DH19: =_xlfn.IFNA(MATCH(RAND(), _xlfn.POISSON.DIST({0,1,2,3,4,5,6,7,8,9},$P19, TRUE),1), 0) -> 3 | DI19: =_xlfn.IFNA(MATCH(RAND(), _xlfn.POISSON.DIST({0,1,2,3,4,5,6,7,8,9},$P19, TRUE),1), 0) -> 4 | DJ19: =_xlfn.IFNA(MATCH(RAND(), _xlfn.POISSON.DIST({0,1,2,3,4,5,6,7,8,9},$P19, TRUE),1), 0) -> 0 | DK19: =_xlfn.IFNA(MATCH(RAND(), _xlfn.POISSON.DIST({0,1,2,3,4,5,6,7,8,9},$P19, TRUE),1), 0) -> 1 | DL19: =_xlfn.IFNA(MATCH(RAND(), _xlfn.POISSON.DIST({0,1,2,3,4,5,6,7,8,9},$P19, TRUE),1), 0) -> 5 | DM19: =_xlfn.IFNA(MATCH(RAND(), _xlfn.POISSON.DIST({0,1,2,3,4,5,6,7,8,9},$P19, TRUE),1), 0) -> 0
C20: 2019-06-12 | D20: A | E20: Francia | F20: =(AVERAGE(Q20:BN20))*(1+INDEX('Predicciones de la liguilla'!$C$4:$O$28, MATCH('Partidos de este año'!E20,'Predicciones de la liguilla'!$D$4:$D$28,0),3)) -> 1.54 | G20: Noruega | H20: =(AVERAGE(BP20:DM20))*(1+INDEX('Predicciones de la liguilla'!$C$4:$O$28, MATCH('Partidos de este año'!G20,'Predicciones de la liguilla'!$D$4:$D$28,0),3)) -> 1.62 | I20: =IF(L20>M20,E20,IF(L20=M20,"Dibujar",G20)) -> Noruega | L20: 1.54 | M20: 1.62 | N20: =IF(L20>M20,E20,IF(L20=M20,"Dibujar",G20)) -> Noruega | O20: =(OFFSET('Apéndice 3 - Goles por grupo'!$C$13,(INDEX('Apéndice 1 - Datos de equipos'!$C$13:$F$112,MATCH(G20,'Apéndice 1 - Datos de equipos'!$C$13:$C$112,0),4)/10),(INDEX('Apéndice 1 - Datos de equipos'!$C$13:$F$112,MATCH(E20,'Apéndice 1 - Datos de equipos'!$C$13:$C$112,0),4)/10))) -> 1.50 | P20: =OFFSET('Apéndice 3 - Goles por grupo'!$C$13,(INDEX('Apéndice 1 - Datos de equipos'!$C$13:$F$112, MATCH(E20,'Apéndice 1 - Datos de equipos'!$C$13:$C$112,0),4)/10), (INDEX('Apéndice 1 - Datos de equipos'!$C$13:$F$112, MATCH(G20, 'Apéndice 1 - Datos de equipos'!$C$13:$C$112,0),4)/10)) -> 1.50 | Q20: =_xlfn.IFNA(MATCH(RAND(), _xlfn.POISSON.DIST({0,1,2,3,4,5,6,7,8,9},$O20, TRUE),1), 0) -> 0 | R20: =_xlfn.IFNA(MATCH(RAND(), _xlfn.POISSON.DIST({0,1,2,3,4,5,6,7,8,9},$O20, TRUE),1), 0) -> 0 | S20: =_xlfn.IFNA(MATCH(RAND(), _xlfn.POISSON.DIST({0,1,2,3,4,5,6,7,8,9},$O20, TRUE),1), 0) -> 2 | T20: =_xlfn.IFNA(MATCH(RAND(), _xlfn.POISSON.DIST({0,1,2,3,4,5,6,7,8,9},$O20, TRUE),1), 0) -> 1 | U20: =_xlfn.IFNA(MATCH(RAND(), _xlfn.POISSON.DIST({0,1,2,3,4,5,6,7,8,9},$O20, TRUE),1), 0) -> 3 | V20: =_xlfn.IFNA(MATCH(RAND(), _xlfn.POISSON.DIST({0,1,2,3,4,5,6,7,8,9},$O20, TRUE),1), 0) -> 2 | W20: =_xlfn.IFNA(MATCH(RAND(), _xlfn.POISSON.DIST({0,1,2,3,4,5,6,7,8,9},$O20, TRUE),1), 0) -> 2 | X20: =_xlfn.IFNA(MATCH(RAND(), _xlfn.POISSON.DIST({0,1,2,3,4,5,6,7,8,9},$O20, TRUE),1), 0) -> 0 | Y20: =_xlfn.IFNA(MATCH(RAND(), _xlfn.POISSON.DIST({0,1,2,3,4,5,6,7,8,9},$O20, TRUE),1), 0) -> 0 | Z20: =_xlfn.IFNA(MATCH(RAND(), _xlfn.POISSON.DIST({0,1,2,3,4,5,6,7,8,9},$O20, TRUE),1), 0) -> 2 | AA20: =_xlfn.IFNA(MATCH(RAND(), _xlfn.POISSON.DIST({0,1,2,3,4,5,6,7,8,9},$O20, TRUE),1), 0) -> 0 | AB20: =_xlfn.IFNA(MATCH(RAND(), _xlfn.POISSON.DIST({0,1,2,3,4,5,6,7,8,9},$O20, TRUE),1), 0) -> 1 | AC20: =_xlfn.IFNA(MATCH(RAND(), _xlfn.POISSON.DIST({0,1,2,3,4,5,6,7,8,9},$O20, TRUE),1), 0) -> 4 | AD20: =_xlfn.IFNA(MATCH(RAND(), _xlfn.POISSON.DIST({0,1,2,3,4,5,6,7,8,9},$O20, TRUE),1), 0) -> 1 | AE20: =_xlfn.IFNA(MATCH(RAND(), _xlfn.POISSON.DIST({0,1,2,3,4,5,6,7,8,9},$O20, TRUE),1), 0) -> 4 | AF20: =_xlfn.IFNA(MATCH(RAND(), _xlfn.POISSON.DIST({0,1,2,3,4,5,6,7,8,9},$O20, TRUE),1), 0) -> 4 | AG20: =_xlfn.IFNA(MATCH(RAND(), _xlfn.POISSON.DIST({0,1,2,3,4,5,6,7,8,9},$O20, TRUE),1), 0) -> 2 | AH20: =_xlfn.IFNA(MATCH(RAND(), _xlfn.POISSON.DIST({0,1,2,3,4,5,6,7,8,9},$O20, TRUE),1), 0) -> 2 | AI20: =_xlfn.IFNA(MATCH(RAND(), _xlfn.POISSON.DIST({0,1,2,3,4,5,6,7,8,9},$O20, TRUE),1), 0) -> 1 | AJ20: =_xlfn.IFNA(MATCH(RAND(), _xlfn.POISSON.DIST({0,1,2,3,4,5,6,7,8,9},$O20, TRUE),1), 0) -> 4 | AK20: =_xlfn.IFNA(MATCH(RAND(), _xlfn.POISSON.DIST({0,1,2,3,4,5,6,7,8,9},$O20, TRUE),1), 0) -> 1 | AL20: =_xlfn.IFNA(MATCH(RAND(), _xlfn.POISSON.DIST({0,1,2,3,4,5,6,7,8,9},$O20, TRUE),1), 0) -> 1 | AM20: =_xlfn.IFNA(MATCH(RAND(), _xlfn.POISSON.DIST({0,1,2,3,4,5,6,7,8,9},$O20, TRUE),1), 0) -> 3 | AN20: =_xlfn.IFNA(MATCH(RAND(), _xlfn.POISSON.DIST({0,1,2,3,4,5,6,7,8,9},$O20, TRUE),1), 0) -> 1 | AO20: =_xlfn.IFNA(MATCH(RAND(), _xlfn.POISSON.DIST({0,1,2,3,4,5,6,7,8,9},$O20, TRUE),1), 0) -> 1 | AP20: =_xlfn.IFNA(MATCH(RAND(), _xlfn.POISSON.DIST({0,1,2,3,4,5,6,7,8,9},$O20, TRUE),1), 0) -> 0 | AQ20: =_xlfn.IFNA(MATCH(RAND(), _xlfn.POISSON.DIST({0,1,2,3,4,5,6,7,8,9},$O20, TRUE),1), 0) -> 3 | AR20: =_xlfn.IFNA(MATCH(RAND(), _xlfn.POISSON.DIST({0,1,2,3,4,5,6,7,8,9},$O20, TRUE),1), 0) -> 0 | AS20: =_xlfn.IFNA(MATCH(RAND(), _xlfn.POISSON.DIST({0,1,2,3,4,5,6,7,8,9},$O20, TRUE),1), 0) -> 1 | AT20: =_xlfn.IFNA(MATCH(RAND(), _xlfn.POISSON.DIST({0,1,2,3,4,5,6,7,8,9},$O20, TRUE),1), 0) -> 2 | AU20: =_xlfn.IFNA(MATCH(RAND(), _xlfn.POISSON.DIST({0,1,2,3,4,5,6,7,8,9},$O20, TRUE),1), 0) -> 1 | AV20: =_xlfn.IFNA(MATCH(RAND(), _xlfn.POISSON.DIST({0,1,2,3,4,5,6,7,8,9},$O20, TRUE),1), 0) -> 3 | AW20: =_xlfn.IFNA(MATCH(RAND(), _xlfn.POISSON.DIST({0,1,2,3,4,5,6,7,8,9},$O20, TRUE),1), 0) -> 0 | AX20: =_xlfn.IFNA(MATCH(RAND(), _xlfn.POISSON.DIST({0,1,2,3,4,5,6,7,8,9},$O20, TRUE),1), 0) -> 2 | AY20: =_xlfn.IFNA(MATCH(RAND(), _xlfn.POISSON.DIST({0,1,2,3,4,5,6,7,8,9},$O20, TRUE),1), 0) -> 2 | AZ20: =_xlfn.IFNA(MATCH(RAND(), _xlfn.POISSON.DIST({0,1,2,3,4,5,6,7,8,9},$O20, TRUE),1), 0) -> 4 | BA20: =_xlfn.IFNA(MATCH(RAND(), _xlfn.POISSON.DIST({0,1,2,3,4,5,6,7,8,9},$O20, TRUE),1), 0) -> 0 | BB20: =_xlfn.IFNA(MATCH(RAND(), _xlfn.POISSON.DIST({0,1,2,3,4,5,6,7,8,9},$O20, TRUE),1), 0) -> 3 | BC20: =_xlfn.IFNA(MATCH(RAND(), _xlfn.POISSON.DIST({0,1,2,3,4,5,6,7,8,9},$O20, TRUE),1), 0) -> 0 | BD20: =_xlfn.IFNA(MATCH(RAND(), _xlfn.POISSON.DIST({0,1,2,3,4,5,6,7,8,9},$O20, TRUE),1), 0) -> 2 | BE20: =_xlfn.IFNA(MATCH(RAND(), _xlfn.POISSON.DIST({0,1,2,3,4,5,6,7,8,9},$O20, TRUE),1), 0) -> 1 | BF20: =_xlfn.IFNA(MATCH(RAND(), _xlfn.POISSON.DIST({0,1,2,3,4,5,6,7,8,9},$O20, TRUE),1), 0) -> 0 | BG20: =_xlfn.IFNA(MATCH(RAND(), _xlfn.POISSON.DIST({0,1,2,3,4,5,6,7,8,9},$O20, TRUE),1), 0) -> 4 | BH20: =_xlfn.IFNA(MATCH(RAND(), _xlfn.POISSON.DIST({0,1,2,3,4,5,6,7,8,9},$O20, TRUE),1), 0) -> 0 | BI20: =_xlfn.IFNA(MATCH(RAND(), _xlfn.POISSON.DIST({0,1,2,3,4,5,6,7,8,9},$O20, TRUE),1), 0) -> 1 | BJ20: =_xlfn.IFNA(MATCH(RAND(), _xlfn.POISSON.DIST({0,1,2,3,4,5,6,7,8,9},$O20, TRUE),1), 0) -> 1 | BK20: =_xlfn.IFNA(MATCH(RAND(), _xlfn.POISSON.DIST({0,1,2,3,4,5,6,7,8,9},$O20, TRUE),1), 0) -> 1 | BL20: =_xlfn.IFNA(MATCH(RAND(), _xlfn.POISSON.DIST({0,1,2,3,4,5,6,7,8,9},$O20, TRUE),1), 0) -> 1 | BM20: =_xlfn.IFNA(MATCH(RAND(), _xlfn.POISSON.DIST({0,1,2,3,4,5,6,7,8,9},$O20, TRUE),1), 0) -> 1 | BN20: =_xlfn.IFNA(MATCH(RAND(), _xlfn.POISSON.DIST({0,1,2,3,4,5,6,7,8,9},$O20, TRUE),1), 0) -> 2 | BP20: =_xlfn.IFNA(MATCH(RAND(), _xlfn.POISSON.DIST({0,1,2,3,4,5,6,7,8,9},$P20, TRUE),1), 0) -> 3 | BQ20: =_xlfn.IFNA(MATCH(RAND(), _xlfn.POISSON.DIST({0,1,2,3,4,5,6,7,8,9},$P20, TRUE),1), 0) -> 1 | BR20: =_xlfn.IFNA(MATCH(RAND(), _xlfn.POISSON.DIST({0,1,2,3,4,5,6,7,8,9},$P20, TRUE),1), 0) -> 3 | BS20: =_xlfn.IFNA(MATCH(RAND(), _xlfn.POISSON.DIST({0,1,2,3,4,5,6,7,8,9},$P20, TRUE),1), 0) -> 1 | BT20: =_xlfn.IFNA(MATCH(RAND(), _xlfn.POISSON.DIST({0,1,2,3,4,5,6,7,8,9},$P20, TRUE),1), 0) -> 0 | BU20: =_xlfn.IFNA(MATCH(RAND(), _xlfn.POISSON.DIST({0,1,2,3,4,5,6,7,8,9},$P20, TRUE),1), 0) -> 0 | BV20: =_xlfn.IFNA(MATCH(RAND(), _xlfn.POISSON.DIST({0,1,2,3,4,5,6,7,8,9},$P20, TRUE),1), 0) -> 1 | BW20: =_xlfn.IFNA(MATCH(RAND(), _xlfn.POISSON.DIST({0,1,2,3,4,5,6,7,8,9},$P20, TRUE),1), 0) -> 2 | BX20: =_xlfn.IFNA(MATCH(RAND(), _xlfn.POISSON.DIST({0,1,2,3,4,5,6,7,8,9},$P20, TRUE),1), 0) -> 0 | BY20: =_xlfn.IFNA(MATCH(RAND(), _xlfn.POISSON.DIST({0,1,2,3,4,5,6,7,8,9},$P20, TRUE),1), 0) -> 2 | BZ20: =_xlfn.IFNA(MATCH(RAND(), _xlfn.POISSON.DIST({0,1,2,3,4,5,6,7,8,9},$P20, TRUE),1), 0) -> 1 | CA20: =_xlfn.IFNA(MATCH(RAND(), _xlfn.POISSON.DIST({0,1,2,3,4,5,6,7,8,9},$P20, TRUE),1), 0) -> 2 | CB20: =_xlfn.IFNA(MATCH(RAND(), _xlfn.POISSON.DIST({0,1,2,3,4,5,6,7,8,9},$P20, TRUE),1), 0) -> 1 | CC20: =_xlfn.IFNA(MATCH(RAND(), _xlfn.POISSON.DIST({0,1,2,3,4,5,6,7,8,9},$P20, TRUE),1), 0) -> 2 | CD20: =_xlfn.IFNA(MATCH(RAND(), _xlfn.POISSON.DIST({0,1,2,3,4,5,6,7,8,9},$P20, TRUE),1), 0) -> 1 | CE20: =_xlfn.IFNA(MATCH(RAND(), _xlfn.POISSON.DIST({0,1,2,3,4,5,6,7,8,9},$P20, TRUE),1), 0) -> 0 | CF20: =_xlfn.IFNA(MATCH(RAND(), _xlfn.POISSON.DIST({0,1,2,3,4,5,6,7,8,9},$P20, TRUE),1), 0) -> 1 | CG20: =_xlfn.IFNA(MATCH(RAND(), _xlfn.POISSON.DIST({0,1,2,3,4,5,6,7,8,9},$P20, TRUE),1), 0) -> 2 | CH20: =_xlfn.IFNA(MATCH(RAND(), _xlfn.POISSON.DIST({0,1,2,3,4,5,6,7,8,9},$P20, TRUE),1), 0) -> 0 | CI20: =_xlfn.IFNA(MATCH(RAND(), _xlfn.POISSON.DIST({0,1,2,3,4,5,6,7,8,9},$P20, TRUE),1), 0) -> 0 | CJ20: =_xlfn.IFNA(MATCH(RAND(), _xlfn.POISSON.DIST({0,1,2,3,4,5,6,7,8,9},$P20, TRUE),1), 0) -> 2 | CK20: =_xlfn.IFNA(MATCH(RAND(), _xlfn.POISSON.DIST({0,1,2,3,4,5,6,7,8,9},$P20, TRUE),1), 0) -> 3 | CL20: =_xlfn.IFNA(MATCH(RAND(), _xlfn.POISSON.DIST({0,1,2,3,4,5,6,7,8,9},$P20, TRUE),1), 0) -> 0 | CM20: =_xlfn.IFNA(MATCH(RAND(), _xlfn.POISSON.DIST({0,1,2,3,4,5,6,7,8,9},$P20, TRUE),1), 0) -> 1 | CN20: =_xlfn.IFNA(MATCH(RAND(), _xlfn.POISSON.DIST({0,1,2,3,4,5,6,7,8,9},$P20, TRUE),1), 0) -> 2 | CO20: =_xlfn.IFNA(MATCH(RAND(), _xlfn.POISSON.DIST({0,1,2,3,4,5,6,7,8,9},$P20, TRUE),1), 0) -> 3 | CP20: =_xlfn.IFNA(MATCH(RAND(), _xlfn.POISSON.DIST({0,1,2,3,4,5,6,7,8,9},$P20, TRUE),1), 0) -> 2 | CQ20: =_xlfn.IFNA(MATCH(RAND(), _xlfn.POISSON.DIST({0,1,2,3,4,5,6,7,8,9},$P20, TRUE),1), 0) -> 1 | CR20: =_xlfn.IFNA(MATCH(RAND(), _xlfn.POISSON.DIST({0,1,2,3,4,5,6,7,8,9},$P20, TRUE),1), 0) -> 3 | CS20: =_xlfn.IFNA(MATCH(RAND(), _xlfn.POISSON.DIST({0,1,2,3,4,5,6,7,8,9},$P20, TRUE),1), 0) -> 2 | CT20: =_xlfn.IFNA(MATCH(RAND(), _xlfn.POISSON.DIST({0,1,2,3,4,5,6,7,8,9},$P20, TRUE),1), 0) -> 2 | CU20: =_xlfn.IFNA(MATCH(RAND(), _xlfn.POISSON.DIST({0,1,2,3,4,5,6,7,8,9},$P20, TRUE),1), 0) -> 3 | CV20: =_xlfn.IFNA(MATCH(RAND(), _xlfn.POISSON.DIST({0,1,2,3,4,5,6,7,8,9},$P20, TRUE),1), 0) -> 3 | CW20: =_xlfn.IFNA(MATCH(RAND(), _xlfn.POISSON.DIST({0,1,2,3,4,5,6,7,8,9},$P20, TRUE),1), 0) -> 4 | CX20: =_xlfn.IFNA(MATCH(RAND(), _xlfn.POISSON.DIST({0,1,2,3,4,5,6,7,8,9},$P20, TRUE),1), 0) -> 1 | CY20: =_xlfn.IFNA(MATCH(RAND(), _xlfn.POISSON.DIST({0,1,2,3,4,5,6,7,8,9},$P20, TRUE),1), 0) -> 0 | CZ20: =_xlfn.IFNA(MATCH(RAND(), _xlfn.POISSON.DIST({0,1,2,3,4,5,6,7,8,9},$P20, TRUE),1), 0) -> 0 | DA20: =_xlfn.IFNA(MATCH(RAND(), _xlfn.POISSON.DIST({0,1,2,3,4,5,6,7,8,9},$P20, TRUE),1), 0) -> 5 | DB20: =_xlfn.IFNA(MATCH(RAND(), _xlfn.POISSON.DIST({0,1,2,3,4,5,6,7,8,9},$P20, TRUE),1), 0) -> 1 | DC20: =_xlfn.IFNA(MATCH(RAND(), _xlfn.POISSON.DIST({0,1,2,3,4,5,6,7,8,9},$P20, TRUE),1), 0) -> 2 | DD20: =_xlfn.IFNA(MATCH(RAND(), _xlfn.POISSON.DIST({0,1,2,3,4,5,6,7,8,9},$P20, TRUE),1), 0) -> 3 | DE20: =_xlfn.IFNA(MATCH(RAND(), _xlfn.POISSON.DIST({0,1,2,3,4,5,6,7,8,9},$P20, TRUE),1), 0) -> 0 | DF20: =_xlfn.IFNA(MATCH(RAND(), _xlfn.POISSON.DIST({0,1,2,3,4,5,6,7,8,9},$P20, TRUE),1), 0) -> 1 | DG20: =_xlfn.IFNA(MATCH(RAND(), _xlfn.POISSON.DIST({0,1,2,3,4,5,6,7,8,9},$P20, TRUE),1), 0) -> 1 | DH20: =_xlfn.IFNA(MATCH(RAND(), _xlfn.POISSON.DIST({0,1,2,3,4,5,6,7,8,9},$P20, TRUE),1), 0) -> 3 | DI20: =_xlfn.IFNA(MATCH(RAND(), _xlfn.POISSON.DIST({0,1,2,3,4,5,6,7,8,9},$P20, TRUE),1), 0) -> 2 | DJ20: =_xlfn.IFNA(MATCH(RAND(), _xlfn.POISSON.DIST({0,1,2,3,4,5,6,7,8,9},$P20, TRUE),1), 0) -> 0 | DK20: =_xlfn.IFNA(MATCH(RAND(), _xlfn.POISSON.DIST({0,1,2,3,4,5,6,7,8,9},$P20, TRUE),1), 0) -> 2 | DL20: =_xlfn.IFNA(MATCH(RAND(), _xlfn.POISSON.DIST({0,1,2,3,4,5,6,7,8,9},$P20, TRUE),1), 0) -> 2 | DM20: =_xlfn.IFNA(MATCH(RAND(), _xlfn.POISSON.DIST({0,1,2,3,4,5,6,7,8,9},$P20, TRUE),1), 0) -> 4
C21: 2019-06-13 | D21: C | E21: Australia | F21: =(AVERAGE(Q21:BN21))*(1+INDEX('Predicciones de la liguilla'!$C$4:$O$28, MATCH('Partidos de este año'!E21,'Predicciones de la liguilla'!$D$4:$D$28,0),3)) -> 1.38 | G21: Brasil | H21: =(AVERAGE(BP21:DM21))*(1+INDEX('Predicciones de la liguilla'!$C$4:$O$28, MATCH('Partidos de este año'!G21,'Predicciones de la liguilla'!$D$4:$D$28,0),3)) -> 1.38 | I21: =IF(L21>M21,E21,IF(L21=M21,"Dibujar",G21)) -> Dibujar | L21: 1.38 | M21: 1.38 | N21: =IF(L21>M21,E21,IF(L21=M21,"Dibujar",G21)) -> Dibujar | O21: =(OFFSET('Apéndice 3 - Goles por grupo'!$C$13,(INDEX('Apéndice 1 - Datos de equipos'!$C$13:$F$112,MATCH(G21,'Apéndice 1 - Datos de equipos'!$C$13:$C$112,0),4)/10),(INDEX('Apéndice 1 - Datos de equipos'!$C$13:$F$112,MATCH(E21,'Apéndice 1 - Datos de equipos'!$C$13:$C$112,0),4)/10))) -> 1.37 | P21: =OFFSET('Apéndice 3 - Goles por grupo'!$C$13,(INDEX('Apéndice 1 - Datos de equipos'!$C$13:$F$112, MATCH(E21,'Apéndice 1 - Datos de equipos'!$C$13:$C$112,0),4)/10), (INDEX('Apéndice 1 - Datos de equipos'!$C$13:$F$112, MATCH(G21, 'Apéndice 1 - Datos de equipos'!$C$13:$C$112,0),4)/10)) -> 1.37 | Q21: =_xlfn.IFNA(MATCH(RAND(), _xlfn.POISSON.DIST({0,1,2,3,4,5,6,7,8,9},$O21, TRUE),1), 0) -> 0 | R21: =_xlfn.IFNA(MATCH(RAND(), _xlfn.POISSON.DIST({0,1,2,3,4,5,6,7,8,9},$O21, TRUE),1), 0) -> 6 | S21: =_xlfn.IFNA(MATCH(RAND(), _xlfn.POISSON.DIST({0,1,2,3,4,5,6,7,8,9},$O21, TRUE),1), 0) -> 3 | T21: =_xlfn.IFNA(MATCH(RAND(), _xlfn.POISSON.DIST({0,1,2,3,4,5,6,7,8,9},$O21, TRUE),1), 0) -> 1 | U21: =_xlfn.IFNA(MATCH(RAND(), _xlfn.POISSON.DIST({0,1,2,3,4,5,6,7,8,9},$O21, TRUE),1), 0) -> 2 | V21: =_xlfn.IFNA(MATCH(RAND(), _xlfn.POISSON.DIST({0,1,2,3,4,5,6,7,8,9},$O21, TRUE),1), 0) -> 1 | W21: =_xlfn.IFNA(MATCH(RAND(), _xlfn.POISSON.DIST({0,1,2,3,4,5,6,7,8,9},$O21, TRUE),1), 0) -> 0 | X21: =_xlfn.IFNA(MATCH(RAND(), _xlfn.POISSON.DIST({0,1,2,3,4,5,6,7,8,9},$O21, TRUE),1), 0) -> 1 | Y21: =_xlfn.IFNA(MATCH(RAND(), _xlfn.POISSON.DIST({0,1,2,3,4,5,6,7,8,9},$O21, TRUE),1), 0) -> 1 | Z21: =_xlfn.IFNA(MATCH(RAND(), _xlfn.POISSON.DIST({0,1,2,3,4,5,6,7,8,9},$O21, TRUE),1), 0) -> 3 | AA21: =_xlfn.IFNA(MATCH(RAND(), _xlfn.POISSON.DIST({0,1,2,3,4,5,6,7,8,9},$O21, TRUE),1), 0) -> 0 | AB21: =_xlfn.IFNA(MATCH(RAND(), _xlfn.POISSON.DIST({0,1,2,3,4,5,6,7,8,9},$O21, TRUE),1), 0) -> 1 | AC21: =_xlfn.IFNA(MATCH(RAND(), _xlfn.POISSON.DIST({0,1,2,3,4,5,6,7,8,9},$O21, TRUE),1), 0) -> 0 | AD21: =_xlfn.IFNA(MATCH(RAND(), _xlfn.POISSON.DIST({0,1,2,3,4,5,6,7,8,9},$O21, TRUE),1), 0) -> 0 | AE21: =_xlfn.IFNA(MATCH(RAND(), _xlfn.POISSON.DIST({0,1,2,3,4,5,6,7,8,9},$O21, TRUE),1), 0) -> 2 | AF21: =_xlfn.IFNA(MATCH(RAND(), _xlfn.POISSON.DIST({0,1,2,3,4,5,6,7,8,9},$O21, TRUE),1), 0) -> 1 | AG21: =_xlfn.IFNA(MATCH(RAND(), _xlfn.POISSON.DIST({0,1,2,3,4,5,6,7,8,9},$O21, TRUE),1), 0) -> 3 | AH21: =_xlfn.IFNA(MATCH(RAND(), _xlfn.POISSON.DIST({0,1,2,3,4,5,6,7,8,9},$O21, TRUE),1), 0) -> 2 | AI21: =_xlfn.IFNA(MATCH(RAND(), _xlfn.POISSON.DIST({0,1,2,3,4,5,6,7,8,9},$O21, TRUE),1), 0) -> 2 | AJ21: =_xlfn.IFNA(MATCH(RAND(), _xlfn.POISSON.DIST({0,1,2,3,4,5,6,7,8,9},$O21, TRUE),1), 0) -> 1 | AK21: =_xlfn.IFNA(MATCH(RAND(), _xlfn.POISSON.DIST({0,1,2,3,4,5,6,7,8,9},$O21, TRUE),1), 0) -> 1 | AL21: =_xlfn.IFNA(MATCH(RAND(), _xlfn.POISSON.DIST({0,1,2,3,4,5,6,7,8,9},$O21, TRUE),1), 0) -> 2 | AM21: =_xlfn.IFNA(MATCH(RAND(), _xlfn.POISSON.DIST({0,1,2,3,4,5,6,7,8,9},$O21, TRUE),1), 0) -> 4 | AN21: =_xlfn.IFNA(MATCH(RAND(), _xlfn.POISSON.DIST({0,1,2,3,4,5,6,7,8,9},$O21, TRUE),1), 0) -> 1 | AO21: =_xlfn.IFNA(MATCH(RAND(), _xlfn.POISSON.DIST({0,1,2,3,4,5,6,7,8,9},$O21, TRUE),1), 0) -> 1 | AP21: =_xlfn.IFNA(MATCH(RAND(), _xlfn.POISSON.DIST({0,1,2,3,4,5,6,7,8,9},$O21, TRUE),1), 0) -> 0 | AQ21: =_xlfn.IFNA(MATCH(RAND(), _xlfn.POISSON.DIST({0,1,2,3,4,5,6,7,8,9},$O21, TRUE),1), 0) -> 3 | AR21: =_xlfn.IFNA(MATCH(RAND(), _xlfn.POISSON.DIST({0,1,2,3,4,5,6,7,8,9},$O21, TRUE),1), 0) -> 2 | AS21: =_xlfn.IFNA(MATCH(RAND(), _xlfn.POISSON.DIST({0,1,2,3,4,5,6,7,8,9},$O21, TRUE),1), 0) -> 0 | AT21: =_xlfn.IFNA(MATCH(RAND(), _xlfn.POISSON.DIST({0,1,2,3,4,5,6,7,8,9},$O21, TRUE),1), 0) -> 1 | AU21: =_xlfn.IFNA(MATCH(RAND(), _xlfn.POISSON.DIST({0,1,2,3,4,5,6,7,8,9},$O21, TRUE),1), 0) -> 2 | AV21: =_xlfn.IFNA(MATCH(RAND(), _xlfn.POISSON.DIST({0,1,2,3,4,5,6,7,8,9},$O21, TRUE),1), 0) -> 2 | AW21: =_xlfn.IFNA(MATCH(RAND(), _xlfn.POISSON.DIST({0,1,2,3,4,5,6,7,8,9},$O21, TRUE),1), 0) -> 0 | AX21: =_xlfn.IFNA(MATCH(RAND(), _xlfn.POISSON.DIST({0,1,2,3,4,5,6,7,8,9},$O21, TRUE),1), 0) -> 3 | AY21: =_xlfn.IFNA(MATCH(RAND(), _xlfn.POISSON.DIST({0,1,2,3,4,5,6,7,8,9},$O21, TRUE),1), 0) -> 2 | AZ21: =_xlfn.IFNA(MATCH(RAND(), _xlfn.POISSON.DIST({0,1,2,3,4,5,6,7,8,9},$O21, TRUE),1), 0) -> 0 | BA21: =_xlfn.IFNA(MATCH(RAND(), _xlfn.POISSON.DIST({0,1,2,3,4,5,6,7,8,9},$O21, TRUE),1), 0) -> 2 | BB21: =_xlfn.IFNA(MATCH(RAND(), _xlfn.POISSON.DIST({0,1,2,3,4,5,6,7,8,9},$O21, TRUE),1), 0) -> 1 | BC21: =_xlfn.IFNA(MATCH(RAND(), _xlfn.POISSON.DIST({0,1,2,3,4,5,6,7,8,9},$O21, TRUE),1), 0) -> 2 | BD21: =_xlfn.IFNA(MATCH(RAND(), _xlfn.POISSON.DIST({0,1,2,3,4,5,6,7,8,9},$O21, TRUE),1), 0) -> 0 | BE21: =_xlfn.IFNA(MATCH(RAND(), _xlfn.POISSON.DIST({0,1,2,3,4,5,6,7,8,9},$O21, TRUE),1), 0) -> 0 | BF21: =_xlfn.IFNA(MATCH(RAND(), _xlfn.POISSON.DIST({0,1,2,3,4,5,6,7,8,9},$O21, TRUE),1), 0) -> 0 | BG21: =_xlfn.IFNA(MATCH(RAND(), _xlfn.POISSON.DIST({0,1,2,3,4,5,6,7,8,9},$O21, TRUE),1), 0) -> 3 | BH21: =_xlfn.IFNA(MATCH(RAND(), _xlfn.POISSON.DIST({0,1,2,3,4,5,6,7,8,9},$O21, TRUE),1), 0) -> 2 | BI21: =_xlfn.IFNA(MATCH(RAND(), _xlfn.POISSON.DIST({0,1,2,3,4,5,6,7,8,9},$O21, TRUE),1), 0) -> 0 | BJ21: =_xlfn.IFNA(MATCH(RAND(), _xlfn.POISSON.DIST({0,1,2,3,4,5,6,7,8,9},$O21, TRUE),1), 0) -> 0 | BK21: =_xlfn.IFNA(MATCH(RAND(), _xlfn.POISSON.DIST({0,1,2,3,4,5,6,7,8,9},$O21, TRUE),1), 0) -> 2 | BL21: =_xlfn.IFNA(MATCH(RAND(), _xlfn.POISSON.DIST({0,1,2,3,4,5,6,7,8,9},$O21, TRUE),1), 0) -> 3 | BM21: =_xlfn.IFNA(MATCH(RAND(), _xlfn.POISSON.DIST({0,1,2,3,4,5,6,7,8,9},$O21, TRUE),1), 0) -> 0 | BN21: =_xlfn.IFNA(MATCH(RAND(), _xlfn.POISSON.DIST({0,1,2,3,4,5,6,7,8,9},$O21, TRUE),1), 0) -> 0 | BP21: =_xlfn.IFNA(MATCH(RAND(), _xlfn.POISSON.DIST({0,1,2,3,4,5,6,7,8,9},$P21, TRUE),1), 0) -> 1 | BQ21: =_xlfn.IFNA(MATCH(RAND(), _xlfn.POISSON.DIST({0,1,2,3,4,5,6,7,8,9},$P21, TRUE),1), 0) -> 1 | BR21: =_xlfn.IFNA(MATCH(RAND(), _xlfn.POISSON.DIST({0,1,2,3,4,5,6,7,8,9},$P21, TRUE),1), 0) -> 3 | BS21: =_xlfn.IFNA(MATCH(RAND(), _xlfn.POISSON.DIST({0,1,2,3,4,5,6,7,8,9},$P21, TRUE),1), 0) -> 1 | BT21: =_xlfn.IFNA(MATCH(RAND(), _xlfn.POISSON.DIST({0,1,2,3,4,5,6,7,8,9},$P21, TRUE),1), 0) -> 0 | BU21: =_xlfn.IFNA(MATCH(RAND(), _xlfn.POISSON.DIST({0,1,2,3,4,5,6,7,8,9},$P21, TRUE),1), 0) -> 0 | BV21: =_xlfn.IFNA(MATCH(RAND(), _xlfn.POISSON.DIST({0,1,2,3,4,5,6,7,8,9},$P21, TRUE),1), 0) -> 0 | BW21: =_xlfn.IFNA(MATCH(RAND(), _xlfn.POISSON.DIST({0,1,2,3,4,5,6,7,8,9},$P21, TRUE),1), 0) -> 5 | BX21: =_xlfn.IFNA(MATCH(RAND(), _xlfn.POISSON.DIST({0,1,2,3,4,5,6,7,8,9},$P21, TRUE),1), 0) -> 1 | BY21: =_xlfn.IFNA(MATCH(RAND(), _xlfn.POISSON.DIST({0,1,2,3,4,5,6,7,8,9},$P21, TRUE),1), 0) -> 0 | BZ21: =_xlfn.IFNA(MATCH(RAND(), _xlfn.POISSON.DIST({0,1,2,3,4,5,6,7,8,9},$P21, TRUE),1), 0) -> 2 | CA21: =_xlfn.IFNA(MATCH(RAND(), _xlfn.POISSON.DIST({0,1,2,3,4,5,6,7,8,9},$P21, TRUE),1), 0) -> 2 | CB21: =_xlfn.IFNA(MATCH(RAND(), _xlfn.POISSON.DIST({0,1,2,3,4,5,6,7,8,9},$P21, TRUE),1), 0) -> 2 | CC21: =_xlfn.IFNA(MATCH(RAND(), _xlfn.POISSON.DIST({0,1,2,3,4,5,6,7,8,9},$P21, TRUE),1), 0) -> 0 | CD21: =_xlfn.IFNA(MATCH(RAND(), _xlfn.POISSON.DIST({0,1,2,3,4,5,6,7,8,9},$P21, TRUE),1), 0) -> 4 | CE21: =_xlfn.IFNA(MATCH(RAND(), _xlfn.POISSON.DIST({0,1,2,3,4,5,6,7,8,9},$P21, TRUE),1), 0) -> 2 | CF21: =_xlfn.IFNA(MATCH(RAND(), _xlfn.POISSON.DIST({0,1,2,3,4,5,6,7,8,9},$P21, TRUE),1), 0) -> 1 | CG21: =_xlfn.IFNA(MATCH(RAND(), _xlfn.POISSON.DIST({0,1,2,3,4,5,6,7,8,9},$P21, TRUE),1), 0) -> 1 | CH21: =_xlfn.IFNA(MATCH(RAND(), _xlfn.POISSON.DIST({0,1,2,3,4,5,6,7,8,9},$P21, TRUE),1), 0) -> 1 | CI21: =_xlfn.IFNA(MATCH(RAND(), _xlfn.POISSON.DIST({0,1,2,3,4,5,6,7,8,9},$P21, TRUE),1), 0) -> 3 | CJ21: =_xlfn.IFNA(MATCH(RAND(), _xlfn.POISSON.DIST({0,1,2,3,4,5,6,7,8,9},$P21, TRUE),1), 0) -> 0 | CK21: =_xlfn.IFNA(MATCH(RAND(), _xlfn.POISSON.DIST({0,1,2,3,4,5,6,7,8,9},$P21, TRUE),1), 0) -> 3 | CL21: =_xlfn.IFNA(MATCH(RAND(), _xlfn.POISSON.DIST({0,1,2,3,4,5,6,7,8,9},$P21, TRUE),1), 0) -> 1 | CM21: =_xlfn.IFNA(MATCH(RAND(), _xlfn.POISSON.DIST({0,1,2,3,4,5,6,7,8,9},$P21, TRUE),1), 0) -> 0 | CN21: =_xlfn.IFNA(MATCH(RAND(), _xlfn.POISSON.DIST({0,1,2,3,4,5,6,7,8,9},$P21, TRUE),1), 0) -> 1 | CO21: =_xlfn.IFNA(MATCH(RAND(), _xlfn.POISSON.DIST({0,1,2,3,4,5,6,7,8,9},$P21, TRUE),1), 0) -> 4 | CP21: =_xlfn.IFNA(MATCH(RAND(), _xlfn.POISSON.DIST({0,1,2,3,4,5,6,7,8,9},$P21, TRUE),1), 0) -> 2 | CQ21: =_xlfn.IFNA(MATCH(RAND(), _xlfn.POISSON.DIST({0,1,2,3,4,5,6,7,8,9},$P21, TRUE),1), 0) -> 2 | CR21: =_xlfn.IFNA(MATCH(RAND(), _xlfn.POISSON.DIST({0,1,2,3,4,5,6,7,8,9},$P21, TRUE),1), 0) -> 1 | CS21: =_xlfn.IFNA(MATCH(RAND(), _xlfn.POISSON.DIST({0,1,2,3,4,5,6,7,8,9},$P21, TRUE),1), 0) -> 1 | CT21: =_xlfn.IFNA(MATCH(RAND(), _xlfn.POISSON.DIST({0,1,2,3,4,5,6,7,8,9},$P21, TRUE),1), 0) -> 1 | CU21: =_xlfn.IFNA(MATCH(RAND(), _xlfn.POISSON.DIST({0,1,2,3,4,5,6,7,8,9},$P21, TRUE),1), 0) -> 0 | CV21: =_xlfn.IFNA(MATCH(RAND(), _xlfn.POISSON.DIST({0,1,2,3,4,5,6,7,8,9},$P21, TRUE),1), 0) -> 0 | CW21: =_xlfn.IFNA(MATCH(RAND(), _xlfn.POISSON.DIST({0,1,2,3,4,5,6,7,8,9},$P21, TRUE),1), 0) -> 3 | CX21: =_xlfn.IFNA(MATCH(RAND(), _xlfn.POISSON.DIST({0,1,2,3,4,5,6,7,8,9},$P21, TRUE),1), 0) -> 1 | CY21: =_xlfn.IFNA(MATCH(RAND(), _xlfn.POISSON.DIST({0,1,2,3,4,5,6,7,8,9},$P21, TRUE),1), 0) -> 1 | CZ21: =_xlfn.IFNA(MATCH(RAND(), _xlfn.POISSON.DIST({0,1,2,3,4,5,6,7,8,9},$P21, TRUE),1), 0) -> 0 | DA21: =_xlfn.IFNA(MATCH(RAND(), _xlfn.POISSON.DIST({0,1,2,3,4,5,6,7,8,9},$P21, TRUE),1), 0) -> 3 | DB21: =_xlfn.IFNA(MATCH(RAND(), _xlfn.POISSON.DIST({0,1,2,3,4,5,6,7,8,9},$P21, TRUE),1), 0) -> 2 | DC21: =_xlfn.IFNA(MATCH(RAND(), _xlfn.POISSON.DIST({0,1,2,3,4,5,6,7,8,9},$P21, TRUE),1), 0) -> 1 | DD21: =_xlfn.IFNA(MATCH(RAND(), _xlfn.POISSON.DIST({0,1,2,3,4,5,6,7,8,9},$P21, TRUE),1), 0) -> 0 | DE21: =_xlfn.IFNA(MATCH(RAND(), _xlfn.POISSON.DIST({0,1,2,3,4,5,6,7,8,9},$P21, TRUE),1), 0) -> 0 | DF21: =_xlfn.IFNA(MATCH(RAND(), _xlfn.POISSON.DIST({0,1,2,3,4,5,6,7,8,9},$P21, TRUE),1), 0) -> 2 | DG21: =_xlfn.IFNA(MATCH(RAND(), _xlfn.POISSON.DIST({0,1,2,3,4,5,6,7,8,9},$P21, TRUE),1), 0) -> 0 | DH21: =_xlfn.IFNA(MATCH(RAND(), _xlfn.POISSON.DIST({0,1,2,3,4,5,6,7,8,9},$P21, TRUE),1), 0) -> 1 | DI21: =_xlfn.IFNA(MATCH(RAND(), _xlfn.POISSON.DIST({0,1,2,3,4,5,6,7,8,9},$P21, TRUE),1), 0) -> 2 | DJ21: =_xlfn.IFNA(MATCH(RAND(), _xlfn.POISSON.DIST({0,1,2,3,4,5,6,7,8,9},$P21, TRUE),1), 0) -> 0 | DK21: =_xlfn.IFNA(MATCH(RAND(), _xlfn.POISSON.DIST({0,1,2,3,4,5,6,7,8,9},$P21, TRUE),1), 0) -> 1 | DL21: =_xlfn.IFNA(MATCH(RAND(), _xlfn.POISSON.DIST({0,1,2,3,4,5,6,7,8,9},$P21, TRUE),1), 0) -> 2 | DM21: =_xlfn.IFNA(MATCH(RAND(), _xlfn.POISSON.DIST({0,1,2,3,4,5,6,7,8,9},$P21, TRUE),1), 0) -> 4
C22: 2019-06-13 | D22: B | E22: Sudáfrica | F22: =(AVERAGE(Q22:BN22))*(1+INDEX('Predicciones de la liguilla'!$C$4:$O$28, MATCH('Partidos de este año'!E22,'Predicciones de la liguilla'!$D$4:$D$28,0),3)) -> 1.58 | G22: China PR | H22: =(AVERAGE(BP22:DM22))*(1+INDEX('Predicciones de la liguilla'!$C$4:$O$28, MATCH('Partidos de este año'!G22,'Predicciones de la liguilla'!$D$4:$D$28,0),3)) -> 1.76 | I22: =IF(L22>M22,E22,IF(L22=M22,"Dibujar",G22)) -> China PR | L22: 1.58 | M22: 1.76 | N22: =IF(L22>M22,E22,IF(L22=M22,"Dibujar",G22)) -> China PR | O22: =(OFFSET('Apéndice 3 - Goles por grupo'!$C$13,(INDEX('Apéndice 1 - Datos de equipos'!$C$13:$F$112,MATCH(G22,'Apéndice 1 - Datos de equipos'!$C$13:$C$112,0),4)/10),(INDEX('Apéndice 1 - Datos de equipos'!$C$13:$F$112,MATCH(E22,'Apéndice 1 - Datos de equipos'!$C$13:$C$112,0),4)/10))) -> 1.50 | P22: =OFFSET('Apéndice 3 - Goles por grupo'!$C$13,(INDEX('Apéndice 1 - Datos de equipos'!$C$13:$F$112, MATCH(E22,'Apéndice 1 - Datos de equipos'!$C$13:$C$112,0),4)/10), (INDEX('Apéndice 1 - Datos de equipos'!$C$13:$F$112, MATCH(G22, 'Apéndice 1 - Datos de equipos'!$C$13:$C$112,0),4)/10)) -> 1.50 | Q22: =_xlfn.IFNA(MATCH(RAND(), _xlfn.POISSON.DIST({0,1,2,3,4,5,6,7,8,9},$O22, TRUE),1), 0) -> 0 | R22: =_xlfn.IFNA(MATCH(RAND(), _xlfn.POISSON.DIST({0,1,2,3,4,5,6,7,8,9},$O22, TRUE),1), 0) -> 3 | S22: =_xlfn.IFNA(MATCH(RAND(), _xlfn.POISSON.DIST({0,1,2,3,4,5,6,7,8,9},$O22, TRUE),1), 0) -> 3 | T22: =_xlfn.IFNA(MATCH(RAND(), _xlfn.POISSON.DIST({0,1,2,3,4,5,6,7,8,9},$O22, TRUE),1), 0) -> 2 | U22: =_xlfn.IFNA(MATCH(RAND(), _xlfn.POISSON.DIST({0,1,2,3,4,5,6,7,8,9},$O22, TRUE),1), 0) -> 1 | V22: =_xlfn.IFNA(MATCH(RAND(), _xlfn.POISSON.DIST({0,1,2,3,4,5,6,7,8,9},$O22, TRUE),1), 0) -> 4 | W22: =_xlfn.IFNA(MATCH(RAND(), _xlfn.POISSON.DIST({0,1,2,3,4,5,6,7,8,9},$O22, TRUE),1), 0) -> 5 | X22: =_xlfn.IFNA(MATCH(RAND(), _xlfn.POISSON.DIST({0,1,2,3,4,5,6,7,8,9},$O22, TRUE),1), 0) -> 3 | Y22: =_xlfn.IFNA(MATCH(RAND(), _xlfn.POISSON.DIST({0,1,2,3,4,5,6,7,8,9},$O22, TRUE),1), 0) -> 2 | Z22: =_xlfn.IFNA(MATCH(RAND(), _xlfn.POISSON.DIST({0,1,2,3,4,5,6,7,8,9},$O22, TRUE),1), 0) -> 0 | AA22: =_xlfn.IFNA(MATCH(RAND(), _xlfn.POISSON.DIST({0,1,2,3,4,5,6,7,8,9},$O22, TRUE),1), 0) -> 0 | AB22: =_xlfn.IFNA(MATCH(RAND(), _xlfn.POISSON.DIST({0,1,2,3,4,5,6,7,8,9},$O22, TRUE),1), 0) -> 0 | AC22: =_xlfn.IFNA(MATCH(RAND(), _xlfn.POISSON.DIST({0,1,2,3,4,5,6,7,8,9},$O22, TRUE),1), 0) -> 1 | AD22: =_xlfn.IFNA(MATCH(RAND(), _xlfn.POISSON.DIST({0,1,2,3,4,5,6,7,8,9},$O22, TRUE),1), 0) -> 1 | AE22: =_xlfn.IFNA(MATCH(RAND(), _xlfn.POISSON.DIST({0,1,2,3,4,5,6,7,8,9},$O22, TRUE),1), 0) -> 2 | AF22: =_xlfn.IFNA(MATCH(RAND(), _xlfn.POISSON.DIST({0,1,2,3,4,5,6,7,8,9},$O22, TRUE),1), 0) -> 1 | AG22: =_xlfn.IFNA(MATCH(RAND(), _xlfn.POISSON.DIST({0,1,2,3,4,5,6,7,8,9},$O22, TRUE),1), 0) -> 0 | AH22: =_xlfn.IFNA(MATCH(RAND(), _xlfn.POISSON.DIST({0,1,2,3,4,5,6,7,8,9},$O22, TRUE),1), 0) -> 2 | AI22: =_xlfn.IFNA(MATCH(RAND(), _xlfn.POISSON.DIST({0,1,2,3,4,5,6,7,8,9},$O22, TRUE),1), 0) -> 2 | AJ22: =_xlfn.IFNA(MATCH(RAND(), _xlfn.POISSON.DIST({0,1,2,3,4,5,6,7,8,9},$O22, TRUE),1), 0) -> 2 | AK22: =_xlfn.IFNA(MATCH(RAND(), _xlfn.POISSON.DIST({0,1,2,3,4,5,6,7,8,9},$O22, TRUE),1), 0) -> 0 | AL22: =_xlfn.IFNA(MATCH(RAND(), _xlfn.POISSON.DIST({0,1,2,3,4,5,6,7,8,9},$O22, TRUE),1), 0) -> 3 | AM22: =_xlfn.IFNA(MATCH(RAND(), _xlfn.POISSON.DIST({0,1,2,3,4,5,6,7,8,9},$O22, TRUE),1), 0) -> 3 | AN22: =_xlfn.IFNA(MATCH(RAND(), _xlfn.POISSON.DIST({0,1,2,3,4,5,6,7,8,9},$O22, TRUE),1), 0) -> 0 | AO22: =_xlfn.IFNA(MATCH(RAND(), _xlfn.POISSON.DIST({0,1,2,3,4,5,6,7,8,9},$O22, TRUE),1), 0) -> 2 | AP22: =_xlfn.IFNA(MATCH(RAND(), _xlfn.POISSON.DIST({0,1,2,3,4,5,6,7,8,9},$O22, TRUE),1), 0) -> 1 | AQ22: =_xlfn.IFNA(MATCH(RAND(), _xlfn.POISSON.DIST({0,1,2,3,4,5,6,7,8,9},$O22, TRUE),1), 0) -> 1 | AR22: =_xlfn.IFNA(MATCH(RAND(), _xlfn.POISSON.DIST({0,1,2,3,4,5,6,7,8,9},$O22, TRUE),1), 0) -> 1 | AS22: =_xlfn.IFNA(MATCH(RAND(), _xlfn.POISSON.DIST({0,1,2,3,4,5,6,7,8,9},$O22, TRUE),1), 0) -> 0 | AT22: =_xlfn.IFNA(MATCH(RAND(), _xlfn.POISSON.DIST({0,1,2,3,4,5,6,7,8,9},$O22, TRUE),1), 0) -> 2 | AU22: =_xlfn.IFNA(MATCH(RAND(), _xlfn.POISSON.DIST({0,1,2,3,4,5,6,7,8,9},$O22, TRUE),1), 0) -> 3 | AV22: =_xlfn.IFNA(MATCH(RAND(), _xlfn.POISSON.DIST({0,1,2,3,4,5,6,7,8,9},$O22, TRUE),1), 0) -> 2 | AW22: =_xlfn.IFNA(MATCH(RAND(), _xlfn.POISSON.DIST({0,1,2,3,4,5,6,7,8,9},$O22, TRUE),1), 0) -> 4 | AX22: =_xlfn.IFNA(MATCH(RAND(), _xlfn.POISSON.DIST({0,1,2,3,4,5,6,7,8,9},$O22, TRUE),1), 0) -> 1 | AY22: =_xlfn.IFNA(MATCH(RAND(), _xlfn.POISSON.DIST({0,1,2,3,4,5,6,7,8,9},$O22, TRUE),1), 0) -> 2 | AZ22: =_xlfn.IFNA(MATCH(RAND(), _xlfn.POISSON.DIST({0,1,2,3,4,5,6,7,8,9},$O22, TRUE),1), 0) -> 0 | BA22: =_xlfn.IFNA(MATCH(RAND(), _xlfn.POISSON.DIST({0,1,2,3,4,5,6,7,8,9},$O22, TRUE),1), 0) -> 0 | BB22: =_xlfn.IFNA(MATCH(RAND(), _xlfn.POISSON.DIST({0,1,2,3,4,5,6,7,8,9},$O22, TRUE),1), 0) -> 2 | BC22: =_xlfn.IFNA(MATCH(RAND(), _xlfn.POISSON.DIST({0,1,2,3,4,5,6,7,8,9},$O22, TRUE),1), 0) -> 2 | BD22: =_xlfn.IFNA(MATCH(RAND(), _xlfn.POISSON.DIST({0,1,2,3,4,5,6,7,8,9},$O22, TRUE),1), 0) -> 1 | BE22: =_xlfn.IFNA(MATCH(RAND(), _xlfn.POISSON.DIST({0,1,2,3,4,5,6,7,8,9},$O22, TRUE),1), 0) -> 2 | BF22: =_xlfn.IFNA(MATCH(RAND(), _xlfn.POISSON.DIST({0,1,2,3,4,5,6,7,8,9},$O22, TRUE),1), 0) -> 0 | BG22: =_xlfn.IFNA(MATCH(RAND(), _xlfn.POISSON.DIST({0,1,2,3,4,5,6,7,8,9},$O22, TRUE),1), 0) -> 3 | BH22: =_xlfn.IFNA(MATCH(RAND(), _xlfn.POISSON.DIST({0,1,2,3,4,5,6,7,8,9},$O22, TRUE),1), 0) -> 4 | BI22: =_xlfn.IFNA(MATCH(RAND(), _xlfn.POISSON.DIST({0,1,2,3,4,5,6,7,8,9},$O22, TRUE),1), 0) -> 0 | BJ22: =_xlfn.IFNA(MATCH(RAND(), _xlfn.POISSON.DIST({0,1,2,3,4,5,6,7,8,9},$O22, TRUE),1), 0) -> 2 | BK22: =_xlfn.IFNA(MATCH(RAND(), _xlfn.POISSON.DIST({0,1,2,3,4,5,6,7,8,9},$O22, TRUE),1), 0) -> 1 | BL22: =_xlfn.IFNA(MATCH(RAND(), _xlfn.POISSON.DIST({0,1,2,3,4,5,6,7,8,9},$O22, TRUE),1), 0) -> 0 | BM22: =_xlfn.IFNA(MATCH(RAND(), _xlfn.POISSON.DIST({0,1,2,3,4,5,6,7,8,9},$O22, TRUE),1), 0) -> 1 | BN22: =_xlfn.IFNA(MATCH(RAND(), _xlfn.POISSON.DIST({0,1,2,3,4,5,6,7,8,9},$O22, TRUE),1), 0) -> 2 | BP22: =_xlfn.IFNA(MATCH(RAND(), _xlfn.POISSON.DIST({0,1,2,3,4,5,6,7,8,9},$P22, TRUE),1), 0) -> 2 | BQ22: =_xlfn.IFNA(MATCH(RAND(), _xlfn.POISSON.DIST({0,1,2,3,4,5,6,7,8,9},$P22, TRUE),1), 0) -> 0 | BR22: =_xlfn.IFNA(MATCH(RAND(), _xlfn.POISSON.DIST({0,1,2,3,4,5,6,7,8,9},$P22, TRUE),1), 0) -> 3 | BS22: =_xlfn.IFNA(MATCH(RAND(), _xlfn.POISSON.DIST({0,1,2,3,4,5,6,7,8,9},$P22, TRUE),1), 0) -> 2 | BT22: =_xlfn.IFNA(MATCH(RAND(), _xlfn.POISSON.DIST({0,1,2,3,4,5,6,7,8,9},$P22, TRUE),1), 0) -> 2 | BU22: =_xlfn.IFNA(MATCH(RAND(), _xlfn.POISSON.DIST({0,1,2,3,4,5,6,7,8,9},$P22, TRUE),1), 0) -> 3 | BV22: =_xlfn.IFNA(MATCH(RAND(), _xlfn.POISSON.DIST({0,1,2,3,4,5,6,7,8,9},$P22, TRUE),1), 0) -> 1 | BW22: =_xlfn.IFNA(MATCH(RAND(), _xlfn.POISSON.DIST({0,1,2,3,4,5,6,7,8,9},$P22, TRUE),1), 0) -> 3 | BX22: =_xlfn.IFNA(MATCH(RAND(), _xlfn.POISSON.DIST({0,1,2,3,4,5,6,7,8,9},$P22, TRUE),1), 0) -> 0 | BY22: =_xlfn.IFNA(MATCH(RAND(), _xlfn.POISSON.DIST({0,1,2,3,4,5,6,7,8,9},$P22, TRUE),1), 0) -> 2 | BZ22: =_xlfn.IFNA(MATCH(RAND(), _xlfn.POISSON.DIST({0,1,2,3,4,5,6,7,8,9},$P22, TRUE),1), 0) -> 2 | CA22: =_xlfn.IFNA(MATCH(RAND(), _xlfn.POISSON.DIST({0,1,2,3,4,5,6,7,8,9},$P22, TRUE),1), 0) -> 4 | CB22: =_xlfn.IFNA(MATCH(RAND(), _xlfn.POISSON.DIST({0,1,2,3,4,5,6,7,8,9},$P22, TRUE),1), 0) -> 1 | CC22: =_xlfn.IFNA(MATCH(RAND(), _xlfn.POISSON.DIST({0,1,2,3,4,5,6,7,8,9},$P22, TRUE),1), 0) -> 3 | CD22: =_xlfn.IFNA(MATCH(RAND(), _xlfn.POISSON.DIST({0,1,2,3,4,5,6,7,8,9},$P22, TRUE),1), 0) -> 0 | CE22: =_xlfn.IFNA(MATCH(RAND(), _xlfn.POISSON.DIST({0,1,2,3,4,5,6,7,8,9},$P22, TRUE),1), 0) -> 1 | CF22: =_xlfn.IFNA(MATCH(RAND(), _xlfn.POISSON.DIST({0,1,2,3,4,5,6,7,8,9},$P22, TRUE),1), 0) -> 1 | CG22: =_xlfn.IFNA(MATCH(RAND(), _xlfn.POISSON.DIST({0,1,2,3,4,5,6,7,8,9},$P22, TRUE),1), 0) -> 1 | CH22: =_xlfn.IFNA(MATCH(RAND(), _xlfn.POISSON.DIST({0,1,2,3,4,5,6,7,8,9},$P22, TRUE),1), 0) -> 1 | CI22: =_xlfn.IFNA(MATCH(RAND(), _xlfn.POISSON.DIST({0,1,2,3,4,5,6,7,8,9},$P22, TRUE),1), 0) -> 0 | CJ22: =_xlfn.IFNA(MATCH(RAND(), _xlfn.POISSON.DIST({0,1,2,3,4,5,6,7,8,9},$P22, TRUE),1), 0) -> 1 | CK22: =_xlfn.IFNA(MATCH(RAND(), _xlfn.POISSON.DIST({0,1,2,3,4,5,6,7,8,9},$P22, TRUE),1), 0) -> 2 | CL22: =_xlfn.IFNA(MATCH(RAND(), _xlfn.POISSON.DIST({0,1,2,3,4,5,6,7,8,9},$P22, TRUE),1), 0) -> 1 | CM22: =_xlfn.IFNA(MATCH(RAND(), _xlfn.POISSON.DIST({0,1,2,3,4,5,6,7,8,9},$P22, TRUE),1), 0) -> 4 | CN22: =_xlfn.IFNA(MATCH(RAND(), _xlfn.POISSON.DIST({0,1,2,3,4,5,6,7,8,9},$P22, TRUE),1), 0) -> 1 | CO22: =_xlfn.IFNA(MATCH(RAND(), _xlfn.POISSON.DIST({0,1,2,3,4,5,6,7,8,9},$P22, TRUE),1), 0) -> 1 | CP22: =_xlfn.IFNA(MATCH(RAND(), _xlfn.POISSON.DIST({0,1,2,3,4,5,6,7,8,9},$P22, TRUE),1), 0) -> 0 | CQ22: =_xlfn.IFNA(MATCH(RAND(), _xlfn.POISSON.DIST({0,1,2,3,4,5,6,7,8,9},$P22, TRUE),1), 0) -> 2 | CR22: =_xlfn.IFNA(MATCH(RAND(), _xlfn.POISSON.DIST({0,1,2,3,4,5,6,7,8,9},$P22, TRUE),1), 0) -> 2 | CS22: =_xlfn.IFNA(MATCH(RAND(), _xlfn.POISSON.DIST({0,1,2,3,4,5,6,7,8,9},$P22, TRUE),1), 0) -> 2 | CT22: =_xlfn.IFNA(MATCH(RAND(), _xlfn.POISSON.DIST({0,1,2,3,4,5,6,7,8,9},$P22, TRUE),1), 0) -> 2 | CU22: =_xlfn.IFNA(MATCH(RAND(), _xlfn.POISSON.DIST({0,1,2,3,4,5,6,7,8,9},$P22, TRUE),1), 0) -> 2 | CV22: =_xlfn.IFNA(MATCH(RAND(), _xlfn.POISSON.DIST({0,1,2,3,4,5,6,7,8,9},$P22, TRUE),1), 0) -> 2 | CW22: =_xlfn.IFNA(MATCH(RAND(), _xlfn.POISSON.DIST({0,1,2,3,4,5,6,7,8,9},$P22, TRUE),1), 0) -> 5 | CX22: =_xlfn.IFNA(MATCH(RAND(), _xlfn.POISSON.DIST({0,1,2,3,4,5,6,7,8,9},$P22, TRUE),1), 0) -> 3 | CY22: =_xlfn.IFNA(MATCH(RAND(), _xlfn.POISSON.DIST({0,1,2,3,4,5,6,7,8,9},$P22, TRUE),1), 0) -> 2 | CZ22: =_xlfn.IFNA(MATCH(RAND(), _xlfn.POISSON.DIST({0,1,2,3,4,5,6,7,8,9},$P22, TRUE),1), 0) -> 2 | DA22: =_xlfn.IFNA(MATCH(RAND(), _xlfn.POISSON.DIST({0,1,2,3,4,5,6,7,8,9},$P22, TRUE),1), 0) -> 0 | DB22: =_xlfn.IFNA(MATCH(RAND(), _xlfn.POISSON.DIST({0,1,2,3,4,5,6,7,8,9},$P22, TRUE),1), 0) -> 3 | DC22: =_xlfn.IFNA(MATCH(RAND(), _xlfn.POISSON.DIST({0,1,2,3,4,5,6,7,8,9},$P22, TRUE),1), 0) -> 2 | DD22: =_xlfn.IFNA(MATCH(RAND(), _xlfn.POISSON.DIST({0,1,2,3,4,5,6,7,8,9},$P22, TRUE),1), 0) -> 3 | DE22: =_xlfn.IFNA(MATCH(RAND(), _xlfn.POISSON.DIST({0,1,2,3,4,5,6,7,8,9},$P22, TRUE),1), 0) -> 1 | DF22: =_xlfn.IFNA(MATCH(RAND(), _xlfn.POISSON.DIST({0,1,2,3,4,5,6,7,8,9},$P22, TRUE),1), 0) -> 0 | DG22: =_xlfn.IFNA(MATCH(RAND(), _xlfn.POISSON.DIST({0,1,2,3,4,5,6,7,8,9},$P22, TRUE),1), 0) -> 2 | DH22: =_xlfn.IFNA(MATCH(RAND(), _xlfn.POISSON.DIST({0,1,2,3,4,5,6,7,8,9},$P22, TRUE),1), 0) -> 0 | DI22: =_xlfn.IFNA(MATCH(RAND(), _xlfn.POISSON.DIST({0,1,2,3,4,5,6,7,8,9},$P22, TRUE),1), 0) -> 2 | DJ22: =_xlfn.IFNA(MATCH(RAND(), _xlfn.POISSON.DIST({0,1,2,3,4,5,6,7,8,9},$P22, TRUE),1), 0) -> 2 | DK22: =_xlfn.IFNA(MATCH(RAND(), _xlfn.POISSON.DIST({0,1,2,3,4,5,6,7,8,9},$P22, TRUE),1), 0) -> 3 | DL22: =_xlfn.IFNA(MATCH(RAND(), _xlfn.POISSON.DIST({0,1,2,3,4,5,6,7,8,9},$P22, TRUE),1), 0) -> 1 | DM22: =_xlfn.IFNA(MATCH(RAND(), _xlfn.POISSON.DIST({0,1,2,3,4,5,6,7,8,9},$P22, TRUE),1), 0) -> 3
C23: 2019-06-14 | D23: D | E23: Japón | F23: =(AVERAGE(Q23:BN23))*(1+INDEX('Predicciones de la liguilla'!$C$4:$O$28, MATCH('Partidos de este año'!E23,'Predicciones de la liguilla'!$D$4:$D$28,0),3)) -> 1.58 | G23: Escocia | H23: =(AVERAGE(BP23:DM23))*(1+INDEX('Predicciones de la liguilla'!$C$4:$O$28, MATCH('Partidos de este año'!G23,'Predicciones de la liguilla'!$D$4:$D$28,0),3)) -> 1.60 | I23: =IF(L23>M23,E23,IF(L23=M23,"Dibujar",G23)) -> Escocia | L23: 1.58 | M23: 1.6 | N23: =IF(L23>M23,E23,IF(L23=M23,"Dibujar",G23)) -> Escocia | O23: =(OFFSET('Apéndice 3 - Goles por grupo'!$C$13,(INDEX('Apéndice 1 - Datos de equipos'!$C$13:$F$112,MATCH(G23,'Apéndice 1 - Datos de equipos'!$C$13:$C$112,0),4)/10),(INDEX('Apéndice 1 - Datos de equipos'!$C$13:$F$112,MATCH(E23,'Apéndice 1 - Datos de equipos'!$C$13:$C$112,0),4)/10))) -> 1.50 | P23: =OFFSET('Apéndice 3 - Goles por grupo'!$C$13,(INDEX('Apéndice 1 - Datos de equipos'!$C$13:$F$112, MATCH(E23,'Apéndice 1 - Datos de equipos'!$C$13:$C$112,0),4)/10), (INDEX('Apéndice 1 - Datos de equipos'!$C$13:$F$112, MATCH(G23, 'Apéndice 1 - Datos de equipos'!$C$13:$C$112,0),4)/10)) -> 1.50 | Q23: =_xlfn.IFNA(MATCH(RAND(), _xlfn.POISSON.DIST({0,1,2,3,4,5,6,7,8,9},$O23, TRUE),1), 0) -> 6 | R23: =_xlfn.IFNA(MATCH(RAND(), _xlfn.POISSON.DIST({0,1,2,3,4,5,6,7,8,9},$O23, TRUE),1), 0) -> 1 | S23: =_xlfn.IFNA(MATCH(RAND(), _xlfn.POISSON.DIST({0,1,2,3,4,5,6,7,8,9},$O23, TRUE),1), 0) -> 1 | T23: =_xlfn.IFNA(MATCH(RAND(), _xlfn.POISSON.DIST({0,1,2,3,4,5,6,7,8,9},$O23, TRUE),1), 0) -> 1 | U23: =_xlfn.IFNA(MATCH(RAND(), _xlfn.POISSON.DIST({0,1,2,3,4,5,6,7,8,9},$O23, TRUE),1), 0) -> 3 | V23: =_xlfn.IFNA(MATCH(RAND(), _xlfn.POISSON.DIST({0,1,2,3,4,5,6,7,8,9},$O23, TRUE),1), 0) -> 1 | W23: =_xlfn.IFNA(MATCH(RAND(), _xlfn.POISSON.DIST({0,1,2,3,4,5,6,7,8,9},$O23, TRUE),1), 0) -> 2 | X23: =_xlfn.IFNA(MATCH(RAND(), _xlfn.POISSON.DIST({0,1,2,3,4,5,6,7,8,9},$O23, TRUE),1), 0) -> 1 | Y23: =_xlfn.IFNA(MATCH(RAND(), _xlfn.POISSON.DIST({0,1,2,3,4,5,6,7,8,9},$O23, TRUE),1), 0) -> 3 | Z23: =_xlfn.IFNA(MATCH(RAND(), _xlfn.POISSON.DIST({0,1,2,3,4,5,6,7,8,9},$O23, TRUE),1), 0) -> 3 | AA23: =_xlfn.IFNA(MATCH(RAND(), _xlfn.POISSON.DIST({0,1,2,3,4,5,6,7,8,9},$O23, TRUE),1), 0) -> 1 | AB23: =_xlfn.IFNA(MATCH(RAND(), _xlfn.POISSON.DIST({0,1,2,3,4,5,6,7,8,9},$O23, TRUE),1), 0) -> 3 | AC23: =_xlfn.IFNA(MATCH(RAND(), _xlfn.POISSON.DIST({0,1,2,3,4,5,6,7,8,9},$O23, TRUE),1), 0) -> 3 | AD23: =_xlfn.IFNA(MATCH(RAND(), _xlfn.POISSON.DIST({0,1,2,3,4,5,6,7,8,9},$O23, TRUE),1), 0) -> 2 | AE23: =_xlfn.IFNA(MATCH(RAND(), _xlfn.POISSON.DIST({0,1,2,3,4,5,6,7,8,9},$O23, TRUE),1), 0) -> 2 | AF23: =_xlfn.IFNA(MATCH(RAND(), _xlfn.POISSON.DIST({0,1,2,3,4,5,6,7,8,9},$O23, TRUE),1), 0) -> 2 | AG23: =_xlfn.IFNA(MATCH(RAND(), _xlfn.POISSON.DIST({0,1,2,3,4,5,6,7,8,9},$O23, TRUE),1), 0) -> 0 | AH23: =_xlfn.IFNA(MATCH(RAND(), _xlfn.POISSON.DIST({0,1,2,3,4,5,6,7,8,9},$O23, TRUE),1), 0) -> 2 | AI23: =_xlfn.IFNA(MATCH(RAND(), _xlfn.POISSON.DIST({0,1,2,3,4,5,6,7,8,9},$O23, TRUE),1), 0) -> 2 | AJ23: =_xlfn.IFNA(MATCH(RAND(), _xlfn.POISSON.DIST({0,1,2,3,4,5,6,7,8,9},$O23, TRUE),1), 0) -> 1 | AK23: =_xlfn.IFNA(MATCH(RAND(), _xlfn.POISSON.DIST({0,1,2,3,4,5,6,7,8,9},$O23, TRUE),1), 0) -> 0 | AL23: =_xlfn.IFNA(MATCH(RAND(), _xlfn.POISSON.DIST({0,1,2,3,4,5,6,7,8,9},$O23, TRUE),1), 0) -> 0 | AM23: =_xlfn.IFNA(MATCH(RAND(), _xlfn.POISSON.DIST({0,1,2,3,4,5,6,7,8,9},$O23, TRUE),1), 0) -> 1 | AN23: =_xlfn.IFNA(MATCH(RAND(), _xlfn.POISSON.DIST({0,1,2,3,4,5,6,7,8,9},$O23, TRUE),1), 0) -> 3 | AO23: =_xlfn.IFNA(MATCH(RAND(), _xlfn.POISSON.DIST({0,1,2,3,4,5,6,7,8,9},$O23, TRUE),1), 0) -> 1 | AP23: =_xlfn.IFNA(MATCH(RAND(), _xlfn.POISSON.DIST({0,1,2,3,4,5,6,7,8,9},$O23, TRUE),1), 0) -> 1 | AQ23: =_xlfn.IFNA(MATCH(RAND(), _xlfn.POISSON.DIST({0,1,2,3,4,5,6,7,8,9},$O23, TRUE),1), 0) -> 1 | AR23: =_xlfn.IFNA(MATCH(RAND(), _xlfn.POISSON.DIST({0,1,2,3,4,5,6,7,8,9},$O23, TRUE),1), 0) -> 0 | AS23: =_xlfn.IFNA(MATCH(RAND(), _xlfn.POISSON.DIST({0,1,2,3,4,5,6,7,8,9},$O23, TRUE),1), 0) -> 1 | AT23: =_xlfn.IFNA(MATCH(RAND(), _xlfn.POISSON.DIST({0,1,2,3,4,5,6,7,8,9},$O23, TRUE),1), 0) -> 0 | AU23: =_xlfn.IFNA(MATCH(RAND(), _xlfn.POISSON.DIST({0,1,2,3,4,5,6,7,8,9},$O23, TRUE),1), 0) -> 2 | AV23: =_xlfn.IFNA(MATCH(RAND(), _xlfn.POISSON.DIST({0,1,2,3,4,5,6,7,8,9},$O23, TRUE),1), 0) -> 1 | AW23: =_xlfn.IFNA(MATCH(RAND(), _xlfn.POISSON.DIST({0,1,2,3,4,5,6,7,8,9},$O23, TRUE),1), 0) -> 2 | AX23: =_xlfn.IFNA(MATCH(RAND(), _xlfn.POISSON.DIST({0,1,2,3,4,5,6,7,8,9},$O23, TRUE),1), 0) -> 2 | AY23: =_xlfn.IFNA(MATCH(RAND(), _xlfn.POISSON.DIST({0,1,2,3,4,5,6,7,8,9},$O23, TRUE),1), 0) -> 3 | AZ23: =_xlfn.IFNA(MATCH(RAND(), _xlfn.POISSON.DIST({0,1,2,3,4,5,6,7,8,9},$O23, TRUE),1), 0) -> 0 | BA23: =_xlfn.IFNA(MATCH(RAND(), _xlfn.POISSON.DIST({0,1,2,3,4,5,6,7,8,9},$O23, TRUE),1), 0) -> 1 | BB23: =_xlfn.IFNA(MATCH(RAND(), _xlfn.POISSON.DIST({0,1,2,3,4,5,6,7,8,9},$O23, TRUE),1), 0) -> 2 | BC23: =_xlfn.IFNA(MATCH(RAND(), _xlfn.POISSON.DIST({0,1,2,3,4,5,6,7,8,9},$O23, TRUE),1), 0) -> 2 | BD23: =_xlfn.IFNA(MATCH(RAND(), _xlfn.POISSON.DIST({0,1,2,3,4,5,6,7,8,9},$O23, TRUE),1), 0) -> 3 | BE23: =_xlfn.IFNA(MATCH(RAND(), _xlfn.POISSON.DIST({0,1,2,3,4,5,6,7,8,9},$O23, TRUE),1), 0) -> 2 | BF23: =_xlfn.IFNA(MATCH(RAND(), _xlfn.POISSON.DIST({0,1,2,3,4,5,6,7,8,9},$O23, TRUE),1), 0) -> 1 | BG23: =_xlfn.IFNA(MATCH(RAND(), _xlfn.POISSON.DIST({0,1,2,3,4,5,6,7,8,9},$O23, TRUE),1), 0) -> 0 | BH23: =_xlfn.IFNA(MATCH(RAND(), _xlfn.POISSON.DIST({0,1,2,3,4,5,6,7,8,9},$O23, TRUE),1), 0) -> 4 | BI23: =_xlfn.IFNA(MATCH(RAND(), _xlfn.POISSON.DIST({0,1,2,3,4,5,6,7,8,9},$O23, TRUE),1), 0) -> 0 | BJ23: =_xlfn.IFNA(MATCH(RAND(), _xlfn.POISSON.DIST({0,1,2,3,4,5,6,7,8,9},$O23, TRUE),1), 0) -> 3 | BK23: =_xlfn.IFNA(MATCH(RAND(), _xlfn.POISSON.DIST({0,1,2,3,4,5,6,7,8,9},$O23, TRUE),1), 0) -> 1 | BL23: =_xlfn.IFNA(MATCH(RAND(), _xlfn.POISSON.DIST({0,1,2,3,4,5,6,7,8,9},$O23, TRUE),1), 0) -> 1 | BM23: =_xlfn.IFNA(MATCH(RAND(), _xlfn.POISSON.DIST({0,1,2,3,4,5,6,7,8,9},$O23, TRUE),1), 0) -> 0 | BN23: =_xlfn.IFNA(MATCH(RAND(), _xlfn.POISSON.DIST({0,1,2,3,4,5,6,7,8,9},$O23, TRUE),1), 0) -> 1 | BP23: =_xlfn.IFNA(MATCH(RAND(), _xlfn.POISSON.DIST({0,1,2,3,4,5,6,7,8,9},$P23, TRUE),1), 0) -> 3 | BQ23: =_xlfn.IFNA(MATCH(RAND(), _xlfn.POISSON.DIST({0,1,2,3,4,5,6,7,8,9},$P23, TRUE),1), 0) -> 2 | BR23: =_xlfn.IFNA(MATCH(RAND(), _xlfn.POISSON.DIST({0,1,2,3,4,5,6,7,8,9},$P23, TRUE),1), 0) -> 2 | BS23: =_xlfn.IFNA(MATCH(RAND(), _xlfn.POISSON.DIST({0,1,2,3,4,5,6,7,8,9},$P23, TRUE),1), 0) -> 1 | BT23: =_xlfn.IFNA(MATCH(RAND(), _xlfn.POISSON.DIST({0,1,2,3,4,5,6,7,8,9},$P23, TRUE),1), 0) -> 3 | BU23: =_xlfn.IFNA(MATCH(RAND(), _xlfn.POISSON.DIST({0,1,2,3,4,5,6,7,8,9},$P23, TRUE),1), 0) -> 2 | BV23: =_xlfn.IFNA(MATCH(RAND(), _xlfn.POISSON.DIST({0,1,2,3,4,5,6,7,8,9},$P23, TRUE),1), 0) -> 1 | BW23: =_xlfn.IFNA(MATCH(RAND(), _xlfn.POISSON.DIST({0,1,2,3,4,5,6,7,8,9},$P23, TRUE),1), 0) -> 0 | BX23: =_xlfn.IFNA(MATCH(RAND(), _xlfn.POISSON.DIST({0,1,2,3,4,5,6,7,8,9},$P23, TRUE),1), 0) -> 0 | BY23: =_xlfn.IFNA(MATCH(RAND(), _xlfn.POISSON.DIST({0,1,2,3,4,5,6,7,8,9},$P23, TRUE),1), 0) -> 2 | BZ23: =_xlfn.IFNA(MATCH(RAND(), _xlfn.POISSON.DIST({0,1,2,3,4,5,6,7,8,9},$P23, TRUE),1), 0) -> 0 | CA23: =_xlfn.IFNA(MATCH(RAND(), _xlfn.POISSON.DIST({0,1,2,3,4,5,6,7,8,9},$P23, TRUE),1), 0) -> 3 | CB23: =_xlfn.IFNA(MATCH(RAND(), _xlfn.POISSON.DIST({0,1,2,3,4,5,6,7,8,9},$P23, TRUE),1), 0) -> 0 | CC23: =_xlfn.IFNA(MATCH(RAND(), _xlfn.POISSON.DIST({0,1,2,3,4,5,6,7,8,9},$P23, TRUE),1), 0) -> 1 | CD23: =_xlfn.IFNA(MATCH(RAND(), _xlfn.POISSON.DIST({0,1,2,3,4,5,6,7,8,9},$P23, TRUE),1), 0) -> 5 | CE23: =_xlfn.IFNA(MATCH(RAND(), _xlfn.POISSON.DIST({0,1,2,3,4,5,6,7,8,9},$P23, TRUE),1), 0) -> 1 | CF23: =_xlfn.IFNA(MATCH(RAND(), _xlfn.POISSON.DIST({0,1,2,3,4,5,6,7,8,9},$P23, TRUE),1), 0) -> 4 | CG23: =_xlfn.IFNA(MATCH(RAND(), _xlfn.POISSON.DIST({0,1,2,3,4,5,6,7,8,9},$P23, TRUE),1), 0) -> 3 | CH23: =_xlfn.IFNA(MATCH(RAND(), _xlfn.POISSON.DIST({0,1,2,3,4,5,6,7,8,9},$P23, TRUE),1), 0) -> 0 | CI23: =_xlfn.IFNA(MATCH(RAND(), _xlfn.POISSON.DIST({0,1,2,3,4,5,6,7,8,9},$P23, TRUE),1), 0) -> 1 | CJ23: =_xlfn.IFNA(MATCH(RAND(), _xlfn.POISSON.DIST({0,1,2,3,4,5,6,7,8,9},$P23, TRUE),1), 0) -> 1 | CK23: =_xlfn.IFNA(MATCH(RAND(), _xlfn.POISSON.DIST({0,1,2,3,4,5,6,7,8,9},$P23, TRUE),1), 0) -> 1 | CL23: =_xlfn.IFNA(MATCH(RAND(), _xlfn.POISSON.DIST({0,1,2,3,4,5,6,7,8,9},$P23, TRUE),1), 0) -> 1 | CM23: =_xlfn.IFNA(MATCH(RAND(), _xlfn.POISSON.DIST({0,1,2,3,4,5,6,7,8,9},$P23, TRUE),1), 0) -> 0 | CN23: =_xlfn.IFNA(MATCH(RAND(), _xlfn.POISSON.DIST({0,1,2,3,4,5,6,7,8,9},$P23, TRUE),1), 0) -> 0 | CO23: =_xlfn.IFNA(MATCH(RAND(), _xlfn.POISSON.DIST({0,1,2,3,4,5,6,7,8,9},$P23, TRUE),1), 0) -> 3 | CP23: =_xlfn.IFNA(MATCH(RAND(), _xlfn.POISSON.DIST({0,1,2,3,4,5,6,7,8,9},$P23, TRUE),1), 0) -> 2 | CQ23: =_xlfn.IFNA(MATCH(RAND(), _xlfn.POISSON.DIST({0,1,2,3,4,5,6,7,8,9},$P23, TRUE),1), 0) -> 3 | CR23: =_xlfn.IFNA(MATCH(RAND(), _xlfn.POISSON.DIST({0,1,2,3,4,5,6,7,8,9},$P23, TRUE),1), 0) -> 0 | CS23: =_xlfn.IFNA(MATCH(RAND(), _xlfn.POISSON.DIST({0,1,2,3,4,5,6,7,8,9},$P23, TRUE),1), 0) -> 0 | CT23: =_xlfn.IFNA(MATCH(RAND(), _xlfn.POISSON.DIST({0,1,2,3,4,5,6,7,8,9},$P23, TRUE),1), 0) -> 5 | CU23: =_xlfn.IFNA(MATCH(RAND(), _xlfn.POISSON.DIST({0,1,2,3,4,5,6,7,8,9},$P23, TRUE),1), 0) -> 0 | CV23: =_xlfn.IFNA(MATCH(RAND(), _xlfn.POISSON.DIST({0,1,2,3,4,5,6,7,8,9},$P23, TRUE),1), 0) -> 2 | CW23: =_xlfn.IFNA(MATCH(RAND(), _xlfn.POISSON.DIST({0,1,2,3,4,5,6,7,8,9},$P23, TRUE),1), 0) -> 0 | CX23: =_xlfn.IFNA(MATCH(RAND(), _xlfn.POISSON.DIST({0,1,2,3,4,5,6,7,8,9},$P23, TRUE),1), 0) -> 1 | CY23: =_xlfn.IFNA(MATCH(RAND(), _xlfn.POISSON.DIST({0,1,2,3,4,5,6,7,8,9},$P23, TRUE),1), 0) -> 2 | CZ23: =_xlfn.IFNA(MATCH(RAND(), _xlfn.POISSON.DIST({0,1,2,3,4,5,6,7,8,9},$P23, TRUE),1), 0) -> 2 | DA23: =_xlfn.IFNA(MATCH(RAND(), _xlfn.POISSON.DIST({0,1,2,3,4,5,6,7,8,9},$P23, TRUE),1), 0) -> 2 | DB23: =_xlfn.IFNA(MATCH(RAND(), _xlfn.POISSON.DIST({0,1,2,3,4,5,6,7,8,9},$P23, TRUE),1), 0) -> 0 | DC23: =_xlfn.IFNA(MATCH(RAND(), _xlfn.POISSON.DIST({0,1,2,3,4,5,6,7,8,9},$P23, TRUE),1), 0) -> 1 | DD23: =_xlfn.IFNA(MATCH(RAND(), _xlfn.POISSON.DIST({0,1,2,3,4,5,6,7,8,9},$P23, TRUE),1), 0) -> 2 | DE23: =_xlfn.IFNA(MATCH(RAND(), _xlfn.POISSON.DIST({0,1,2,3,4,5,6,7,8,9},$P23, TRUE),1), 0) -> 1 | DF23: =_xlfn.IFNA(MATCH(RAND(), _xlfn.POISSON.DIST({0,1,2,3,4,5,6,7,8,9},$P23, TRUE),1), 0) -> 3 | DG23: =_xlfn.IFNA(MATCH(RAND(), _xlfn.POISSON.DIST({0,1,2,3,4,5,6,7,8,9},$P23, TRUE),1), 0) -> 2 | DH23: =_xlfn.IFNA(MATCH(RAND(), _xlfn.POISSON.DIST({0,1,2,3,4,5,6,7,8,9},$P23, TRUE),1), 0) -> 2 | DI23: =_xlfn.IFNA(MATCH(RAND(), _xlfn.POISSON.DIST({0,1,2,3,4,5,6,7,8,9},$P23, TRUE),1), 0) -> 1 | DJ23: =_xlfn.IFNA(MATCH(RAND(), _xlfn.POISSON.DIST({0,1,2,3,4,5,6,7,8,9},$P23, TRUE),1), 0) -> 4 | DK23: =_xlfn.IFNA(MATCH(RAND(), _xlfn.POISSON.DIST({0,1,2,3,4,5,6,7,8,9},$P23, TRUE),1), 0) -> 2 | DL23: =_xlfn.IFNA(MATCH(RAND(), _xlfn.POISSON.DIST({0,1,2,3,4,5,6,7,8,9},$P23, TRUE),1), 0) -> 2 | DM23: =_xlfn.IFNA(MATCH(RAND(), _xlfn.POISSON.DIST({0,1,2,3,4,5,6,7,8,9},$P23, TRUE),1), 0) -> 1
C24: 2019-06-14 | D24: C | E24: Jamaica | F24: =(AVERAGE(Q24:BN24))*(1+INDEX('Predicciones de la liguilla'!$C$4:$O$28, MATCH('Partidos de este año'!E24,'Predicciones de la liguilla'!$D$4:$D$28,0),3)) -> 1.44 | G24: Italia | H24: =(AVERAGE(BP24:DM24))*(1+INDEX('Predicciones de la liguilla'!$C$4:$O$28, MATCH('Partidos de este año'!G24,'Predicciones de la liguilla'!$D$4:$D$28,0),3)) -> 1.56 | I24: =IF(L24>M24,E24,IF(L24=M24,"Dibujar",G24)) -> Italia | L24: 1.44 | M24: 1.56 | N24: =IF(L24>M24,E24,IF(L24=M24,"Dibujar",G24)) -> Italia | O24: =(OFFSET('Apéndice 3 - Goles por grupo'!$C$13,(INDEX('Apéndice 1 - Datos de equipos'!$C$13:$F$112,MATCH(G24,'Apéndice 1 - Datos de equipos'!$C$13:$C$112,0),4)/10),(INDEX('Apéndice 1 - Datos de equipos'!$C$13:$F$112,MATCH(E24,'Apéndice 1 - Datos de equipos'!$C$13:$C$112,0),4)/10))) -> 1.50 | P24: =OFFSET('Apéndice 3 - Goles por grupo'!$C$13,(INDEX('Apéndice 1 - Datos de equipos'!$C$13:$F$112, MATCH(E24,'Apéndice 1 - Datos de equipos'!$C$13:$C$112,0),4)/10), (INDEX('Apéndice 1 - Datos de equipos'!$C$13:$F$112, MATCH(G24, 'Apéndice 1 - Datos de equipos'!$C$13:$C$112,0),4)/10)) -> 1.50 | Q24: =_xlfn.IFNA(MATCH(RAND(), _xlfn.POISSON.DIST({0,1,2,3,4,5,6,7,8,9},$O24, TRUE),1), 0) -> 1 | R24: =_xlfn.IFNA(MATCH(RAND(), _xlfn.POISSON.DIST({0,1,2,3,4,5,6,7,8,9},$O24, TRUE),1), 0) -> 0 | S24: =_xlfn.IFNA(MATCH(RAND(), _xlfn.POISSON.DIST({0,1,2,3,4,5,6,7,8,9},$O24, TRUE),1), 0) -> 1 | T24: =_xlfn.IFNA(MATCH(RAND(), _xlfn.POISSON.DIST({0,1,2,3,4,5,6,7,8,9},$O24, TRUE),1), 0) -> 1 | U24: =_xlfn.IFNA(MATCH(RAND(), _xlfn.POISSON.DIST({0,1,2,3,4,5,6,7,8,9},$O24, TRUE),1), 0) -> 1 | V24: =_xlfn.IFNA(MATCH(RAND(), _xlfn.POISSON.DIST({0,1,2,3,4,5,6,7,8,9},$O24, TRUE),1), 0) -> 2 | W24: =_xlfn.IFNA(MATCH(RAND(), _xlfn.POISSON.DIST({0,1,2,3,4,5,6,7,8,9},$O24, TRUE),1), 0) -> 2 | X24: =_xlfn.IFNA(MATCH(RAND(), _xlfn.POISSON.DIST({0,1,2,3,4,5,6,7,8,9},$O24, TRUE),1), 0) -> 2 | Y24: =_xlfn.IFNA(MATCH(RAND(), _xlfn.POISSON.DIST({0,1,2,3,4,5,6,7,8,9},$O24, TRUE),1), 0) -> 1 | Z24: =_xlfn.IFNA(MATCH(RAND(), _xlfn.POISSON.DIST({0,1,2,3,4,5,6,7,8,9},$O24, TRUE),1), 0) -> 2 | AA24: =_xlfn.IFNA(MATCH(RAND(), _xlfn.POISSON.DIST({0,1,2,3,4,5,6,7,8,9},$O24, TRUE),1), 0) -> 3 | AB24: =_xlfn.IFNA(MATCH(RAND(), _xlfn.POISSON.DIST({0,1,2,3,4,5,6,7,8,9},$O24, TRUE),1), 0) -> 0 | AC24: =_xlfn.IFNA(MATCH(RAND(), _xlfn.POISSON.DIST({0,1,2,3,4,5,6,7,8,9},$O24, TRUE),1), 0) -> 1 | AD24: =_xlfn.IFNA(MATCH(RAND(), _xlfn.POISSON.DIST({0,1,2,3,4,5,6,7,8,9},$O24, TRUE),1), 0) -> 1 | AE24: =_xlfn.IFNA(MATCH(RAND(), _xlfn.POISSON.DIST({0,1,2,3,4,5,6,7,8,9},$O24, TRUE),1), 0) -> 3 | AF24: =_xlfn.IFNA(MATCH(RAND(), _xlfn.POISSON.DIST({0,1,2,3,4,5,6,7,8,9},$O24, TRUE),1), 0) -> 1 | AG24: =_xlfn.IFNA(MATCH(RAND(), _xlfn.POISSON.DIST({0,1,2,3,4,5,6,7,8,9},$O24, TRUE),1), 0) -> 1 | AH24: =_xlfn.IFNA(MATCH(RAND(), _xlfn.POISSON.DIST({0,1,2,3,4,5,6,7,8,9},$O24, TRUE),1), 0) -> 3 | AI24: =_xlfn.IFNA(MATCH(RAND(), _xlfn.POISSON.DIST({0,1,2,3,4,5,6,7,8,9},$O24, TRUE),1), 0) -> 6 | AJ24: =_xlfn.IFNA(MATCH(RAND(), _xlfn.POISSON.DIST({0,1,2,3,4,5,6,7,8,9},$O24, TRUE),1), 0) -> 2 | AK24: =_xlfn.IFNA(MATCH(RAND(), _xlfn.POISSON.DIST({0,1,2,3,4,5,6,7,8,9},$O24, TRUE),1), 0) -> 0 | AL24: =_xlfn.IFNA(MATCH(RAND(), _xlfn.POISSON.DIST({0,1,2,3,4,5,6,7,8,9},$O24, TRUE),1), 0) -> 2 | AM24: =_xlfn.IFNA(MATCH(RAND(), _xlfn.POISSON.DIST({0,1,2,3,4,5,6,7,8,9},$O24, TRUE),1), 0) -> 0 | AN24: =_xlfn.IFNA(MATCH(RAND(), _xlfn.POISSON.DIST({0,1,2,3,4,5,6,7,8,9},$O24, TRUE),1), 0) -> 2 | AO24: =_xlfn.IFNA(MATCH(RAND(), _xlfn.POISSON.DIST({0,1,2,3,4,5,6,7,8,9},$O24, TRUE),1), 0) -> 0 | AP24: =_xlfn.IFNA(MATCH(RAND(), _xlfn.POISSON.DIST({0,1,2,3,4,5,6,7,8,9},$O24, TRUE),1), 0) -> 1 | AQ24: =_xlfn.IFNA(MATCH(RAND(), _xlfn.POISSON.DIST({0,1,2,3,4,5,6,7,8,9},$O24, TRUE),1), 0) -> 3 | AR24: =_xlfn.IFNA(MATCH(RAND(), _xlfn.POISSON.DIST({0,1,2,3,4,5,6,7,8,9},$O24, TRUE),1), 0) -> 3 | AS24: =_xlfn.IFNA(MATCH(RAND(), _xlfn.POISSON.DIST({0,1,2,3,4,5,6,7,8,9},$O24, TRUE),1), 0) -> 1 | AT24: =_xlfn.IFNA(MATCH(RAND(), _xlfn.POISSON.DIST({0,1,2,3,4,5,6,7,8,9},$O24, TRUE),1), 0) -> 1 | AU24: =_xlfn.IFNA(MATCH(RAND(), _xlfn.POISSON.DIST({0,1,2,3,4,5,6,7,8,9},$O24, TRUE),1), 0) -> 2 | AV24: =_xlfn.IFNA(MATCH(RAND(), _xlfn.POISSON.DIST({0,1,2,3,4,5,6,7,8,9},$O24, TRUE),1), 0) -> 0 | AW24: =_xlfn.IFNA(MATCH(RAND(), _xlfn.POISSON.DIST({0,1,2,3,4,5,6,7,8,9},$O24, TRUE),1), 0) -> 2 | AX24: =_xlfn.IFNA(MATCH(RAND(), _xlfn.POISSON.DIST({0,1,2,3,4,5,6,7,8,9},$O24, TRUE),1), 0) -> 1 | AY24: =_xlfn.IFNA(MATCH(RAND(), _xlfn.POISSON.DIST({0,1,2,3,4,5,6,7,8,9},$O24, TRUE),1), 0) -> 0 | AZ24: =_xlfn.IFNA(MATCH(RAND(), _xlfn.POISSON.DIST({0,1,2,3,4,5,6,7,8,9},$O24, TRUE),1), 0) -> 3 | BA24: =_xlfn.IFNA(MATCH(RAND(), _xlfn.POISSON.DIST({0,1,2,3,4,5,6,7,8,9},$O24, TRUE),1), 0) -> 1 | BB24: =_xlfn.IFNA(MATCH(RAND(), _xlfn.POISSON.DIST({0,1,2,3,4,5,6,7,8,9},$O24, TRUE),1), 0) -> 1 | BC24: =_xlfn.IFNA(MATCH(RAND(), _xlfn.POISSON.DIST({0,1,2,3,4,5,6,7,8,9},$O24, TRUE),1), 0) -> 1 | BD24: =_xlfn.IFNA(MATCH(RAND(), _xlfn.POISSON.DIST({0,1,2,3,4,5,6,7,8,9},$O24, TRUE),1), 0) -> 2 | BE24: =_xlfn.IFNA(MATCH(RAND(), _xlfn.POISSON.DIST({0,1,2,3,4,5,6,7,8,9},$O24, TRUE),1), 0) -> 2 | BF24: =_xlfn.IFNA(MATCH(RAND(), _xlfn.POISSON.DIST({0,1,2,3,4,5,6,7,8,9},$O24, TRUE),1), 0) -> 1 | BG24: =_xlfn.IFNA(MATCH(RAND(), _xlfn.POISSON.DIST({0,1,2,3,4,5,6,7,8,9},$O24, TRUE),1), 0) -> 0 | BH24: =_xlfn.IFNA(MATCH(RAND(), _xlfn.POISSON.DIST({0,1,2,3,4,5,6,7,8,9},$O24, TRUE),1), 0) -> 3 | BI24: =_xlfn.IFNA(MATCH(RAND(), _xlfn.POISSON.DIST({0,1,2,3,4,5,6,7,8,9},$O24, TRUE),1), 0) -> 2 | BJ24: =_xlfn.IFNA(MATCH(RAND(), _xlfn.POISSON.DIST({0,1,2,3,4,5,6,7,8,9},$O24, TRUE),1), 0) -> 0 | BK24: =_xlfn.IFNA(MATCH(RAND(), _xlfn.POISSON.DIST({0,1,2,3,4,5,6,7,8,9},$O24, TRUE),1), 0) -> 2 | BL24: =_xlfn.IFNA(MATCH(RAND(), _xlfn.POISSON.DIST({0,1,2,3,4,5,6,7,8,9},$O24, TRUE),1), 0) -> 1 | BM24: =_xlfn.IFNA(MATCH(RAND(), _xlfn.POISSON.DIST({0,1,2,3,4,5,6,7,8,9},$O24, TRUE),1), 0) -> 0 | BN24: =_xlfn.IFNA(MATCH(RAND(), _xlfn.POISSON.DIST({0,1,2,3,4,5,6,7,8,9},$O24, TRUE),1), 0) -> 1 | BP24: =_xlfn.IFNA(MATCH(RAND(), _xlfn.POISSON.DIST({0,1,2,3,4,5,6,7,8,9},$P24, TRUE),1), 0) -> 3 | BQ24: =_xlfn.IFNA(MATCH(RAND(), _xlfn.POISSON.DIST({0,1,2,3,4,5,6,7,8,9},$P24, TRUE),1), 0) -> 2 | BR24: =_xlfn.IFNA(MATCH(RAND(), _xlfn.POISSON.DIST({0,1,2,3,4,5,6,7,8,9},$P24, TRUE),1), 0) -> 0 | BS24: =_xlfn.IFNA(MATCH(RAND(), _xlfn.POISSON.DIST({0,1,2,3,4,5,6,7,8,9},$P24, TRUE),1), 0) -> 3 | BT24: =_xlfn.IFNA(MATCH(RAND(), _xlfn.POISSON.DIST({0,1,2,3,4,5,6,7,8,9},$P24, TRUE),1), 0) -> 0 | BU24: =_xlfn.IFNA(MATCH(RAND(), _xlfn.POISSON.DIST({0,1,2,3,4,5,6,7,8,9},$P24, TRUE),1), 0) -> 0 | BV24: =_xlfn.IFNA(MATCH(RAND(), _xlfn.POISSON.DIST({0,1,2,3,4,5,6,7,8,9},$P24, TRUE),1), 0) -> 1 | BW24: =_xlfn.IFNA(MATCH(RAND(), _xlfn.POISSON.DIST({0,1,2,3,4,5,6,7,8,9},$P24, TRUE),1), 0) -> 1 | BX24: =_xlfn.IFNA(MATCH(RAND(), _xlfn.POISSON.DIST({0,1,2,3,4,5,6,7,8,9},$P24, TRUE),1), 0) -> 1 | BY24: =_xlfn.IFNA(MATCH(RAND(), _xlfn.POISSON.DIST({0,1,2,3,4,5,6,7,8,9},$P24, TRUE),1), 0) -> 0 | BZ24: =_xlfn.IFNA(MATCH(RAND(), _xlfn.POISSON.DIST({0,1,2,3,4,5,6,7,8,9},$P24, TRUE),1), 0) -> 3 | CA24: =_xlfn.IFNA(MATCH(RAND(), _xlfn.POISSON.DIST({0,1,2,3,4,5,6,7,8,9},$P24, TRUE),1), 0) -> 1 | CB24: =_xlfn.IFNA(MATCH(RAND(), _xlfn.POISSON.DIST({0,1,2,3,4,5,6,7,8,9},$P24, TRUE),1), 0) -> 4 | CC24: =_xlfn.IFNA(MATCH(RAND(), _xlfn.POISSON.DIST({0,1,2,3,4,5,6,7,8,9},$P24, TRUE),1), 0) -> 1 | CD24: =_xlfn.IFNA(MATCH(RAND(), _xlfn.POISSON.DIST({0,1,2,3,4,5,6,7,8,9},$P24, TRUE),1), 0) -> 1 | CE24: =_xlfn.IFNA(MATCH(RAND(), _xlfn.POISSON.DIST({0,1,2,3,4,5,6,7,8,9},$P24, TRUE),1), 0) -> 0 | CF24: =_xlfn.IFNA(MATCH(RAND(), _xlfn.POISSON.DIST({0,1,2,3,4,5,6,7,8,9},$P24, TRUE),1), 0) -> 1 | CG24: =_xlfn.IFNA(MATCH(RAND(), _xlfn.POISSON.DIST({0,1,2,3,4,5,6,7,8,9},$P24, TRUE),1), 0) -> 0 | CH24: =_xlfn.IFNA(MATCH(RAND(), _xlfn.POISSON.DIST({0,1,2,3,4,5,6,7,8,9},$P24, TRUE),1), 0) -> 1 | CI24: =_xlfn.IFNA(MATCH(RAND(), _xlfn.POISSON.DIST({0,1,2,3,4,5,6,7,8,9},$P24, TRUE),1), 0) -> 3 | CJ24: =_xlfn.IFNA(MATCH(RAND(), _xlfn.POISSON.DIST({0,1,2,3,4,5,6,7,8,9},$P24, TRUE),1), 0) -> 1 | CK24: =_xlfn.IFNA(MATCH(RAND(), _xlfn.POISSON.DIST({0,1,2,3,4,5,6,7,8,9},$P24, TRUE),1), 0) -> 2 | CL24: =_xlfn.IFNA(MATCH(RAND(), _xlfn.POISSON.DIST({0,1,2,3,4,5,6,7,8,9},$P24, TRUE),1), 0) -> 2 | CM24: =_xlfn.IFNA(MATCH(RAND(), _xlfn.POISSON.DIST({0,1,2,3,4,5,6,7,8,9},$P24, TRUE),1), 0) -> 3 | CN24: =_xlfn.IFNA(MATCH(RAND(), _xlfn.POISSON.DIST({0,1,2,3,4,5,6,7,8,9},$P24, TRUE),1), 0) -> 0 | CO24: =_xlfn.IFNA(MATCH(RAND(), _xlfn.POISSON.DIST({0,1,2,3,4,5,6,7,8,9},$P24, TRUE),1), 0) -> 3 | CP24: =_xlfn.IFNA(MATCH(RAND(), _xlfn.POISSON.DIST({0,1,2,3,4,5,6,7,8,9},$P24, TRUE),1), 0) -> 1 | CQ24: =_xlfn.IFNA(MATCH(RAND(), _xlfn.POISSON.DIST({0,1,2,3,4,5,6,7,8,9},$P24, TRUE),1), 0) -> 3 | CR24: =_xlfn.IFNA(MATCH(RAND(), _xlfn.POISSON.DIST({0,1,2,3,4,5,6,7,8,9},$P24, TRUE),1), 0) -> 3 | CS24: =_xlfn.IFNA(MATCH(RAND(), _xlfn.POISSON.DIST({0,1,2,3,4,5,6,7,8,9},$P24, TRUE),1), 0) -> 1 | CT24: =_xlfn.IFNA(MATCH(RAND(), _xlfn.POISSON.DIST({0,1,2,3,4,5,6,7,8,9},$P24, TRUE),1), 0) -> 2 | CU24: =_xlfn.IFNA(MATCH(RAND(), _xlfn.POISSON.DIST({0,1,2,3,4,5,6,7,8,9},$P24, TRUE),1), 0) -> 1 | CV24: =_xlfn.IFNA(MATCH(RAND(), _xlfn.POISSON.DIST({0,1,2,3,4,5,6,7,8,9},$P24, TRUE),1), 0) -> 1 | CW24: =_xlfn.IFNA(MATCH(RAND(), _xlfn.POISSON.DIST({0,1,2,3,4,5,6,7,8,9},$P24, TRUE),1), 0) -> 0 | CX24: =_xlfn.IFNA(MATCH(RAND(), _xlfn.POISSON.DIST({0,1,2,3,4,5,6,7,8,9},$P24, TRUE),1), 0) -> 1 | CY24: =_xlfn.IFNA(MATCH(RAND(), _xlfn.POISSON.DIST({0,1,2,3,4,5,6,7,8,9},$P24, TRUE),1), 0) -> 1 | CZ24: =_xlfn.IFNA(MATCH(RAND(), _xlfn.POISSON.DIST({0,1,2,3,4,5,6,7,8,9},$P24, TRUE),1), 0) -> 3 | DA24: =_xlfn.IFNA(MATCH(RAND(), _xlfn.POISSON.DIST({0,1,2,3,4,5,6,7,8,9},$P24, TRUE),1), 0) -> 4 | DB24: =_xlfn.IFNA(MATCH(RAND(), _xlfn.POISSON.DIST({0,1,2,3,4,5,6,7,8,9},$P24, TRUE),1), 0) -> 1 | DC24: =_xlfn.IFNA(MATCH(RAND(), _xlfn.POISSON.DIST({0,1,2,3,4,5,6,7,8,9},$P24, TRUE),1), 0) -> 5 | DD24: =_xlfn.IFNA(MATCH(RAND(), _xlfn.POISSON.DIST({0,1,2,3,4,5,6,7,8,9},$P24, TRUE),1), 0) -> 1 | DE24: =_xlfn.IFNA(MATCH(RAND(), _xlfn.POISSON.DIST({0,1,2,3,4,5,6,7,8,9},$P24, TRUE),1), 0) -> 2 | DF24: =_xlfn.IFNA(MATCH(RAND(), _xlfn.POISSON.DIST({0,1,2,3,4,5,6,7,8,9},$P24, TRUE),1), 0) -> 1 | DG24: =_xlfn.IFNA(MATCH(RAND(), _xlfn.POISSON.DIST({0,1,2,3,4,5,6,7,8,9},$P24, TRUE),1), 0) -> 0 | DH24: =_xlfn.IFNA(MATCH(RAND(), _xlfn.POISSON.DIST({0,1,2,3,4,5,6,7,8,9},$P24, TRUE),1), 0) -> 4 | DI24: =_xlfn.IFNA(MATCH(RAND(), _xlfn.POISSON.DIST({0,1,2,3,4,5,6,7,8,9},$P24, TRUE),1), 0) -> 1 | DJ24: =_xlfn.IFNA(MATCH(RAND(), _xlfn.POISSON.DIST({0,1,2,3,4,5,6,7,8,9},$P24, TRUE),1), 0) -> 0 | DK24: =_xlfn.IFNA(MATCH(RAND(), _xlfn.POISSON.DIST({0,1,2,3,4,5,6,7,8,9},$P24, TRUE),1), 0) -> 3 | DL24: =_xlfn.IFNA(MATCH(RAND(), _xlfn.POISSON.DIST({0,1,2,3,4,5,6,7,8,9},$P24, TRUE),1), 0) -> 0 | DM24: =_xlfn.IFNA(MATCH(RAND(), _xlfn.POISSON.DIST({0,1,2,3,4,5,6,7,8,9},$P24, TRUE),1), 0) -> 2
C25: 2019-06-14 | D25: D | E25: Inglaterra | F25: =(AVERAGE(Q25:BN25))*(1+INDEX('Predicciones de la liguilla'!$C$4:$O$28, MATCH('Partidos de este año'!E25,'Predicciones de la liguilla'!$D$4:$D$28,0),3)) -> 2.98 | G25: Argentina | H25: =(AVERAGE(BP25:DM25))*(1+INDEX('Predicciones de la liguilla'!$C$4:$O$28, MATCH('Partidos de este año'!G25,'Predicciones de la liguilla'!$D$4:$D$28,0),3)) -> 0.24 | I25: =IF(L25>M25,E25,IF(L25=M25,"Dibujar",G25)) -> Inglaterra | L25: 2.98 | M25: 0.24 | N25: =IF(L25>M25,E25,IF(L25=M25,"Dibujar",G25)) -> Inglaterra | O25: =(OFFSET('Apéndice 3 - Goles por grupo'!$C$13,(INDEX('Apéndice 1 - Datos de equipos'!$C$13:$F$112,MATCH(G25,'Apéndice 1 - Datos de equipos'!$C$13:$C$112,0),4)/10),(INDEX('Apéndice 1 - Datos de equipos'!$C$13:$F$112,MATCH(E25,'Apéndice 1 - Datos de equipos'!$C$13:$C$112,0),4)/10))) -> 2.94 | P25: =OFFSET('Apéndice 3 - Goles por grupo'!$C$13,(INDEX('Apéndice 1 - Datos de equipos'!$C$13:$F$112, MATCH(E25,'Apéndice 1 - Datos de equipos'!$C$13:$C$112,0),4)/10), (INDEX('Apéndice 1 - Datos de equipos'!$C$13:$F$112, MATCH(G25, 'Apéndice 1 - Datos de equipos'!$C$13:$C$112,0),4)/10)) -> 0.38 | Q25: =_xlfn.IFNA(MATCH(RAND(), _xlfn.POISSON.DIST({0,1,2,3,4,5,6,7,8,9},$O25, TRUE),1), 0) -> 3 | R25: =_xlfn.IFNA(MATCH(RAND(), _xlfn.POISSON.DIST({0,1,2,3,4,5,6,7,8,9},$O25, TRUE),1), 0) -> 1 | S25: =_xlfn.IFNA(MATCH(RAND(), _xlfn.POISSON.DIST({0,1,2,3,4,5,6,7,8,9},$O25, TRUE),1), 0) -> 1 | T25: =_xlfn.IFNA(MATCH(RAND(), _xlfn.POISSON.DIST({0,1,2,3,4,5,6,7,8,9},$O25, TRUE),1), 0) -> 2 | U25: =_xlfn.IFNA(MATCH(RAND(), _xlfn.POISSON.DIST({0,1,2,3,4,5,6,7,8,9},$O25, TRUE),1), 0) -> 5 | V25: =_xlfn.IFNA(MATCH(RAND(), _xlfn.POISSON.DIST({0,1,2,3,4,5,6,7,8,9},$O25, TRUE),1), 0) -> 3 | W25: =_xlfn.IFNA(MATCH(RAND(), _xlfn.POISSON.DIST({0,1,2,3,4,5,6,7,8,9},$O25, TRUE),1), 0) -> 2 | X25: =_xlfn.IFNA(MATCH(RAND(), _xlfn.POISSON.DIST({0,1,2,3,4,5,6,7,8,9},$O25, TRUE),1), 0) -> 3 | Y25: =_xlfn.IFNA(MATCH(RAND(), _xlfn.POISSON.DIST({0,1,2,3,4,5,6,7,8,9},$O25, TRUE),1), 0) -> 4 | Z25: =_xlfn.IFNA(MATCH(RAND(), _xlfn.POISSON.DIST({0,1,2,3,4,5,6,7,8,9},$O25, TRUE),1), 0) -> 4 | AA25: =_xlfn.IFNA(MATCH(RAND(), _xlfn.POISSON.DIST({0,1,2,3,4,5,6,7,8,9},$O25, TRUE),1), 0) -> 4 | AB25: =_xlfn.IFNA(MATCH(RAND(), _xlfn.POISSON.DIST({0,1,2,3,4,5,6,7,8,9},$O25, TRUE),1), 0) -> 3 | AC25: =_xlfn.IFNA(MATCH(RAND(), _xlfn.POISSON.DIST({0,1,2,3,4,5,6,7,8,9},$O25, TRUE),1), 0) -> 2 | AD25: =_xlfn.IFNA(MATCH(RAND(), _xlfn.POISSON.DIST({0,1,2,3,4,5,6,7,8,9},$O25, TRUE),1), 0) -> 3 | AE25: =_xlfn.IFNA(MATCH(RAND(), _xlfn.POISSON.DIST({0,1,2,3,4,5,6,7,8,9},$O25, TRUE),1), 0) -> 2 | AF25: =_xlfn.IFNA(MATCH(RAND(), _xlfn.POISSON.DIST({0,1,2,3,4,5,6,7,8,9},$O25, TRUE),1), 0) -> 2 | AG25: =_xlfn.IFNA(MATCH(RAND(), _xlfn.POISSON.DIST({0,1,2,3,4,5,6,7,8,9},$O25, TRUE),1), 0) -> 1 | AH25: =_xlfn.IFNA(MATCH(RAND(), _xlfn.POISSON.DIST({0,1,2,3,4,5,6,7,8,9},$O25, TRUE),1), 0) -> 4 | AI25: =_xlfn.IFNA(MATCH(RAND(), _xlfn.POISSON.DIST({0,1,2,3,4,5,6,7,8,9},$O25, TRUE),1), 0) -> 0 | AJ25: =_xlfn.IFNA(MATCH(RAND(), _xlfn.POISSON.DIST({0,1,2,3,4,5,6,7,8,9},$O25, TRUE),1), 0) -> 1 | AK25: =_xlfn.IFNA(MATCH(RAND(), _xlfn.POISSON.DIST({0,1,2,3,4,5,6,7,8,9},$O25, TRUE),1), 0) -> 4 | AL25: =_xlfn.IFNA(MATCH(RAND(), _xlfn.POISSON.DIST({0,1,2,3,4,5,6,7,8,9},$O25, TRUE),1), 0) -> 2 | AM25: =_xlfn.IFNA(MATCH(RAND(), _xlfn.POISSON.DIST({0,1,2,3,4,5,6,7,8,9},$O25, TRUE),1), 0) -> 2 | AN25: =_xlfn.IFNA(MATCH(RAND(), _xlfn.POISSON.DIST({0,1,2,3,4,5,6,7,8,9},$O25, TRUE),1), 0) -> 5 | AO25: =_xlfn.IFNA(MATCH(RAND(), _xlfn.POISSON.DIST({0,1,2,3,4,5,6,7,8,9},$O25, TRUE),1), 0) -> 1 | AP25: =_xlfn.IFNA(MATCH(RAND(), _xlfn.POISSON.DIST({0,1,2,3,4,5,6,7,8,9},$O25, TRUE),1), 0) -> 3 | AQ25: =_xlfn.IFNA(MATCH(RAND(), _xlfn.POISSON.DIST({0,1,2,3,4,5,6,7,8,9},$O25, TRUE),1), 0) -> 4 | AR25: =_xlfn.IFNA(MATCH(RAND(), _xlfn.POISSON.DIST({0,1,2,3,4,5,6,7,8,9},$O25, TRUE),1), 0) -> 5 | AS25: =_xlfn.IFNA(MATCH(RAND(), _xlfn.POISSON.DIST({0,1,2,3,4,5,6,7,8,9},$O25, TRUE),1), 0) -> 4 | AT25: =_xlfn.IFNA(MATCH(RAND(), _xlfn.POISSON.DIST({0,1,2,3,4,5,6,7,8,9},$O25, TRUE),1), 0) -> 2 | AU25: =_xlfn.IFNA(MATCH(RAND(), _xlfn.POISSON.DIST({0,1,2,3,4,5,6,7,8,9},$O25, TRUE),1), 0) -> 5 | AV25: =_xlfn.IFNA(MATCH(RAND(), _xlfn.POISSON.DIST({0,1,2,3,4,5,6,7,8,9},$O25, TRUE),1), 0) -> 2 | AW25: =_xlfn.IFNA(MATCH(RAND(), _xlfn.POISSON.DIST({0,1,2,3,4,5,6,7,8,9},$O25, TRUE),1), 0) -> 4 | AX25: =_xlfn.IFNA(MATCH(RAND(), _xlfn.POISSON.DIST({0,1,2,3,4,5,6,7,8,9},$O25, TRUE),1), 0) -> 7 | AY25: =_xlfn.IFNA(MATCH(RAND(), _xlfn.POISSON.DIST({0,1,2,3,4,5,6,7,8,9},$O25, TRUE),1), 0) -> 5 | AZ25: =_xlfn.IFNA(MATCH(RAND(), _xlfn.POISSON.DIST({0,1,2,3,4,5,6,7,8,9},$O25, TRUE),1), 0) -> 0 | BA25: =_xlfn.IFNA(MATCH(RAND(), _xlfn.POISSON.DIST({0,1,2,3,4,5,6,7,8,9},$O25, TRUE),1), 0) -> 6 | BB25: =_xlfn.IFNA(MATCH(RAND(), _xlfn.POISSON.DIST({0,1,2,3,4,5,6,7,8,9},$O25, TRUE),1), 0) -> 6 | BC25: =_xlfn.IFNA(MATCH(RAND(), _xlfn.POISSON.DIST({0,1,2,3,4,5,6,7,8,9},$O25, TRUE),1), 0) -> 2 | BD25: =_xlfn.IFNA(MATCH(RAND(), _xlfn.POISSON.DIST({0,1,2,3,4,5,6,7,8,9},$O25, TRUE),1), 0) -> 6 | BE25: =_xlfn.IFNA(MATCH(RAND(), _xlfn.POISSON.DIST({0,1,2,3,4,5,6,7,8,9},$O25, TRUE),1), 0) -> 3 | BF25: =_xlfn.IFNA(MATCH(RAND(), _xlfn.POISSON.DIST({0,1,2,3,4,5,6,7,8,9},$O25, TRUE),1), 0) -> 5 | BG25: =_xlfn.IFNA(MATCH(RAND(), _xlfn.POISSON.DIST({0,1,2,3,4,5,6,7,8,9},$O25, TRUE),1), 0) -> 3 | BH25: =_xlfn.IFNA(MATCH(RAND(), _xlfn.POISSON.DIST({0,1,2,3,4,5,6,7,8,9},$O25, TRUE),1), 0) -> 0 | BI25: =_xlfn.IFNA(MATCH(RAND(), _xlfn.POISSON.DIST({0,1,2,3,4,5,6,7,8,9},$O25, TRUE),1), 0) -> 3 | BJ25: =_xlfn.IFNA(MATCH(RAND(), _xlfn.POISSON.DIST({0,1,2,3,4,5,6,7,8,9},$O25, TRUE),1), 0) -> 3 | BK25: =_xlfn.IFNA(MATCH(RAND(), _xlfn.POISSON.DIST({0,1,2,3,4,5,6,7,8,9},$O25, TRUE),1), 0) -> 1 | BL25: =_xlfn.IFNA(MATCH(RAND(), _xlfn.POISSON.DIST({0,1,2,3,4,5,6,7,8,9},$O25, TRUE),1), 0) -> 3 | BM25: =_xlfn.IFNA(MATCH(RAND(), _xlfn.POISSON.DIST({0,1,2,3,4,5,6,7,8,9},$O25, TRUE),1), 0) -> 3 | BN25: =_xlfn.IFNA(MATCH(RAND(), _xlfn.POISSON.DIST({0,1,2,3,4,5,6,7,8,9},$O25, TRUE),1), 0) -> 0 | BP25: =_xlfn.IFNA(MATCH(RAND(), _xlfn.POISSON.DIST({0,1,2,3,4,5,6,7,8,9},$P25, TRUE),1), 0) -> 0 | BQ25: =_xlfn.IFNA(MATCH(RAND(), _xlfn.POISSON.DIST({0,1,2,3,4,5,6,7,8,9},$P25, TRUE),1), 0) -> 0 | BR25: =_xlfn.IFNA(MATCH(RAND(), _xlfn.POISSON.DIST({0,1,2,3,4,5,6,7,8,9},$P25, TRUE),1), 0) -> 0 | BS25: =_xlfn.IFNA(MATCH(RAND(), _xlfn.POISSON.DIST({0,1,2,3,4,5,6,7,8,9},$P25, TRUE),1), 0) -> 0 | BT25: =_xlfn.IFNA(MATCH(RAND(), _xlfn.POISSON.DIST({0,1,2,3,4,5,6,7,8,9},$P25, TRUE),1), 0) -> 1 | BU25: =_xlfn.IFNA(MATCH(RAND(), _xlfn.POISSON.DIST({0,1,2,3,4,5,6,7,8,9},$P25, TRUE),1), 0) -> 0 | BV25: =_xlfn.IFNA(MATCH(RAND(), _xlfn.POISSON.DIST({0,1,2,3,4,5,6,7,8,9},$P25, TRUE),1), 0) -> 0 | BW25: =_xlfn.IFNA(MATCH(RAND(), _xlfn.POISSON.DIST({0,1,2,3,4,5,6,7,8,9},$P25, TRUE),1), 0) -> 0 | BX25: =_xlfn.IFNA(MATCH(RAND(), _xlfn.POISSON.DIST({0,1,2,3,4,5,6,7,8,9},$P25, TRUE),1), 0) -> 0 | BY25: =_xlfn.IFNA(MATCH(RAND(), _xlfn.POISSON.DIST({0,1,2,3,4,5,6,7,8,9},$P25, TRUE),1), 0) -> 0 | BZ25: =_xlfn.IFNA(MATCH(RAND(), _xlfn.POISSON.DIST({0,1,2,3,4,5,6,7,8,9},$P25, TRUE),1), 0) -> 0 | CA25: =_xlfn.IFNA(MATCH(RAND(), _xlfn.POISSON.DIST({0,1,2,3,4,5,6,7,8,9},$P25, TRUE),1), 0) -> 0 | CB25: =_xlfn.IFNA(MATCH(RAND(), _xlfn.POISSON.DIST({0,1,2,3,4,5,6,7,8,9},$P25, TRUE),1), 0) -> 0 | CC25: =_xlfn.IFNA(MATCH(RAND(), _xlfn.POISSON.DIST({0,1,2,3,4,5,6,7,8,9},$P25, TRUE),1), 0) -> 0 | CD25: =_xlfn.IFNA(MATCH(RAND(), _xlfn.POISSON.DIST({0,1,2,3,4,5,6,7,8,9},$P25, TRUE),1), 0) -> 0 | CE25: =_xlfn.IFNA(MATCH(RAND(), _xlfn.POISSON.DIST({0,1,2,3,4,5,6,7,8,9},$P25, TRUE),1), 0) -> 0 | CF25: =_xlfn.IFNA(MATCH(RAND(), _xlfn.POISSON.DIST({0,1,2,3,4,5,6,7,8,9},$P25, TRUE),1), 0) -> 0 | CG25: =_xlfn.IFNA(MATCH(RAND(), _xlfn.POISSON.DIST({0,1,2,3,4,5,6,7,8,9},$P25, TRUE),1), 0) -> 2 | CH25: =_xlfn.IFNA(MATCH(RAND(), _xlfn.POISSON.DIST({0,1,2,3,4,5,6,7,8,9},$P25, TRUE),1), 0) -> 0 | CI25: =_xlfn.IFNA(MATCH(RAND(), _xlfn.POISSON.DIST({0,1,2,3,4,5,6,7,8,9},$P25, TRUE),1), 0) -> 0 | CJ25: =_xlfn.IFNA(MATCH(RAND(), _xlfn.POISSON.DIST({0,1,2,3,4,5,6,7,8,9},$P25, TRUE),1), 0) -> 0 | CK25: =_xlfn.IFNA(MATCH(RAND(), _xlfn.POISSON.DIST({0,1,2,3,4,5,6,7,8,9},$P25, TRUE),1), 0) -> 0 | CL25: =_xlfn.IFNA(MATCH(RAND(), _xlfn.POISSON.DIST({0,1,2,3,4,5,6,7,8,9},$P25, TRUE),1), 0) -> 0 | CM25: =_xlfn.IFNA(MATCH(RAND(), _xlfn.POISSON.DIST({0,1,2,3,4,5,6,7,8,9},$P25, TRUE),1), 0) -> 0 | CN25: =_xlfn.IFNA(MATCH(RAND(), _xlfn.POISSON.DIST({0,1,2,3,4,5,6,7,8,9},$P25, TRUE),1), 0) -> 1 | CO25: =_xlfn.IFNA(MATCH(RAND(), _xlfn.POISSON.DIST({0,1,2,3,4,5,6,7,8,9},$P25, TRUE),1), 0) -> 1 | CP25: =_xlfn.IFNA(MATCH(RAND(), _xlfn.POISSON.DIST({0,1,2,3,4,5,6,7,8,9},$P25, TRUE),1), 0) -> 0 | CQ25: =_xlfn.IFNA(MATCH(RAND(), _xlfn.POISSON.DIST({0,1,2,3,4,5,6,7,8,9},$P25, TRUE),1), 0) -> 0 | CR25: =_xlfn.IFNA(MATCH(RAND(), _xlfn.POISSON.DIST({0,1,2,3,4,5,6,7,8,9},$P25, TRUE),1), 0) -> 0 | CS25: =_xlfn.IFNA(MATCH(RAND(), _xlfn.POISSON.DIST({0,1,2,3,4,5,6,7,8,9},$P25, TRUE),1), 0) -> 1 | CT25: =_xlfn.IFNA(MATCH(RAND(), _xlfn.POISSON.DIST({0,1,2,3,4,5,6,7,8,9},$P25, TRUE),1), 0) -> 0 | CU25: =_xlfn.IFNA(MATCH(RAND(), _xlfn.POISSON.DIST({0,1,2,3,4,5,6,7,8,9},$P25, TRUE),1), 0) -> 0 | CV25: =_xlfn.IFNA(MATCH(RAND(), _xlfn.POISSON.DIST({0,1,2,3,4,5,6,7,8,9},$P25, TRUE),1), 0) -> 0 | CW25: =_xlfn.IFNA(MATCH(RAND(), _xlfn.POISSON.DIST({0,1,2,3,4,5,6,7,8,9},$P25, TRUE),1), 0) -> 0 | CX25: =_xlfn.IFNA(MATCH(RAND(), _xlfn.POISSON.DIST({0,1,2,3,4,5,6,7,8,9},$P25, TRUE),1), 0) -> 0 | CY25: =_xlfn.IFNA(MATCH(RAND(), _xlfn.POISSON.DIST({0,1,2,3,4,5,6,7,8,9},$P25, TRUE),1), 0) -> 0 | CZ25: =_xlfn.IFNA(MATCH(RAND(), _xlfn.POISSON.DIST({0,1,2,3,4,5,6,7,8,9},$P25, TRUE),1), 0) -> 0 | DA25: =_xlfn.IFNA(MATCH(RAND(), _xlfn.POISSON.DIST({0,1,2,3,4,5,6,7,8,9},$P25, TRUE),1), 0) -> 0 | DB25: =_xlfn.IFNA(MATCH(RAND(), _xlfn.POISSON.DIST({0,1,2,3,4,5,6,7,8,9},$P25, TRUE),1), 0) -> 2 | DC25: =_xlfn.IFNA(MATCH(RAND(), _xlfn.POISSON.DIST({0,1,2,3,4,5,6,7,8,9},$P25, TRUE),1), 0) -> 0 | DD25: =_xlfn.IFNA(MATCH(RAND(), _xlfn.POISSON.DIST({0,1,2,3,4,5,6,7,8,9},$P25, TRUE),1), 0) -> 0 | DE25: =_xlfn.IFNA(MATCH(RAND(), _xlfn.POISSON.DIST({0,1,2,3,4,5,6,7,8,9},$P25, TRUE),1), 0) -> 0 | DF25: =_xlfn.IFNA(MATCH(RAND(), _xlfn.POISSON.DIST({0,1,2,3,4,5,6,7,8,9},$P25, TRUE),1), 0) -> 1 | DG25: =_xlfn.IFNA(MATCH(RAND(), _xlfn.POISSON.DIST({0,1,2,3,4,5,6,7,8,9},$P25, TRUE),1), 0) -> 0 | DH25: =_xlfn.IFNA(MATCH(RAND(), _xlfn.POISSON.DIST({0,1,2,3,4,5,6,7,8,9},$P25, TRUE),1), 0) -> 2 | DI25: =_xlfn.IFNA(MATCH(RAND(), _xlfn.POISSON.DIST({0,1,2,3,4,5,6,7,8,9},$P25, TRUE),1), 0) -> 0 | DJ25: =_xlfn.IFNA(MATCH(RAND(), _xlfn.POISSON.DIST({0,1,2,3,4,5,6,7,8,9},$P25, TRUE),1), 0) -> 1 | DK25: =_xlfn.IFNA(MATCH(RAND(), _xlfn.POISSON.DIST({0,1,2,3,4,5,6,7,8,9},$P25, TRUE),1), 0) -> 0 | DL25: =_xlfn.IFNA(MATCH(RAND(), _xlfn.POISSON.DIST({0,1,2,3,4,5,6,7,8,9},$P25, TRUE),1), 0) -> 0 | DM25: =_xlfn.IFNA(MATCH(RAND(), _xlfn.POISSON.DIST({0,1,2,3,4,5,6,7,8,9},$P25, TRUE),1), 0) -> 0
C26: 2019-06-15 | D26: E | E26: Países Bajos | F26: =(AVERAGE(Q26:BN26))*(1+INDEX('Predicciones de la liguilla'!$C$4:$O$28, MATCH('Partidos de este año'!E26,'Predicciones de la liguilla'!$D$4:$D$28,0),3)) -> 1.54 | G26: Camerún | H26: =(AVERAGE(BP26:DM26))*(1+INDEX('Predicciones de la liguilla'!$C$4:$O$28, MATCH('Partidos de este año'!G26,'Predicciones de la liguilla'!$D$4:$D$28,0),3)) -> 1.50 | I26: =IF(L26>M26,E26,IF(L26=M26,"Dibujar",G26)) -> Países Bajos | L26: 1.54 | M26: 1.5 | N26: =IF(L26>M26,E26,IF(L26=M26,"Dibujar",G26)) -> Países Bajos | O26: =(OFFSET('Apéndice 3 - Goles por grupo'!$C$13,(INDEX('Apéndice 1 - Datos de equipos'!$C$13:$F$112,MATCH(G26,'Apéndice 1 - Datos de equipos'!$C$13:$C$112,0),4)/10),(INDEX('Apéndice 1 - Datos de equipos'!$C$13:$F$112,MATCH(E26,'Apéndice 1 - Datos de equipos'!$C$13:$C$112,0),4)/10))) -> 1.50 | P26: =OFFSET('Apéndice 3 - Goles por grupo'!$C$13,(INDEX('Apéndice 1 - Datos de equipos'!$C$13:$F$112, MATCH(E26,'Apéndice 1 - Datos de equipos'!$C$13:$C$112,0),4)/10), (INDEX('Apéndice 1 - Datos de equipos'!$C$13:$F$112, MATCH(G26, 'Apéndice 1 - Datos de equipos'!$C$13:$C$112,0),4)/10)) -> 1.50 | Q26: =_xlfn.IFNA(MATCH(RAND(), _xlfn.POISSON.DIST({0,1,2,3,4,5,6,7,8,9},$O26, TRUE),1), 0) -> 3 | R26: =_xlfn.IFNA(MATCH(RAND(), _xlfn.POISSON.DIST({0,1,2,3,4,5,6,7,8,9},$O26, TRUE),1), 0) -> 2 | S26: =_xlfn.IFNA(MATCH(RAND(), _xlfn.POISSON.DIST({0,1,2,3,4,5,6,7,8,9},$O26, TRUE),1), 0) -> 1 | T26: =_xlfn.IFNA(MATCH(RAND(), _xlfn.POISSON.DIST({0,1,2,3,4,5,6,7,8,9},$O26, TRUE),1), 0) -> 2 | U26: =_xlfn.IFNA(MATCH(RAND(), _xlfn.POISSON.DIST({0,1,2,3,4,5,6,7,8,9},$O26, TRUE),1), 0) -> 2 | V26: =_xlfn.IFNA(MATCH(RAND(), _xlfn.POISSON.DIST({0,1,2,3,4,5,6,7,8,9},$O26, TRUE),1), 0) -> 2 | W26: =_xlfn.IFNA(MATCH(RAND(), _xlfn.POISSON.DIST({0,1,2,3,4,5,6,7,8,9},$O26, TRUE),1), 0) -> 4 | X26: =_xlfn.IFNA(MATCH(RAND(), _xlfn.POISSON.DIST({0,1,2,3,4,5,6,7,8,9},$O26, TRUE),1), 0) -> 0 | Y26: =_xlfn.IFNA(MATCH(RAND(), _xlfn.POISSON.DIST({0,1,2,3,4,5,6,7,8,9},$O26, TRUE),1), 0) -> 2 | Z26: =_xlfn.IFNA(MATCH(RAND(), _xlfn.POISSON.DIST({0,1,2,3,4,5,6,7,8,9},$O26, TRUE),1), 0) -> 1 | AA26: =_xlfn.IFNA(MATCH(RAND(), _xlfn.POISSON.DIST({0,1,2,3,4,5,6,7,8,9},$O26, TRUE),1), 0) -> 1 | AB26: =_xlfn.IFNA(MATCH(RAND(), _xlfn.POISSON.DIST({0,1,2,3,4,5,6,7,8,9},$O26, TRUE),1), 0) -> 2 | AC26: =_xlfn.IFNA(MATCH(RAND(), _xlfn.POISSON.DIST({0,1,2,3,4,5,6,7,8,9},$O26, TRUE),1), 0) -> 1 | AD26: =_xlfn.IFNA(MATCH(RAND(), _xlfn.POISSON.DIST({0,1,2,3,4,5,6,7,8,9},$O26, TRUE),1), 0) -> 1 | AE26: =_xlfn.IFNA(MATCH(RAND(), _xlfn.POISSON.DIST({0,1,2,3,4,5,6,7,8,9},$O26, TRUE),1), 0) -> 6 | AF26: =_xlfn.IFNA(MATCH(RAND(), _xlfn.POISSON.DIST({0,1,2,3,4,5,6,7,8,9},$O26, TRUE),1), 0) -> 0 | AG26: =_xlfn.IFNA(MATCH(RAND(), _xlfn.POISSON.DIST({0,1,2,3,4,5,6,7,8,9},$O26, TRUE),1), 0) -> 1 | AH26: =_xlfn.IFNA(MATCH(RAND(), _xlfn.POISSON.DIST({0,1,2,3,4,5,6,7,8,9},$O26, TRUE),1), 0) -> 3 | AI26: =_xlfn.IFNA(MATCH(RAND(), _xlfn.POISSON.DIST({0,1,2,3,4,5,6,7,8,9},$O26, TRUE),1), 0) -> 0 | AJ26: =_xlfn.IFNA(MATCH(RAND(), _xlfn.POISSON.DIST({0,1,2,3,4,5,6,7,8,9},$O26, TRUE),1), 0) -> 0 | AK26: =_xlfn.IFNA(MATCH(RAND(), _xlfn.POISSON.DIST({0,1,2,3,4,5,6,7,8,9},$O26, TRUE),1), 0) -> 1 | AL26: =_xlfn.IFNA(MATCH(RAND(), _xlfn.POISSON.DIST({0,1,2,3,4,5,6,7,8,9},$O26, TRUE),1), 0) -> 0 | AM26: =_xlfn.IFNA(MATCH(RAND(), _xlfn.POISSON.DIST({0,1,2,3,4,5,6,7,8,9},$O26, TRUE),1), 0) -> 0 | AN26: =_xlfn.IFNA(MATCH(RAND(), _xlfn.POISSON.DIST({0,1,2,3,4,5,6,7,8,9},$O26, TRUE),1), 0) -> 2 | AO26: =_xlfn.IFNA(MATCH(RAND(), _xlfn.POISSON.DIST({0,1,2,3,4,5,6,7,8,9},$O26, TRUE),1), 0) -> 1 | AP26: =_xlfn.IFNA(MATCH(RAND(), _xlfn.POISSON.DIST({0,1,2,3,4,5,6,7,8,9},$O26, TRUE),1), 0) -> 0 | AQ26: =_xlfn.IFNA(MATCH(RAND(), _xlfn.POISSON.DIST({0,1,2,3,4,5,6,7,8,9},$O26, TRUE),1), 0) -> 0 | AR26: =_xlfn.IFNA(MATCH(RAND(), _xlfn.POISSON.DIST({0,1,2,3,4,5,6,7,8,9},$O26, TRUE),1), 0) -> 0 | AS26: =_xlfn.IFNA(MATCH(RAND(), _xlfn.POISSON.DIST({0,1,2,3,4,5,6,7,8,9},$O26, TRUE),1), 0) -> 4 | AT26: =_xlfn.IFNA(MATCH(RAND(), _xlfn.POISSON.DIST({0,1,2,3,4,5,6,7,8,9},$O26, TRUE),1), 0) -> 3 | AU26: =_xlfn.IFNA(MATCH(RAND(), _xlfn.POISSON.DIST({0,1,2,3,4,5,6,7,8,9},$O26, TRUE),1), 0) -> 2 | AV26: =_xlfn.IFNA(MATCH(RAND(), _xlfn.POISSON.DIST({0,1,2,3,4,5,6,7,8,9},$O26, TRUE),1), 0) -> 2 | AW26: =_xlfn.IFNA(MATCH(RAND(), _xlfn.POISSON.DIST({0,1,2,3,4,5,6,7,8,9},$O26, TRUE),1), 0) -> 2 | AX26: =_xlfn.IFNA(MATCH(RAND(), _xlfn.POISSON.DIST({0,1,2,3,4,5,6,7,8,9},$O26, TRUE),1), 0) -> 2 | AY26: =_xlfn.IFNA(MATCH(RAND(), _xlfn.POISSON.DIST({0,1,2,3,4,5,6,7,8,9},$O26, TRUE),1), 0) -> 1 | AZ26: =_xlfn.IFNA(MATCH(RAND(), _xlfn.POISSON.DIST({0,1,2,3,4,5,6,7,8,9},$O26, TRUE),1), 0) -> 1 | BA26: =_xlfn.IFNA(MATCH(RAND(), _xlfn.POISSON.DIST({0,1,2,3,4,5,6,7,8,9},$O26, TRUE),1), 0) -> 0 | BB26: =_xlfn.IFNA(MATCH(RAND(), _xlfn.POISSON.DIST({0,1,2,3,4,5,6,7,8,9},$O26, TRUE),1), 0) -> 3 | BC26: =_xlfn.IFNA(MATCH(RAND(), _xlfn.POISSON.DIST({0,1,2,3,4,5,6,7,8,9},$O26, TRUE),1), 0) -> 2 | BD26: =_xlfn.IFNA(MATCH(RAND(), _xlfn.POISSON.DIST({0,1,2,3,4,5,6,7,8,9},$O26, TRUE),1), 0) -> 0 | BE26: =_xlfn.IFNA(MATCH(RAND(), _xlfn.POISSON.DIST({0,1,2,3,4,5,6,7,8,9},$O26, TRUE),1), 0) -> 1 | BF26: =_xlfn.IFNA(MATCH(RAND(), _xlfn.POISSON.DIST({0,1,2,3,4,5,6,7,8,9},$O26, TRUE),1), 0) -> 0 | BG26: =_xlfn.IFNA(MATCH(RAND(), _xlfn.POISSON.DIST({0,1,2,3,4,5,6,7,8,9},$O26, TRUE),1), 0) -> 3 | BH26: =_xlfn.IFNA(MATCH(RAND(), _xlfn.POISSON.DIST({0,1,2,3,4,5,6,7,8,9},$O26, TRUE),1), 0) -> 3 | BI26: =_xlfn.IFNA(MATCH(RAND(), _xlfn.POISSON.DIST({0,1,2,3,4,5,6,7,8,9},$O26, TRUE),1), 0) -> 0 | BJ26: =_xlfn.IFNA(MATCH(RAND(), _xlfn.POISSON.DIST({0,1,2,3,4,5,6,7,8,9},$O26, TRUE),1), 0) -> 3 | BK26: =_xlfn.IFNA(MATCH(RAND(), _xlfn.POISSON.DIST({0,1,2,3,4,5,6,7,8,9},$O26, TRUE),1), 0) -> 2 | BL26: =_xlfn.IFNA(MATCH(RAND(), _xlfn.POISSON.DIST({0,1,2,3,4,5,6,7,8,9},$O26, TRUE),1), 0) -> 0 | BM26: =_xlfn.IFNA(MATCH(RAND(), _xlfn.POISSON.DIST({0,1,2,3,4,5,6,7,8,9},$O26, TRUE),1), 0) -> 2 | BN26: =_xlfn.IFNA(MATCH(RAND(), _xlfn.POISSON.DIST({0,1,2,3,4,5,6,7,8,9},$O26, TRUE),1), 0) -> 3 | BP26: =_xlfn.IFNA(MATCH(RAND(), _xlfn.POISSON.DIST({0,1,2,3,4,5,6,7,8,9},$P26, TRUE),1), 0) -> 2 | BQ26: =_xlfn.IFNA(MATCH(RAND(), _xlfn.POISSON.DIST({0,1,2,3,4,5,6,7,8,9},$P26, TRUE),1), 0) -> 2 | BR26: =_xlfn.IFNA(MATCH(RAND(), _xlfn.POISSON.DIST({0,1,2,3,4,5,6,7,8,9},$P26, TRUE),1), 0) -> 3 | BS26: =_xlfn.IFNA(MATCH(RAND(), _xlfn.POISSON.DIST({0,1,2,3,4,5,6,7,8,9},$P26, TRUE),1), 0) -> 2 | BT26: =_xlfn.IFNA(MATCH(RAND(), _xlfn.POISSON.DIST({0,1,2,3,4,5,6,7,8,9},$P26, TRUE),1), 0) -> 1 | BU26: =_xlfn.IFNA(MATCH(RAND(), _xlfn.POISSON.DIST({0,1,2,3,4,5,6,7,8,9},$P26, TRUE),1), 0) -> 1 | BV26: =_xlfn.IFNA(MATCH(RAND(), _xlfn.POISSON.DIST({0,1,2,3,4,5,6,7,8,9},$P26, TRUE),1), 0) -> 0 | BW26: =_xlfn.IFNA(MATCH(RAND(), _xlfn.POISSON.DIST({0,1,2,3,4,5,6,7,8,9},$P26, TRUE),1), 0) -> 2 | BX26: =_xlfn.IFNA(MATCH(RAND(), _xlfn.POISSON.DIST({0,1,2,3,4,5,6,7,8,9},$P26, TRUE),1), 0) -> 0 | BY26: =_xlfn.IFNA(MATCH(RAND(), _xlfn.POISSON.DIST({0,1,2,3,4,5,6,7,8,9},$P26, TRUE),1), 0) -> 2 | BZ26: =_xlfn.IFNA(MATCH(RAND(), _xlfn.POISSON.DIST({0,1,2,3,4,5,6,7,8,9},$P26, TRUE),1), 0) -> 0 | CA26: =_xlfn.IFNA(MATCH(RAND(), _xlfn.POISSON.DIST({0,1,2,3,4,5,6,7,8,9},$P26, TRUE),1), 0) -> 2 | CB26: =_xlfn.IFNA(MATCH(RAND(), _xlfn.POISSON.DIST({0,1,2,3,4,5,6,7,8,9},$P26, TRUE),1), 0) -> 3 | CC26: =_xlfn.IFNA(MATCH(RAND(), _xlfn.POISSON.DIST({0,1,2,3,4,5,6,7,8,9},$P26, TRUE),1), 0) -> 3 | CD26: =_xlfn.IFNA(MATCH(RAND(), _xlfn.POISSON.DIST({0,1,2,3,4,5,6,7,8,9},$P26, TRUE),1), 0) -> 1 | CE26: =_xlfn.IFNA(MATCH(RAND(), _xlfn.POISSON.DIST({0,1,2,3,4,5,6,7,8,9},$P26, TRUE),1), 0) -> 1 | CF26: =_xlfn.IFNA(MATCH(RAND(), _xlfn.POISSON.DIST({0,1,2,3,4,5,6,7,8,9},$P26, TRUE),1), 0) -> 4 | CG26: =_xlfn.IFNA(MATCH(RAND(), _xlfn.POISSON.DIST({0,1,2,3,4,5,6,7,8,9},$P26, TRUE),1), 0) -> 3 | CH26: =_xlfn.IFNA(MATCH(RAND(), _xlfn.POISSON.DIST({0,1,2,3,4,5,6,7,8,9},$P26, TRUE),1), 0) -> 0 | CI26: =_xlfn.IFNA(MATCH(RAND(), _xlfn.POISSON.DIST({0,1,2,3,4,5,6,7,8,9},$P26, TRUE),1), 0) -> 0 | CJ26: =_xlfn.IFNA(MATCH(RAND(), _xlfn.POISSON.DIST({0,1,2,3,4,5,6,7,8,9},$P26, TRUE),1), 0) -> 2 | CK26: =_xlfn.IFNA(MATCH(RAND(), _xlfn.POISSON.DIST({0,1,2,3,4,5,6,7,8,9},$P26, TRUE),1), 0) -> 0 | CL26: =_xlfn.IFNA(MATCH(RAND(), _xlfn.POISSON.DIST({0,1,2,3,4,5,6,7,8,9},$P26, TRUE),1), 0) -> 2 | CM26: =_xlfn.IFNA(MATCH(RAND(), _xlfn.POISSON.DIST({0,1,2,3,4,5,6,7,8,9},$P26, TRUE),1), 0) -> 0 | CN26: =_xlfn.IFNA(MATCH(RAND(), _xlfn.POISSON.DIST({0,1,2,3,4,5,6,7,8,9},$P26, TRUE),1), 0) -> 1 | CO26: =_xlfn.IFNA(MATCH(RAND(), _xlfn.POISSON.DIST({0,1,2,3,4,5,6,7,8,9},$P26, TRUE),1), 0) -> 1 | CP26: =_xlfn.IFNA(MATCH(RAND(), _xlfn.POISSON.DIST({0,1,2,3,4,5,6,7,8,9},$P26, TRUE),1), 0) -> 2 | CQ26: =_xlfn.IFNA(MATCH(RAND(), _xlfn.POISSON.DIST({0,1,2,3,4,5,6,7,8,9},$P26, TRUE),1), 0) -> 4 | CR26: =_xlfn.IFNA(MATCH(RAND(), _xlfn.POISSON.DIST({0,1,2,3,4,5,6,7,8,9},$P26, TRUE),1), 0) -> 1 | CS26: =_xlfn.IFNA(MATCH(RAND(), _xlfn.POISSON.DIST({0,1,2,3,4,5,6,7,8,9},$P26, TRUE),1), 0) -> 0 | CT26: =_xlfn.IFNA(MATCH(RAND(), _xlfn.POISSON.DIST({0,1,2,3,4,5,6,7,8,9},$P26, TRUE),1), 0) -> 2 | CU26: =_xlfn.IFNA(MATCH(RAND(), _xlfn.POISSON.DIST({0,1,2,3,4,5,6,7,8,9},$P26, TRUE),1), 0) -> 0 | CV26: =_xlfn.IFNA(MATCH(RAND(), _xlfn.POISSON.DIST({0,1,2,3,4,5,6,7,8,9},$P26, TRUE),1), 0) -> 1 | CW26: =_xlfn.IFNA(MATCH(RAND(), _xlfn.POISSON.DIST({0,1,2,3,4,5,6,7,8,9},$P26, TRUE),1), 0) -> 1 | CX26: =_xlfn.IFNA(MATCH(RAND(), _xlfn.POISSON.DIST({0,1,2,3,4,5,6,7,8,9},$P26, TRUE),1), 0) -> 0 | CY26: =_xlfn.IFNA(MATCH(RAND(), _xlfn.POISSON.DIST({0,1,2,3,4,5,6,7,8,9},$P26, TRUE),1), 0) -> 0 | CZ26: =_xlfn.IFNA(MATCH(RAND(), _xlfn.POISSON.DIST({0,1,2,3,4,5,6,7,8,9},$P26, TRUE),1), 0) -> 2 | DA26: =_xlfn.IFNA(MATCH(RAND(), _xlfn.POISSON.DIST({0,1,2,3,4,5,6,7,8,9},$P26, TRUE),1), 0) -> 1 | DB26: =_xlfn.IFNA(MATCH(RAND(), _xlfn.POISSON.DIST({0,1,2,3,4,5,6,7,8,9},$P26, TRUE),1), 0) -> 4 | DC26: =_xlfn.IFNA(MATCH(RAND(), _xlfn.POISSON.DIST({0,1,2,3,4,5,6,7,8,9},$P26, TRUE),1), 0) -> 1 | DD26: =_xlfn.IFNA(MATCH(RAND(), _xlfn.POISSON.DIST({0,1,2,3,4,5,6,7,8,9},$P26, TRUE),1), 0) -> 3 | DE26: =_xlfn.IFNA(MATCH(RAND(), _xlfn.POISSON.DIST({0,1,2,3,4,5,6,7,8,9},$P26, TRUE),1), 0) -> 1 | DF26: =_xlfn.IFNA(MATCH(RAND(), _xlfn.POISSON.DIST({0,1,2,3,4,5,6,7,8,9},$P26, TRUE),1), 0) -> 2 | DG26: =_xlfn.IFNA(MATCH(RAND(), _xlfn.POISSON.DIST({0,1,2,3,4,5,6,7,8,9},$P26, TRUE),1), 0) -> 2 | DH26: =_xlfn.IFNA(MATCH(RAND(), _xlfn.POISSON.DIST({0,1,2,3,4,5,6,7,8,9},$P26, TRUE),1), 0) -> 3 | DI26: =_xlfn.IFNA(MATCH(RAND(), _xlfn.POISSON.DIST({0,1,2,3,4,5,6,7,8,9},$P26, TRUE),1), 0) -> 1 | DJ26: =_xlfn.IFNA(MATCH(RAND(), _xlfn.POISSON.DIST({0,1,2,3,4,5,6,7,8,9},$P26, TRUE),1), 0) -> 0 | DK26: =_xlfn.IFNA(MATCH(RAND(), _xlfn.POISSON.DIST({0,1,2,3,4,5,6,7,8,9},$P26, TRUE),1), 0) -> 1 | DL26: =_xlfn.IFNA(MATCH(RAND(), _xlfn.POISSON.DIST({0,1,2,3,4,5,6,7,8,9},$P26, TRUE),1), 0) -> 1 | DM26: =_xlfn.IFNA(MATCH(RAND(), _xlfn.POISSON.DIST({0,1,2,3,4,5,6,7,8,9},$P26, TRUE),1), 0) -> 4
C27: 2019-06-15 | D27: E | E27: Canadá | F27: =(AVERAGE(Q27:BN27))*(1+INDEX('Predicciones de la liguilla'!$C$4:$O$28, MATCH('Partidos de este año'!E27,'Predicciones de la liguilla'!$D$4:$D$28,0),3)) -> 1.48 | G27: Nueva Zelanda | H27: =(AVERAGE(BP27:DM27))*(1+INDEX('Predicciones de la liguilla'!$C$4:$O$28, MATCH('Partidos de este año'!G27,'Predicciones de la liguilla'!$D$4:$D$28,0),3)) -> 1.26 | I27: =IF(L27>M27,E27,IF(L27=M27,"Dibujar",G27)) -> Canadá | L27: 1.48 | M27: 1.26 | N27: =IF(L27>M27,E27,IF(L27=M27,"Dibujar",G27)) -> Canadá | O27: =(OFFSET('Apéndice 3 - Goles por grupo'!$C$13,(INDEX('Apéndice 1 - Datos de equipos'!$C$13:$F$112,MATCH(G27,'Apéndice 1 - Datos de equipos'!$C$13:$C$112,0),4)/10),(INDEX('Apéndice 1 - Datos de equipos'!$C$13:$F$112,MATCH(E27,'Apéndice 1 - Datos de equipos'!$C$13:$C$112,0),4)/10))) -> 1.50 | P27: =OFFSET('Apéndice 3 - Goles por grupo'!$C$13,(INDEX('Apéndice 1 - Datos de equipos'!$C$13:$F$112, MATCH(E27,'Apéndice 1 - Datos de equipos'!$C$13:$C$112,0),4)/10), (INDEX('Apéndice 1 - Datos de equipos'!$C$13:$F$112, MATCH(G27, 'Apéndice 1 - Datos de equipos'!$C$13:$C$112,0),4)/10)) -> 1.50 | Q27: =_xlfn.IFNA(MATCH(RAND(), _xlfn.POISSON.DIST({0,1,2,3,4,5,6,7,8,9},$O27, TRUE),1), 0) -> 2 | R27: =_xlfn.IFNA(MATCH(RAND(), _xlfn.POISSON.DIST({0,1,2,3,4,5,6,7,8,9},$O27, TRUE),1), 0) -> 0 | S27: =_xlfn.IFNA(MATCH(RAND(), _xlfn.POISSON.DIST({0,1,2,3,4,5,6,7,8,9},$O27, TRUE),1), 0) -> 2 | T27: =_xlfn.IFNA(MATCH(RAND(), _xlfn.POISSON.DIST({0,1,2,3,4,5,6,7,8,9},$O27, TRUE),1), 0) -> 3 | U27: =_xlfn.IFNA(MATCH(RAND(), _xlfn.POISSON.DIST({0,1,2,3,4,5,6,7,8,9},$O27, TRUE),1), 0) -> 1 | V27: =_xlfn.IFNA(MATCH(RAND(), _xlfn.POISSON.DIST({0,1,2,3,4,5,6,7,8,9},$O27, TRUE),1), 0) -> 2 | W27: =_xlfn.IFNA(MATCH(RAND(), _xlfn.POISSON.DIST({0,1,2,3,4,5,6,7,8,9},$O27, TRUE),1), 0) -> 1 | X27: =_xlfn.IFNA(MATCH(RAND(), _xlfn.POISSON.DIST({0,1,2,3,4,5,6,7,8,9},$O27, TRUE),1), 0) -> 0 | Y27: =_xlfn.IFNA(MATCH(RAND(), _xlfn.POISSON.DIST({0,1,2,3,4,5,6,7,8,9},$O27, TRUE),1), 0) -> 0 | Z27: =_xlfn.IFNA(MATCH(RAND(), _xlfn.POISSON.DIST({0,1,2,3,4,5,6,7,8,9},$O27, TRUE),1), 0) -> 1 | AA27: =_xlfn.IFNA(MATCH(RAND(), _xlfn.POISSON.DIST({0,1,2,3,4,5,6,7,8,9},$O27, TRUE),1), 0) -> 1 | AB27: =_xlfn.IFNA(MATCH(RAND(), _xlfn.POISSON.DIST({0,1,2,3,4,5,6,7,8,9},$O27, TRUE),1), 0) -> 2 | AC27: =_xlfn.IFNA(MATCH(RAND(), _xlfn.POISSON.DIST({0,1,2,3,4,5,6,7,8,9},$O27, TRUE),1), 0) -> 1 | AD27: =_xlfn.IFNA(MATCH(RAND(), _xlfn.POISSON.DIST({0,1,2,3,4,5,6,7,8,9},$O27, TRUE),1), 0) -> 2 | AE27: =_xlfn.IFNA(MATCH(RAND(), _xlfn.POISSON.DIST({0,1,2,3,4,5,6,7,8,9},$O27, TRUE),1), 0) -> 2 | AF27: =_xlfn.IFNA(MATCH(RAND(), _xlfn.POISSON.DIST({0,1,2,3,4,5,6,7,8,9},$O27, TRUE),1), 0) -> 1 | AG27: =_xlfn.IFNA(MATCH(RAND(), _xlfn.POISSON.DIST({0,1,2,3,4,5,6,7,8,9},$O27, TRUE),1), 0) -> 1 | AH27: =_xlfn.IFNA(MATCH(RAND(), _xlfn.POISSON.DIST({0,1,2,3,4,5,6,7,8,9},$O27, TRUE),1), 0) -> 2 | AI27: =_xlfn.IFNA(MATCH(RAND(), _xlfn.POISSON.DIST({0,1,2,3,4,5,6,7,8,9},$O27, TRUE),1), 0) -> 2 | AJ27: =_xlfn.IFNA(MATCH(RAND(), _xlfn.POISSON.DIST({0,1,2,3,4,5,6,7,8,9},$O27, TRUE),1), 0) -> 2 | AK27: =_xlfn.IFNA(MATCH(RAND(), _xlfn.POISSON.DIST({0,1,2,3,4,5,6,7,8,9},$O27, TRUE),1), 0) -> 1 | AL27: =_xlfn.IFNA(MATCH(RAND(), _xlfn.POISSON.DIST({0,1,2,3,4,5,6,7,8,9},$O27, TRUE),1), 0) -> 2 | AM27: =_xlfn.IFNA(MATCH(RAND(), _xlfn.POISSON.DIST({0,1,2,3,4,5,6,7,8,9},$O27, TRUE),1), 0) -> 1 | AN27: =_xlfn.IFNA(MATCH(RAND(), _xlfn.POISSON.DIST({0,1,2,3,4,5,6,7,8,9},$O27, TRUE),1), 0) -> 0 | AO27: =_xlfn.IFNA(MATCH(RAND(), _xlfn.POISSON.DIST({0,1,2,3,4,5,6,7,8,9},$O27, TRUE),1), 0) -> 1 | AP27: =_xlfn.IFNA(MATCH(RAND(), _xlfn.POISSON.DIST({0,1,2,3,4,5,6,7,8,9},$O27, TRUE),1), 0) -> 3 | AQ27: =_xlfn.IFNA(MATCH(RAND(), _xlfn.POISSON.DIST({0,1,2,3,4,5,6,7,8,9},$O27, TRUE),1), 0) -> 1 | AR27: =_xlfn.IFNA(MATCH(RAND(), _xlfn.POISSON.DIST({0,1,2,3,4,5,6,7,8,9},$O27, TRUE),1), 0) -> 0 | AS27: =_xlfn.IFNA(MATCH(RAND(), _xlfn.POISSON.DIST({0,1,2,3,4,5,6,7,8,9},$O27, TRUE),1), 0) -> 1 | AT27: =_xlfn.IFNA(MATCH(RAND(), _xlfn.POISSON.DIST({0,1,2,3,4,5,6,7,8,9},$O27, TRUE),1), 0) -> 0 | AU27: =_xlfn.IFNA(MATCH(RAND(), _xlfn.POISSON.DIST({0,1,2,3,4,5,6,7,8,9},$O27, TRUE),1), 0) -> 2 | AV27: =_xlfn.IFNA(MATCH(RAND(), _xlfn.POISSON.DIST({0,1,2,3,4,5,6,7,8,9},$O27, TRUE),1), 0) -> 1 | AW27: =_xlfn.IFNA(MATCH(RAND(), _xlfn.POISSON.DIST({0,1,2,3,4,5,6,7,8,9},$O27, TRUE),1), 0) -> 3 | AX27: =_xlfn.IFNA(MATCH(RAND(), _xlfn.POISSON.DIST({0,1,2,3,4,5,6,7,8,9},$O27, TRUE),1), 0) -> 0 | AY27: =_xlfn.IFNA(MATCH(RAND(), _xlfn.POISSON.DIST({0,1,2,3,4,5,6,7,8,9},$O27, TRUE),1), 0) -> 1 | AZ27: =_xlfn.IFNA(MATCH(RAND(), _xlfn.POISSON.DIST({0,1,2,3,4,5,6,7,8,9},$O27, TRUE),1), 0) -> 3 | BA27: =_xlfn.IFNA(MATCH(RAND(), _xlfn.POISSON.DIST({0,1,2,3,4,5,6,7,8,9},$O27, TRUE),1), 0) -> 1 | BB27: =_xlfn.IFNA(MATCH(RAND(), _xlfn.POISSON.DIST({0,1,2,3,4,5,6,7,8,9},$O27, TRUE),1), 0) -> 1 | BC27: =_xlfn.IFNA(MATCH(RAND(), _xlfn.POISSON.DIST({0,1,2,3,4,5,6,7,8,9},$O27, TRUE),1), 0) -> 2 | BD27: =_xlfn.IFNA(MATCH(RAND(), _xlfn.POISSON.DIST({0,1,2,3,4,5,6,7,8,9},$O27, TRUE),1), 0) -> 1 | BE27: =_xlfn.IFNA(MATCH(RAND(), _xlfn.POISSON.DIST({0,1,2,3,4,5,6,7,8,9},$O27, TRUE),1), 0) -> 3 | BF27: =_xlfn.IFNA(MATCH(RAND(), _xlfn.POISSON.DIST({0,1,2,3,4,5,6,7,8,9},$O27, TRUE),1), 0) -> 1 | BG27: =_xlfn.IFNA(MATCH(RAND(), _xlfn.POISSON.DIST({0,1,2,3,4,5,6,7,8,9},$O27, TRUE),1), 0) -> 2 | BH27: =_xlfn.IFNA(MATCH(RAND(), _xlfn.POISSON.DIST({0,1,2,3,4,5,6,7,8,9},$O27, TRUE),1), 0) -> 0 | BI27: =_xlfn.IFNA(MATCH(RAND(), _xlfn.POISSON.DIST({0,1,2,3,4,5,6,7,8,9},$O27, TRUE),1), 0) -> 5 | BJ27: =_xlfn.IFNA(MATCH(RAND(), _xlfn.POISSON.DIST({0,1,2,3,4,5,6,7,8,9},$O27, TRUE),1), 0) -> 2 | BK27: =_xlfn.IFNA(MATCH(RAND(), _xlfn.POISSON.DIST({0,1,2,3,4,5,6,7,8,9},$O27, TRUE),1), 0) -> 2 | BL27: =_xlfn.IFNA(MATCH(RAND(), _xlfn.POISSON.DIST({0,1,2,3,4,5,6,7,8,9},$O27, TRUE),1), 0) -> 4 | BM27: =_xlfn.IFNA(MATCH(RAND(), _xlfn.POISSON.DIST({0,1,2,3,4,5,6,7,8,9},$O27, TRUE),1), 0) -> 1 | BN27: =_xlfn.IFNA(MATCH(RAND(), _xlfn.POISSON.DIST({0,1,2,3,4,5,6,7,8,9},$O27, TRUE),1), 0) -> 1 | BP27: =_xlfn.IFNA(MATCH(RAND(), _xlfn.POISSON.DIST({0,1,2,3,4,5,6,7,8,9},$P27, TRUE),1), 0) -> 0 | BQ27: =_xlfn.IFNA(MATCH(RAND(), _xlfn.POISSON.DIST({0,1,2,3,4,5,6,7,8,9},$P27, TRUE),1), 0) -> 1 | BR27: =_xlfn.IFNA(MATCH(RAND(), _xlfn.POISSON.DIST({0,1,2,3,4,5,6,7,8,9},$P27, TRUE),1), 0) -> 2 | BS27: =_xlfn.IFNA(MATCH(RAND(), _xlfn.POISSON.DIST({0,1,2,3,4,5,6,7,8,9},$P27, TRUE),1), 0) -> 2 | BT27: =_xlfn.IFNA(MATCH(RAND(), _xlfn.POISSON.DIST({0,1,2,3,4,5,6,7,8,9},$P27, TRUE),1), 0) -> 3 | BU27: =_xlfn.IFNA(MATCH(RAND(), _xlfn.POISSON.DIST({0,1,2,3,4,5,6,7,8,9},$P27, TRUE),1), 0) -> 1 | BV27: =_xlfn.IFNA(MATCH(RAND(), _xlfn.POISSON.DIST({0,1,2,3,4,5,6,7,8,9},$P27, TRUE),1), 0) -> 0 | BW27: =_xlfn.IFNA(MATCH(RAND(), _xlfn.POISSON.DIST({0,1,2,3,4,5,6,7,8,9},$P27, TRUE),1), 0) -> 1 | BX27: =_xlfn.IFNA(MATCH(RAND(), _xlfn.POISSON.DIST({0,1,2,3,4,5,6,7,8,9},$P27, TRUE),1), 0) -> 1 | BY27: =_xlfn.IFNA(MATCH(RAND(), _xlfn.POISSON.DIST({0,1,2,3,4,5,6,7,8,9},$P27, TRUE),1), 0) -> 0 | BZ27: =_xlfn.IFNA(MATCH(RAND(), _xlfn.POISSON.DIST({0,1,2,3,4,5,6,7,8,9},$P27, TRUE),1), 0) -> 2 | CA27: =_xlfn.IFNA(MATCH(RAND(), _xlfn.POISSON.DIST({0,1,2,3,4,5,6,7,8,9},$P27, TRUE),1), 0) -> 4 | CB27: =_xlfn.IFNA(MATCH(RAND(), _xlfn.POISSON.DIST({0,1,2,3,4,5,6,7,8,9},$P27, TRUE),1), 0) -> 0 | CC27: =_xlfn.IFNA(MATCH(RAND(), _xlfn.POISSON.DIST({0,1,2,3,4,5,6,7,8,9},$P27, TRUE),1), 0) -> 0 | CD27: =_xlfn.IFNA(MATCH(RAND(), _xlfn.POISSON.DIST({0,1,2,3,4,5,6,7,8,9},$P27, TRUE),1), 0) -> 2 | CE27: =_xlfn.IFNA(MATCH(RAND(), _xlfn.POISSON.DIST({0,1,2,3,4,5,6,7,8,9},$P27, TRUE),1), 0) -> 0 | CF27: =_xlfn.IFNA(MATCH(RAND(), _xlfn.POISSON.DIST({0,1,2,3,4,5,6,7,8,9},$P27, TRUE),1), 0) -> 0 | CG27: =_xlfn.IFNA(MATCH(RAND(), _xlfn.POISSON.DIST({0,1,2,3,4,5,6,7,8,9},$P27, TRUE),1), 0) -> 2 | CH27: =_xlfn.IFNA(MATCH(RAND(), _xlfn.POISSON.DIST({0,1,2,3,4,5,6,7,8,9},$P27, TRUE),1), 0) -> 0 | CI27: =_xlfn.IFNA(MATCH(RAND(), _xlfn.POISSON.DIST({0,1,2,3,4,5,6,7,8,9},$P27, TRUE),1), 0) -> 2 | CJ27: =_xlfn.IFNA(MATCH(RAND(), _xlfn.POISSON.DIST({0,1,2,3,4,5,6,7,8,9},$P27, TRUE),1), 0) -> 1 | CK27: =_xlfn.IFNA(MATCH(RAND(), _xlfn.POISSON.DIST({0,1,2,3,4,5,6,7,8,9},$P27, TRUE),1), 0) -> 1 | CL27: =_xlfn.IFNA(MATCH(RAND(), _xlfn.POISSON.DIST({0,1,2,3,4,5,6,7,8,9},$P27, TRUE),1), 0) -> 0 | CM27: =_xlfn.IFNA(MATCH(RAND(), _xlfn.POISSON.DIST({0,1,2,3,4,5,6,7,8,9},$P27, TRUE),1), 0) -> 3 | CN27: =_xlfn.IFNA(MATCH(RAND(), _xlfn.POISSON.DIST({0,1,2,3,4,5,6,7,8,9},$P27, TRUE),1), 0) -> 4 | CO27: =_xlfn.IFNA(MATCH(RAND(), _xlfn.POISSON.DIST({0,1,2,3,4,5,6,7,8,9},$P27, TRUE),1), 0) -> 2 | CP27: =_xlfn.IFNA(MATCH(RAND(), _xlfn.POISSON.DIST({0,1,2,3,4,5,6,7,8,9},$P27, TRUE),1), 0) -> 0 | CQ27: =_xlfn.IFNA(MATCH(RAND(), _xlfn.POISSON.DIST({0,1,2,3,4,5,6,7,8,9},$P27, TRUE),1), 0) -> 3 | CR27: =_xlfn.IFNA(MATCH(RAND(), _xlfn.POISSON.DIST({0,1,2,3,4,5,6,7,8,9},$P27, TRUE),1), 0) -> 0 | CS27: =_xlfn.IFNA(MATCH(RAND(), _xlfn.POISSON.DIST({0,1,2,3,4,5,6,7,8,9},$P27, TRUE),1), 0) -> 3 | CT27: =_xlfn.IFNA(MATCH(RAND(), _xlfn.POISSON.DIST({0,1,2,3,4,5,6,7,8,9},$P27, TRUE),1), 0) -> 2 | CU27: =_xlfn.IFNA(MATCH(RAND(), _xlfn.POISSON.DIST({0,1,2,3,4,5,6,7,8,9},$P27, TRUE),1), 0) -> 1 | CV27: =_xlfn.IFNA(MATCH(RAND(), _xlfn.POISSON.DIST({0,1,2,3,4,5,6,7,8,9},$P27, TRUE),1), 0) -> 1 | CW27: =_xlfn.IFNA(MATCH(RAND(), _xlfn.POISSON.DIST({0,1,2,3,4,5,6,7,8,9},$P27, TRUE),1), 0) -> 3 | CX27: =_xlfn.IFNA(MATCH(RAND(), _xlfn.POISSON.DIST({0,1,2,3,4,5,6,7,8,9},$P27, TRUE),1), 0) -> 1 | CY27: =_xlfn.IFNA(MATCH(RAND(), _xlfn.POISSON.DIST({0,1,2,3,4,5,6,7,8,9},$P27, TRUE),1), 0) -> 0 | CZ27: =_xlfn.IFNA(MATCH(RAND(), _xlfn.POISSON.DIST({0,1,2,3,4,5,6,7,8,9},$P27, TRUE),1), 0) -> 1 | DA27: =_xlfn.IFNA(MATCH(RAND(), _xlfn.POISSON.DIST({0,1,2,3,4,5,6,7,8,9},$P27, TRUE),1), 0) -> 1 | DB27: =_xlfn.IFNA(MATCH(RAND(), _xlfn.POISSON.DIST({0,1,2,3,4,5,6,7,8,9},$P27, TRUE),1), 0) -> 3 | DC27: =_xlfn.IFNA(MATCH(RAND(), _xlfn.POISSON.DIST({0,1,2,3,4,5,6,7,8,9},$P27, TRUE),1), 0) -> 0 | DD27: =_xlfn.IFNA(MATCH(RAND(), _xlfn.POISSON.DIST({0,1,2,3,4,5,6,7,8,9},$P27, TRUE),1), 0) -> 1 | DE27: =_xlfn.IFNA(MATCH(RAND(), _xlfn.POISSON.DIST({0,1,2,3,4,5,6,7,8,9},$P27, TRUE),1), 0) -> 0 | DF27: =_xlfn.IFNA(MATCH(RAND(), _xlfn.POISSON.DIST({0,1,2,3,4,5,6,7,8,9},$P27, TRUE),1), 0) -> 1 | DG27: =_xlfn.IFNA(MATCH(RAND(), _xlfn.POISSON.DIST({0,1,2,3,4,5,6,7,8,9},$P27, TRUE),1), 0) -> 2 | DH27: =_xlfn.IFNA(MATCH(RAND(), _xlfn.POISSON.DIST({0,1,2,3,4,5,6,7,8,9},$P27, TRUE),1), 0) -> 1 | DI27: =_xlfn.IFNA(MATCH(RAND(), _xlfn.POISSON.DIST({0,1,2,3,4,5,6,7,8,9},$P27, TRUE),1), 0) -> 1 | DJ27: =_xlfn.IFNA(MATCH(RAND(), _xlfn.POISSON.DIST({0,1,2,3,4,5,6,7,8,9},$P27, TRUE),1), 0) -> 1 | DK27: =_xlfn.IFNA(MATCH(RAND(), _xlfn.POISSON.DIST({0,1,2,3,4,5,6,7,8,9},$P27, TRUE),1), 0) -> 2 | DL27: =_xlfn.IFNA(MATCH(RAND(), _xlfn.POISSON.DIST({0,1,2,3,4,5,6,7,8,9},$P27, TRUE),1), 0) -> 1 | DM27: =_xlfn.IFNA(MATCH(RAND(), _xlfn.POISSON.DIST({0,1,2,3,4,5,6,7,8,9},$P27, TRUE),1), 0) -> 0
C28: 2019-06-16 | D28: F | E28: Suecia | F28: =(AVERAGE(Q28:BN28))*(1+INDEX('Predicciones de la liguilla'!$C$4:$O$28, MATCH('Partidos de este año'!E28,'Predicciones de la liguilla'!$D$4:$D$28,0),3)) -> 2.92 | G28: Tailandia | H28: =(AVERAGE(BP28:DM28))*(1+INDEX('Predicciones de la liguilla'!$C$4:$O$28, MATCH('Partidos de este año'!G28,'Predicciones de la liguilla'!$D$4:$D$28,0),3)) -> 0.56 | I28: =IF(L28>M28,E28,IF(L28=M28,"Dibujar",G28)) -> Suecia | L28: 2.92 | M28: 0.56 | N28: =IF(L28>M28,E28,IF(L28=M28,"Dibujar",G28)) -> Suecia | O28: =(OFFSET('Apéndice 3 - Goles por grupo'!$C$13,(INDEX('Apéndice 1 - Datos de equipos'!$C$13:$F$112,MATCH(G28,'Apéndice 1 - Datos de equipos'!$C$13:$C$112,0),4)/10),(INDEX('Apéndice 1 - Datos de equipos'!$C$13:$F$112,MATCH(E28,'Apéndice 1 - Datos de equipos'!$C$13:$C$112,0),4)/10))) -> 2.94 | P28: =OFFSET('Apéndice 3 - Goles por grupo'!$C$13,(INDEX('Apéndice 1 - Datos de equipos'!$C$13:$F$112, MATCH(E28,'Apéndice 1 - Datos de equipos'!$C$13:$C$112,0),4)/10), (INDEX('Apéndice 1 - Datos de equipos'!$C$13:$F$112, MATCH(G28, 'Apéndice 1 - Datos de equipos'!$C$13:$C$112,0),4)/10)) -> 0.38 | Q28: =_xlfn.IFNA(MATCH(RAND(), _xlfn.POISSON.DIST({0,1,2,3,4,5,6,7,8,9},$O28, TRUE),1), 0) -> 2 | R28: =_xlfn.IFNA(MATCH(RAND(), _xlfn.POISSON.DIST({0,1,2,3,4,5,6,7,8,9},$O28, TRUE),1), 0) -> 0 | S28: =_xlfn.IFNA(MATCH(RAND(), _xlfn.POISSON.DIST({0,1,2,3,4,5,6,7,8,9},$O28, TRUE),1), 0) -> 3 | T28: =_xlfn.IFNA(MATCH(RAND(), _xlfn.POISSON.DIST({0,1,2,3,4,5,6,7,8,9},$O28, TRUE),1), 0) -> 2 | U28: =_xlfn.IFNA(MATCH(RAND(), _xlfn.POISSON.DIST({0,1,2,3,4,5,6,7,8,9},$O28, TRUE),1), 0) -> 1 | V28: =_xlfn.IFNA(MATCH(RAND(), _xlfn.POISSON.DIST({0,1,2,3,4,5,6,7,8,9},$O28, TRUE),1), 0) -> 3 | W28: =_xlfn.IFNA(MATCH(RAND(), _xlfn.POISSON.DIST({0,1,2,3,4,5,6,7,8,9},$O28, TRUE),1), 0) -> 2 | X28: =_xlfn.IFNA(MATCH(RAND(), _xlfn.POISSON.DIST({0,1,2,3,4,5,6,7,8,9},$O28, TRUE),1), 0) -> 10 | Y28: =_xlfn.IFNA(MATCH(RAND(), _xlfn.POISSON.DIST({0,1,2,3,4,5,6,7,8,9},$O28, TRUE),1), 0) -> 0 | Z28: =_xlfn.IFNA(MATCH(RAND(), _xlfn.POISSON.DIST({0,1,2,3,4,5,6,7,8,9},$O28, TRUE),1), 0) -> 3 | AA28: =_xlfn.IFNA(MATCH(RAND(), _xlfn.POISSON.DIST({0,1,2,3,4,5,6,7,8,9},$O28, TRUE),1), 0) -> 2 | AB28: =_xlfn.IFNA(MATCH(RAND(), _xlfn.POISSON.DIST({0,1,2,3,4,5,6,7,8,9},$O28, TRUE),1), 0) -> 5 | AC28: =_xlfn.IFNA(MATCH(RAND(), _xlfn.POISSON.DIST({0,1,2,3,4,5,6,7,8,9},$O28, TRUE),1), 0) -> 1 | AD28: =_xlfn.IFNA(MATCH(RAND(), _xlfn.POISSON.DIST({0,1,2,3,4,5,6,7,8,9},$O28, TRUE),1), 0) -> 3 | AE28: =_xlfn.IFNA(MATCH(RAND(), _xlfn.POISSON.DIST({0,1,2,3,4,5,6,7,8,9},$O28, TRUE),1), 0) -> 7 | AF28: =_xlfn.IFNA(MATCH(RAND(), _xlfn.POISSON.DIST({0,1,2,3,4,5,6,7,8,9},$O28, TRUE),1), 0) -> 2 | AG28: =_xlfn.IFNA(MATCH(RAND(), _xlfn.POISSON.DIST({0,1,2,3,4,5,6,7,8,9},$O28, TRUE),1), 0) -> 1 | AH28: =_xlfn.IFNA(MATCH(RAND(), _xlfn.POISSON.DIST({0,1,2,3,4,5,6,7,8,9},$O28, TRUE),1), 0) -> 3 | AI28: =_xlfn.IFNA(MATCH(RAND(), _xlfn.POISSON.DIST({0,1,2,3,4,5,6,7,8,9},$O28, TRUE),1), 0) -> 5 | AJ28: =_xlfn.IFNA(MATCH(RAND(), _xlfn.POISSON.DIST({0,1,2,3,4,5,6,7,8,9},$O28, TRUE),1), 0) -> 6 | AK28: =_xlfn.IFNA(MATCH(RAND(), _xlfn.POISSON.DIST({0,1,2,3,4,5,6,7,8,9},$O28, TRUE),1), 0) -> 3 | AL28: =_xlfn.IFNA(MATCH(RAND(), _xlfn.POISSON.DIST({0,1,2,3,4,5,6,7,8,9},$O28, TRUE),1), 0) -> 0 | AM28: =_xlfn.IFNA(MATCH(RAND(), _xlfn.POISSON.DIST({0,1,2,3,4,5,6,7,8,9},$O28, TRUE),1), 0) -> 0 | AN28: =_xlfn.IFNA(MATCH(RAND(), _xlfn.POISSON.DIST({0,1,2,3,4,5,6,7,8,9},$O28, TRUE),1), 0) -> 0 | AO28: =_xlfn.IFNA(MATCH(RAND(), _xlfn.POISSON.DIST({0,1,2,3,4,5,6,7,8,9},$O28, TRUE),1), 0) -> 4 | AP28: =_xlfn.IFNA(MATCH(RAND(), _xlfn.POISSON.DIST({0,1,2,3,4,5,6,7,8,9},$O28, TRUE),1), 0) -> 3 | AQ28: =_xlfn.IFNA(MATCH(RAND(), _xlfn.POISSON.DIST({0,1,2,3,4,5,6,7,8,9},$O28, TRUE),1), 0) -> 9 | AR28: =_xlfn.IFNA(MATCH(RAND(), _xlfn.POISSON.DIST({0,1,2,3,4,5,6,7,8,9},$O28, TRUE),1), 0) -> 1 | AS28: =_xlfn.IFNA(MATCH(RAND(), _xlfn.POISSON.DIST({0,1,2,3,4,5,6,7,8,9},$O28, TRUE),1), 0) -> 0 | AT28: =_xlfn.IFNA(MATCH(RAND(), _xlfn.POISSON.DIST({0,1,2,3,4,5,6,7,8,9},$O28, TRUE),1), 0) -> 3 | AU28: =_xlfn.IFNA(MATCH(RAND(), _xlfn.POISSON.DIST({0,1,2,3,4,5,6,7,8,9},$O28, TRUE),1), 0) -> 1 | AV28: =_xlfn.IFNA(MATCH(RAND(), _xlfn.POISSON.DIST({0,1,2,3,4,5,6,7,8,9},$O28, TRUE),1), 0) -> 2 | AW28: =_xlfn.IFNA(MATCH(RAND(), _xlfn.POISSON.DIST({0,1,2,3,4,5,6,7,8,9},$O28, TRUE),1), 0) -> 3 | AX28: =_xlfn.IFNA(MATCH(RAND(), _xlfn.POISSON.DIST({0,1,2,3,4,5,6,7,8,9},$O28, TRUE),1), 0) -> 7 | AY28: =_xlfn.IFNA(MATCH(RAND(), _xlfn.POISSON.DIST({0,1,2,3,4,5,6,7,8,9},$O28, TRUE),1), 0) -> 3 | AZ28: =_xlfn.IFNA(MATCH(RAND(), _xlfn.POISSON.DIST({0,1,2,3,4,5,6,7,8,9},$O28, TRUE),1), 0) -> 5 | BA28: =_xlfn.IFNA(MATCH(RAND(), _xlfn.POISSON.DIST({0,1,2,3,4,5,6,7,8,9},$O28, TRUE),1), 0) -> 3 | BB28: =_xlfn.IFNA(MATCH(RAND(), _xlfn.POISSON.DIST({0,1,2,3,4,5,6,7,8,9},$O28, TRUE),1), 0) -> 0 | BC28: =_xlfn.IFNA(MATCH(RAND(), _xlfn.POISSON.DIST({0,1,2,3,4,5,6,7,8,9},$O28, TRUE),1), 0) -> 4 | BD28: =_xlfn.IFNA(MATCH(RAND(), _xlfn.POISSON.DIST({0,1,2,3,4,5,6,7,8,9},$O28, TRUE),1), 0) -> 2 | BE28: =_xlfn.IFNA(MATCH(RAND(), _xlfn.POISSON.DIST({0,1,2,3,4,5,6,7,8,9},$O28, TRUE),1), 0) -> 6 | BF28: =_xlfn.IFNA(MATCH(RAND(), _xlfn.POISSON.DIST({0,1,2,3,4,5,6,7,8,9},$O28, TRUE),1), 0) -> 2 | BG28: =_xlfn.IFNA(MATCH(RAND(), _xlfn.POISSON.DIST({0,1,2,3,4,5,6,7,8,9},$O28, TRUE),1), 0) -> 4 | BH28: =_xlfn.IFNA(MATCH(RAND(), _xlfn.POISSON.DIST({0,1,2,3,4,5,6,7,8,9},$O28, TRUE),1), 0) -> 5 | BI28: =_xlfn.IFNA(MATCH(RAND(), _xlfn.POISSON.DIST({0,1,2,3,4,5,6,7,8,9},$O28, TRUE),1), 0) -> 0 | BJ28: =_xlfn.IFNA(MATCH(RAND(), _xlfn.POISSON.DIST({0,1,2,3,4,5,6,7,8,9},$O28, TRUE),1), 0) -> 6 | BK28: =_xlfn.IFNA(MATCH(RAND(), _xlfn.POISSON.DIST({0,1,2,3,4,5,6,7,8,9},$O28, TRUE),1), 0) -> 2 | BL28: =_xlfn.IFNA(MATCH(RAND(), _xlfn.POISSON.DIST({0,1,2,3,4,5,6,7,8,9},$O28, TRUE),1), 0) -> 3 | BM28: =_xlfn.IFNA(MATCH(RAND(), _xlfn.POISSON.DIST({0,1,2,3,4,5,6,7,8,9},$O28, TRUE),1), 0) -> 2 | BN28: =_xlfn.IFNA(MATCH(RAND(), _xlfn.POISSON.DIST({0,1,2,3,4,5,6,7,8,9},$O28, TRUE),1), 0) -> 2 | BP28: =_xlfn.IFNA(MATCH(RAND(), _xlfn.POISSON.DIST({0,1,2,3,4,5,6,7,8,9},$P28, TRUE),1), 0) -> 2 | BQ28: =_xlfn.IFNA(MATCH(RAND(), _xlfn.POISSON.DIST({0,1,2,3,4,5,6,7,8,9},$P28, TRUE),1), 0) -> 1 | BR28: =_xlfn.IFNA(MATCH(RAND(), _xlfn.POISSON.DIST({0,1,2,3,4,5,6,7,8,9},$P28, TRUE),1), 0) -> 1 | BS28: =_xlfn.IFNA(MATCH(RAND(), _xlfn.POISSON.DIST({0,1,2,3,4,5,6,7,8,9},$P28, TRUE),1), 0) -> 0 | BT28: =_xlfn.IFNA(MATCH(RAND(), _xlfn.POISSON.DIST({0,1,2,3,4,5,6,7,8,9},$P28, TRUE),1), 0) -> 1 | BU28: =_xlfn.IFNA(MATCH(RAND(), _xlfn.POISSON.DIST({0,1,2,3,4,5,6,7,8,9},$P28, TRUE),1), 0) -> 1 | BV28: =_xlfn.IFNA(MATCH(RAND(), _xlfn.POISSON.DIST({0,1,2,3,4,5,6,7,8,9},$P28, TRUE),1), 0) -> 1 | BW28: =_xlfn.IFNA(MATCH(RAND(), _xlfn.POISSON.DIST({0,1,2,3,4,5,6,7,8,9},$P28, TRUE),1), 0) -> 0 | BX28: =_xlfn.IFNA(MATCH(RAND(), _xlfn.POISSON.DIST({0,1,2,3,4,5,6,7,8,9},$P28, TRUE),1), 0) -> 0 | BY28: =_xlfn.IFNA(MATCH(RAND(), _xlfn.POISSON.DIST({0,1,2,3,4,5,6,7,8,9},$P28, TRUE),1), 0) -> 0 | BZ28: =_xlfn.IFNA(MATCH(RAND(), _xlfn.POISSON.DIST({0,1,2,3,4,5,6,7,8,9},$P28, TRUE),1), 0) -> 0 | CA28: =_xlfn.IFNA(MATCH(RAND(), _xlfn.POISSON.DIST({0,1,2,3,4,5,6,7,8,9},$P28, TRUE),1), 0) -> 2 | CB28: =_xlfn.IFNA(MATCH(RAND(), _xlfn.POISSON.DIST({0,1,2,3,4,5,6,7,8,9},$P28, TRUE),1), 0) -> 0 | CC28: =_xlfn.IFNA(MATCH(RAND(), _xlfn.POISSON.DIST({0,1,2,3,4,5,6,7,8,9},$P28, TRUE),1), 0) -> 1 | CD28: =_xlfn.IFNA(MATCH(RAND(), _xlfn.POISSON.DIST({0,1,2,3,4,5,6,7,8,9},$P28, TRUE),1), 0) -> 0 | CE28: =_xlfn.IFNA(MATCH(RAND(), _xlfn.POISSON.DIST({0,1,2,3,4,5,6,7,8,9},$P28, TRUE),1), 0) -> 0 | CF28: =_xlfn.IFNA(MATCH(RAND(), _xlfn.POISSON.DIST({0,1,2,3,4,5,6,7,8,9},$P28, TRUE),1), 0) -> 0 | CG28: =_xlfn.IFNA(MATCH(RAND(), _xlfn.POISSON.DIST({0,1,2,3,4,5,6,7,8,9},$P28, TRUE),1), 0) -> 2 | CH28: =_xlfn.IFNA(MATCH(RAND(), _xlfn.POISSON.DIST({0,1,2,3,4,5,6,7,8,9},$P28, TRUE),1), 0) -> 0 | CI28: =_xlfn.IFNA(MATCH(RAND(), _xlfn.POISSON.DIST({0,1,2,3,4,5,6,7,8,9},$P28, TRUE),1), 0) -> 1 | CJ28: =_xlfn.IFNA(MATCH(RAND(), _xlfn.POISSON.DIST({0,1,2,3,4,5,6,7,8,9},$P28, TRUE),1), 0) -> 1 | CK28: =_xlfn.IFNA(MATCH(RAND(), _xlfn.POISSON.DIST({0,1,2,3,4,5,6,7,8,9},$P28, TRUE),1), 0) -> 1 | CL28: =_xlfn.IFNA(MATCH(RAND(), _xlfn.POISSON.DIST({0,1,2,3,4,5,6,7,8,9},$P28, TRUE),1), 0) -> 1 | CM28: =_xlfn.IFNA(MATCH(RAND(), _xlfn.POISSON.DIST({0,1,2,3,4,5,6,7,8,9},$P28, TRUE),1), 0) -> 0 | CN28: =_xlfn.IFNA(MATCH(RAND(), _xlfn.POISSON.DIST({0,1,2,3,4,5,6,7,8,9},$P28, TRUE),1), 0) -> 1 | CO28: =_xlfn.IFNA(MATCH(RAND(), _xlfn.POISSON.DIST({0,1,2,3,4,5,6,7,8,9},$P28, TRUE),1), 0) -> 0 | CP28: =_xlfn.IFNA(MATCH(RAND(), _xlfn.POISSON.DIST({0,1,2,3,4,5,6,7,8,9},$P28, TRUE),1), 0) -> 0 | CQ28: =_xlfn.IFNA(MATCH(RAND(), _xlfn.POISSON.DIST({0,1,2,3,4,5,6,7,8,9},$P28, TRUE),1), 0) -> 0 | CR28: =_xlfn.IFNA(MATCH(RAND(), _xlfn.POISSON.DIST({0,1,2,3,4,5,6,7,8,9},$P28, TRUE),1), 0) -> 0 | CS28: =_xlfn.IFNA(MATCH(RAND(), _xlfn.POISSON.DIST({0,1,2,3,4,5,6,7,8,9},$P28, TRUE),1), 0) -> 0 | CT28: =_xlfn.IFNA(MATCH(RAND(), _xlfn.POISSON.DIST({0,1,2,3,4,5,6,7,8,9},$P28, TRUE),1), 0) -> 0 | CU28: =_xlfn.IFNA(MATCH(RAND(), _xlfn.POISSON.DIST({0,1,2,3,4,5,6,7,8,9},$P28, TRUE),1), 0) -> 0 | CV28: =_xlfn.IFNA(MATCH(RAND(), _xlfn.POISSON.DIST({0,1,2,3,4,5,6,7,8,9},$P28, TRUE),1), 0) -> 1 | CW28: =_xlfn.IFNA(MATCH(RAND(), _xlfn.POISSON.DIST({0,1,2,3,4,5,6,7,8,9},$P28, TRUE),1), 0) -> 3 | CX28: =_xlfn.IFNA(MATCH(RAND(), _xlfn.POISSON.DIST({0,1,2,3,4,5,6,7,8,9},$P28, TRUE),1), 0) -> 0 | CY28: =_xlfn.IFNA(MATCH(RAND(), _xlfn.POISSON.DIST({0,1,2,3,4,5,6,7,8,9},$P28, TRUE),1), 0) -> 1 | CZ28: =_xlfn.IFNA(MATCH(RAND(), _xlfn.POISSON.DIST({0,1,2,3,4,5,6,7,8,9},$P28, TRUE),1), 0) -> 0 | DA28: =_xlfn.IFNA(MATCH(RAND(), _xlfn.POISSON.DIST({0,1,2,3,4,5,6,7,8,9},$P28, TRUE),1), 0) -> 1 | DB28: =_xlfn.IFNA(MATCH(RAND(), _xlfn.POISSON.DIST({0,1,2,3,4,5,6,7,8,9},$P28, TRUE),1), 0) -> 0 | DC28: =_xlfn.IFNA(MATCH(RAND(), _xlfn.POISSON.DIST({0,1,2,3,4,5,6,7,8,9},$P28, TRUE),1), 0) -> 1 | DD28: =_xlfn.IFNA(MATCH(RAND(), _xlfn.POISSON.DIST({0,1,2,3,4,5,6,7,8,9},$P28, TRUE),1), 0) -> 0 | DE28: =_xlfn.IFNA(MATCH(RAND(), _xlfn.POISSON.DIST({0,1,2,3,4,5,6,7,8,9},$P28, TRUE),1), 0) -> 0 | DF28: =_xlfn.IFNA(MATCH(RAND(), _xlfn.POISSON.DIST({0,1,2,3,4,5,6,7,8,9},$P28, TRUE),1), 0) -> 1 | DG28: =_xlfn.IFNA(MATCH(RAND(), _xlfn.POISSON.DIST({0,1,2,3,4,5,6,7,8,9},$P28, TRUE),1), 0) -> 0 | DH28: =_xlfn.IFNA(MATCH(RAND(), _xlfn.POISSON.DIST({0,1,2,3,4,5,6,7,8,9},$P28, TRUE),1), 0) -> 0 | DI28: =_xlfn.IFNA(MATCH(RAND(), _xlfn.POISSON.DIST({0,1,2,3,4,5,6,7,8,9},$P28, TRUE),1), 0) -> 0 | DJ28: =_xlfn.IFNA(MATCH(RAND(), _xlfn.POISSON.DIST({0,1,2,3,4,5,6,7,8,9},$P28, TRUE),1), 0) -> 1 | DK28: =_xlfn.IFNA(MATCH(RAND(), _xlfn.POISSON.DIST({0,1,2,3,4,5,6,7,8,9},$P28, TRUE),1), 0) -> 1 | DL28: =_xlfn.IFNA(MATCH(RAND(), _xlfn.POISSON.DIST({0,1,2,3,4,5,6,7,8,9},$P28, TRUE),1), 0) -> 1 | DM28: =_xlfn.IFNA(MATCH(RAND(), _xlfn.POISSON.DIST({0,1,2,3,4,5,6,7,8,9},$P28, TRUE),1), 0) -> 0
C29: 2019-06-16 | D29: F | E29: Estados Unidos | F29: =(AVERAGE(Q29:BN29))*(1+INDEX('Predicciones de la liguilla'!$C$4:$O$28, MATCH('Partidos de este año'!E29,'Predicciones de la liguilla'!$D$4:$D$28,0),3)) -> 2.64 | G29: Chile | H29: =(AVERAGE(BP29:DM29))*(1+INDEX('Predicciones de la liguilla'!$C$4:$O$28, MATCH('Partidos de este año'!G29,'Predicciones de la liguilla'!$D$4:$D$28,0),3)) -> 0.32 | I29: =IF(L29>M29,E29,IF(L29=M29,"Dibujar",G29)) -> Estados Unidos | L29: 2.64 | M29: 0.32 | N29: =IF(L29>M29,E29,IF(L29=M29,"Dibujar",G29)) -> Estados Unidos | O29: =(OFFSET('Apéndice 3 - Goles por grupo'!$C$13,(INDEX('Apéndice 1 - Datos de equipos'!$C$13:$F$112,MATCH(G29,'Apéndice 1 - Datos de equipos'!$C$13:$C$112,0),4)/10),(INDEX('Apéndice 1 - Datos de equipos'!$C$13:$F$112,MATCH(E29,'Apéndice 1 - Datos de equipos'!$C$13:$C$112,0),4)/10))) -> 2.94 | P29: =OFFSET('Apéndice 3 - Goles por grupo'!$C$13,(INDEX('Apéndice 1 - Datos de equipos'!$C$13:$F$112, MATCH(E29,'Apéndice 1 - Datos de equipos'!$C$13:$C$112,0),4)/10), (INDEX('Apéndice 1 - Datos de equipos'!$C$13:$F$112, MATCH(G29, 'Apéndice 1 - Datos de equipos'!$C$13:$C$112,0),4)/10)) -> 0.38 | Q29: =_xlfn.IFNA(MATCH(RAND(), _xlfn.POISSON.DIST({0,1,2,3,4,5,6,7,8,9},$O29, TRUE),1), 0) -> 2 | R29: =_xlfn.IFNA(MATCH(RAND(), _xlfn.POISSON.DIST({0,1,2,3,4,5,6,7,8,9},$O29, TRUE),1), 0) -> 1 | S29: =_xlfn.IFNA(MATCH(RAND(), _xlfn.POISSON.DIST({0,1,2,3,4,5,6,7,8,9},$O29, TRUE),1), 0) -> 2 | T29: =_xlfn.IFNA(MATCH(RAND(), _xlfn.POISSON.DIST({0,1,2,3,4,5,6,7,8,9},$O29, TRUE),1), 0) -> 5 | U29: =_xlfn.IFNA(MATCH(RAND(), _xlfn.POISSON.DIST({0,1,2,3,4,5,6,7,8,9},$O29, TRUE),1), 0) -> 2 | V29: =_xlfn.IFNA(MATCH(RAND(), _xlfn.POISSON.DIST({0,1,2,3,4,5,6,7,8,9},$O29, TRUE),1), 0) -> 1 | W29: =_xlfn.IFNA(MATCH(RAND(), _xlfn.POISSON.DIST({0,1,2,3,4,5,6,7,8,9},$O29, TRUE),1), 0) -> 2 | X29: =_xlfn.IFNA(MATCH(RAND(), _xlfn.POISSON.DIST({0,1,2,3,4,5,6,7,8,9},$O29, TRUE),1), 0) -> 2 | Y29: =_xlfn.IFNA(MATCH(RAND(), _xlfn.POISSON.DIST({0,1,2,3,4,5,6,7,8,9},$O29, TRUE),1), 0) -> 2 | Z29: =_xlfn.IFNA(MATCH(RAND(), _xlfn.POISSON.DIST({0,1,2,3,4,5,6,7,8,9},$O29, TRUE),1), 0) -> 6 | AA29: =_xlfn.IFNA(MATCH(RAND(), _xlfn.POISSON.DIST({0,1,2,3,4,5,6,7,8,9},$O29, TRUE),1), 0) -> 0 | AB29: =_xlfn.IFNA(MATCH(RAND(), _xlfn.POISSON.DIST({0,1,2,3,4,5,6,7,8,9},$O29, TRUE),1), 0) -> 5 | AC29: =_xlfn.IFNA(MATCH(RAND(), _xlfn.POISSON.DIST({0,1,2,3,4,5,6,7,8,9},$O29, TRUE),1), 0) -> 5 | AD29: =_xlfn.IFNA(MATCH(RAND(), _xlfn.POISSON.DIST({0,1,2,3,4,5,6,7,8,9},$O29, TRUE),1), 0) -> 1 | AE29: =_xlfn.IFNA(MATCH(RAND(), _xlfn.POISSON.DIST({0,1,2,3,4,5,6,7,8,9},$O29, TRUE),1), 0) -> 1 | AF29: =_xlfn.IFNA(MATCH(RAND(), _xlfn.POISSON.DIST({0,1,2,3,4,5,6,7,8,9},$O29, TRUE),1), 0) -> 3 | AG29: =_xlfn.IFNA(MATCH(RAND(), _xlfn.POISSON.DIST({0,1,2,3,4,5,6,7,8,9},$O29, TRUE),1), 0) -> 1 | AH29: =_xlfn.IFNA(MATCH(RAND(), _xlfn.POISSON.DIST({0,1,2,3,4,5,6,7,8,9},$O29, TRUE),1), 0) -> 2 | AI29: =_xlfn.IFNA(MATCH(RAND(), _xlfn.POISSON.DIST({0,1,2,3,4,5,6,7,8,9},$O29, TRUE),1), 0) -> 3 | AJ29: =_xlfn.IFNA(MATCH(RAND(), _xlfn.POISSON.DIST({0,1,2,3,4,5,6,7,8,9},$O29, TRUE),1), 0) -> 1 | AK29: =_xlfn.IFNA(MATCH(RAND(), _xlfn.POISSON.DIST({0,1,2,3,4,5,6,7,8,9},$O29, TRUE),1), 0) -> 1 | AL29: =_xlfn.IFNA(MATCH(RAND(), _xlfn.POISSON.DIST({0,1,2,3,4,5,6,7,8,9},$O29, TRUE),1), 0) -> 4 | AM29: =_xlfn.IFNA(MATCH(RAND(), _xlfn.POISSON.DIST({0,1,2,3,4,5,6,7,8,9},$O29, TRUE),1), 0) -> 1 | AN29: =_xlfn.IFNA(MATCH(RAND(), _xlfn.POISSON.DIST({0,1,2,3,4,5,6,7,8,9},$O29, TRUE),1), 0) -> 1 | AO29: =_xlfn.IFNA(MATCH(RAND(), _xlfn.POISSON.DIST({0,1,2,3,4,5,6,7,8,9},$O29, TRUE),1), 0) -> 1 | AP29: =_xlfn.IFNA(MATCH(RAND(), _xlfn.POISSON.DIST({0,1,2,3,4,5,6,7,8,9},$O29, TRUE),1), 0) -> 1 | AQ29: =_xlfn.IFNA(MATCH(RAND(), _xlfn.POISSON.DIST({0,1,2,3,4,5,6,7,8,9},$O29, TRUE),1), 0) -> 3 | AR29: =_xlfn.IFNA(MATCH(RAND(), _xlfn.POISSON.DIST({0,1,2,3,4,5,6,7,8,9},$O29, TRUE),1), 0) -> 8 | AS29: =_xlfn.IFNA(MATCH(RAND(), _xlfn.POISSON.DIST({0,1,2,3,4,5,6,7,8,9},$O29, TRUE),1), 0) -> 5 | AT29: =_xlfn.IFNA(MATCH(RAND(), _xlfn.POISSON.DIST({0,1,2,3,4,5,6,7,8,9},$O29, TRUE),1), 0) -> 4 | AU29: =_xlfn.IFNA(MATCH(RAND(), _xlfn.POISSON.DIST({0,1,2,3,4,5,6,7,8,9},$O29, TRUE),1), 0) -> 1 | AV29: =_xlfn.IFNA(MATCH(RAND(), _xlfn.POISSON.DIST({0,1,2,3,4,5,6,7,8,9},$O29, TRUE),1), 0) -> 6 | AW29: =_xlfn.IFNA(MATCH(RAND(), _xlfn.POISSON.DIST({0,1,2,3,4,5,6,7,8,9},$O29, TRUE),1), 0) -> 2 | AX29: =_xlfn.IFNA(MATCH(RAND(), _xlfn.POISSON.DIST({0,1,2,3,4,5,6,7,8,9},$O29, TRUE),1), 0) -> 4 | AY29: =_xlfn.IFNA(MATCH(RAND(), _xlfn.POISSON.DIST({0,1,2,3,4,5,6,7,8,9},$O29, TRUE),1), 0) -> 3 | AZ29: =_xlfn.IFNA(MATCH(RAND(), _xlfn.POISSON.DIST({0,1,2,3,4,5,6,7,8,9},$O29, TRUE),1), 0) -> 5 | BA29: =_xlfn.IFNA(MATCH(RAND(), _xlfn.POISSON.DIST({0,1,2,3,4,5,6,7,8,9},$O29, TRUE),1), 0) -> 3 | BB29: =_xlfn.IFNA(MATCH(RAND(), _xlfn.POISSON.DIST({0,1,2,3,4,5,6,7,8,9},$O29, TRUE),1), 0) -> 3 | BC29: =_xlfn.IFNA(MATCH(RAND(), _xlfn.POISSON.DIST({0,1,2,3,4,5,6,7,8,9},$O29, TRUE),1), 0) -> 1 | BD29: =_xlfn.IFNA(MATCH(RAND(), _xlfn.POISSON.DIST({0,1,2,3,4,5,6,7,8,9},$O29, TRUE),1), 0) -> 1 | BE29: =_xlfn.IFNA(MATCH(RAND(), _xlfn.POISSON.DIST({0,1,2,3,4,5,6,7,8,9},$O29, TRUE),1), 0) -> 2 | BF29: =_xlfn.IFNA(MATCH(RAND(), _xlfn.POISSON.DIST({0,1,2,3,4,5,6,7,8,9},$O29, TRUE),1), 0) -> 1 | BG29: =_xlfn.IFNA(MATCH(RAND(), _xlfn.POISSON.DIST({0,1,2,3,4,5,6,7,8,9},$O29, TRUE),1), 0) -> 2 | BH29: =_xlfn.IFNA(MATCH(RAND(), _xlfn.POISSON.DIST({0,1,2,3,4,5,6,7,8,9},$O29, TRUE),1), 0) -> 1 | BI29: =_xlfn.IFNA(MATCH(RAND(), _xlfn.POISSON.DIST({0,1,2,3,4,5,6,7,8,9},$O29, TRUE),1), 0) -> 5 | BJ29: =_xlfn.IFNA(MATCH(RAND(), _xlfn.POISSON.DIST({0,1,2,3,4,5,6,7,8,9},$O29, TRUE),1), 0) -> 4 | BK29: =_xlfn.IFNA(MATCH(RAND(), _xlfn.POISSON.DIST({0,1,2,3,4,5,6,7,8,9},$O29, TRUE),1), 0) -> 4 | BL29: =_xlfn.IFNA(MATCH(RAND(), _xlfn.POISSON.DIST({0,1,2,3,4,5,6,7,8,9},$O29, TRUE),1), 0) -> 2 | BM29: =_xlfn.IFNA(MATCH(RAND(), _xlfn.POISSON.DIST({0,1,2,3,4,5,6,7,8,9},$O29, TRUE),1), 0) -> 3 | BN29: =_xlfn.IFNA(MATCH(RAND(), _xlfn.POISSON.DIST({0,1,2,3,4,5,6,7,8,9},$O29, TRUE),1), 0) -> 3 | BP29: =_xlfn.IFNA(MATCH(RAND(), _xlfn.POISSON.DIST({0,1,2,3,4,5,6,7,8,9},$P29, TRUE),1), 0) -> 0 | BQ29: =_xlfn.IFNA(MATCH(RAND(), _xlfn.POISSON.DIST({0,1,2,3,4,5,6,7,8,9},$P29, TRUE),1), 0) -> 0 | BR29: =_xlfn.IFNA(MATCH(RAND(), _xlfn.POISSON.DIST({0,1,2,3,4,5,6,7,8,9},$P29, TRUE),1), 0) -> 1 | BS29: =_xlfn.IFNA(MATCH(RAND(), _xlfn.POISSON.DIST({0,1,2,3,4,5,6,7,8,9},$P29, TRUE),1), 0) -> 0 | BT29: =_xlfn.IFNA(MATCH(RAND(), _xlfn.POISSON.DIST({0,1,2,3,4,5,6,7,8,9},$P29, TRUE),1), 0) -> 0 | BU29: =_xlfn.IFNA(MATCH(RAND(), _xlfn.POISSON.DIST({0,1,2,3,4,5,6,7,8,9},$P29, TRUE),1), 0) -> 1 | BV29: =_xlfn.IFNA(MATCH(RAND(), _xlfn.POISSON.DIST({0,1,2,3,4,5,6,7,8,9},$P29, TRUE),1), 0) -> 0 | BW29: =_xlfn.IFNA(MATCH(RAND(), _xlfn.POISSON.DIST({0,1,2,3,4,5,6,7,8,9},$P29, TRUE),1), 0) -> 0 | BX29: =_xlfn.IFNA(MATCH(RAND(), _xlfn.POISSON.DIST({0,1,2,3,4,5,6,7,8,9},$P29, TRUE),1), 0) -> 1 | BY29: =_xlfn.IFNA(MATCH(RAND(), _xlfn.POISSON.DIST({0,1,2,3,4,5,6,7,8,9},$P29, TRUE),1), 0) -> 0 | BZ29: =_xlfn.IFNA(MATCH(RAND(), _xlfn.POISSON.DIST({0,1,2,3,4,5,6,7,8,9},$P29, TRUE),1), 0) -> 0 | CA29: =_xlfn.IFNA(MATCH(RAND(), _xlfn.POISSON.DIST({0,1,2,3,4,5,6,7,8,9},$P29, TRUE),1), 0) -> 0 | CB29: =_xlfn.IFNA(MATCH(RAND(), _xlfn.POISSON.DIST({0,1,2,3,4,5,6,7,8,9},$P29, TRUE),1), 0) -> 0 | CC29: =_xlfn.IFNA(MATCH(RAND(), _xlfn.POISSON.DIST({0,1,2,3,4,5,6,7,8,9},$P29, TRUE),1), 0) -> 0 | CD29: =_xlfn.IFNA(MATCH(RAND(), _xlfn.POISSON.DIST({0,1,2,3,4,5,6,7,8,9},$P29, TRUE),1), 0) -> 1 | CE29: =_xlfn.IFNA(MATCH(RAND(), _xlfn.POISSON.DIST({0,1,2,3,4,5,6,7,8,9},$P29, TRUE),1), 0) -> 0 | CF29: =_xlfn.IFNA(MATCH(RAND(), _xlfn.POISSON.DIST({0,1,2,3,4,5,6,7,8,9},$P29, TRUE),1), 0) -> 0 | CG29: =_xlfn.IFNA(MATCH(RAND(), _xlfn.POISSON.DIST({0,1,2,3,4,5,6,7,8,9},$P29, TRUE),1), 0) -> 0 | CH29: =_xlfn.IFNA(MATCH(RAND(), _xlfn.POISSON.DIST({0,1,2,3,4,5,6,7,8,9},$P29, TRUE),1), 0) -> 1 | CI29: =_xlfn.IFNA(MATCH(RAND(), _xlfn.POISSON.DIST({0,1,2,3,4,5,6,7,8,9},$P29, TRUE),1), 0) -> 1 | CJ29: =_xlfn.IFNA(MATCH(RAND(), _xlfn.POISSON.DIST({0,1,2,3,4,5,6,7,8,9},$P29, TRUE),1), 0) -> 0 | CK29: =_xlfn.IFNA(MATCH(RAND(), _xlfn.POISSON.DIST({0,1,2,3,4,5,6,7,8,9},$P29, TRUE),1), 0) -> 0 | CL29: =_xlfn.IFNA(MATCH(RAND(), _xlfn.POISSON.DIST({0,1,2,3,4,5,6,7,8,9},$P29, TRUE),1), 0) -> 0 | CM29: =_xlfn.IFNA(MATCH(RAND(), _xlfn.POISSON.DIST({0,1,2,3,4,5,6,7,8,9},$P29, TRUE),1), 0) -> 0 | CN29: =_xlfn.IFNA(MATCH(RAND(), _xlfn.POISSON.DIST({0,1,2,3,4,5,6,7,8,9},$P29, TRUE),1), 0) -> 0 | CO29: =_xlfn.IFNA(MATCH(RAND(), _xlfn.POISSON.DIST({0,1,2,3,4,5,6,7,8,9},$P29, TRUE),1), 0) -> 0 | CP29: =_xlfn.IFNA(MATCH(RAND(), _xlfn.POISSON.DIST({0,1,2,3,4,5,6,7,8,9},$P29, TRUE),1), 0) -> 0 | CQ29: =_xlfn.IFNA(MATCH(RAND(), _xlfn.POISSON.DIST({0,1,2,3,4,5,6,7,8,9},$P29, TRUE),1), 0) -> 0 | CR29: =_xlfn.IFNA(MATCH(RAND(), _xlfn.POISSON.DIST({0,1,2,3,4,5,6,7,8,9},$P29, TRUE),1), 0) -> 0 | CS29: =_xlfn.IFNA(MATCH(RAND(), _xlfn.POISSON.DIST({0,1,2,3,4,5,6,7,8,9},$P29, TRUE),1), 0) -> 0 | CT29: =_xlfn.IFNA(MATCH(RAND(), _xlfn.POISSON.DIST({0,1,2,3,4,5,6,7,8,9},$P29, TRUE),1), 0) -> 0 | CU29: =_xlfn.IFNA(MATCH(RAND(), _xlfn.POISSON.DIST({0,1,2,3,4,5,6,7,8,9},$P29, TRUE),1), 0) -> 0 | CV29: =_xlfn.IFNA(MATCH(RAND(), _xlfn.POISSON.DIST({0,1,2,3,4,5,6,7,8,9},$P29, TRUE),1), 0) -> 0 | CW29: =_xlfn.IFNA(MATCH(RAND(), _xlfn.POISSON.DIST({0,1,2,3,4,5,6,7,8,9},$P29, TRUE),1), 0) -> 1 | CX29: =_xlfn.IFNA(MATCH(RAND(), _xlfn.POISSON.DIST({0,1,2,3,4,5,6,7,8,9},$P29, TRUE),1), 0) -> 0 | CY29: =_xlfn.IFNA(MATCH(RAND(), _xlfn.POISSON.DIST({0,1,2,3,4,5,6,7,8,9},$P29, TRUE),1), 0) -> 0 | CZ29: =_xlfn.IFNA(MATCH(RAND(), _xlfn.POISSON.DIST({0,1,2,3,4,5,6,7,8,9},$P29, TRUE),1), 0) -> 2 | DA29: =_xlfn.IFNA(MATCH(RAND(), _xlfn.POISSON.DIST({0,1,2,3,4,5,6,7,8,9},$P29, TRUE),1), 0) -> 0 | DB29: =_xlfn.IFNA(MATCH(RAND(), _xlfn.POISSON.DIST({0,1,2,3,4,5,6,7,8,9},$P29, TRUE),1), 0) -> 0 | DC29: =_xlfn.IFNA(MATCH(RAND(), _xlfn.POISSON.DIST({0,1,2,3,4,5,6,7,8,9},$P29, TRUE),1), 0) -> 0 | DD29: =_xlfn.IFNA(MATCH(RAND(), _xlfn.POISSON.DIST({0,1,2,3,4,5,6,7,8,9},$P29, TRUE),1), 0) -> 0 | DE29: =_xlfn.IFNA(MATCH(RAND(), _xlfn.POISSON.DIST({0,1,2,3,4,5,6,7,8,9},$P29, TRUE),1), 0) -> 0 | DF29: =_xlfn.IFNA(MATCH(RAND(), _xlfn.POISSON.DIST({0,1,2,3,4,5,6,7,8,9},$P29, TRUE),1), 0) -> 0 | DG29: =_xlfn.IFNA(MATCH(RAND(), _xlfn.POISSON.DIST({0,1,2,3,4,5,6,7,8,9},$P29, TRUE),1), 0) -> 1 | DH29: =_xlfn.IFNA(MATCH(RAND(), _xlfn.POISSON.DIST({0,1,2,3,4,5,6,7,8,9},$P29, TRUE),1), 0) -> 0 | DI29: =_xlfn.IFNA(MATCH(RAND(), _xlfn.POISSON.DIST({0,1,2,3,4,5,6,7,8,9},$P29, TRUE),1), 0) -> 2 | DJ29: =_xlfn.IFNA(MATCH(RAND(), _xlfn.POISSON.DIST({0,1,2,3,4,5,6,7,8,9},$P29, TRUE),1), 0) -> 1 | DK29: =_xlfn.IFNA(MATCH(RAND(), _xlfn.POISSON.DIST({0,1,2,3,4,5,6,7,8,9},$P29, TRUE),1), 0) -> 2 | DL29: =_xlfn.IFNA(MATCH(RAND(), _xlfn.POISSON.DIST({0,1,2,3,4,5,6,7,8,9},$P29, TRUE),1), 0) -> 0 | DM29: =_xlfn.IFNA(MATCH(RAND(), _xlfn.POISSON.DIST({0,1,2,3,4,5,6,7,8,9},$P29, TRUE),1), 0) -> 1
C30: 2019-06-17 | D30: B | E30: China PR | F30: =(AVERAGE(Q30:BN30))*(1+INDEX('Predicciones de la liguilla'!$C$4:$O$28, MATCH('Partidos de este año'!E30,'Predicciones de la liguilla'!$D$4:$D$28,0),3)) -> 1.48 | G30: España | H30: =(AVERAGE(BP30:DM30))*(1+INDEX('Predicciones de la liguilla'!$C$4:$O$28, MATCH('Partidos de este año'!G30,'Predicciones de la liguilla'!$D$4:$D$28,0),3)) -> 1.54 | I30: =IF(L30>M30,E30,IF(L30=M30,"Dibujar",G30)) -> España | L30: 1.48 | M30: 1.54 | N30: =IF(L30>M30,E30,IF(L30=M30,"Dibujar",G30)) -> España | O30: =(OFFSET('Apéndice 3 - Goles por grupo'!$C$13,(INDEX('Apéndice 1 - Datos de equipos'!$C$13:$F$112,MATCH(G30,'Apéndice 1 - Datos de equipos'!$C$13:$C$112,0),4)/10),(INDEX('Apéndice 1 - Datos de equipos'!$C$13:$F$112,MATCH(E30,'Apéndice 1 - Datos de equipos'!$C$13:$C$112,0),4)/10))) -> 1.50 | P30: =OFFSET('Apéndice 3 - Goles por grupo'!$C$13,(INDEX('Apéndice 1 - Datos de equipos'!$C$13:$F$112, MATCH(E30,'Apéndice 1 - Datos de equipos'!$C$13:$C$112,0),4)/10), (INDEX('Apéndice 1 - Datos de equipos'!$C$13:$F$112, MATCH(G30, 'Apéndice 1 - Datos de equipos'!$C$13:$C$112,0),4)/10)) -> 1.50 | Q30: =_xlfn.IFNA(MATCH(RAND(), _xlfn.POISSON.DIST({0,1,2,3,4,5,6,7,8,9},$O30, TRUE),1), 0) -> 1 | R30: =_xlfn.IFNA(MATCH(RAND(), _xlfn.POISSON.DIST({0,1,2,3,4,5,6,7,8,9},$O30, TRUE),1), 0) -> 4 | S30: =_xlfn.IFNA(MATCH(RAND(), _xlfn.POISSON.DIST({0,1,2,3,4,5,6,7,8,9},$O30, TRUE),1), 0) -> 1 | T30: =_xlfn.IFNA(MATCH(RAND(), _xlfn.POISSON.DIST({0,1,2,3,4,5,6,7,8,9},$O30, TRUE),1), 0) -> 4 | U30: =_xlfn.IFNA(MATCH(RAND(), _xlfn.POISSON.DIST({0,1,2,3,4,5,6,7,8,9},$O30, TRUE),1), 0) -> 3 | V30: =_xlfn.IFNA(MATCH(RAND(), _xlfn.POISSON.DIST({0,1,2,3,4,5,6,7,8,9},$O30, TRUE),1), 0) -> 1 | W30: =_xlfn.IFNA(MATCH(RAND(), _xlfn.POISSON.DIST({0,1,2,3,4,5,6,7,8,9},$O30, TRUE),1), 0) -> 3 | X30: =_xlfn.IFNA(MATCH(RAND(), _xlfn.POISSON.DIST({0,1,2,3,4,5,6,7,8,9},$O30, TRUE),1), 0) -> 3 | Y30: =_xlfn.IFNA(MATCH(RAND(), _xlfn.POISSON.DIST({0,1,2,3,4,5,6,7,8,9},$O30, TRUE),1), 0) -> 1 | Z30: =_xlfn.IFNA(MATCH(RAND(), _xlfn.POISSON.DIST({0,1,2,3,4,5,6,7,8,9},$O30, TRUE),1), 0) -> 1 | AA30: =_xlfn.IFNA(MATCH(RAND(), _xlfn.POISSON.DIST({0,1,2,3,4,5,6,7,8,9},$O30, TRUE),1), 0) -> 2 | AB30: =_xlfn.IFNA(MATCH(RAND(), _xlfn.POISSON.DIST({0,1,2,3,4,5,6,7,8,9},$O30, TRUE),1), 0) -> 0 | AC30: =_xlfn.IFNA(MATCH(RAND(), _xlfn.POISSON.DIST({0,1,2,3,4,5,6,7,8,9},$O30, TRUE),1), 0) -> 0 | AD30: =_xlfn.IFNA(MATCH(RAND(), _xlfn.POISSON.DIST({0,1,2,3,4,5,6,7,8,9},$O30, TRUE),1), 0) -> 1 | AE30: =_xlfn.IFNA(MATCH(RAND(), _xlfn.POISSON.DIST({0,1,2,3,4,5,6,7,8,9},$O30, TRUE),1), 0) -> 0 | AF30: =_xlfn.IFNA(MATCH(RAND(), _xlfn.POISSON.DIST({0,1,2,3,4,5,6,7,8,9},$O30, TRUE),1), 0) -> 4 | AG30: =_xlfn.IFNA(MATCH(RAND(), _xlfn.POISSON.DIST({0,1,2,3,4,5,6,7,8,9},$O30, TRUE),1), 0) -> 1 | AH30: =_xlfn.IFNA(MATCH(RAND(), _xlfn.POISSON.DIST({0,1,2,3,4,5,6,7,8,9},$O30, TRUE),1), 0) -> 0 | AI30: =_xlfn.IFNA(MATCH(RAND(), _xlfn.POISSON.DIST({0,1,2,3,4,5,6,7,8,9},$O30, TRUE),1), 0) -> 2 | AJ30: =_xlfn.IFNA(MATCH(RAND(), _xlfn.POISSON.DIST({0,1,2,3,4,5,6,7,8,9},$O30, TRUE),1), 0) -> 3 | AK30: =_xlfn.IFNA(MATCH(RAND(), _xlfn.POISSON.DIST({0,1,2,3,4,5,6,7,8,9},$O30, TRUE),1), 0) -> 0 | AL30: =_xlfn.IFNA(MATCH(RAND(), _xlfn.POISSON.DIST({0,1,2,3,4,5,6,7,8,9},$O30, TRUE),1), 0) -> 2 | AM30: =_xlfn.IFNA(MATCH(RAND(), _xlfn.POISSON.DIST({0,1,2,3,4,5,6,7,8,9},$O30, TRUE),1), 0) -> 2 | AN30: =_xlfn.IFNA(MATCH(RAND(), _xlfn.POISSON.DIST({0,1,2,3,4,5,6,7,8,9},$O30, TRUE),1), 0) -> 2 | AO30: =_xlfn.IFNA(MATCH(RAND(), _xlfn.POISSON.DIST({0,1,2,3,4,5,6,7,8,9},$O30, TRUE),1), 0) -> 1 | AP30: =_xlfn.IFNA(MATCH(RAND(), _xlfn.POISSON.DIST({0,1,2,3,4,5,6,7,8,9},$O30, TRUE),1), 0) -> 2 | AQ30: =_xlfn.IFNA(MATCH(RAND(), _xlfn.POISSON.DIST({0,1,2,3,4,5,6,7,8,9},$O30, TRUE),1), 0) -> 1 | AR30: =_xlfn.IFNA(MATCH(RAND(), _xlfn.POISSON.DIST({0,1,2,3,4,5,6,7,8,9},$O30, TRUE),1), 0) -> 0 | AS30: =_xlfn.IFNA(MATCH(RAND(), _xlfn.POISSON.DIST({0,1,2,3,4,5,6,7,8,9},$O30, TRUE),1), 0) -> 0 | AT30: =_xlfn.IFNA(MATCH(RAND(), _xlfn.POISSON.DIST({0,1,2,3,4,5,6,7,8,9},$O30, TRUE),1), 0) -> 0 | AU30: =_xlfn.IFNA(MATCH(RAND(), _xlfn.POISSON.DIST({0,1,2,3,4,5,6,7,8,9},$O30, TRUE),1), 0) -> 1 | AV30: =_xlfn.IFNA(MATCH(RAND(), _xlfn.POISSON.DIST({0,1,2,3,4,5,6,7,8,9},$O30, TRUE),1), 0) -> 0 | AW30: =_xlfn.IFNA(MATCH(RAND(), _xlfn.POISSON.DIST({0,1,2,3,4,5,6,7,8,9},$O30, TRUE),1), 0) -> 4 | AX30: =_xlfn.IFNA(MATCH(RAND(), _xlfn.POISSON.DIST({0,1,2,3,4,5,6,7,8,9},$O30, TRUE),1), 0) -> 1 | AY30: =_xlfn.IFNA(MATCH(RAND(), _xlfn.POISSON.DIST({0,1,2,3,4,5,6,7,8,9},$O30, TRUE),1), 0) -> 2 | AZ30: =_xlfn.IFNA(MATCH(RAND(), _xlfn.POISSON.DIST({0,1,2,3,4,5,6,7,8,9},$O30, TRUE),1), 0) -> 1 | BA30: =_xlfn.IFNA(MATCH(RAND(), _xlfn.POISSON.DIST({0,1,2,3,4,5,6,7,8,9},$O30, TRUE),1), 0) -> 1 | BB30: =_xlfn.IFNA(MATCH(RAND(), _xlfn.POISSON.DIST({0,1,2,3,4,5,6,7,8,9},$O30, TRUE),1), 0) -> 2 | BC30: =_xlfn.IFNA(MATCH(RAND(), _xlfn.POISSON.DIST({0,1,2,3,4,5,6,7,8,9},$O30, TRUE),1), 0) -> 1 | BD30: =_xlfn.IFNA(MATCH(RAND(), _xlfn.POISSON.DIST({0,1,2,3,4,5,6,7,8,9},$O30, TRUE),1), 0) -> 3 | BE30: =_xlfn.IFNA(MATCH(RAND(), _xlfn.POISSON.DIST({0,1,2,3,4,5,6,7,8,9},$O30, TRUE),1), 0) -> 0 | BF30: =_xlfn.IFNA(MATCH(RAND(), _xlfn.POISSON.DIST({0,1,2,3,4,5,6,7,8,9},$O30, TRUE),1), 0) -> 4 | BG30: =_xlfn.IFNA(MATCH(RAND(), _xlfn.POISSON.DIST({0,1,2,3,4,5,6,7,8,9},$O30, TRUE),1), 0) -> 0 | BH30: =_xlfn.IFNA(MATCH(RAND(), _xlfn.POISSON.DIST({0,1,2,3,4,5,6,7,8,9},$O30, TRUE),1), 0) -> 1 | BI30: =_xlfn.IFNA(MATCH(RAND(), _xlfn.POISSON.DIST({0,1,2,3,4,5,6,7,8,9},$O30, TRUE),1), 0) -> 2 | BJ30: =_xlfn.IFNA(MATCH(RAND(), _xlfn.POISSON.DIST({0,1,2,3,4,5,6,7,8,9},$O30, TRUE),1), 0) -> 2 | BK30: =_xlfn.IFNA(MATCH(RAND(), _xlfn.POISSON.DIST({0,1,2,3,4,5,6,7,8,9},$O30, TRUE),1), 0) -> 1 | BL30: =_xlfn.IFNA(MATCH(RAND(), _xlfn.POISSON.DIST({0,1,2,3,4,5,6,7,8,9},$O30, TRUE),1), 0) -> 1 | BM30: =_xlfn.IFNA(MATCH(RAND(), _xlfn.POISSON.DIST({0,1,2,3,4,5,6,7,8,9},$O30, TRUE),1), 0) -> 1 | BN30: =_xlfn.IFNA(MATCH(RAND(), _xlfn.POISSON.DIST({0,1,2,3,4,5,6,7,8,9},$O30, TRUE),1), 0) -> 1 | BP30: =_xlfn.IFNA(MATCH(RAND(), _xlfn.POISSON.DIST({0,1,2,3,4,5,6,7,8,9},$P30, TRUE),1), 0) -> 1 | BQ30: =_xlfn.IFNA(MATCH(RAND(), _xlfn.POISSON.DIST({0,1,2,3,4,5,6,7,8,9},$P30, TRUE),1), 0) -> 1 | BR30: =_xlfn.IFNA(MATCH(RAND(), _xlfn.POISSON.DIST({0,1,2,3,4,5,6,7,8,9},$P30, TRUE),1), 0) -> 1 | BS30: =_xlfn.IFNA(MATCH(RAND(), _xlfn.POISSON.DIST({0,1,2,3,4,5,6,7,8,9},$P30, TRUE),1), 0) -> 2 | BT30: =_xlfn.IFNA(MATCH(RAND(), _xlfn.POISSON.DIST({0,1,2,3,4,5,6,7,8,9},$P30, TRUE),1), 0) -> 2 | BU30: =_xlfn.IFNA(MATCH(RAND(), _xlfn.POISSON.DIST({0,1,2,3,4,5,6,7,8,9},$P30, TRUE),1), 0) -> 3 | BV30: =_xlfn.IFNA(MATCH(RAND(), _xlfn.POISSON.DIST({0,1,2,3,4,5,6,7,8,9},$P30, TRUE),1), 0) -> 3 | BW30: =_xlfn.IFNA(MATCH(RAND(), _xlfn.POISSON.DIST({0,1,2,3,4,5,6,7,8,9},$P30, TRUE),1), 0) -> 3 | BX30: =_xlfn.IFNA(MATCH(RAND(), _xlfn.POISSON.DIST({0,1,2,3,4,5,6,7,8,9},$P30, TRUE),1), 0) -> 2 | BY30: =_xlfn.IFNA(MATCH(RAND(), _xlfn.POISSON.DIST({0,1,2,3,4,5,6,7,8,9},$P30, TRUE),1), 0) -> 3 | BZ30: =_xlfn.IFNA(MATCH(RAND(), _xlfn.POISSON.DIST({0,1,2,3,4,5,6,7,8,9},$P30, TRUE),1), 0) -> 0 | CA30: =_xlfn.IFNA(MATCH(RAND(), _xlfn.POISSON.DIST({0,1,2,3,4,5,6,7,8,9},$P30, TRUE),1), 0) -> 1 | CB30: =_xlfn.IFNA(MATCH(RAND(), _xlfn.POISSON.DIST({0,1,2,3,4,5,6,7,8,9},$P30, TRUE),1), 0) -> 3 | CC30: =_xlfn.IFNA(MATCH(RAND(), _xlfn.POISSON.DIST({0,1,2,3,4,5,6,7,8,9},$P30, TRUE),1), 0) -> 1 | CD30: =_xlfn.IFNA(MATCH(RAND(), _xlfn.POISSON.DIST({0,1,2,3,4,5,6,7,8,9},$P30, TRUE),1), 0) -> 2 | CE30: =_xlfn.IFNA(MATCH(RAND(), _xlfn.POISSON.DIST({0,1,2,3,4,5,6,7,8,9},$P30, TRUE),1), 0) -> 2 | CF30: =_xlfn.IFNA(MATCH(RAND(), _xlfn.POISSON.DIST({0,1,2,3,4,5,6,7,8,9},$P30, TRUE),1), 0) -> 1 | CG30: =_xlfn.IFNA(MATCH(RAND(), _xlfn.POISSON.DIST({0,1,2,3,4,5,6,7,8,9},$P30, TRUE),1), 0) -> 0 | CH30: =_xlfn.IFNA(MATCH(RAND(), _xlfn.POISSON.DIST({0,1,2,3,4,5,6,7,8,9},$P30, TRUE),1), 0) -> 0 | CI30: =_xlfn.IFNA(MATCH(RAND(), _xlfn.POISSON.DIST({0,1,2,3,4,5,6,7,8,9},$P30, TRUE),1), 0) -> 1 | CJ30: =_xlfn.IFNA(MATCH(RAND(), _xlfn.POISSON.DIST({0,1,2,3,4,5,6,7,8,9},$P30, TRUE),1), 0) -> 2 | CK30: =_xlfn.IFNA(MATCH(RAND(), _xlfn.POISSON.DIST({0,1,2,3,4,5,6,7,8,9},$P30, TRUE),1), 0) -> 2 | CL30: =_xlfn.IFNA(MATCH(RAND(), _xlfn.POISSON.DIST({0,1,2,3,4,5,6,7,8,9},$P30, TRUE),1), 0) -> 3 | CM30: =_xlfn.IFNA(MATCH(RAND(), _xlfn.POISSON.DIST({0,1,2,3,4,5,6,7,8,9},$P30, TRUE),1), 0) -> 2 | CN30: =_xlfn.IFNA(MATCH(RAND(), _xlfn.POISSON.DIST({0,1,2,3,4,5,6,7,8,9},$P30, TRUE),1), 0) -> 1 | CO30: =_xlfn.IFNA(MATCH(RAND(), _xlfn.POISSON.DIST({0,1,2,3,4,5,6,7,8,9},$P30, TRUE),1), 0) -> 0 | CP30: =_xlfn.IFNA(MATCH(RAND(), _xlfn.POISSON.DIST({0,1,2,3,4,5,6,7,8,9},$P30, TRUE),1), 0) -> 3 | CQ30: =_xlfn.IFNA(MATCH(RAND(), _xlfn.POISSON.DIST({0,1,2,3,4,5,6,7,8,9},$P30, TRUE),1), 0) -> 1 | CR30: =_xlfn.IFNA(MATCH(RAND(), _xlfn.POISSON.DIST({0,1,2,3,4,5,6,7,8,9},$P30, TRUE),1), 0) -> 0 | CS30: =_xlfn.IFNA(MATCH(RAND(), _xlfn.POISSON.DIST({0,1,2,3,4,5,6,7,8,9},$P30, TRUE),1), 0) -> 2 | CT30: =_xlfn.IFNA(MATCH(RAND(), _xlfn.POISSON.DIST({0,1,2,3,4,5,6,7,8,9},$P30, TRUE),1), 0) -> 0 | CU30: =_xlfn.IFNA(MATCH(RAND(), _xlfn.POISSON.DIST({0,1,2,3,4,5,6,7,8,9},$P30, TRUE),1), 0) -> 1 | CV30: =_xlfn.IFNA(MATCH(RAND(), _xlfn.POISSON.DIST({0,1,2,3,4,5,6,7,8,9},$P30, TRUE),1), 0) -> 1 | CW30: =_xlfn.IFNA(MATCH(RAND(), _xlfn.POISSON.DIST({0,1,2,3,4,5,6,7,8,9},$P30, TRUE),1), 0) -> 1 | CX30: =_xlfn.IFNA(MATCH(RAND(), _xlfn.POISSON.DIST({0,1,2,3,4,5,6,7,8,9},$P30, TRUE),1), 0) -> 2 | CY30: =_xlfn.IFNA(MATCH(RAND(), _xlfn.POISSON.DIST({0,1,2,3,4,5,6,7,8,9},$P30, TRUE),1), 0) -> 1 | CZ30: =_xlfn.IFNA(MATCH(RAND(), _xlfn.POISSON.DIST({0,1,2,3,4,5,6,7,8,9},$P30, TRUE),1), 0) -> 2 | DA30: =_xlfn.IFNA(MATCH(RAND(), _xlfn.POISSON.DIST({0,1,2,3,4,5,6,7,8,9},$P30, TRUE),1), 0) -> 2 | DB30: =_xlfn.IFNA(MATCH(RAND(), _xlfn.POISSON.DIST({0,1,2,3,4,5,6,7,8,9},$P30, TRUE),1), 0) -> 1 | DC30: =_xlfn.IFNA(MATCH(RAND(), _xlfn.POISSON.DIST({0,1,2,3,4,5,6,7,8,9},$P30, TRUE),1), 0) -> 0 | DD30: =_xlfn.IFNA(MATCH(RAND(), _xlfn.POISSON.DIST({0,1,2,3,4,5,6,7,8,9},$P30, TRUE),1), 0) -> 1 | DE30: =_xlfn.IFNA(MATCH(RAND(), _xlfn.POISSON.DIST({0,1,2,3,4,5,6,7,8,9},$P30, TRUE),1), 0) -> 0 | DF30: =_xlfn.IFNA(MATCH(RAND(), _xlfn.POISSON.DIST({0,1,2,3,4,5,6,7,8,9},$P30, TRUE),1), 0) -> 3 | DG30: =_xlfn.IFNA(MATCH(RAND(), _xlfn.POISSON.DIST({0,1,2,3,4,5,6,7,8,9},$P30, TRUE),1), 0) -> 4 | DH30: =_xlfn.IFNA(MATCH(RAND(), _xlfn.POISSON.DIST({0,1,2,3,4,5,6,7,8,9},$P30, TRUE),1), 0) -> 1 | DI30: =_xlfn.IFNA(MATCH(RAND(), _xlfn.POISSON.DIST({0,1,2,3,4,5,6,7,8,9},$P30, TRUE),1), 0) -> 2 | DJ30: =_xlfn.IFNA(MATCH(RAND(), _xlfn.POISSON.DIST({0,1,2,3,4,5,6,7,8,9},$P30, TRUE),1), 0) -> 3 | DK30: =_xlfn.IFNA(MATCH(RAND(), _xlfn.POISSON.DIST({0,1,2,3,4,5,6,7,8,9},$P30, TRUE),1), 0) -> 1 | DL30: =_xlfn.IFNA(MATCH(RAND(), _xlfn.POISSON.DIST({0,1,2,3,4,5,6,7,8,9},$P30, TRUE),1), 0) -> 3 | DM30: =_xlfn.IFNA(MATCH(RAND(), _xlfn.POISSON.DIST({0,1,2,3,4,5,6,7,8,9},$P30, TRUE),1), 0) -> 0
